Workbook

Sheet ADP-Rank (hidden)
A1: PLAYERNAME | B1: PlayerID | C1: Pos | D1: OF Pos | E1: TEAM | F1: Age | G1: FT | H1: High | I1: Low | J1: Yahoo | K1: High | L1: Low | M1: CBS ADP | N1: High | O1: Low | P1: ESPN | Q1: High | R1: Low | S1: FGD | T1: High | U1: Low | V1: Fpros | W1: High | X1: Low | Y1: NFBC | Z1: High | AA1: Low | AB1: Comb | AC1: High | AD1: Low | AE1: RotoChamp | AF1: Yahoo Staff | AG1: TBD | AH1: ESPN Points | AI1: ESPN Karabell | AJ1: TBD | AK1: TBD | AL1: Fantasy Pros Avg | AM1: MC | AN1: Team In Sheet? | AO1: Rank Chosen | AP1: Filtered-Rank | AQ1: Chosen-ADP | AR1: Filtered-ADP-Rank | AS1: ADP Round | AT1: Early | AU1: Late | AV1: Filtered-Early | AW1: Filtered-Late | AX1: ImportADP | AY1: High | AZ1: Low | BA1: =IF(VLOOKUP(A2,'Name-Sort'!$D$2:$E$999,2,FALSE)="",A2,"") -> Jose Abreu | BB1: =IFERROR(INDEX($BA$1:$BA$999,SMALL(IF($BA$1:$BA$999<>"",ROW($BA$1:$BA$999)),ROW(BA1))),"") -> Jose Abreu
A2: Jose Abreu | B2: abreujo02 | C2: 1B | E2: CWS | F2: 31 | G2: 42 | H2: 22 | I2: 84 | J2: 34 | K2: 22 | L2: 84 | M2: 44.07 | N2: 22 | O2: 58 | P2: 35 | Q2: 22 | R2: 84 | V2: 38.2 | W2: 22 | X2: 84 | Y2: 41.26 | Z2: 26 | AA2: 84 | AB2: 39.08833333 | AC2: 22 | AD2: 84 | AE2: 28 | AF2: 31 | AH2: 40 | AI2: 36 | AL2: 30 | AN2: =IFERROR(INDEX('Guts-2'!$K$1:$K$30,MATCH(E2,'Guts-2'!$J$1:$J$30,0)),TRUE) -> TRUE | AO2: =IF(AN2=FALSE,"",IFERROR(CHOOSE('Guts-2'!$D$27,AE2,AF2,AG2,AH2,AI2,AJ2,AK2,AL2,AM2),"")) -> 40 | AP2: =IFERROR(RANK(AO2,$AO$2:$AO$999,1),"") -> 40 | AQ2: =IF(AN2=FALSE,"",IFERROR(CHOOSE('Guts-2'!$D$26,G2,J2,M2,P2,S2,V2,Y2,AB2,AX2),"")) -> 44.07 | AR2: =IFERROR(RANK(AQ2,$AQ$2:$AQ$999,1),"") -> 44 | AS2: =IFERROR(IF(Settings!$L$5="Mixed (Standard)",(RANK(AQ2,$AQ$2:$AQ$999,1)/('Guts-2'!$N$1+1))+1,(RANK(AR2,$AR$2:$AR$999,1)/('Guts-2'!$N$1+1))+1),"") -> 4.384615385 | AT2: =IFERROR(CHOOSE('Guts-2'!$D$26,H2,K2,N2,Q2,T2,W2,Z2,AC2,AY2),"") -> 22 | AU2: =IFERROR(CHOOSE('Guts-2'!$D$26,I2,L2,O2,R2,U2,X2,AA2,AD2,AZ2),"") -> 58 | AV2: =IFERROR(IF(AN2=TRUE,IF((AT2-COUNTIFS($AT$2:$AT$999,"<"&AT2,$AN$2:$AN$999,FALSE))<1,1,AT2-COUNTIFS($AT$2:$AT$999,"<"&AT2,$AN$2:$AN$999,FALSE)),""),"") -> 22 | AW2: =IFERROR(IF(AN2=FALSE,"",IF((AU2-COUNTIFS($AU$2:$AU$999,"<"&AU2,$AN$2:$AN$999,FALSE))<1,1,AU2-COUNTIFS($AU$2:$AU$999,"<"&AU2,$AN$2:$AN$999,FALSE))),"") -> 58 | AX2: =INDEX('Import (ADP)'!$C$2:$C$999,MATCH(A2, 'Import (ADP)'!$B$2:$B$999,0)) ->  | AY2: =IFERROR(MIN(N2,Z2,ROUND(AX2*0.75,0)),ROUND(AX2*0.75,0)) ->  | AZ2: =IFERROR(MAX(O2,AA2,ROUND(AX2*1.25,0)),ROUND(AY2*1.25,0)) ->  | BA2: =IF(VLOOKUP(A3,'Name-Sort'!$D$2:$E$999,2,FALSE)="",A3,"") -> Ronald Acuna | BB2: =IFERROR(INDEX($BA$1:$BA$999,SMALL(IF($BA$1:$BA$999<>"",ROW($BA$1:$BA$999)),ROW(BA2))),"") -> Ronald Acuna
A3: Ronald Acuna | B3: acunaro01 | C3: OF | D3: CF | E3: ATL | F3: 20 | J3: 199 | K3: 35 | L3: 265 | M3: 118.91 | N3: 35 | O3: 176 | P3: 169 | Q3: 35 | R3: 225 | V3: 142.2 | W3: 35 | X3: 207 | Y3: 120.74 | Z3: 61 | AA3: 207 | AB3: 149.97 | AC3: 35 | AD3: 207 | AF3: 174 | AH3: 155 | AI3: 153 | AL3: 171 | AN3: =IFERROR(INDEX('Guts-2'!$K$1:$K$30,MATCH(E3,'Guts-2'!$J$1:$J$30,0)),TRUE) -> TRUE | AO3: =IF(AN3=FALSE,"",IFERROR(CHOOSE('Guts-2'!$D$27,AE3,AF3,AG3,AH3,AI3,AJ3,AK3,AL3,AM3),"")) -> 155 | AP3: 155 | AQ3: =IF(AN3=FALSE,"",IFERROR(CHOOSE('Guts-2'!$D$26,G3,J3,M3,P3,S3,V3,Y3,AB3,AX3),"")) -> 118.91 | AR3: 116 | AS3: =IFERROR(IF(Settings!$L$5="Mixed (Standard)",(RANK(AQ3,$AQ$2:$AQ$999,1)/('Guts-2'!$N$1+1))+1,(RANK(AR3,$AR$2:$AR$999,1)/('Guts-2'!$N$1+1))+1),"") -> 9.923076923 | AT3: =IFERROR(CHOOSE('Guts-2'!$D$26,H3,K3,N3,Q3,T3,W3,Z3,AC3,AY3),"") -> 35 | AU3: =IFERROR(CHOOSE('Guts-2'!$D$26,I3,L3,O3,R3,U3,X3,AA3,AD3,AZ3),"") -> 176 | AV3: =IFERROR(IF(AN3=TRUE,IF((AT3-COUNTIFS($AT$2:$AT$999,"<"&AT3,$AN$2:$AN$999,FALSE))<1,1,AT3-COUNTIFS($AT$2:$AT$999,"<"&AT3,$AN$2:$AN$999,FALSE)),""),"") -> 35 | AW3: =IFERROR(IF(AN3=FALSE,"",IF((AU3-COUNTIFS($AU$2:$AU$999,"<"&AU3,$AN$2:$AN$999,FALSE))<1,1,AU3-COUNTIFS($AU$2:$AU$999,"<"&AU3,$AN$2:$AN$999,FALSE))),"") -> 176 | AX3: =INDEX('Import (ADP)'!$C$2:$C$999,MATCH(A3, 'Import (ADP)'!$B$2:$B$999,0)) ->  | AY3: =IFERROR(MIN(N3,Z3,ROUND(AX3*0.75,0)),ROUND(AX3*0.75,0)) ->  | AZ3: =IFERROR(MAX(O3,AA3,ROUND(AX3*1.25,0)),ROUND(AY3*1.25,0)) ->  | BA3: =IF(VLOOKUP(A4,'Name-Sort'!$D$2:$E$999,2,FALSE)="",A4,"") -> Willy Adames | BB3: =IFERROR(INDEX($BA$1:$BA$999,SMALL(IF($BA$1:$BA$999<>"",ROW($BA$1:$BA$999)),ROW(BA3))),"") -> Willy Adames
A4: Willy Adames | B4: adamewi01 | C4: SS | E4: TB | F4: 22 | G4: 495 | H4: 110 | I4: 659 | M4: 264.8 | N4: 110 | O4: 387 | V4: 408.3 | W4: 110 | X4: 647 | Y4: 487.21 | Z4: 364 | AA4: 647 | AB4: 413.8275 | AC4: 110 | AD4: 647 | AN4: =IFERROR(INDEX('Guts-2'!$K$1:$K$30,MATCH(E4,'Guts-2'!$J$1:$J$30,0)),TRUE) -> TRUE | AO4: =IF(AN4=FALSE,"",IFERROR(CHOOSE('Guts-2'!$D$27,AE4,AF4,AG4,AH4,AI4,AJ4,AK4,AL4,AM4),"")) ->  | AQ4: =IF(AN4=FALSE,"",IFERROR(CHOOSE('Guts-2'!$D$26,G4,J4,M4,P4,S4,V4,Y4,AB4,AX4),"")) -> 264.8 | AR4: 322 | AS4: =IFERROR(IF(Settings!$L$5="Mixed (Standard)",(RANK(AQ4,$AQ$2:$AQ$999,1)/('Guts-2'!$N$1+1))+1,(RANK(AR4,$AR$2:$AR$999,1)/('Guts-2'!$N$1+1))+1),"") -> 25.76923077 | AT4: =IFERROR(CHOOSE('Guts-2'!$D$26,H4,K4,N4,Q4,T4,W4,Z4,AC4,AY4),"") -> 110 | AU4: =IFERROR(CHOOSE('Guts-2'!$D$26,I4,L4,O4,R4,U4,X4,AA4,AD4,AZ4),"") -> 387 | AV4: 110 | AW4: 387 | AX4: =INDEX('Import (ADP)'!$C$2:$C$999,MATCH(A4, 'Import (ADP)'!$B$2:$B$999,0)) ->  | BA4: =IF(VLOOKUP(A5,'Name-Sort'!$D$2:$E$999,2,FALSE)="",A5,"") -> Chance Adams | BB4: =IFERROR(INDEX($BA$1:$BA$999,SMALL(IF($BA$1:$BA$999<>"",ROW($BA$1:$BA$999)),ROW(BA4))),"") -> Chance Adams
A5: Chance Adams | B5: adamsch01 | C5: SP | E5: NYY | F5: 23 | G5: 399 | H5: 264 | I5: 594 | V5: 451.7 | W5: 299 | X5: 601 | Y5: 488.35 | Z5: 338 | AA5: 594 | AB5: 446.35 | AC5: 295 | AD5: 594 | AN5: =IFERROR(INDEX('Guts-2'!$K$1:$K$30,MATCH(E5,'Guts-2'!$J$1:$J$30,0)),TRUE) -> TRUE | AO5: =IF(AN5=FALSE,"",IFERROR(CHOOSE('Guts-2'!$D$27,AE5,AF5,AG5,AH5,AI5,AJ5,AK5,AL5,AM5),"")) ->  | AQ5: =IF(AN5=FALSE,"",IFERROR(CHOOSE('Guts-2'!$D$26,G5,J5,M5,P5,S5,V5,Y5,AB5,AX5),"")) ->  | AS5: =IFERROR(IF(Settings!$L$5="Mixed (Standard)",(RANK(AQ5,$AQ$2:$AQ$999,1)/('Guts-2'!$N$1+1))+1,(RANK(AR5,$AR$2:$AR$999,1)/('Guts-2'!$N$1+1))+1),"") ->  | AT5: =IFERROR(CHOOSE('Guts-2'!$D$26,H5,K5,N5,Q5,T5,W5,Z5,AC5,AY5),"") ->  | AU5: =IFERROR(CHOOSE('Guts-2'!$D$26,I5,L5,O5,R5,U5,X5,AA5,AD5,AZ5),"") ->  | AX5: =INDEX('Import (ADP)'!$C$2:$C$999,MATCH(A5, 'Import (ADP)'!$B$2:$B$999,0)) ->  | BA5: =IF(VLOOKUP(A6,'Name-Sort'!$D$2:$E$999,2,FALSE)="",A6,"") -> Lane Adams | BB5: =IFERROR(INDEX($BA$1:$BA$999,SMALL(IF($BA$1:$BA$999<>"",ROW($BA$1:$BA$999)),ROW(BA5))),"") -> Lane Adams
A6: Lane Adams | B6: adamsla01 | C6: OF | D6: LF,CF | E6: ATL | F6: 28 | G6: 748 | H6: 432 | I6: 995 | V6: 683.5 | W6: 432 | X6: 910 | Y6: 596.04 | Z6: 432 | AA6: 746 | AB6: 675.8466667 | AC6: 432 | AD6: 899 | AN6: =IFERROR(INDEX('Guts-2'!$K$1:$K$30,MATCH(E6,'Guts-2'!$J$1:$J$30,0)),TRUE) -> TRUE | AO6: =IF(AN6=FALSE,"",IFERROR(CHOOSE('Guts-2'!$D$27,AE6,AF6,AG6,AH6,AI6,AJ6,AK6,AL6,AM6),"")) ->  | AQ6: =IF(AN6=FALSE,"",IFERROR(CHOOSE('Guts-2'!$D$26,G6,J6,M6,P6,S6,V6,Y6,AB6,AX6),"")) ->  | AS6: =IFERROR(IF(Settings!$L$5="Mixed (Standard)",(RANK(AQ6,$AQ$2:$AQ$999,1)/('Guts-2'!$N$1+1))+1,(RANK(AR6,$AR$2:$AR$999,1)/('Guts-2'!$N$1+1))+1),"") ->  | AT6: =IFERROR(CHOOSE('Guts-2'!$D$26,H6,K6,N6,Q6,T6,W6,Z6,AC6,AY6),"") ->  | AU6: =IFERROR(CHOOSE('Guts-2'!$D$26,I6,L6,O6,R6,U6,X6,AA6,AD6,AZ6),"") ->  | AX6: =INDEX('Import (ADP)'!$C$2:$C$999,MATCH(A6, 'Import (ADP)'!$B$2:$B$999,0)) ->  | BA6: =IF(VLOOKUP(A7,'Name-Sort'!$D$2:$E$999,2,FALSE)="",A7,"") -> Matt Adams | BB6: =IFERROR(INDEX($BA$1:$BA$999,SMALL(IF($BA$1:$BA$999<>"",ROW($BA$1:$BA$999)),ROW(BA6))),"") -> Matt Adams
A7: Matt Adams | B7: adamsma01 | C7: 1B | D7: LF | E7: WAS | F7: 29 | G7: 502 | H7: 218 | I7: 668 | V7: 488 | W7: 218 | X7: 650 | Y7: 475.42 | Z7: 218 | AA7: 587 | AB7: 488.4733333 | AC7: 218 | AD7: 650 | AL7: 528 | AN7: =IFERROR(INDEX('Guts-2'!$K$1:$K$30,MATCH(E7,'Guts-2'!$J$1:$J$30,0)),TRUE) -> TRUE | AO7: =IF(AN7=FALSE,"",IFERROR(CHOOSE('Guts-2'!$D$27,AE7,AF7,AG7,AH7,AI7,AJ7,AK7,AL7,AM7),"")) ->  | AQ7: =IF(AN7=FALSE,"",IFERROR(CHOOSE('Guts-2'!$D$26,G7,J7,M7,P7,S7,V7,Y7,AB7,AX7),"")) ->  | AS7: =IFERROR(IF(Settings!$L$5="Mixed (Standard)",(RANK(AQ7,$AQ$2:$AQ$999,1)/('Guts-2'!$N$1+1))+1,(RANK(AR7,$AR$2:$AR$999,1)/('Guts-2'!$N$1+1))+1),"") ->  | AT7: =IFERROR(CHOOSE('Guts-2'!$D$26,H7,K7,N7,Q7,T7,W7,Z7,AC7,AY7),"") ->  | AU7: =IFERROR(CHOOSE('Guts-2'!$D$26,I7,L7,O7,R7,U7,X7,AA7,AD7,AZ7),"") ->  | AX7: =INDEX('Import (ADP)'!$C$2:$C$999,MATCH(A7, 'Import (ADP)'!$B$2:$B$999,0)) ->  | BA7: =IF(VLOOKUP(A8,'Name-Sort'!$D$2:$E$999,2,FALSE)="",A8,"") -> Ehire Adrianza | BB7: =IFERROR(INDEX($BA$1:$BA$999,SMALL(IF($BA$1:$BA$999<>"",ROW($BA$1:$BA$999)),ROW(BA7))),"") -> Ehire Adrianza
A8: Ehire Adrianza | B8: adriaeh01 | C8: 3B | D8: LF | E8: MIN | F8: 28 | Y8: 676.96 | Z8: 611 | AA8: 749 | AB8: 676.96 | AC8: 447 | AD8: 901 | AN8: =IFERROR(INDEX('Guts-2'!$K$1:$K$30,MATCH(E8,'Guts-2'!$J$1:$J$30,0)),TRUE) -> TRUE | AO8: =IF(AN8=FALSE,"",IFERROR(CHOOSE('Guts-2'!$D$27,AE8,AF8,AG8,AH8,AI8,AJ8,AK8,AL8,AM8),"")) ->  | AQ8: =IF(AN8=FALSE,"",IFERROR(CHOOSE('Guts-2'!$D$26,G8,J8,M8,P8,S8,V8,Y8,AB8,AX8),"")) ->  | AS8: =IFERROR(IF(Settings!$L$5="Mixed (Standard)",(RANK(AQ8,$AQ$2:$AQ$999,1)/('Guts-2'!$N$1+1))+1,(RANK(AR8,$AR$2:$AR$999,1)/('Guts-2'!$N$1+1))+1),"") ->  | AT8: =IFERROR(CHOOSE('Guts-2'!$D$26,H8,K8,N8,Q8,T8,W8,Z8,AC8,AY8),"") ->  | AU8: =IFERROR(CHOOSE('Guts-2'!$D$26,I8,L8,O8,R8,U8,X8,AA8,AD8,AZ8),"") ->  | AX8: =INDEX('Import (ADP)'!$C$2:$C$999,MATCH(A8, 'Import (ADP)'!$B$2:$B$999,0)) ->  | BA8: =IF(VLOOKUP(A9,'Name-Sort'!$D$2:$E$999,2,FALSE)="",A9,"") -> Jesus Aguilar | BB8: =IFERROR(INDEX($BA$1:$BA$999,SMALL(IF($BA$1:$BA$999<>"",ROW($BA$1:$BA$999)),ROW(BA8))),"") -> Jesus Aguilar
A9: Jesus Aguilar | B9: aguilje01 | C9: 1B | E9: MIL | F9: 27 | G9: 516 | H9: 341 | I9: 687 | V9: 517 | W9: 342 | X9: 688 | Y9: 516.19 | Z9: 351 | AA9: 622 | AB9: 516.3966667 | AC9: 341 | AD9: 687 | AN9: =IFERROR(INDEX('Guts-2'!$K$1:$K$30,MATCH(E9,'Guts-2'!$J$1:$J$30,0)),TRUE) -> TRUE | AO9: =IF(AN9=FALSE,"",IFERROR(CHOOSE('Guts-2'!$D$27,AE9,AF9,AG9,AH9,AI9,AJ9,AK9,AL9,AM9),"")) ->  | AQ9: =IF(AN9=FALSE,"",IFERROR(CHOOSE('Guts-2'!$D$26,G9,J9,M9,P9,S9,V9,Y9,AB9,AX9),"")) ->  | AS9: =IFERROR(IF(Settings!$L$5="Mixed (Standard)",(RANK(AQ9,$AQ$2:$AQ$999,1)/('Guts-2'!$N$1+1))+1,(RANK(AR9,$AR$2:$AR$999,1)/('Guts-2'!$N$1+1))+1),"") ->  | AT9: =IFERROR(CHOOSE('Guts-2'!$D$26,H9,K9,N9,Q9,T9,W9,Z9,AC9,AY9),"") ->  | AU9: =IFERROR(CHOOSE('Guts-2'!$D$26,I9,L9,O9,R9,U9,X9,AA9,AD9,AZ9),"") ->  | AX9: =INDEX('Import (ADP)'!$C$2:$C$999,MATCH(A9, 'Import (ADP)'!$B$2:$B$999,0)) ->  | BA9: =IF(VLOOKUP(A10,'Name-Sort'!$D$2:$E$999,2,FALSE)="",A10,"") -> Nick Ahmed | BB9: =IFERROR(INDEX($BA$1:$BA$999,SMALL(IF($BA$1:$BA$999<>"",ROW($BA$1:$BA$999)),ROW(BA9))),"") -> Nick Ahmed
A10: Nick Ahmed | B10: ahmedni01 | C10: SS | E10: ARI | F10: 28 | G10: 854 | H10: 546 | I10: 1136 | V10: 878 | W10: 546 | X10: 1168 | Y10: 681.28 | Z10: 546 | AA10: 747 | AB10: 804.4266667 | AC10: 531 | AD10: 1070 | AN10: =IFERROR(INDEX('Guts-2'!$K$1:$K$30,MATCH(E10,'Guts-2'!$J$1:$J$30,0)),TRUE) -> TRUE | AO10: =IF(AN10=FALSE,"",IFERROR(CHOOSE('Guts-2'!$D$27,AE10,AF10,AG10,AH10,AI10,AJ10,AK10,AL10,AM10),"")) ->  | AQ10: =IF(AN10=FALSE,"",IFERROR(CHOOSE('Guts-2'!$D$26,G10,J10,M10,P10,S10,V10,Y10,AB10,AX10),"")) ->  | AS10: =IFERROR(IF(Settings!$L$5="Mixed (Standard)",(RANK(AQ10,$AQ$2:$AQ$999,1)/('Guts-2'!$N$1+1))+1,(RANK(AR10,$AR$2:$AR$999,1)/('Guts-2'!$N$1+1))+1),"") ->  | AT10: =IFERROR(CHOOSE('Guts-2'!$D$26,H10,K10,N10,Q10,T10,W10,Z10,AC10,AY10),"") ->  | AU10: =IFERROR(CHOOSE('Guts-2'!$D$26,I10,L10,O10,R10,U10,X10,AA10,AD10,AZ10),"") ->  | AX10: =INDEX('Import (ADP)'!$C$2:$C$999,MATCH(A10, 'Import (ADP)'!$B$2:$B$999,0)) ->  | BA10: =IF(VLOOKUP(A11,'Name-Sort'!$D$2:$E$999,2,FALSE)="",A11,"") -> Andrew Albers | BB10: =IFERROR(INDEX($BA$1:$BA$999,SMALL(IF($BA$1:$BA$999<>"",ROW($BA$1:$BA$999)),ROW(BA10))),"") -> Andrew Albers
A11: Andrew Albers | B11: alberan01 | C11: SP | E11: N/A | F11: 32 | G11: 902 | H11: 596 | I11: 1200 | V11: 951.5 | W11: 628 | X11: 1266 | Y11: 708 | Z11: 689 | AA11: 736 | AB11: 853.8333333 | AC11: 564 | AD11: 1136 | AN11: =IFERROR(INDEX('Guts-2'!$K$1:$K$30,MATCH(E11,'Guts-2'!$J$1:$J$30,0)),TRUE) -> TRUE | AO11: =IF(AN11=FALSE,"",IFERROR(CHOOSE('Guts-2'!$D$27,AE11,AF11,AG11,AH11,AI11,AJ11,AK11,AL11,AM11),"")) ->  | AQ11: =IF(AN11=FALSE,"",IFERROR(CHOOSE('Guts-2'!$D$26,G11,J11,M11,P11,S11,V11,Y11,AB11,AX11),"")) ->  | AS11: =IFERROR(IF(Settings!$L$5="Mixed (Standard)",(RANK(AQ11,$AQ$2:$AQ$999,1)/('Guts-2'!$N$1+1))+1,(RANK(AR11,$AR$2:$AR$999,1)/('Guts-2'!$N$1+1))+1),"") ->  | AT11: =IFERROR(CHOOSE('Guts-2'!$D$26,H11,K11,N11,Q11,T11,W11,Z11,AC11,AY11),"") ->  | AU11: =IFERROR(CHOOSE('Guts-2'!$D$26,I11,L11,O11,R11,U11,X11,AA11,AD11,AZ11),"") ->  | AX11: =INDEX('Import (ADP)'!$C$2:$C$999,MATCH(A11, 'Import (ADP)'!$B$2:$B$999,0)) ->  | BA11: =IF(VLOOKUP(A12,'Name-Sort'!$D$2:$E$999,2,FALSE)="",A12,"") -> Matt Albers | BB11: =IFERROR(INDEX($BA$1:$BA$999,SMALL(IF($BA$1:$BA$999<>"",ROW($BA$1:$BA$999)),ROW(BA11))),"") -> Matt Albers
A12: Matt Albers | B12: alberma01 | C12: RP | E12: MIL | F12: 35 | G12: 869 | H12: 211 | I12: 1156 | V12: 754.5 | W12: 211 | X12: 1004 | Y12: 611.52 | Z12: 211 | AA12: 746 | AB12: 745.0066667 | AC12: 211 | AD12: 991 | AN12: =IFERROR(INDEX('Guts-2'!$K$1:$K$30,MATCH(E12,'Guts-2'!$J$1:$J$30,0)),TRUE) -> TRUE | AO12: =IF(AN12=FALSE,"",IFERROR(CHOOSE('Guts-2'!$D$27,AE12,AF12,AG12,AH12,AI12,AJ12,AK12,AL12,AM12),"")) ->  | AQ12: =IF(AN12=FALSE,"",IFERROR(CHOOSE('Guts-2'!$D$26,G12,J12,M12,P12,S12,V12,Y12,AB12,AX12),"")) ->  | AS12: =IFERROR(IF(Settings!$L$5="Mixed (Standard)",(RANK(AQ12,$AQ$2:$AQ$999,1)/('Guts-2'!$N$1+1))+1,(RANK(AR12,$AR$2:$AR$999,1)/('Guts-2'!$N$1+1))+1),"") ->  | AT12: =IFERROR(CHOOSE('Guts-2'!$D$26,H12,K12,N12,Q12,T12,W12,Z12,AC12,AY12),"") ->  | AU12: =IFERROR(CHOOSE('Guts-2'!$D$26,I12,L12,O12,R12,U12,X12,AA12,AD12,AZ12),"") ->  | AX12: =INDEX('Import (ADP)'!$C$2:$C$999,MATCH(A12, 'Import (ADP)'!$B$2:$B$999,0)) ->  | BA12: =IF(VLOOKUP(A13,'Name-Sort'!$D$2:$E$999,2,FALSE)="",A13,"") -> Ozzie Albies | BB12: =IFERROR(INDEX($BA$1:$BA$999,SMALL(IF($BA$1:$BA$999<>"",ROW($BA$1:$BA$999)),ROW(BA12))),"") -> Ozzie Albies
A13: Ozzie Albies | B13: albieoz01 | C13: 2B | E13: ATL | F13: 21 | G13: 115 | H13: 61 | I13: 224 | J13: 198 | K13: 61 | L13: 264 | M13: 126.52 | N13: 61 | O13: 187 | P13: 156 | Q13: 61 | R13: 224 | V13: 140.5 | W13: 61 | X13: 224 | Y13: 134.03 | Z13: 84 | AA13: 224 | AB13: 145.0083333 | AC13: 61 | AD13: 224 | AE13: 146 | AF13: 178 | AH13: 91 | AI13: 142 | AL13: 157 | AN13: =IFERROR(INDEX('Guts-2'!$K$1:$K$30,MATCH(E13,'Guts-2'!$J$1:$J$30,0)),TRUE) -> TRUE | AO13: =IF(AN13=FALSE,"",IFERROR(CHOOSE('Guts-2'!$D$27,AE13,AF13,AG13,AH13,AI13,AJ13,AK13,AL13,AM13),"")) -> 91 | AP13: 91 | AQ13: =IF(AN13=FALSE,"",IFERROR(CHOOSE('Guts-2'!$D$26,G13,J13,M13,P13,S13,V13,Y13,AB13,AX13),"")) -> 126.52 | AR13: 126 | AS13: =IFERROR(IF(Settings!$L$5="Mixed (Standard)",(RANK(AQ13,$AQ$2:$AQ$999,1)/('Guts-2'!$N$1+1))+1,(RANK(AR13,$AR$2:$AR$999,1)/('Guts-2'!$N$1+1))+1),"") -> 10.69230769 | AT13: =IFERROR(CHOOSE('Guts-2'!$D$26,H13,K13,N13,Q13,T13,W13,Z13,AC13,AY13),"") -> 61 | AU13: =IFERROR(CHOOSE('Guts-2'!$D$26,I13,L13,O13,R13,U13,X13,AA13,AD13,AZ13),"") -> 187 | AV13: 61 | AW13: 187 | AX13: =INDEX('Import (ADP)'!$C$2:$C$999,MATCH(A13, 'Import (ADP)'!$B$2:$B$999,0)) ->  | BA13: =IF(VLOOKUP(A14,'Name-Sort'!$D$2:$E$999,2,FALSE)="",A14,"") -> Sandy Alcantara | BB13: =IFERROR(INDEX($BA$1:$BA$999,SMALL(IF($BA$1:$BA$999<>"",ROW($BA$1:$BA$999)),ROW(BA13))),"") -> Sandy Alcantara
A14: Sandy Alcantara | B14: alcansa01 | C14: RP | E14: MIA | F14: 22 | G14: 622 | H14: 290 | I14: 828 | V14: 586.5 | W14: 290 | X14: 781 | Y14: 544.21 | Z14: 290 | AA14: 722 | AB14: 584.2366667 | AC14: 290 | AD14: 778 | AN14: =IFERROR(INDEX('Guts-2'!$K$1:$K$30,MATCH(E14,'Guts-2'!$J$1:$J$30,0)),TRUE) -> TRUE | AO14: =IF(AN14=FALSE,"",IFERROR(CHOOSE('Guts-2'!$D$27,AE14,AF14,AG14,AH14,AI14,AJ14,AK14,AL14,AM14),"")) ->  | AQ14: =IF(AN14=FALSE,"",IFERROR(CHOOSE('Guts-2'!$D$26,G14,J14,M14,P14,S14,V14,Y14,AB14,AX14),"")) ->  | AS14: =IFERROR(IF(Settings!$L$5="Mixed (Standard)",(RANK(AQ14,$AQ$2:$AQ$999,1)/('Guts-2'!$N$1+1))+1,(RANK(AR14,$AR$2:$AR$999,1)/('Guts-2'!$N$1+1))+1),"") ->  | AT14: =IFERROR(CHOOSE('Guts-2'!$D$26,H14,K14,N14,Q14,T14,W14,Z14,AC14,AY14),"") ->  | AU14: =IFERROR(CHOOSE('Guts-2'!$D$26,I14,L14,O14,R14,U14,X14,AA14,AD14,AZ14),"") ->  | AX14: =INDEX('Import (ADP)'!$C$2:$C$999,MATCH(A14, 'Import (ADP)'!$B$2:$B$999,0)) ->  | BA14: =IF(VLOOKUP(A15,'Name-Sort'!$D$2:$E$999,2,FALSE)="",A15,"") -> Scott Alexander | BB14: =IFERROR(INDEX($BA$1:$BA$999,SMALL(IF($BA$1:$BA$999<>"",ROW($BA$1:$BA$999)),ROW(BA14))),"") -> Scott Alexander
A15: Scott Alexander | B15: alexasc02 | C15: RP | E15: LAD | F15: 28 | G15: 667 | H15: 441 | I15: 888 | V15: 690 | W15: 445 | X15: 918 | Y15: 643.4 | Z15: 445 | AA15: 745 | AB15: 666.8 | AC15: 441 | AD15: 887 | AN15: =IFERROR(INDEX('Guts-2'!$K$1:$K$30,MATCH(E15,'Guts-2'!$J$1:$J$30,0)),TRUE) -> TRUE | AO15: =IF(AN15=FALSE,"",IFERROR(CHOOSE('Guts-2'!$D$27,AE15,AF15,AG15,AH15,AI15,AJ15,AK15,AL15,AM15),"")) ->  | AQ15: =IF(AN15=FALSE,"",IFERROR(CHOOSE('Guts-2'!$D$26,G15,J15,M15,P15,S15,V15,Y15,AB15,AX15),"")) ->  | AS15: =IFERROR(IF(Settings!$L$5="Mixed (Standard)",(RANK(AQ15,$AQ$2:$AQ$999,1)/('Guts-2'!$N$1+1))+1,(RANK(AR15,$AR$2:$AR$999,1)/('Guts-2'!$N$1+1))+1),"") ->  | AT15: =IFERROR(CHOOSE('Guts-2'!$D$26,H15,K15,N15,Q15,T15,W15,Z15,AC15,AY15),"") ->  | AU15: =IFERROR(CHOOSE('Guts-2'!$D$26,I15,L15,O15,R15,U15,X15,AA15,AD15,AZ15),"") ->  | AX15: =INDEX('Import (ADP)'!$C$2:$C$999,MATCH(A15, 'Import (ADP)'!$B$2:$B$999,0)) ->  | BA15: =IF(VLOOKUP(A16,'Name-Sort'!$D$2:$E$999,2,FALSE)="",A16,"") -> Jorge Alfaro | BB15: =IFERROR(INDEX($BA$1:$BA$999,SMALL(IF($BA$1:$BA$999<>"",ROW($BA$1:$BA$999)),ROW(BA15))),"") -> Jorge Alfaro
A16: Jorge Alfaro | B16: alfarjo01 | C16: C | E16: PHI | F16: 24 | G16: 267 | H16: 144 | I16: 372 | J16: 337 | K16: 144 | L16: 449 | M16: 344 | N16: 283 | O16: 372 | V16: 284.4 | W16: 144 | X16: 379 | Y16: 245.13 | Z16: 144 | AA16: 349 | AB16: 295.506 | AC16: 144 | AD16: 394 | AL16: 340 | AN16: =IFERROR(INDEX('Guts-2'!$K$1:$K$30,MATCH(E16,'Guts-2'!$J$1:$J$30,0)),TRUE) -> TRUE | AO16: =IF(AN16=FALSE,"",IFERROR(CHOOSE('Guts-2'!$D$27,AE16,AF16,AG16,AH16,AI16,AJ16,AK16,AL16,AM16),"")) ->  | AQ16: =IF(AN16=FALSE,"",IFERROR(CHOOSE('Guts-2'!$D$26,G16,J16,M16,P16,S16,V16,Y16,AB16,AX16),"")) -> 344 | AR16: 393 | AS16: =IFERROR(IF(Settings!$L$5="Mixed (Standard)",(RANK(AQ16,$AQ$2:$AQ$999,1)/('Guts-2'!$N$1+1))+1,(RANK(AR16,$AR$2:$AR$999,1)/('Guts-2'!$N$1+1))+1),"") -> 31.23076923 | AT16: =IFERROR(CHOOSE('Guts-2'!$D$26,H16,K16,N16,Q16,T16,W16,Z16,AC16,AY16),"") -> 283 | AU16: =IFERROR(CHOOSE('Guts-2'!$D$26,I16,L16,O16,R16,U16,X16,AA16,AD16,AZ16),"") -> 372 | AV16: 283 | AW16: 372 | AX16: =INDEX('Import (ADP)'!$C$2:$C$999,MATCH(A16, 'Import (ADP)'!$B$2:$B$999,0)) ->  | BA16: =IF(VLOOKUP(A17,'Name-Sort'!$D$2:$E$999,2,FALSE)="",A17,"") -> Anthony Alford | BB16: =IFERROR(INDEX($BA$1:$BA$999,SMALL(IF($BA$1:$BA$999<>"",ROW($BA$1:$BA$999)),ROW(BA16))),"") -> Anthony Alford
A17: Anthony Alford | B17: alforan01 | C17: OF | D17: LF | E17: TOR | F17: 23 | G17: 510 | H17: 337 | I17: 750 | V17: 493.7 | W17: 326 | X17: 750 | Y17: 550.14 | Z17: 373 | AA17: 750 | AB17: 517.9466667 | AC17: 342 | AD17: 750 | AN17: =IFERROR(INDEX('Guts-2'!$K$1:$K$30,MATCH(E17,'Guts-2'!$J$1:$J$30,0)),TRUE) -> TRUE | AO17: =IF(AN17=FALSE,"",IFERROR(CHOOSE('Guts-2'!$D$27,AE17,AF17,AG17,AH17,AI17,AJ17,AK17,AL17,AM17),"")) ->  | AQ17: =IF(AN17=FALSE,"",IFERROR(CHOOSE('Guts-2'!$D$26,G17,J17,M17,P17,S17,V17,Y17,AB17,AX17),"")) ->  | AS17: =IFERROR(IF(Settings!$L$5="Mixed (Standard)",(RANK(AQ17,$AQ$2:$AQ$999,1)/('Guts-2'!$N$1+1))+1,(RANK(AR17,$AR$2:$AR$999,1)/('Guts-2'!$N$1+1))+1),"") ->  | AT17: =IFERROR(CHOOSE('Guts-2'!$D$26,H17,K17,N17,Q17,T17,W17,Z17,AC17,AY17),"") ->  | AU17: =IFERROR(CHOOSE('Guts-2'!$D$26,I17,L17,O17,R17,U17,X17,AA17,AD17,AZ17),"") ->  | AX17: =INDEX('Import (ADP)'!$C$2:$C$999,MATCH(A17, 'Import (ADP)'!$B$2:$B$999,0)) ->  | BA17: =IF(VLOOKUP(A18,'Name-Sort'!$D$2:$E$999,2,FALSE)="",A18,"") -> Kolby Allard | BB17: =IFERROR(INDEX($BA$1:$BA$999,SMALL(IF($BA$1:$BA$999<>"",ROW($BA$1:$BA$999)),ROW(BA17))),"") -> Kolby Allard
A18: Kolby Allard | B18: allarko01 | C18: SP | E18: ATL | F18: 20 | G18: 624 | H18: 412 | I18: 830 | V18: 629 | W18: 416 | X18: 837 | Y18: 662.29 | Z18: 521 | AA18: 742 | AB18: 638.43 | AC18: 422 | AD18: 850 | AN18: =IFERROR(INDEX('Guts-2'!$K$1:$K$30,MATCH(E18,'Guts-2'!$J$1:$J$30,0)),TRUE) -> TRUE | AO18: =IF(AN18=FALSE,"",IFERROR(CHOOSE('Guts-2'!$D$27,AE18,AF18,AG18,AH18,AI18,AJ18,AK18,AL18,AM18),"")) ->  | AQ18: =IF(AN18=FALSE,"",IFERROR(CHOOSE('Guts-2'!$D$26,G18,J18,M18,P18,S18,V18,Y18,AB18,AX18),"")) ->  | AS18: =IFERROR(IF(Settings!$L$5="Mixed (Standard)",(RANK(AQ18,$AQ$2:$AQ$999,1)/('Guts-2'!$N$1+1))+1,(RANK(AR18,$AR$2:$AR$999,1)/('Guts-2'!$N$1+1))+1),"") ->  | AT18: =IFERROR(CHOOSE('Guts-2'!$D$26,H18,K18,N18,Q18,T18,W18,Z18,AC18,AY18),"") ->  | AU18: =IFERROR(CHOOSE('Guts-2'!$D$26,I18,L18,O18,R18,U18,X18,AA18,AD18,AZ18),"") ->  | AX18: =INDEX('Import (ADP)'!$C$2:$C$999,MATCH(A18, 'Import (ADP)'!$B$2:$B$999,0)) ->  | BA18: =IF(VLOOKUP(A19,'Name-Sort'!$D$2:$E$999,2,FALSE)="",A19,"") -> Cody Allen | BB18: =IFERROR(INDEX($BA$1:$BA$999,SMALL(IF($BA$1:$BA$999<>"",ROW($BA$1:$BA$999)),ROW(BA18))),"") -> Cody Allen
A19: Cody Allen | B19: allenco01 | C19: RP | E19: CLE | F19: 29 | G19: 100 | H19: 37 | I19: 170 | J19: 91 | K19: 37 | L19: 170 | M19: 102.63 | N19: 37 | O19: 142 | P19: 112 | Q19: 37 | R19: 170 | V19: 102.2 | W19: 37 | X19: 170 | Y19: 98.12 | Z19: 60 | AA19: 170 | AB19: 100.9916667 | AC19: 37 | AD19: 170 | AE19: 93 | AF19: 105 | AH19: 105 | AI19: 130 | AL19: 112 | AN19: =IFERROR(INDEX('Guts-2'!$K$1:$K$30,MATCH(E19,'Guts-2'!$J$1:$J$30,0)),TRUE) -> TRUE | AO19: =IF(AN19=FALSE,"",IFERROR(CHOOSE('Guts-2'!$D$27,AE19,AF19,AG19,AH19,AI19,AJ19,AK19,AL19,AM19),"")) -> 105 | AP19: 105 | AQ19: =IF(AN19=FALSE,"",IFERROR(CHOOSE('Guts-2'!$D$26,G19,J19,M19,P19,S19,V19,Y19,AB19,AX19),"")) -> 102.63 | AR19: 101 | AS19: =IFERROR(IF(Settings!$L$5="Mixed (Standard)",(RANK(AQ19,$AQ$2:$AQ$999,1)/('Guts-2'!$N$1+1))+1,(RANK(AR19,$AR$2:$AR$999,1)/('Guts-2'!$N$1+1))+1),"") -> 8.769230769 | AT19: =IFERROR(CHOOSE('Guts-2'!$D$26,H19,K19,N19,Q19,T19,W19,Z19,AC19,AY19),"") -> 37 | AU19: =IFERROR(CHOOSE('Guts-2'!$D$26,I19,L19,O19,R19,U19,X19,AA19,AD19,AZ19),"") -> 142 | AV19: 37 | AW19: 142 | AX19: =INDEX('Import (ADP)'!$C$2:$C$999,MATCH(A19, 'Import (ADP)'!$B$2:$B$999,0)) ->  | BA19: =IF(VLOOKUP(A20,'Name-Sort'!$D$2:$E$999,2,FALSE)="",A20,"") -> Greg Allen | BB19: =IFERROR(INDEX($BA$1:$BA$999,SMALL(IF($BA$1:$BA$999<>"",ROW($BA$1:$BA$999)),ROW(BA19))),"") -> Greg Allen
A20: Greg Allen | B20: allengr01 | C20: OF | D20: CF,RF | E20: CLE | F20: 25 | G20: 710 | H20: 350 | I20: 945 | V20: 690.5 | W20: 350 | X20: 919 | Y20: 626.01 | Z20: 350 | AA20: 745 | AB20: 675.5033333 | AC20: 350 | AD20: 899 | AN20: =IFERROR(INDEX('Guts-2'!$K$1:$K$30,MATCH(E20,'Guts-2'!$J$1:$J$30,0)),TRUE) -> TRUE | AO20: =IF(AN20=FALSE,"",IFERROR(CHOOSE('Guts-2'!$D$27,AE20,AF20,AG20,AH20,AI20,AJ20,AK20,AL20,AM20),"")) ->  | AQ20: =IF(AN20=FALSE,"",IFERROR(CHOOSE('Guts-2'!$D$26,G20,J20,M20,P20,S20,V20,Y20,AB20,AX20),"")) ->  | AS20: =IFERROR(IF(Settings!$L$5="Mixed (Standard)",(RANK(AQ20,$AQ$2:$AQ$999,1)/('Guts-2'!$N$1+1))+1,(RANK(AR20,$AR$2:$AR$999,1)/('Guts-2'!$N$1+1))+1),"") ->  | AT20: =IFERROR(CHOOSE('Guts-2'!$D$26,H20,K20,N20,Q20,T20,W20,Z20,AC20,AY20),"") ->  | AU20: =IFERROR(CHOOSE('Guts-2'!$D$26,I20,L20,O20,R20,U20,X20,AA20,AD20,AZ20),"") ->  | AX20: =INDEX('Import (ADP)'!$C$2:$C$999,MATCH(A20, 'Import (ADP)'!$B$2:$B$999,0)) ->  | BA20: =IF(VLOOKUP(A21,'Name-Sort'!$D$2:$E$999,2,FALSE)="",A21,"") -> Abraham Almonte | BB20: =IFERROR(INDEX($BA$1:$BA$999,SMALL(IF($BA$1:$BA$999<>"",ROW($BA$1:$BA$999)),ROW(BA20))),"") -> Abraham Almonte
A21: Abraham Almonte | B21: almonab01 | C21: OF | D21: LF,CF,RF | E21: CLE | F21: 28 | G21: 762 | H21: 503 | I21: 1014 | V21: 913.5 | W21: 603 | X21: 1215 | Y21: 737 | Z21: 737 | AA21: 737 | AB21: 804.1666667 | AC21: 531 | AD21: 1070 | AN21: =IFERROR(INDEX('Guts-2'!$K$1:$K$30,MATCH(E21,'Guts-2'!$J$1:$J$30,0)),TRUE) -> TRUE | AO21: =IF(AN21=FALSE,"",IFERROR(CHOOSE('Guts-2'!$D$27,AE21,AF21,AG21,AH21,AI21,AJ21,AK21,AL21,AM21),"")) ->  | AQ21: =IF(AN21=FALSE,"",IFERROR(CHOOSE('Guts-2'!$D$26,G21,J21,M21,P21,S21,V21,Y21,AB21,AX21),"")) ->  | AS21: =IFERROR(IF(Settings!$L$5="Mixed (Standard)",(RANK(AQ21,$AQ$2:$AQ$999,1)/('Guts-2'!$N$1+1))+1,(RANK(AR21,$AR$2:$AR$999,1)/('Guts-2'!$N$1+1))+1),"") ->  | AT21: =IFERROR(CHOOSE('Guts-2'!$D$26,H21,K21,N21,Q21,T21,W21,Z21,AC21,AY21),"") ->  | AU21: =IFERROR(CHOOSE('Guts-2'!$D$26,I21,L21,O21,R21,U21,X21,AA21,AD21,AZ21),"") ->  | AX21: =INDEX('Import (ADP)'!$C$2:$C$999,MATCH(A21, 'Import (ADP)'!$B$2:$B$999,0)) ->  | BA21: =IF(VLOOKUP(A22,'Name-Sort'!$D$2:$E$999,2,FALSE)="",A22,"") -> Albert Almora | BB21: =IFERROR(INDEX($BA$1:$BA$999,SMALL(IF($BA$1:$BA$999<>"",ROW($BA$1:$BA$999)),ROW(BA21))),"") -> Albert Almora
A22: Albert Almora | B22: almoral01 | C22: OF | D22: CF | E22: CHC | F22: 23 | G22: 388 | H22: 257 | I22: 517 | V22: 421 | W22: 257 | X22: 560 | Y22: 375.21 | Z22: 257 | AA22: 496 | AB22: 394.7366667 | AC22: 257 | AD22: 525 | AL22: 479 | AN22: =IFERROR(INDEX('Guts-2'!$K$1:$K$30,MATCH(E22,'Guts-2'!$J$1:$J$30,0)),TRUE) -> TRUE | AO22: =IF(AN22=FALSE,"",IFERROR(CHOOSE('Guts-2'!$D$27,AE22,AF22,AG22,AH22,AI22,AJ22,AK22,AL22,AM22),"")) ->  | AQ22: =IF(AN22=FALSE,"",IFERROR(CHOOSE('Guts-2'!$D$26,G22,J22,M22,P22,S22,V22,Y22,AB22,AX22),"")) ->  | AS22: =IFERROR(IF(Settings!$L$5="Mixed (Standard)",(RANK(AQ22,$AQ$2:$AQ$999,1)/('Guts-2'!$N$1+1))+1,(RANK(AR22,$AR$2:$AR$999,1)/('Guts-2'!$N$1+1))+1),"") ->  | AT22: =IFERROR(CHOOSE('Guts-2'!$D$26,H22,K22,N22,Q22,T22,W22,Z22,AC22,AY22),"") ->  | AU22: =IFERROR(CHOOSE('Guts-2'!$D$26,I22,L22,O22,R22,U22,X22,AA22,AD22,AZ22),"") ->  | AX22: =INDEX('Import (ADP)'!$C$2:$C$999,MATCH(A22, 'Import (ADP)'!$B$2:$B$999,0)) ->  | BA22: =IF(VLOOKUP(A23,'Name-Sort'!$D$2:$E$999,2,FALSE)="",A23,"") -> Yonder Alonso | BB22: =IFERROR(INDEX($BA$1:$BA$999,SMALL(IF($BA$1:$BA$999<>"",ROW($BA$1:$BA$999)),ROW(BA22))),"") -> Yonder Alonso
A23: Yonder Alonso | B23: alonsyo01 | C23: 1B | E23: CLE | F23: 30 | G23: 294 | H23: 22 | I23: 473 | J23: 386 | K23: 22 | L23: 514 | M23: 194.71 | N23: 22 | O23: 309 | P23: 287 | Q23: 22 | R23: 473 | V23: 308.2 | W23: 22 | X23: 473 | Y23: 294.71 | Z23: 100 | AA23: 473 | AB23: 294.1033333 | AC23: 22 | AD23: 473 | AF23: 289 | AH23: 124 | AI23: 207 | AL23: 251 | AN23: =IFERROR(INDEX('Guts-2'!$K$1:$K$30,MATCH(E23,'Guts-2'!$J$1:$J$30,0)),TRUE) -> TRUE | AO23: =IF(AN23=FALSE,"",IFERROR(CHOOSE('Guts-2'!$D$27,AE23,AF23,AG23,AH23,AI23,AJ23,AK23,AL23,AM23),"")) -> 124 | AP23: 124 | AQ23: =IF(AN23=FALSE,"",IFERROR(CHOOSE('Guts-2'!$D$26,G23,J23,M23,P23,S23,V23,Y23,AB23,AX23),"")) -> 194.71 | AR23: 237 | AS23: =IFERROR(IF(Settings!$L$5="Mixed (Standard)",(RANK(AQ23,$AQ$2:$AQ$999,1)/('Guts-2'!$N$1+1))+1,(RANK(AR23,$AR$2:$AR$999,1)/('Guts-2'!$N$1+1))+1),"") -> 19.23076923 | AT23: =IFERROR(CHOOSE('Guts-2'!$D$26,H23,K23,N23,Q23,T23,W23,Z23,AC23,AY23),"") -> 22 | AU23: =IFERROR(CHOOSE('Guts-2'!$D$26,I23,L23,O23,R23,U23,X23,AA23,AD23,AZ23),"") -> 309 | AV23: 22 | AW23: 309 | AX23: =INDEX('Import (ADP)'!$C$2:$C$999,MATCH(A23, 'Import (ADP)'!$B$2:$B$999,0)) ->  | BA23: =IF(VLOOKUP(A24,'Name-Sort'!$D$2:$E$999,2,FALSE)="",A24,"") -> Aaron Altherr | BB23: =IFERROR(INDEX($BA$1:$BA$999,SMALL(IF($BA$1:$BA$999<>"",ROW($BA$1:$BA$999)),ROW(BA23))),"") -> Aaron Altherr
A24: Aaron Altherr | B24: altheaa01 | C24: OF | D24: LF,CF,RF | E24: PHI | F24: 27 | G24: 259 | H24: 99 | I24: 359 | J24: 308 | K24: 99 | L24: 410 | M24: 213 | N24: 99 | O24: 313 | P24: 303 | Q24: 99 | R24: 403 | V24: 274 | W24: 99 | X24: 365 | Y24: 265.68 | Z24: 140 | AA24: 359 | AB24: 270.4466667 | AC24: 99 | AD24: 360 | AF24: 194 | AH24: 175 | AI24: 276 | AL24: 241 | AN24: =IFERROR(INDEX('Guts-2'!$K$1:$K$30,MATCH(E24,'Guts-2'!$J$1:$J$30,0)),TRUE) -> TRUE | AO24: =IF(AN24=FALSE,"",IFERROR(CHOOSE('Guts-2'!$D$27,AE24,AF24,AG24,AH24,AI24,AJ24,AK24,AL24,AM24),"")) -> 175 | AP24: 175 | AQ24: =IF(AN24=FALSE,"",IFERROR(CHOOSE('Guts-2'!$D$26,G24,J24,M24,P24,S24,V24,Y24,AB24,AX24),"")) -> 213 | AR24: 258 | AS24: =IFERROR(IF(Settings!$L$5="Mixed (Standard)",(RANK(AQ24,$AQ$2:$AQ$999,1)/('Guts-2'!$N$1+1))+1,(RANK(AR24,$AR$2:$AR$999,1)/('Guts-2'!$N$1+1))+1),"") -> 20.84615385 | AT24: =IFERROR(CHOOSE('Guts-2'!$D$26,H24,K24,N24,Q24,T24,W24,Z24,AC24,AY24),"") -> 99 | AU24: =IFERROR(CHOOSE('Guts-2'!$D$26,I24,L24,O24,R24,U24,X24,AA24,AD24,AZ24),"") -> 313 | AV24: 99 | AW24: 313 | AX24: =INDEX('Import (ADP)'!$C$2:$C$999,MATCH(A24, 'Import (ADP)'!$B$2:$B$999,0)) ->  | BA24: =IF(VLOOKUP(A25,'Name-Sort'!$D$2:$E$999,2,FALSE)="",A25,"") -> Jose Altuve | BB24: =IFERROR(INDEX($BA$1:$BA$999,SMALL(IF($BA$1:$BA$999<>"",ROW($BA$1:$BA$999)),ROW(BA24))),"") -> Jose Altuve
A25: Jose Altuve | B25: altuvjo01 | C25: 2B | E25: HOU | F25: 27 | G25: 2 | H25: 1 | I25: 8 | J25: 2 | K25: 1 | L25: 8 | M25: 3.07 | N25: 2 | O25: 8 | P25: 2 | Q25: 1 | R25: 8 | V25: 2 | W25: 1 | X25: 8 | Y25: 2.17 | Z25: 1 | AA25: 4 | AB25: 2.206666667 | AC25: 1 | AD25: 8 | AE25: 3 | AF25: 2 | AH25: 2 | AI25: 1 | AL25: 2 | AN25: =IFERROR(INDEX('Guts-2'!$K$1:$K$30,MATCH(E25,'Guts-2'!$J$1:$J$30,0)),TRUE) -> TRUE | AO25: =IF(AN25=FALSE,"",IFERROR(CHOOSE('Guts-2'!$D$27,AE25,AF25,AG25,AH25,AI25,AJ25,AK25,AL25,AM25),"")) -> 2 | AP25: 2 | AQ25: =IF(AN25=FALSE,"",IFERROR(CHOOSE('Guts-2'!$D$26,G25,J25,M25,P25,S25,V25,Y25,AB25,AX25),"")) -> 3.07 | AR25: 2 | AS25: =IFERROR(IF(Settings!$L$5="Mixed (Standard)",(RANK(AQ25,$AQ$2:$AQ$999,1)/('Guts-2'!$N$1+1))+1,(RANK(AR25,$AR$2:$AR$999,1)/('Guts-2'!$N$1+1))+1),"") -> 1.153846154 | AT25: =IFERROR(CHOOSE('Guts-2'!$D$26,H25,K25,N25,Q25,T25,W25,Z25,AC25,AY25),"") -> 2 | AU25: =IFERROR(CHOOSE('Guts-2'!$D$26,I25,L25,O25,R25,U25,X25,AA25,AD25,AZ25),"") -> 8 | AV25: 2 | AW25: 8 | AX25: =INDEX('Import (ADP)'!$C$2:$C$999,MATCH(A25, 'Import (ADP)'!$B$2:$B$999,0)) -> 2.3 | AY25: 1 | AZ25: 8 | BA25: =IF(VLOOKUP(A26,'Name-Sort'!$D$2:$E$999,2,FALSE)="",A26,"") -> Pedro Alvarez | BB25: =IFERROR(INDEX($BA$1:$BA$999,SMALL(IF($BA$1:$BA$999<>"",ROW($BA$1:$BA$999)),ROW(BA25))),"") -> Pedro Alvarez
A26: Pedro Alvarez | B26: alvarpe01 | C26: DH | E26: N/A | F26: 31 | V26: 740 | W26: 489 | X26: 985 | Y26: 712.5 | Z26: 706 | AA26: 719 | AB26: 726.25 | AC26: 480 | AD26: 966 | AN26: =IFERROR(INDEX('Guts-2'!$K$1:$K$30,MATCH(E26,'Guts-2'!$J$1:$J$30,0)),TRUE) -> TRUE | AO26: =IF(AN26=FALSE,"",IFERROR(CHOOSE('Guts-2'!$D$27,AE26,AF26,AG26,AH26,AI26,AJ26,AK26,AL26,AM26),"")) ->  | AQ26: =IF(AN26=FALSE,"",IFERROR(CHOOSE('Guts-2'!$D$26,G26,J26,M26,P26,S26,V26,Y26,AB26,AX26),"")) ->  | AS26: =IFERROR(IF(Settings!$L$5="Mixed (Standard)",(RANK(AQ26,$AQ$2:$AQ$999,1)/('Guts-2'!$N$1+1))+1,(RANK(AR26,$AR$2:$AR$999,1)/('Guts-2'!$N$1+1))+1),"") ->  | AT26: =IFERROR(CHOOSE('Guts-2'!$D$26,H26,K26,N26,Q26,T26,W26,Z26,AC26,AY26),"") ->  | AU26: =IFERROR(CHOOSE('Guts-2'!$D$26,I26,L26,O26,R26,U26,X26,AA26,AD26,AZ26),"") ->  | AX26: =INDEX('Import (ADP)'!$C$2:$C$999,MATCH(A26, 'Import (ADP)'!$B$2:$B$999,0)) ->  | BA26: =IF(VLOOKUP(A27,'Name-Sort'!$D$2:$E$999,2,FALSE)="",A27,"") -> Brian Anderson | BB26: =IFERROR(INDEX($BA$1:$BA$999,SMALL(IF($BA$1:$BA$999<>"",ROW($BA$1:$BA$999)),ROW(BA26))),"") -> Brian Anderson
A27: Brian Anderson | B27: anderbr06 | C27: 3B | E27: MIA | F27: 24 | G27: 506 | H27: 39 | I27: 673 | M27: 247 | N27: 39 | O27: 487 | V27: 531 | W27: 39 | X27: 707 | Y27: 544.2 | Z27: 342 | AA27: 650 | AB27: 457.05 | AC27: 39 | AD27: 650 | AN27: =IFERROR(INDEX('Guts-2'!$K$1:$K$30,MATCH(E27,'Guts-2'!$J$1:$J$30,0)),TRUE) -> TRUE | AO27: =IF(AN27=FALSE,"",IFERROR(CHOOSE('Guts-2'!$D$27,AE27,AF27,AG27,AH27,AI27,AJ27,AK27,AL27,AM27),"")) ->  | AQ27: =IF(AN27=FALSE,"",IFERROR(CHOOSE('Guts-2'!$D$26,G27,J27,M27,P27,S27,V27,Y27,AB27,AX27),"")) -> 247 | AR27: 301 | AS27: =IFERROR(IF(Settings!$L$5="Mixed (Standard)",(RANK(AQ27,$AQ$2:$AQ$999,1)/('Guts-2'!$N$1+1))+1,(RANK(AR27,$AR$2:$AR$999,1)/('Guts-2'!$N$1+1))+1),"") -> 24.15384615 | AT27: =IFERROR(CHOOSE('Guts-2'!$D$26,H27,K27,N27,Q27,T27,W27,Z27,AC27,AY27),"") -> 39 | AU27: =IFERROR(CHOOSE('Guts-2'!$D$26,I27,L27,O27,R27,U27,X27,AA27,AD27,AZ27),"") -> 487 | AV27: 39 | AW27: 487 | AX27: =INDEX('Import (ADP)'!$C$2:$C$999,MATCH(A27, 'Import (ADP)'!$B$2:$B$999,0)) ->  | BA27: =IF(VLOOKUP(A28,'Name-Sort'!$D$2:$E$999,2,FALSE)="",A28,"") -> Chase Anderson | BB27: =IFERROR(INDEX($BA$1:$BA$999,SMALL(IF($BA$1:$BA$999<>"",ROW($BA$1:$BA$999)),ROW(BA27))),"") -> Chase Anderson
A28: Chase Anderson | B28: anderch01 | C28: SP | E28: MIL | F28: 30 | G28: 170 | H28: 88 | I28: 236 | J28: 193 | K28: 88 | L28: 257 | M28: 136.88 | N28: 95 | O28: 193 | P28: 186 | Q28: 88 | R28: 248 | V28: 173.5 | W28: 88 | X28: 236 | Y28: 171.41 | Z28: 88 | AA28: 236 | AB28: 171.7983333 | AC28: 88 | AD28: 236 | AE28: 247 | AF28: 207 | AH28: 258 | AI28: 192 | AL28: 194 | AN28: =IFERROR(INDEX('Guts-2'!$K$1:$K$30,MATCH(E28,'Guts-2'!$J$1:$J$30,0)),TRUE) -> TRUE | AO28: =IF(AN28=FALSE,"",IFERROR(CHOOSE('Guts-2'!$D$27,AE28,AF28,AG28,AH28,AI28,AJ28,AK28,AL28,AM28),"")) -> 258 | AP28: 258 | AQ28: =IF(AN28=FALSE,"",IFERROR(CHOOSE('Guts-2'!$D$26,G28,J28,M28,P28,S28,V28,Y28,AB28,AX28),"")) -> 136.88 | AR28: 136 | AS28: =IFERROR(IF(Settings!$L$5="Mixed (Standard)",(RANK(AQ28,$AQ$2:$AQ$999,1)/('Guts-2'!$N$1+1))+1,(RANK(AR28,$AR$2:$AR$999,1)/('Guts-2'!$N$1+1))+1),"") -> 11.46153846 | AT28: =IFERROR(CHOOSE('Guts-2'!$D$26,H28,K28,N28,Q28,T28,W28,Z28,AC28,AY28),"") -> 95 | AU28: =IFERROR(CHOOSE('Guts-2'!$D$26,I28,L28,O28,R28,U28,X28,AA28,AD28,AZ28),"") -> 193 | AV28: 95 | AW28: 193 | AX28: =INDEX('Import (ADP)'!$C$2:$C$999,MATCH(A28, 'Import (ADP)'!$B$2:$B$999,0)) ->  | BA28: =IF(VLOOKUP(A29,'Name-Sort'!$D$2:$E$999,2,FALSE)="",A29,"") -> Tim Anderson | BB28: =IFERROR(INDEX($BA$1:$BA$999,SMALL(IF($BA$1:$BA$999<>"",ROW($BA$1:$BA$999)),ROW(BA28))),"") -> Tim Anderson
A29: Tim Anderson | B29: anderti01 | C29: SS | E29: CWS | F29: 24 | G29: 205 | H29: 102 | I29: 326 | J29: 250 | K29: 102 | L29: 333 | M29: 230.43 | N29: 102 | O29: 326 | P29: 276 | Q29: 102 | R29: 368 | V29: 232.8 | W29: 102 | X29: 326 | Y29: 197.21 | Z29: 134 | AA29: 264 | AB29: 231.9066667 | AC29: 102 | AD29: 326 | AE29: 217 | AF29: 209 | AH29: 133 | AI29: 226 | AL29: 216 | AN29: =IFERROR(INDEX('Guts-2'!$K$1:$K$30,MATCH(E29,'Guts-2'!$J$1:$J$30,0)),TRUE) -> TRUE | AO29: =IF(AN29=FALSE,"",IFERROR(CHOOSE('Guts-2'!$D$27,AE29,AF29,AG29,AH29,AI29,AJ29,AK29,AL29,AM29),"")) -> 133 | AP29: 133 | AQ29: =IF(AN29=FALSE,"",IFERROR(CHOOSE('Guts-2'!$D$26,G29,J29,M29,P29,S29,V29,Y29,AB29,AX29),"")) -> 230.43 | AR29: 287 | AS29: =IFERROR(IF(Settings!$L$5="Mixed (Standard)",(RANK(AQ29,$AQ$2:$AQ$999,1)/('Guts-2'!$N$1+1))+1,(RANK(AR29,$AR$2:$AR$999,1)/('Guts-2'!$N$1+1))+1),"") -> 23.07692308 | AT29: =IFERROR(CHOOSE('Guts-2'!$D$26,H29,K29,N29,Q29,T29,W29,Z29,AC29,AY29),"") -> 102 | AU29: =IFERROR(CHOOSE('Guts-2'!$D$26,I29,L29,O29,R29,U29,X29,AA29,AD29,AZ29),"") -> 326 | AV29: 102 | AW29: 326 | AX29: =INDEX('Import (ADP)'!$C$2:$C$999,MATCH(A29, 'Import (ADP)'!$B$2:$B$999,0)) ->  | BA29: =IF(VLOOKUP(A30,'Name-Sort'!$D$2:$E$999,2,FALSE)="",A30,"") -> Tyler Anderson | BB29: =IFERROR(INDEX($BA$1:$BA$999,SMALL(IF($BA$1:$BA$999<>"",ROW($BA$1:$BA$999)),ROW(BA29))),"") -> Tyler Anderson
A30: Tyler Anderson | B30: anderty01 | C30: SP | E30: COL | F30: 28 | G30: 431 | H30: 283 | I30: 578 | V30: 429.5 | W30: 283 | X30: 578 | Y30: 422.97 | Z30: 283 | AA30: 578 | AB30: 427.8233333 | AC30: 283 | AD30: 578 | AL30: 443 | AN30: =IFERROR(INDEX('Guts-2'!$K$1:$K$30,MATCH(E30,'Guts-2'!$J$1:$J$30,0)),TRUE) -> TRUE | AO30: =IF(AN30=FALSE,"",IFERROR(CHOOSE('Guts-2'!$D$27,AE30,AF30,AG30,AH30,AI30,AJ30,AK30,AL30,AM30),"")) ->  | AQ30: =IF(AN30=FALSE,"",IFERROR(CHOOSE('Guts-2'!$D$26,G30,J30,M30,P30,S30,V30,Y30,AB30,AX30),"")) ->  | AS30: =IFERROR(IF(Settings!$L$5="Mixed (Standard)",(RANK(AQ30,$AQ$2:$AQ$999,1)/('Guts-2'!$N$1+1))+1,(RANK(AR30,$AR$2:$AR$999,1)/('Guts-2'!$N$1+1))+1),"") ->  | AT30: =IFERROR(CHOOSE('Guts-2'!$D$26,H30,K30,N30,Q30,T30,W30,Z30,AC30,AY30),"") ->  | AU30: =IFERROR(CHOOSE('Guts-2'!$D$26,I30,L30,O30,R30,U30,X30,AA30,AD30,AZ30),"") ->  | AX30: =INDEX('Import (ADP)'!$C$2:$C$999,MATCH(A30, 'Import (ADP)'!$B$2:$B$999,0)) ->  | BA30: =IF(VLOOKUP(A31,'Name-Sort'!$D$2:$E$999,2,FALSE)="",A31,"") -> Matt Andriese | BB30: =IFERROR(INDEX($BA$1:$BA$999,SMALL(IF($BA$1:$BA$999<>"",ROW($BA$1:$BA$999)),ROW(BA30))),"") -> Matt Andriese
A31: Matt Andriese | B31: andrima01 | C31: SP | E31: TB | F31: 28 | G31: 471 | H31: 263 | I31: 627 | V31: 481.5 | W31: 263 | X31: 641 | Y31: 492.92 | Z31: 263 | AA31: 594 | AB31: 481.8066667 | AC31: 263 | AD31: 641 | AL31: 510 | AN31: =IFERROR(INDEX('Guts-2'!$K$1:$K$30,MATCH(E31,'Guts-2'!$J$1:$J$30,0)),TRUE) -> TRUE | AO31: =IF(AN31=FALSE,"",IFERROR(CHOOSE('Guts-2'!$D$27,AE31,AF31,AG31,AH31,AI31,AJ31,AK31,AL31,AM31),"")) ->  | AQ31: =IF(AN31=FALSE,"",IFERROR(CHOOSE('Guts-2'!$D$26,G31,J31,M31,P31,S31,V31,Y31,AB31,AX31),"")) ->  | AS31: =IFERROR(IF(Settings!$L$5="Mixed (Standard)",(RANK(AQ31,$AQ$2:$AQ$999,1)/('Guts-2'!$N$1+1))+1,(RANK(AR31,$AR$2:$AR$999,1)/('Guts-2'!$N$1+1))+1),"") ->  | AT31: =IFERROR(CHOOSE('Guts-2'!$D$26,H31,K31,N31,Q31,T31,W31,Z31,AC31,AY31),"") ->  | AU31: =IFERROR(CHOOSE('Guts-2'!$D$26,I31,L31,O31,R31,U31,X31,AA31,AD31,AZ31),"") ->  | AX31: =INDEX('Import (ADP)'!$C$2:$C$999,MATCH(A31, 'Import (ADP)'!$B$2:$B$999,0)) ->  | BA31: =IF(VLOOKUP(A32,'Name-Sort'!$D$2:$E$999,2,FALSE)="",A32,"") -> Elvis Andrus | BB31: =IFERROR(INDEX($BA$1:$BA$999,SMALL(IF($BA$1:$BA$999<>"",ROW($BA$1:$BA$999)),ROW(BA31))),"") -> Elvis Andrus
A32: Elvis Andrus | B32: andruel01 | C32: SS | E32: TEX | F32: 29 | G32: 65 | H32: 31 | I32: 164 | J32: 62 | K32: 31 | L32: 164 | M32: 100.48 | N32: 57 | O32: 164 | P32: 63 | Q32: 31 | R32: 164 | V32: 63.8 | W32: 31 | X32: 164 | Y32: 58.72 | Z32: 31 | AA32: 90 | AB32: 68.83333333 | AC32: 31 | AD32: 164 | AE32: 53 | AF32: 52 | AH32: 34 | AI32: 55 | AL32: 57 | AN32: =IFERROR(INDEX('Guts-2'!$K$1:$K$30,MATCH(E32,'Guts-2'!$J$1:$J$30,0)),TRUE) -> TRUE | AO32: =IF(AN32=FALSE,"",IFERROR(CHOOSE('Guts-2'!$D$27,AE32,AF32,AG32,AH32,AI32,AJ32,AK32,AL32,AM32),"")) -> 34 | AP32: 34 | AQ32: =IF(AN32=FALSE,"",IFERROR(CHOOSE('Guts-2'!$D$26,G32,J32,M32,P32,S32,V32,Y32,AB32,AX32),"")) -> 100.48 | AR32: 98 | AS32: =IFERROR(IF(Settings!$L$5="Mixed (Standard)",(RANK(AQ32,$AQ$2:$AQ$999,1)/('Guts-2'!$N$1+1))+1,(RANK(AR32,$AR$2:$AR$999,1)/('Guts-2'!$N$1+1))+1),"") -> 8.538461538 | AT32: =IFERROR(CHOOSE('Guts-2'!$D$26,H32,K32,N32,Q32,T32,W32,Z32,AC32,AY32),"") -> 57 | AU32: =IFERROR(CHOOSE('Guts-2'!$D$26,I32,L32,O32,R32,U32,X32,AA32,AD32,AZ32),"") -> 164 | AV32: 57 | AW32: 164 | AX32: =INDEX('Import (ADP)'!$C$2:$C$999,MATCH(A32, 'Import (ADP)'!$B$2:$B$999,0)) ->  | BA32: =IF(VLOOKUP(A33,'Name-Sort'!$D$2:$E$999,2,FALSE)="",A33,"") -> Miguel Andujar | BB32: =IFERROR(INDEX($BA$1:$BA$999,SMALL(IF($BA$1:$BA$999<>"",ROW($BA$1:$BA$999)),ROW(BA32))),"") -> Miguel Andujar
A33: Miguel Andujar | B33: andujmi01 | C33: 3B | E33: NYY | F33: 23 | G33: 414 | H33: 6 | I33: 661 | J33: 288 | K33: 6 | L33: 661 | M33: 198.5 | N33: 6 | O33: 353 | V33: 343.8 | W33: 6 | X33: 661 | Y33: 437.11 | Z33: 298 | AA33: 661 | AB33: 336.282 | AC33: 6 | AD33: 661 | AL33: 501 | AN33: =IFERROR(INDEX('Guts-2'!$K$1:$K$30,MATCH(E33,'Guts-2'!$J$1:$J$30,0)),TRUE) -> TRUE | AO33: =IF(AN33=FALSE,"",IFERROR(CHOOSE('Guts-2'!$D$27,AE33,AF33,AG33,AH33,AI33,AJ33,AK33,AL33,AM33),"")) ->  | AQ33: =IF(AN33=FALSE,"",IFERROR(CHOOSE('Guts-2'!$D$26,G33,J33,M33,P33,S33,V33,Y33,AB33,AX33),"")) -> 198.5 | AR33: 245 | AS33: =IFERROR(IF(Settings!$L$5="Mixed (Standard)",(RANK(AQ33,$AQ$2:$AQ$999,1)/('Guts-2'!$N$1+1))+1,(RANK(AR33,$AR$2:$AR$999,1)/('Guts-2'!$N$1+1))+1),"") -> 19.84615385 | AT33: =IFERROR(CHOOSE('Guts-2'!$D$26,H33,K33,N33,Q33,T33,W33,Z33,AC33,AY33),"") -> 6 | AU33: =IFERROR(CHOOSE('Guts-2'!$D$26,I33,L33,O33,R33,U33,X33,AA33,AD33,AZ33),"") -> 353 | AV33: 6 | AW33: 353 | AX33: =INDEX('Import (ADP)'!$C$2:$C$999,MATCH(A33, 'Import (ADP)'!$B$2:$B$999,0)) ->  | BA33: =IF(VLOOKUP(A34,'Name-Sort'!$D$2:$E$999,2,FALSE)="",A34,"") -> Norichika Aoki | BB33: =IFERROR(INDEX($BA$1:$BA$999,SMALL(IF($BA$1:$BA$999<>"",ROW($BA$1:$BA$999)),ROW(BA33))),"") -> Norichika Aoki
A34: Norichika Aoki | B34: aokino01 | C34: OF | D34: LF,CF,RF | E34: N/A | F34: 36 | G34: 895 | H34: 528 | I34: 1191 | V34: 895 | W34: 528 | X34: 1191 | Y34: 683.25 | Z34: 528 | AA34: 749 | AB34: 824.4166667 | AC34: 528 | AD34: 1097 | AN34: =IFERROR(INDEX('Guts-2'!$K$1:$K$30,MATCH(E34,'Guts-2'!$J$1:$J$30,0)),TRUE) -> TRUE | AO34: =IF(AN34=FALSE,"",IFERROR(CHOOSE('Guts-2'!$D$27,AE34,AF34,AG34,AH34,AI34,AJ34,AK34,AL34,AM34),"")) ->  | AQ34: =IF(AN34=FALSE,"",IFERROR(CHOOSE('Guts-2'!$D$26,G34,J34,M34,P34,S34,V34,Y34,AB34,AX34),"")) ->  | AS34: =IFERROR(IF(Settings!$L$5="Mixed (Standard)",(RANK(AQ34,$AQ$2:$AQ$999,1)/('Guts-2'!$N$1+1))+1,(RANK(AR34,$AR$2:$AR$999,1)/('Guts-2'!$N$1+1))+1),"") ->  | AT34: =IFERROR(CHOOSE('Guts-2'!$D$26,H34,K34,N34,Q34,T34,W34,Z34,AC34,AY34),"") ->  | AU34: =IFERROR(CHOOSE('Guts-2'!$D$26,I34,L34,O34,R34,U34,X34,AA34,AD34,AZ34),"") ->  | AX34: =INDEX('Import (ADP)'!$C$2:$C$999,MATCH(A34, 'Import (ADP)'!$B$2:$B$999,0)) ->  | BA34: =IF(VLOOKUP(A35,'Name-Sort'!$D$2:$E$999,2,FALSE)="",A35,"") -> Chris Archer | BB34: =IFERROR(INDEX($BA$1:$BA$999,SMALL(IF($BA$1:$BA$999<>"",ROW($BA$1:$BA$999)),ROW(BA34))),"") -> Chris Archer
A35: Chris Archer | B35: archech01 | C35: SP | E35: TB | F35: 29 | G35: 53 | H35: 34 | I35: 79 | J35: 63 | K35: 34 | L35: 84 | M35: 52.4 | N35: 37 | O35: 66 | P35: 56 | Q35: 34 | R35: 79 | V35: 55.5 | W35: 34 | X35: 79 | Y35: 52.59 | Z35: 34 | AA35: 79 | AB35: 55.415 | AC35: 34 | AD35: 79 | AE35: 48 | AF35: 65 | AH35: 146 | AI35: 58 | AL35: 56 | AN35: =IFERROR(INDEX('Guts-2'!$K$1:$K$30,MATCH(E35,'Guts-2'!$J$1:$J$30,0)),TRUE) -> TRUE | AO35: =IF(AN35=FALSE,"",IFERROR(CHOOSE('Guts-2'!$D$27,AE35,AF35,AG35,AH35,AI35,AJ35,AK35,AL35,AM35),"")) -> 146 | AP35: 146 | AQ35: =IF(AN35=FALSE,"",IFERROR(CHOOSE('Guts-2'!$D$26,G35,J35,M35,P35,S35,V35,Y35,AB35,AX35),"")) -> 52.4 | AR35: 53 | AS35: =IFERROR(IF(Settings!$L$5="Mixed (Standard)",(RANK(AQ35,$AQ$2:$AQ$999,1)/('Guts-2'!$N$1+1))+1,(RANK(AR35,$AR$2:$AR$999,1)/('Guts-2'!$N$1+1))+1),"") -> 5.076923077 | AT35: =IFERROR(CHOOSE('Guts-2'!$D$26,H35,K35,N35,Q35,T35,W35,Z35,AC35,AY35),"") -> 37 | AU35: =IFERROR(CHOOSE('Guts-2'!$D$26,I35,L35,O35,R35,U35,X35,AA35,AD35,AZ35),"") -> 66 | AV35: 37 | AW35: 66 | AX35: =INDEX('Import (ADP)'!$C$2:$C$999,MATCH(A35, 'Import (ADP)'!$B$2:$B$999,0)) ->  | BA35: =IF(VLOOKUP(A36,'Name-Sort'!$D$2:$E$999,2,FALSE)="",A36,"") -> Orlando Arcia | BB35: =IFERROR(INDEX($BA$1:$BA$999,SMALL(IF($BA$1:$BA$999<>"",ROW($BA$1:$BA$999)),ROW(BA35))),"") -> Orlando Arcia
A36: Orlando Arcia | B36: arciaor01 | C36: SS | E36: MIL | F36: 23 | G36: 182 | H36: 89 | I36: 254 | J36: 363 | K36: 89 | L36: 483 | M36: 178.08 | N36: 89 | O36: 250 | P36: 177 | Q36: 89 | R36: 254 | V36: 216.2 | W36: 89 | X36: 288 | Y36: 184.96 | Z36: 97 | AA36: 254 | AB36: 216.8733333 | AC36: 89 | AD36: 289 | AE36: 283 | AF36: 232 | AH36: 176 | AI36: 235 | AL36: 249 | AN36: =IFERROR(INDEX('Guts-2'!$K$1:$K$30,MATCH(E36,'Guts-2'!$J$1:$J$30,0)),TRUE) -> TRUE | AO36: =IF(AN36=FALSE,"",IFERROR(CHOOSE('Guts-2'!$D$27,AE36,AF36,AG36,AH36,AI36,AJ36,AK36,AL36,AM36),"")) -> 176 | AP36: 176 | AQ36: =IF(AN36=FALSE,"",IFERROR(CHOOSE('Guts-2'!$D$26,G36,J36,M36,P36,S36,V36,Y36,AB36,AX36),"")) -> 178.08 | AR36: 207 | AS36: =IFERROR(IF(Settings!$L$5="Mixed (Standard)",(RANK(AQ36,$AQ$2:$AQ$999,1)/('Guts-2'!$N$1+1))+1,(RANK(AR36,$AR$2:$AR$999,1)/('Guts-2'!$N$1+1))+1),"") -> 16.92307692 | AT36: =IFERROR(CHOOSE('Guts-2'!$D$26,H36,K36,N36,Q36,T36,W36,Z36,AC36,AY36),"") -> 89 | AU36: =IFERROR(CHOOSE('Guts-2'!$D$26,I36,L36,O36,R36,U36,X36,AA36,AD36,AZ36),"") -> 250 | AV36: 89 | AW36: 250 | AX36: =INDEX('Import (ADP)'!$C$2:$C$999,MATCH(A36, 'Import (ADP)'!$B$2:$B$999,0)) ->  | BA36: =IF(VLOOKUP(A37,'Name-Sort'!$D$2:$E$999,2,FALSE)="",A37,"") -> Nolan Arenado | BB36: =IFERROR(INDEX($BA$1:$BA$999,SMALL(IF($BA$1:$BA$999<>"",ROW($BA$1:$BA$999)),ROW(BA36))),"") -> Nolan Arenado
A37: Nolan Arenado | B37: arenano01 | C37: 3B | E37: COL | F37: 26 | G37: 4 | H37: 1 | I37: 20 | J37: 3 | K37: 1 | L37: 20 | M37: 6.89 | N37: 2 | O37: 13 | P37: 3 | Q37: 1 | R37: 20 | V37: 3.5 | W37: 1 | X37: 20 | Y37: 5.1 | Z37: 1 | AA37: 20 | AB37: 4.248333333 | AC37: 1 | AD37: 20 | AE37: 2 | AF37: 3 | AH37: 6 | AI37: 4 | AL37: 3 | AN37: =IFERROR(INDEX('Guts-2'!$K$1:$K$30,MATCH(E37,'Guts-2'!$J$1:$J$30,0)),TRUE) -> TRUE | AO37: =IF(AN37=FALSE,"",IFERROR(CHOOSE('Guts-2'!$D$27,AE37,AF37,AG37,AH37,AI37,AJ37,AK37,AL37,AM37),"")) -> 6 | AP37: 6 | AQ37: =IF(AN37=FALSE,"",IFERROR(CHOOSE('Guts-2'!$D$26,G37,J37,M37,P37,S37,V37,Y37,AB37,AX37),"")) -> 6.89 | AR37: 5 | AS37: =IFERROR(IF(Settings!$L$5="Mixed (Standard)",(RANK(AQ37,$AQ$2:$AQ$999,1)/('Guts-2'!$N$1+1))+1,(RANK(AR37,$AR$2:$AR$999,1)/('Guts-2'!$N$1+1))+1),"") -> 1.384615385 | AT37: =IFERROR(CHOOSE('Guts-2'!$D$26,H37,K37,N37,Q37,T37,W37,Z37,AC37,AY37),"") -> 2 | AU37: =IFERROR(CHOOSE('Guts-2'!$D$26,I37,L37,O37,R37,U37,X37,AA37,AD37,AZ37),"") -> 13 | AV37: 2 | AW37: 13 | AX37: =INDEX('Import (ADP)'!$C$2:$C$999,MATCH(A37, 'Import (ADP)'!$B$2:$B$999,0)) -> 4.5 | AY37: 1 | AZ37: 20 | BA37: =IF(VLOOKUP(A38,'Name-Sort'!$D$2:$E$999,2,FALSE)="",A38,"") -> Jake Arrieta | BB37: =IFERROR(INDEX($BA$1:$BA$999,SMALL(IF($BA$1:$BA$999<>"",ROW($BA$1:$BA$999)),ROW(BA37))),"") -> Jake Arrieta
A38: Jake Arrieta | B38: arrieja01 | C38: SP | E38: N/A | F38: 32 | G38: 85 | H38: 55 | I38: 161 | J38: 105 | K38: 55 | L38: 161 | M38: 90.04 | N38: 55 | O38: 153 | P38: 100 | Q38: 55 | R38: 161 | V38: 94.8 | W38: 55 | X38: 161 | Y38: 98.6 | Z38: 63 | AA38: 161 | AB38: 95.57333333 | AC38: 55 | AD38: 161 | AE38: 127 | AF38: 104 | AH38: 232 | AI38: 107 | AL38: 99 | AN38: =IFERROR(INDEX('Guts-2'!$K$1:$K$30,MATCH(E38,'Guts-2'!$J$1:$J$30,0)),TRUE) -> TRUE | AO38: =IF(AN38=FALSE,"",IFERROR(CHOOSE('Guts-2'!$D$27,AE38,AF38,AG38,AH38,AI38,AJ38,AK38,AL38,AM38),"")) -> 232 | AP38: 232 | AQ38: =IF(AN38=FALSE,"",IFERROR(CHOOSE('Guts-2'!$D$26,G38,J38,M38,P38,S38,V38,Y38,AB38,AX38),"")) -> 90.04 | AR38: 85 | AS38: =IFERROR(IF(Settings!$L$5="Mixed (Standard)",(RANK(AQ38,$AQ$2:$AQ$999,1)/('Guts-2'!$N$1+1))+1,(RANK(AR38,$AR$2:$AR$999,1)/('Guts-2'!$N$1+1))+1),"") -> 7.538461538 | AT38: =IFERROR(CHOOSE('Guts-2'!$D$26,H38,K38,N38,Q38,T38,W38,Z38,AC38,AY38),"") -> 55 | AU38: =IFERROR(CHOOSE('Guts-2'!$D$26,I38,L38,O38,R38,U38,X38,AA38,AD38,AZ38),"") -> 153 | AV38: 55 | AW38: 153 | AX38: =INDEX('Import (ADP)'!$C$2:$C$999,MATCH(A38, 'Import (ADP)'!$B$2:$B$999,0)) ->  | BA38: =IF(VLOOKUP(A39,'Name-Sort'!$D$2:$E$999,2,FALSE)="",A39,"") -> Christian Arroyo | BB38: =IFERROR(INDEX($BA$1:$BA$999,SMALL(IF($BA$1:$BA$999<>"",ROW($BA$1:$BA$999)),ROW(BA38))),"") -> Christian Arroyo
A39: Christian Arroyo | B39: arroych01 | C39: 3B | E39: TB | F39: 22 | G39: 526 | H39: 326 | I39: 706 | V39: 502.3 | W39: 326 | X39: 706 | Y39: 521.73 | Z39: 326 | AA39: 706 | AB39: 516.6766667 | AC39: 326 | AD39: 706 | AN39: =IFERROR(INDEX('Guts-2'!$K$1:$K$30,MATCH(E39,'Guts-2'!$J$1:$J$30,0)),TRUE) -> TRUE | AO39: =IF(AN39=FALSE,"",IFERROR(CHOOSE('Guts-2'!$D$27,AE39,AF39,AG39,AH39,AI39,AJ39,AK39,AL39,AM39),"")) ->  | AQ39: =IF(AN39=FALSE,"",IFERROR(CHOOSE('Guts-2'!$D$26,G39,J39,M39,P39,S39,V39,Y39,AB39,AX39),"")) ->  | AS39: =IFERROR(IF(Settings!$L$5="Mixed (Standard)",(RANK(AQ39,$AQ$2:$AQ$999,1)/('Guts-2'!$N$1+1))+1,(RANK(AR39,$AR$2:$AR$999,1)/('Guts-2'!$N$1+1))+1),"") ->  | AT39: =IFERROR(CHOOSE('Guts-2'!$D$26,H39,K39,N39,Q39,T39,W39,Z39,AC39,AY39),"") ->  | AU39: =IFERROR(CHOOSE('Guts-2'!$D$26,I39,L39,O39,R39,U39,X39,AA39,AD39,AZ39),"") ->  | AX39: =INDEX('Import (ADP)'!$C$2:$C$999,MATCH(A39, 'Import (ADP)'!$B$2:$B$999,0)) ->  | BA39: =IF(VLOOKUP(A40,'Name-Sort'!$D$2:$E$999,2,FALSE)="",A40,"") -> Carlos Asuaje | BB39: =IFERROR(INDEX($BA$1:$BA$999,SMALL(IF($BA$1:$BA$999<>"",ROW($BA$1:$BA$999)),ROW(BA39))),"") -> Carlos Asuaje
A40: Carlos Asuaje | B40: asuajca01 | C40: 2B | E40: SD | F40: 26 | G40: 613 | H40: 405 | I40: 816 | V40: 619 | W40: 409 | X40: 824 | Y40: 603.25 | Z40: 494 | AA40: 734 | AB40: 611.75 | AC40: 404 | AD40: 814 | AN40: =IFERROR(INDEX('Guts-2'!$K$1:$K$30,MATCH(E40,'Guts-2'!$J$1:$J$30,0)),TRUE) -> TRUE | AO40: =IF(AN40=FALSE,"",IFERROR(CHOOSE('Guts-2'!$D$27,AE40,AF40,AG40,AH40,AI40,AJ40,AK40,AL40,AM40),"")) ->  | AQ40: =IF(AN40=FALSE,"",IFERROR(CHOOSE('Guts-2'!$D$26,G40,J40,M40,P40,S40,V40,Y40,AB40,AX40),"")) ->  | AS40: =IFERROR(IF(Settings!$L$5="Mixed (Standard)",(RANK(AQ40,$AQ$2:$AQ$999,1)/('Guts-2'!$N$1+1))+1,(RANK(AR40,$AR$2:$AR$999,1)/('Guts-2'!$N$1+1))+1),"") ->  | AT40: =IFERROR(CHOOSE('Guts-2'!$D$26,H40,K40,N40,Q40,T40,W40,Z40,AC40,AY40),"") ->  | AU40: =IFERROR(CHOOSE('Guts-2'!$D$26,I40,L40,O40,R40,U40,X40,AA40,AD40,AZ40),"") ->  | AX40: =INDEX('Import (ADP)'!$C$2:$C$999,MATCH(A40, 'Import (ADP)'!$B$2:$B$999,0)) ->  | BA40: =IF(VLOOKUP(A41,'Name-Sort'!$D$2:$E$999,2,FALSE)="",A41,"") -> Tyler Austin | BB40: =IFERROR(INDEX($BA$1:$BA$999,SMALL(IF($BA$1:$BA$999<>"",ROW($BA$1:$BA$999)),ROW(BA40))),"") -> Tyler Austin
A41: Tyler Austin | B41: austity01 | C41: 1B | E41: NYY | F41: 26 | G41: 909 | H41: 578 | I41: 1209 | V41: 858.5 | W41: 567 | X41: 1142 | Y41: 668.06 | Z41: 578 | AA41: 748 | AB41: 811.8533333 | AC41: 536 | AD41: 1080 | AN41: =IFERROR(INDEX('Guts-2'!$K$1:$K$30,MATCH(E41,'Guts-2'!$J$1:$J$30,0)),TRUE) -> TRUE | AO41: =IF(AN41=FALSE,"",IFERROR(CHOOSE('Guts-2'!$D$27,AE41,AF41,AG41,AH41,AI41,AJ41,AK41,AL41,AM41),"")) ->  | AQ41: =IF(AN41=FALSE,"",IFERROR(CHOOSE('Guts-2'!$D$26,G41,J41,M41,P41,S41,V41,Y41,AB41,AX41),"")) ->  | AS41: =IFERROR(IF(Settings!$L$5="Mixed (Standard)",(RANK(AQ41,$AQ$2:$AQ$999,1)/('Guts-2'!$N$1+1))+1,(RANK(AR41,$AR$2:$AR$999,1)/('Guts-2'!$N$1+1))+1),"") ->  | AT41: =IFERROR(CHOOSE('Guts-2'!$D$26,H41,K41,N41,Q41,T41,W41,Z41,AC41,AY41),"") ->  | AU41: =IFERROR(CHOOSE('Guts-2'!$D$26,I41,L41,O41,R41,U41,X41,AA41,AD41,AZ41),"") ->  | AX41: =INDEX('Import (ADP)'!$C$2:$C$999,MATCH(A41, 'Import (ADP)'!$B$2:$B$999,0)) ->  | BA41: =IF(VLOOKUP(A42,'Name-Sort'!$D$2:$E$999,2,FALSE)="",A42,"") -> Alex Avila | BB41: =IFERROR(INDEX($BA$1:$BA$999,SMALL(IF($BA$1:$BA$999<>"",ROW($BA$1:$BA$999)),ROW(BA41))),"") -> Alex Avila
A42: Alex Avila | B42: avilaal01 | C42: C | E42: ARI | F42: 31 | G42: 412 | H42: 47 | I42: 789 | J42: 283 | K42: 47 | L42: 789 | M42: 265.14 | N42: 47 | O42: 789 | V42: 343 | W42: 47 | X42: 789 | Y42: 347.8 | Z42: 141 | AA42: 520 | AB42: 330.188 | AC42: 47 | AD42: 789 | AL42: 346 | AN42: =IFERROR(INDEX('Guts-2'!$K$1:$K$30,MATCH(E42,'Guts-2'!$J$1:$J$30,0)),TRUE) -> TRUE | AO42: =IF(AN42=FALSE,"",IFERROR(CHOOSE('Guts-2'!$D$27,AE42,AF42,AG42,AH42,AI42,AJ42,AK42,AL42,AM42),"")) ->  | AQ42: =IF(AN42=FALSE,"",IFERROR(CHOOSE('Guts-2'!$D$26,G42,J42,M42,P42,S42,V42,Y42,AB42,AX42),"")) -> 265.14 | AR42: 323 | AS42: =IFERROR(IF(Settings!$L$5="Mixed (Standard)",(RANK(AQ42,$AQ$2:$AQ$999,1)/('Guts-2'!$N$1+1))+1,(RANK(AR42,$AR$2:$AR$999,1)/('Guts-2'!$N$1+1))+1),"") -> 25.84615385 | AT42: =IFERROR(CHOOSE('Guts-2'!$D$26,H42,K42,N42,Q42,T42,W42,Z42,AC42,AY42),"") -> 47 | AU42: =IFERROR(CHOOSE('Guts-2'!$D$26,I42,L42,O42,R42,U42,X42,AA42,AD42,AZ42),"") -> 789 | AV42: 47 | AW42: 789 | AX42: =INDEX('Import (ADP)'!$C$2:$C$999,MATCH(A42, 'Import (ADP)'!$B$2:$B$999,0)) ->  | BA42: =IF(VLOOKUP(A43,'Name-Sort'!$D$2:$E$999,2,FALSE)="",A43,"") -> Erick Aybar | BB42: =IFERROR(INDEX($BA$1:$BA$999,SMALL(IF($BA$1:$BA$999<>"",ROW($BA$1:$BA$999)),ROW(BA42))),"") -> Erick Aybar
A43: Erick Aybar | B43: aybarer01 | C43: SS | E43: N/A | F43: 34 | Y43: 652.5 | Z43: 492 | AA43: 739 | AB43: 652.5 | AC43: 431 | AD43: 868 | AN43: =IFERROR(INDEX('Guts-2'!$K$1:$K$30,MATCH(E43,'Guts-2'!$J$1:$J$30,0)),TRUE) -> TRUE | AO43: =IF(AN43=FALSE,"",IFERROR(CHOOSE('Guts-2'!$D$27,AE43,AF43,AG43,AH43,AI43,AJ43,AK43,AL43,AM43),"")) ->  | AQ43: =IF(AN43=FALSE,"",IFERROR(CHOOSE('Guts-2'!$D$26,G43,J43,M43,P43,S43,V43,Y43,AB43,AX43),"")) ->  | AS43: =IFERROR(IF(Settings!$L$5="Mixed (Standard)",(RANK(AQ43,$AQ$2:$AQ$999,1)/('Guts-2'!$N$1+1))+1,(RANK(AR43,$AR$2:$AR$999,1)/('Guts-2'!$N$1+1))+1),"") ->  | AT43: =IFERROR(CHOOSE('Guts-2'!$D$26,H43,K43,N43,Q43,T43,W43,Z43,AC43,AY43),"") ->  | AU43: =IFERROR(CHOOSE('Guts-2'!$D$26,I43,L43,O43,R43,U43,X43,AA43,AD43,AZ43),"") ->  | AX43: =INDEX('Import (ADP)'!$C$2:$C$999,MATCH(A43, 'Import (ADP)'!$B$2:$B$999,0)) ->  | BA43: =IF(VLOOKUP(A44,'Name-Sort'!$D$2:$E$999,2,FALSE)="",A44,"") -> Javier Baez | BB43: =IFERROR(INDEX($BA$1:$BA$999,SMALL(IF($BA$1:$BA$999<>"",ROW($BA$1:$BA$999)),ROW(BA43))),"") -> Javier Baez
A44: Javier Baez | B44: baezja01 | C44: 2B | E44: CHC | F44: 25 | G44: 124 | H44: 71 | I44: 239 | J44: 120 | K44: 71 | L44: 239 | M44: 164.88 | N44: 112 | O44: 239 | P44: 120 | Q44: 71 | R44: 239 | V44: 124.2 | W44: 71 | X44: 239 | Y44: 100.53 | Z44: 71 | AA44: 136 | AB44: 125.6016667 | AC44: 71 | AD44: 239 | AE44: 149 | AF44: 129 | AH44: 108 | AI44: 149 | AL44: 137 | AN44: =IFERROR(INDEX('Guts-2'!$K$1:$K$30,MATCH(E44,'Guts-2'!$J$1:$J$30,0)),TRUE) -> TRUE | AO44: =IF(AN44=FALSE,"",IFERROR(CHOOSE('Guts-2'!$D$27,AE44,AF44,AG44,AH44,AI44,AJ44,AK44,AL44,AM44),"")) -> 108 | AP44: 108 | AQ44: =IF(AN44=FALSE,"",IFERROR(CHOOSE('Guts-2'!$D$26,G44,J44,M44,P44,S44,V44,Y44,AB44,AX44),"")) -> 164.88 | AR44: 178 | AS44: =IFERROR(IF(Settings!$L$5="Mixed (Standard)",(RANK(AQ44,$AQ$2:$AQ$999,1)/('Guts-2'!$N$1+1))+1,(RANK(AR44,$AR$2:$AR$999,1)/('Guts-2'!$N$1+1))+1),"") -> 14.69230769 | AT44: =IFERROR(CHOOSE('Guts-2'!$D$26,H44,K44,N44,Q44,T44,W44,Z44,AC44,AY44),"") -> 112 | AU44: =IFERROR(CHOOSE('Guts-2'!$D$26,I44,L44,O44,R44,U44,X44,AA44,AD44,AZ44),"") -> 239 | AV44: 112 | AW44: 239 | AX44: =INDEX('Import (ADP)'!$C$2:$C$999,MATCH(A44, 'Import (ADP)'!$B$2:$B$999,0)) ->  | BA44: =IF(VLOOKUP(A45,'Name-Sort'!$D$2:$E$999,2,FALSE)="",A45,"") -> Pedro Baez | BB44: =IFERROR(INDEX($BA$1:$BA$999,SMALL(IF($BA$1:$BA$999<>"",ROW($BA$1:$BA$999)),ROW(BA44))),"") -> Pedro Baez
A45: Pedro Baez | B45: baezpe01 | C45: RP | E45: LAD | F45: 30 | G45: 645 | H45: 426 | I45: 858 | V45: 679.5 | W45: 449 | X45: 904 | Y45: 640.78 | Z45: 470 | AA45: 749 | AB45: 655.0933333 | AC45: 433 | AD45: 872 | AL45: 431 | AN45: =IFERROR(INDEX('Guts-2'!$K$1:$K$30,MATCH(E45,'Guts-2'!$J$1:$J$30,0)),TRUE) -> TRUE | AO45: =IF(AN45=FALSE,"",IFERROR(CHOOSE('Guts-2'!$D$27,AE45,AF45,AG45,AH45,AI45,AJ45,AK45,AL45,AM45),"")) ->  | AQ45: =IF(AN45=FALSE,"",IFERROR(CHOOSE('Guts-2'!$D$26,G45,J45,M45,P45,S45,V45,Y45,AB45,AX45),"")) ->  | AS45: =IFERROR(IF(Settings!$L$5="Mixed (Standard)",(RANK(AQ45,$AQ$2:$AQ$999,1)/('Guts-2'!$N$1+1))+1,(RANK(AR45,$AR$2:$AR$999,1)/('Guts-2'!$N$1+1))+1),"") ->  | AT45: =IFERROR(CHOOSE('Guts-2'!$D$26,H45,K45,N45,Q45,T45,W45,Z45,AC45,AY45),"") ->  | AU45: =IFERROR(CHOOSE('Guts-2'!$D$26,I45,L45,O45,R45,U45,X45,AA45,AD45,AZ45),"") ->  | AX45: =INDEX('Import (ADP)'!$C$2:$C$999,MATCH(A45, 'Import (ADP)'!$B$2:$B$999,0)) ->  | BA45: =IF(VLOOKUP(A46,'Name-Sort'!$D$2:$E$999,2,FALSE)="",A46,"") -> Homer Bailey | BB45: =IFERROR(INDEX($BA$1:$BA$999,SMALL(IF($BA$1:$BA$999<>"",ROW($BA$1:$BA$999)),ROW(BA45))),"") -> Homer Bailey
A46: Homer Bailey | B46: baileho02 | C46: SP | E46: CIN | F46: 31 | G46: 582 | H46: 88 | I46: 775 | M46: 382 | N46: 88 | O46: 584 | V46: 553 | W46: 88 | X46: 736 | Y46: 521.25 | Z46: 342 | AA46: 625 | AB46: 509.5625 | AC46: 88 | AD46: 678 | AN46: =IFERROR(INDEX('Guts-2'!$K$1:$K$30,MATCH(E46,'Guts-2'!$J$1:$J$30,0)),TRUE) -> TRUE | AO46: =IF(AN46=FALSE,"",IFERROR(CHOOSE('Guts-2'!$D$27,AE46,AF46,AG46,AH46,AI46,AJ46,AK46,AL46,AM46),"")) ->  | AQ46: =IF(AN46=FALSE,"",IFERROR(CHOOSE('Guts-2'!$D$26,G46,J46,M46,P46,S46,V46,Y46,AB46,AX46),"")) -> 382 | AR46: 407 | AS46: =IFERROR(IF(Settings!$L$5="Mixed (Standard)",(RANK(AQ46,$AQ$2:$AQ$999,1)/('Guts-2'!$N$1+1))+1,(RANK(AR46,$AR$2:$AR$999,1)/('Guts-2'!$N$1+1))+1),"") -> 32.30769231 | AT46: =IFERROR(CHOOSE('Guts-2'!$D$26,H46,K46,N46,Q46,T46,W46,Z46,AC46,AY46),"") -> 88 | AU46: =IFERROR(CHOOSE('Guts-2'!$D$26,I46,L46,O46,R46,U46,X46,AA46,AD46,AZ46),"") -> 584 | AV46: 88 | AW46: 584 | AX46: =INDEX('Import (ADP)'!$C$2:$C$999,MATCH(A46, 'Import (ADP)'!$B$2:$B$999,0)) ->  | BA46: =IF(VLOOKUP(A47,'Name-Sort'!$D$2:$E$999,2,FALSE)="",A47,"") -> Anthony Banda | BB46: =IFERROR(INDEX($BA$1:$BA$999,SMALL(IF($BA$1:$BA$999<>"",ROW($BA$1:$BA$999)),ROW(BA46))),"") -> Anthony Banda
A47: Anthony Banda | B47: bandaan01 | C47: SP | E47: ARI | F47: 24 | G47: 803 | H47: 459 | I47: 1068 | V47: 776.5 | W47: 459 | X47: 1033 | Y47: 650.85 | Z47: 459 | AA47: 749 | AB47: 743.45 | AC47: 459 | AD47: 989 | AN47: =IFERROR(INDEX('Guts-2'!$K$1:$K$30,MATCH(E47,'Guts-2'!$J$1:$J$30,0)),TRUE) -> TRUE | AO47: =IF(AN47=FALSE,"",IFERROR(CHOOSE('Guts-2'!$D$27,AE47,AF47,AG47,AH47,AI47,AJ47,AK47,AL47,AM47),"")) ->  | AQ47: =IF(AN47=FALSE,"",IFERROR(CHOOSE('Guts-2'!$D$26,G47,J47,M47,P47,S47,V47,Y47,AB47,AX47),"")) ->  | AS47: =IFERROR(IF(Settings!$L$5="Mixed (Standard)",(RANK(AQ47,$AQ$2:$AQ$999,1)/('Guts-2'!$N$1+1))+1,(RANK(AR47,$AR$2:$AR$999,1)/('Guts-2'!$N$1+1))+1),"") ->  | AT47: =IFERROR(CHOOSE('Guts-2'!$D$26,H47,K47,N47,Q47,T47,W47,Z47,AC47,AY47),"") ->  | AU47: =IFERROR(CHOOSE('Guts-2'!$D$26,I47,L47,O47,R47,U47,X47,AA47,AD47,AZ47),"") ->  | AX47: =INDEX('Import (ADP)'!$C$2:$C$999,MATCH(A47, 'Import (ADP)'!$B$2:$B$999,0)) ->  | BA47: =IF(VLOOKUP(A48,'Name-Sort'!$D$2:$E$999,2,FALSE)="",A48,"") -> Jett Bandy | BB47: =IFERROR(INDEX($BA$1:$BA$999,SMALL(IF($BA$1:$BA$999<>"",ROW($BA$1:$BA$999)),ROW(BA47))),"") -> Jett Bandy
A48: Jett Bandy | B48: bandyje01 | C48: C | E48: MIL | F48: 28 | G48: 996 | H48: 584 | I48: 1325 | V48: 936.5 | W48: 584 | X48: 1246 | Y48: 681.87 | Z48: 584 | AA48: 748 | AB48: 871.4566667 | AC48: 576 | AD48: 1160 | AN48: =IFERROR(INDEX('Guts-2'!$K$1:$K$30,MATCH(E48,'Guts-2'!$J$1:$J$30,0)),TRUE) -> TRUE | AO48: =IF(AN48=FALSE,"",IFERROR(CHOOSE('Guts-2'!$D$27,AE48,AF48,AG48,AH48,AI48,AJ48,AK48,AL48,AM48),"")) ->  | AQ48: =IF(AN48=FALSE,"",IFERROR(CHOOSE('Guts-2'!$D$26,G48,J48,M48,P48,S48,V48,Y48,AB48,AX48),"")) ->  | AS48: =IFERROR(IF(Settings!$L$5="Mixed (Standard)",(RANK(AQ48,$AQ$2:$AQ$999,1)/('Guts-2'!$N$1+1))+1,(RANK(AR48,$AR$2:$AR$999,1)/('Guts-2'!$N$1+1))+1),"") ->  | AT48: =IFERROR(CHOOSE('Guts-2'!$D$26,H48,K48,N48,Q48,T48,W48,Z48,AC48,AY48),"") ->  | AU48: =IFERROR(CHOOSE('Guts-2'!$D$26,I48,L48,O48,R48,U48,X48,AA48,AD48,AZ48),"") ->  | AX48: =INDEX('Import (ADP)'!$C$2:$C$999,MATCH(A48, 'Import (ADP)'!$B$2:$B$999,0)) ->  | BA48: =IF(VLOOKUP(A49,'Name-Sort'!$D$2:$E$999,2,FALSE)="",A49,"") -> Austin Barnes | BB48: =IFERROR(INDEX($BA$1:$BA$999,SMALL(IF($BA$1:$BA$999<>"",ROW($BA$1:$BA$999)),ROW(BA48))),"") -> Austin Barnes
A49: Austin Barnes | B49: barneau01 | C49: C | E49: LAD | F49: 28 | G49: 228 | H49: 94 | I49: 304 | J49: 226 | K49: 94 | L49: 301 | M49: 172.79 | N49: 94 | O49: 254 | P49: 257 | Q49: 94 | R49: 342 | V49: 216.8 | W49: 94 | X49: 291 | Y49: 184.13 | Z49: 134 | AA49: 291 | AB49: 214.12 | AC49: 94 | AD49: 291 | AE49: 268 | AF49: 284 | AL49: 270 | AN49: =IFERROR(INDEX('Guts-2'!$K$1:$K$30,MATCH(E49,'Guts-2'!$J$1:$J$30,0)),TRUE) -> TRUE | AO49: =IF(AN49=FALSE,"",IFERROR(CHOOSE('Guts-2'!$D$27,AE49,AF49,AG49,AH49,AI49,AJ49,AK49,AL49,AM49),"")) ->  | AQ49: =IF(AN49=FALSE,"",IFERROR(CHOOSE('Guts-2'!$D$26,G49,J49,M49,P49,S49,V49,Y49,AB49,AX49),"")) -> 172.79 | AR49: 191 | AS49: =IFERROR(IF(Settings!$L$5="Mixed (Standard)",(RANK(AQ49,$AQ$2:$AQ$999,1)/('Guts-2'!$N$1+1))+1,(RANK(AR49,$AR$2:$AR$999,1)/('Guts-2'!$N$1+1))+1),"") -> 15.69230769 | AT49: =IFERROR(CHOOSE('Guts-2'!$D$26,H49,K49,N49,Q49,T49,W49,Z49,AC49,AY49),"") -> 94 | AU49: =IFERROR(CHOOSE('Guts-2'!$D$26,I49,L49,O49,R49,U49,X49,AA49,AD49,AZ49),"") -> 254 | AV49: 94 | AW49: 254 | AX49: =INDEX('Import (ADP)'!$C$2:$C$999,MATCH(A49, 'Import (ADP)'!$B$2:$B$999,0)) ->  | BA49: =IF(VLOOKUP(A50,'Name-Sort'!$D$2:$E$999,2,FALSE)="",A50,"") -> Jacob Barnes | BB49: =IFERROR(INDEX($BA$1:$BA$999,SMALL(IF($BA$1:$BA$999<>"",ROW($BA$1:$BA$999)),ROW(BA49))),"") -> Jacob Barnes
A50: Jacob Barnes | B50: barneja01 | C50: RP | E50: MIL | F50: 27 | G50: 584 | H50: 386 | I50: 777 | V50: 615 | W50: 406 | X50: 818 | Y50: 616.69 | Z50: 464 | AA50: 748 | AB50: 605.23 | AC50: 400 | AD50: 805 | AL50: 397 | AN50: =IFERROR(INDEX('Guts-2'!$K$1:$K$30,MATCH(E50,'Guts-2'!$J$1:$J$30,0)),TRUE) -> TRUE | AO50: =IF(AN50=FALSE,"",IFERROR(CHOOSE('Guts-2'!$D$27,AE50,AF50,AG50,AH50,AI50,AJ50,AK50,AL50,AM50),"")) ->  | AQ50: =IF(AN50=FALSE,"",IFERROR(CHOOSE('Guts-2'!$D$26,G50,J50,M50,P50,S50,V50,Y50,AB50,AX50),"")) ->  | AS50: =IFERROR(IF(Settings!$L$5="Mixed (Standard)",(RANK(AQ50,$AQ$2:$AQ$999,1)/('Guts-2'!$N$1+1))+1,(RANK(AR50,$AR$2:$AR$999,1)/('Guts-2'!$N$1+1))+1),"") ->  | AT50: =IFERROR(CHOOSE('Guts-2'!$D$26,H50,K50,N50,Q50,T50,W50,Z50,AC50,AY50),"") ->  | AU50: =IFERROR(CHOOSE('Guts-2'!$D$26,I50,L50,O50,R50,U50,X50,AA50,AD50,AZ50),"") ->  | AX50: =INDEX('Import (ADP)'!$C$2:$C$999,MATCH(A50, 'Import (ADP)'!$B$2:$B$999,0)) ->  | BA50: =IF(VLOOKUP(A51,'Name-Sort'!$D$2:$E$999,2,FALSE)="",A51,"") -> Matt Barnes | BB50: =IFERROR(INDEX($BA$1:$BA$999,SMALL(IF($BA$1:$BA$999<>"",ROW($BA$1:$BA$999)),ROW(BA50))),"") -> Matt Barnes
A51: Matt Barnes | B51: barnema01 | C51: RP | E51: BOS | F51: 27 | G51: 662 | H51: 437 | I51: 881 | V51: 608.3 | W51: 402 | X51: 810 | Y51: 662.19 | Z51: 522 | AA51: 749 | AB51: 644.1633333 | AC51: 426 | AD51: 857 | AN51: =IFERROR(INDEX('Guts-2'!$K$1:$K$30,MATCH(E51,'Guts-2'!$J$1:$J$30,0)),TRUE) -> TRUE | AO51: =IF(AN51=FALSE,"",IFERROR(CHOOSE('Guts-2'!$D$27,AE51,AF51,AG51,AH51,AI51,AJ51,AK51,AL51,AM51),"")) ->  | AQ51: =IF(AN51=FALSE,"",IFERROR(CHOOSE('Guts-2'!$D$26,G51,J51,M51,P51,S51,V51,Y51,AB51,AX51),"")) ->  | AS51: =IFERROR(IF(Settings!$L$5="Mixed (Standard)",(RANK(AQ51,$AQ$2:$AQ$999,1)/('Guts-2'!$N$1+1))+1,(RANK(AR51,$AR$2:$AR$999,1)/('Guts-2'!$N$1+1))+1),"") ->  | AT51: =IFERROR(CHOOSE('Guts-2'!$D$26,H51,K51,N51,Q51,T51,W51,Z51,AC51,AY51),"") ->  | AU51: =IFERROR(CHOOSE('Guts-2'!$D$26,I51,L51,O51,R51,U51,X51,AA51,AD51,AZ51),"") ->  | AX51: =INDEX('Import (ADP)'!$C$2:$C$999,MATCH(A51, 'Import (ADP)'!$B$2:$B$999,0)) ->  | BA51: =IF(VLOOKUP(A52,'Name-Sort'!$D$2:$E$999,2,FALSE)="",A52,"") -> Tucker Barnhart | BB51: =IFERROR(INDEX($BA$1:$BA$999,SMALL(IF($BA$1:$BA$999<>"",ROW($BA$1:$BA$999)),ROW(BA51))),"") -> Tucker Barnhart
A52: Tucker Barnhart | B52: barnhtu01 | C52: C | E52: CIN | F52: 27 | G52: 368 | H52: 243 | I52: 490 | J52: 261 | K52: 173 | L52: 412 | V52: 333.8 | W52: 221 | X52: 444 | Y52: 327.61 | Z52: 254 | AA52: 412 | AB52: 322.6025 | AC52: 213 | AD52: 430 | AF52: 348 | AL52: 523 | AN52: =IFERROR(INDEX('Guts-2'!$K$1:$K$30,MATCH(E52,'Guts-2'!$J$1:$J$30,0)),TRUE) -> TRUE | AO52: =IF(AN52=FALSE,"",IFERROR(CHOOSE('Guts-2'!$D$27,AE52,AF52,AG52,AH52,AI52,AJ52,AK52,AL52,AM52),"")) ->  | AQ52: =IF(AN52=FALSE,"",IFERROR(CHOOSE('Guts-2'!$D$26,G52,J52,M52,P52,S52,V52,Y52,AB52,AX52),"")) ->  | AS52: =IFERROR(IF(Settings!$L$5="Mixed (Standard)",(RANK(AQ52,$AQ$2:$AQ$999,1)/('Guts-2'!$N$1+1))+1,(RANK(AR52,$AR$2:$AR$999,1)/('Guts-2'!$N$1+1))+1),"") ->  | AT52: =IFERROR(CHOOSE('Guts-2'!$D$26,H52,K52,N52,Q52,T52,W52,Z52,AC52,AY52),"") ->  | AU52: =IFERROR(CHOOSE('Guts-2'!$D$26,I52,L52,O52,R52,U52,X52,AA52,AD52,AZ52),"") ->  | AX52: =INDEX('Import (ADP)'!$C$2:$C$999,MATCH(A52, 'Import (ADP)'!$B$2:$B$999,0)) ->  | BA52: =IF(VLOOKUP(A53,'Name-Sort'!$D$2:$E$999,2,FALSE)="",A53,"") -> Kyle Barraclough | BB52: =IFERROR(INDEX($BA$1:$BA$999,SMALL(IF($BA$1:$BA$999<>"",ROW($BA$1:$BA$999)),ROW(BA52))),"") -> Kyle Barraclough
A53: Kyle Barraclough | B53: barraky01 | C53: RP | E53: MIA | F53: 27 | G53: 307 | H53: 152 | I53: 435 | J53: 358 | K53: 152 | L53: 477 | M53: 291.86 | N53: 152 | O53: 398 | V53: 329.6 | W53: 152 | X53: 439 | Y53: 319.88 | Z53: 184 | AA53: 435 | AB53: 321.268 | AC53: 152 | AD53: 435 | AF53: 271 | AL53: 310 | AN53: =IFERROR(INDEX('Guts-2'!$K$1:$K$30,MATCH(E53,'Guts-2'!$J$1:$J$30,0)),TRUE) -> TRUE | AO53: =IF(AN53=FALSE,"",IFERROR(CHOOSE('Guts-2'!$D$27,AE53,AF53,AG53,AH53,AI53,AJ53,AK53,AL53,AM53),"")) ->  | AQ53: =IF(AN53=FALSE,"",IFERROR(CHOOSE('Guts-2'!$D$26,G53,J53,M53,P53,S53,V53,Y53,AB53,AX53),"")) -> 291.86 | AR53: 360 | AS53: =IFERROR(IF(Settings!$L$5="Mixed (Standard)",(RANK(AQ53,$AQ$2:$AQ$999,1)/('Guts-2'!$N$1+1))+1,(RANK(AR53,$AR$2:$AR$999,1)/('Guts-2'!$N$1+1))+1),"") -> 28.69230769 | AT53: =IFERROR(CHOOSE('Guts-2'!$D$26,H53,K53,N53,Q53,T53,W53,Z53,AC53,AY53),"") -> 152 | AU53: =IFERROR(CHOOSE('Guts-2'!$D$26,I53,L53,O53,R53,U53,X53,AA53,AD53,AZ53),"") -> 398 | AV53: 152 | AW53: 398 | AX53: =INDEX('Import (ADP)'!$C$2:$C$999,MATCH(A53, 'Import (ADP)'!$B$2:$B$999,0)) ->  | BA53: =IF(VLOOKUP(A54,'Name-Sort'!$D$2:$E$999,2,FALSE)="",A54,"") -> Franklin Barreto | BB53: =IFERROR(INDEX($BA$1:$BA$999,SMALL(IF($BA$1:$BA$999<>"",ROW($BA$1:$BA$999)),ROW(BA53))),"") -> Franklin Barreto
A54: Franklin Barreto | B54: barrefr01 | C54: 2B | E54: OAK | F54: 22 | G54: 450 | H54: 269 | I54: 602 | V54: 422.8 | W54: 269 | X54: 602 | Y54: 456.87 | Z54: 269 | AA54: 602 | AB54: 443.2233333 | AC54: 269 | AD54: 602 | AL54: 530 | AN54: =IFERROR(INDEX('Guts-2'!$K$1:$K$30,MATCH(E54,'Guts-2'!$J$1:$J$30,0)),TRUE) -> TRUE | AO54: =IF(AN54=FALSE,"",IFERROR(CHOOSE('Guts-2'!$D$27,AE54,AF54,AG54,AH54,AI54,AJ54,AK54,AL54,AM54),"")) ->  | AQ54: =IF(AN54=FALSE,"",IFERROR(CHOOSE('Guts-2'!$D$26,G54,J54,M54,P54,S54,V54,Y54,AB54,AX54),"")) ->  | AS54: =IFERROR(IF(Settings!$L$5="Mixed (Standard)",(RANK(AQ54,$AQ$2:$AQ$999,1)/('Guts-2'!$N$1+1))+1,(RANK(AR54,$AR$2:$AR$999,1)/('Guts-2'!$N$1+1))+1),"") ->  | AT54: =IFERROR(CHOOSE('Guts-2'!$D$26,H54,K54,N54,Q54,T54,W54,Z54,AC54,AY54),"") ->  | AU54: =IFERROR(CHOOSE('Guts-2'!$D$26,I54,L54,O54,R54,U54,X54,AA54,AD54,AZ54),"") ->  | AX54: =INDEX('Import (ADP)'!$C$2:$C$999,MATCH(A54, 'Import (ADP)'!$B$2:$B$999,0)) ->  | BA54: =IF(VLOOKUP(A55,'Name-Sort'!$D$2:$E$999,2,FALSE)="",A55,"") -> Jake Bauers | BB54: =IFERROR(INDEX($BA$1:$BA$999,SMALL(IF($BA$1:$BA$999<>"",ROW($BA$1:$BA$999)),ROW(BA54))),"") -> Jake Bauers
A55: Jake Bauers | B55: bauerja01 | C55: 1B | D55: LF | E55: TB | F55: 22 | G55: 489 | H55: 69 | I55: 651 | M55: 281.75 | N55: 69 | O55: 379 | V55: 458.7 | W55: 69 | X55: 613 | Y55: 497.12 | Z55: 324 | AA55: 613 | AB55: 431.6425 | AC55: 69 | AD55: 613 | AN55: =IFERROR(INDEX('Guts-2'!$K$1:$K$30,MATCH(E55,'Guts-2'!$J$1:$J$30,0)),TRUE) -> TRUE | AO55: =IF(AN55=FALSE,"",IFERROR(CHOOSE('Guts-2'!$D$27,AE55,AF55,AG55,AH55,AI55,AJ55,AK55,AL55,AM55),"")) ->  | AQ55: =IF(AN55=FALSE,"",IFERROR(CHOOSE('Guts-2'!$D$26,G55,J55,M55,P55,S55,V55,Y55,AB55,AX55),"")) -> 281.75 | AR55: 345 | AS55: =IFERROR(IF(Settings!$L$5="Mixed (Standard)",(RANK(AQ55,$AQ$2:$AQ$999,1)/('Guts-2'!$N$1+1))+1,(RANK(AR55,$AR$2:$AR$999,1)/('Guts-2'!$N$1+1))+1),"") -> 27.53846154 | AT55: =IFERROR(CHOOSE('Guts-2'!$D$26,H55,K55,N55,Q55,T55,W55,Z55,AC55,AY55),"") -> 69 | AU55: =IFERROR(CHOOSE('Guts-2'!$D$26,I55,L55,O55,R55,U55,X55,AA55,AD55,AZ55),"") -> 379 | AV55: 69 | AW55: 379 | AX55: =INDEX('Import (ADP)'!$C$2:$C$999,MATCH(A55, 'Import (ADP)'!$B$2:$B$999,0)) ->  | BA55: =IF(VLOOKUP(A56,'Name-Sort'!$D$2:$E$999,2,FALSE)="",A56,"") -> Trevor Bauer | BB55: =IFERROR(INDEX($BA$1:$BA$999,SMALL(IF($BA$1:$BA$999<>"",ROW($BA$1:$BA$999)),ROW(BA55))),"") -> Trevor Bauer
A56: Trevor Bauer | B56: bauertr01 | C56: SP | E56: CLE | F56: 27 | G56: 132 | H56: 69 | I56: 191 | J56: 155 | K56: 69 | L56: 207 | M56: 108.79 | N56: 82 | O56: 138 | P56: 124 | Q56: 69 | R56: 191 | V56: 140 | W56: 69 | X56: 191 | Y56: 142.57 | Z56: 69 | AA56: 191 | AB56: 133.7266667 | AC56: 69 | AD56: 191 | AE56: 144 | AF56: 167 | AH56: 226 | AI56: 173 | AL56: 170 | AN56: =IFERROR(INDEX('Guts-2'!$K$1:$K$30,MATCH(E56,'Guts-2'!$J$1:$J$30,0)),TRUE) -> TRUE | AO56: =IF(AN56=FALSE,"",IFERROR(CHOOSE('Guts-2'!$D$27,AE56,AF56,AG56,AH56,AI56,AJ56,AK56,AL56,AM56),"")) -> 226 | AP56: 226 | AQ56: =IF(AN56=FALSE,"",IFERROR(CHOOSE('Guts-2'!$D$26,G56,J56,M56,P56,S56,V56,Y56,AB56,AX56),"")) -> 108.79 | AR56: 103 | AS56: =IFERROR(IF(Settings!$L$5="Mixed (Standard)",(RANK(AQ56,$AQ$2:$AQ$999,1)/('Guts-2'!$N$1+1))+1,(RANK(AR56,$AR$2:$AR$999,1)/('Guts-2'!$N$1+1))+1),"") -> 8.923076923 | AT56: =IFERROR(CHOOSE('Guts-2'!$D$26,H56,K56,N56,Q56,T56,W56,Z56,AC56,AY56),"") -> 82 | AU56: =IFERROR(CHOOSE('Guts-2'!$D$26,I56,L56,O56,R56,U56,X56,AA56,AD56,AZ56),"") -> 138 | AV56: 82 | AW56: 138 | AX56: =INDEX('Import (ADP)'!$C$2:$C$999,MATCH(A56, 'Import (ADP)'!$B$2:$B$999,0)) ->  | BA56: =IF(VLOOKUP(A57,'Name-Sort'!$D$2:$E$999,2,FALSE)="",A57,"") -> Jose Bautista | BB56: =IFERROR(INDEX($BA$1:$BA$999,SMALL(IF($BA$1:$BA$999<>"",ROW($BA$1:$BA$999)),ROW(BA56))),"") -> Jose Bautista
A57: Jose Bautista | B57: bautijo02 | C57: OF | D57: RF | E57: N/A | F57: 37 | G57: 351 | H57: 118 | I57: 777 | J57: 324 | K57: 118 | L57: 777 | M57: 289.1 | N57: 118 | O57: 777 | P57: 218 | Q57: 118 | R57: 777 | V57: 341.2 | W57: 118 | X57: 777 | Y57: 397.38 | Z57: 141 | AA57: 523 | AB57: 320.1133333 | AC57: 118 | AD57: 777 | AF57: 303 | AH57: 196 | AL57: 298 | AN57: =IFERROR(INDEX('Guts-2'!$K$1:$K$30,MATCH(E57,'Guts-2'!$J$1:$J$30,0)),TRUE) -> TRUE | AO57: =IF(AN57=FALSE,"",IFERROR(CHOOSE('Guts-2'!$D$27,AE57,AF57,AG57,AH57,AI57,AJ57,AK57,AL57,AM57),"")) -> 196 | AP57: 196 | AQ57: =IF(AN57=FALSE,"",IFERROR(CHOOSE('Guts-2'!$D$26,G57,J57,M57,P57,S57,V57,Y57,AB57,AX57),"")) -> 289.1 | AR57: 356 | AS57: =IFERROR(IF(Settings!$L$5="Mixed (Standard)",(RANK(AQ57,$AQ$2:$AQ$999,1)/('Guts-2'!$N$1+1))+1,(RANK(AR57,$AR$2:$AR$999,1)/('Guts-2'!$N$1+1))+1),"") -> 28.38461538 | AT57: =IFERROR(CHOOSE('Guts-2'!$D$26,H57,K57,N57,Q57,T57,W57,Z57,AC57,AY57),"") -> 118 | AU57: =IFERROR(CHOOSE('Guts-2'!$D$26,I57,L57,O57,R57,U57,X57,AA57,AD57,AZ57),"") -> 777 | AV57: 118 | AW57: 777 | AX57: =INDEX('Import (ADP)'!$C$2:$C$999,MATCH(A57, 'Import (ADP)'!$B$2:$B$999,0)) ->  | BA57: =IF(VLOOKUP(A58,'Name-Sort'!$D$2:$E$999,2,FALSE)="",A58,"") -> Tim Beckham | BB57: =IFERROR(INDEX($BA$1:$BA$999,SMALL(IF($BA$1:$BA$999<>"",ROW($BA$1:$BA$999)),ROW(BA57))),"") -> Tim Beckham
A58: Tim Beckham | B58: beckhti01 | C58: 2B | E58: BAL | F58: 28 | G58: 238 | H58: 128 | I58: 539 | J58: 320 | K58: 128 | L58: 539 | M58: 317 | N58: 215 | O58: 539 | P58: 252 | Q58: 128 | R58: 539 | V58: 274.2 | W58: 128 | X58: 539 | Y58: 263.97 | Z58: 128 | AA58: 407 | AB58: 277.5283333 | AC58: 128 | AD58: 539 | AE58: 208 | AF58: 324 | AH58: 157 | AI58: 218 | AL58: 255 | AN58: =IFERROR(INDEX('Guts-2'!$K$1:$K$30,MATCH(E58,'Guts-2'!$J$1:$J$30,0)),TRUE) -> TRUE | AO58: =IF(AN58=FALSE,"",IFERROR(CHOOSE('Guts-2'!$D$27,AE58,AF58,AG58,AH58,AI58,AJ58,AK58,AL58,AM58),"")) -> 157 | AP58: 157 | AQ58: =IF(AN58=FALSE,"",IFERROR(CHOOSE('Guts-2'!$D$26,G58,J58,M58,P58,S58,V58,Y58,AB58,AX58),"")) -> 317 | AR58: 378 | AS58: =IFERROR(IF(Settings!$L$5="Mixed (Standard)",(RANK(AQ58,$AQ$2:$AQ$999,1)/('Guts-2'!$N$1+1))+1,(RANK(AR58,$AR$2:$AR$999,1)/('Guts-2'!$N$1+1))+1),"") -> 30.07692308 | AT58: =IFERROR(CHOOSE('Guts-2'!$D$26,H58,K58,N58,Q58,T58,W58,Z58,AC58,AY58),"") -> 215 | AU58: =IFERROR(CHOOSE('Guts-2'!$D$26,I58,L58,O58,R58,U58,X58,AA58,AD58,AZ58),"") -> 539 | AV58: 215 | AW58: 539 | AX58: =INDEX('Import (ADP)'!$C$2:$C$999,MATCH(A58, 'Import (ADP)'!$B$2:$B$999,0)) ->  | BA58: =IF(VLOOKUP(A59,'Name-Sort'!$D$2:$E$999,2,FALSE)="",A59,"") -> Cam Bedrosian | BB58: =IFERROR(INDEX($BA$1:$BA$999,SMALL(IF($BA$1:$BA$999<>"",ROW($BA$1:$BA$999)),ROW(BA58))),"") -> Cam Bedrosian
A59: Cam Bedrosian | B59: bedroca01 | C59: RP | E59: LAA | F59: 26 | G59: 301 | H59: 62 | I59: 829 | J59: 306 | K59: 62 | L59: 829 | M59: 374.8 | N59: 62 | O59: 829 | V59: 337.4 | W59: 62 | X59: 829 | Y59: 330.78 | Z59: 127 | AA59: 441 | AB59: 329.996 | AC59: 62 | AD59: 829 | AF59: 288 | AL59: 329 | AN59: =IFERROR(INDEX('Guts-2'!$K$1:$K$30,MATCH(E59,'Guts-2'!$J$1:$J$30,0)),TRUE) -> TRUE | AO59: =IF(AN59=FALSE,"",IFERROR(CHOOSE('Guts-2'!$D$27,AE59,AF59,AG59,AH59,AI59,AJ59,AK59,AL59,AM59),"")) ->  | AQ59: =IF(AN59=FALSE,"",IFERROR(CHOOSE('Guts-2'!$D$26,G59,J59,M59,P59,S59,V59,Y59,AB59,AX59),"")) -> 374.8 | AR59: 405 | AS59: =IFERROR(IF(Settings!$L$5="Mixed (Standard)",(RANK(AQ59,$AQ$2:$AQ$999,1)/('Guts-2'!$N$1+1))+1,(RANK(AR59,$AR$2:$AR$999,1)/('Guts-2'!$N$1+1))+1),"") -> 32.15384615 | AT59: =IFERROR(CHOOSE('Guts-2'!$D$26,H59,K59,N59,Q59,T59,W59,Z59,AC59,AY59),"") -> 62 | AU59: =IFERROR(CHOOSE('Guts-2'!$D$26,I59,L59,O59,R59,U59,X59,AA59,AD59,AZ59),"") -> 829 | AV59: 62 | AW59: 829 | AX59: =INDEX('Import (ADP)'!$C$2:$C$999,MATCH(A59, 'Import (ADP)'!$B$2:$B$999,0)) ->  | BA59: =IF(VLOOKUP(A60,'Name-Sort'!$D$2:$E$999,2,FALSE)="",A60,"") -> Tyler Beede | BB59: =IFERROR(INDEX($BA$1:$BA$999,SMALL(IF($BA$1:$BA$999<>"",ROW($BA$1:$BA$999)),ROW(BA59))),"") -> Tyler Beede
A60: Tyler Beede | B60: beedety01 | C60: SP | E60: SF | F60: 24 | G60: 661 | H60: 409 | I60: 880 | V60: 668.5 | W60: 409 | X60: 890 | Y60: 628.77 | Z60: 409 | AA60: 741 | AB60: 652.7566667 | AC60: 409 | AD60: 869 | AN60: =IFERROR(INDEX('Guts-2'!$K$1:$K$30,MATCH(E60,'Guts-2'!$J$1:$J$30,0)),TRUE) -> TRUE | AO60: =IF(AN60=FALSE,"",IFERROR(CHOOSE('Guts-2'!$D$27,AE60,AF60,AG60,AH60,AI60,AJ60,AK60,AL60,AM60),"")) ->  | AQ60: =IF(AN60=FALSE,"",IFERROR(CHOOSE('Guts-2'!$D$26,G60,J60,M60,P60,S60,V60,Y60,AB60,AX60),"")) ->  | AS60: =IFERROR(IF(Settings!$L$5="Mixed (Standard)",(RANK(AQ60,$AQ$2:$AQ$999,1)/('Guts-2'!$N$1+1))+1,(RANK(AR60,$AR$2:$AR$999,1)/('Guts-2'!$N$1+1))+1),"") ->  | AT60: =IFERROR(CHOOSE('Guts-2'!$D$26,H60,K60,N60,Q60,T60,W60,Z60,AC60,AY60),"") ->  | AU60: =IFERROR(CHOOSE('Guts-2'!$D$26,I60,L60,O60,R60,U60,X60,AA60,AD60,AZ60),"") ->  | AX60: =INDEX('Import (ADP)'!$C$2:$C$999,MATCH(A60, 'Import (ADP)'!$B$2:$B$999,0)) ->  | BA60: =IF(VLOOKUP(A61,'Name-Sort'!$D$2:$E$999,2,FALSE)="",A61,"") -> Matt Belisle | BB60: =IFERROR(INDEX($BA$1:$BA$999,SMALL(IF($BA$1:$BA$999<>"",ROW($BA$1:$BA$999)),ROW(BA60))),"") -> Matt Belisle
A61: Matt Belisle | B61: belisma01 | C61: RP | E61: N/A | F61: 37 | G61: 890 | H61: 226 | I61: 1184 | V61: 759 | W61: 226 | X61: 1010 | Y61: 605.02 | Z61: 226 | AA61: 745 | AB61: 751.34 | AC61: 226 | AD61: 1000 | AN61: =IFERROR(INDEX('Guts-2'!$K$1:$K$30,MATCH(E61,'Guts-2'!$J$1:$J$30,0)),TRUE) -> TRUE | AO61: =IF(AN61=FALSE,"",IFERROR(CHOOSE('Guts-2'!$D$27,AE61,AF61,AG61,AH61,AI61,AJ61,AK61,AL61,AM61),"")) ->  | AQ61: =IF(AN61=FALSE,"",IFERROR(CHOOSE('Guts-2'!$D$26,G61,J61,M61,P61,S61,V61,Y61,AB61,AX61),"")) ->  | AS61: =IFERROR(IF(Settings!$L$5="Mixed (Standard)",(RANK(AQ61,$AQ$2:$AQ$999,1)/('Guts-2'!$N$1+1))+1,(RANK(AR61,$AR$2:$AR$999,1)/('Guts-2'!$N$1+1))+1),"") ->  | AT61: =IFERROR(CHOOSE('Guts-2'!$D$26,H61,K61,N61,Q61,T61,W61,Z61,AC61,AY61),"") ->  | AU61: =IFERROR(CHOOSE('Guts-2'!$D$26,I61,L61,O61,R61,U61,X61,AA61,AD61,AZ61),"") ->  | AX61: =INDEX('Import (ADP)'!$C$2:$C$999,MATCH(A61, 'Import (ADP)'!$B$2:$B$999,0)) ->  | BA61: =IF(VLOOKUP(A62,'Name-Sort'!$D$2:$E$999,2,FALSE)="",A62,"") -> Cody Bellinger | BB61: =IFERROR(INDEX($BA$1:$BA$999,SMALL(IF($BA$1:$BA$999<>"",ROW($BA$1:$BA$999)),ROW(BA61))),"") -> Cody Bellinger
A62: Cody Bellinger | B62: bellico01 | C62: 1B | D62: LF | E62: LAD | F62: 22 | G62: 23 | H62: 7 | I62: 49 | J62: 28 | K62: 7 | L62: 49 | M62: 35.14 | N62: 17 | O62: 49 | P62: 28 | Q62: 7 | R62: 49 | V62: 25.5 | W62: 7 | X62: 49 | Y62: 24.46 | Z62: 7 | AA62: 39 | AB62: 27.35 | AC62: 7 | AD62: 49 | AE62: 27 | AF62: 33 | AH62: 27 | AI62: 23 | AL62: 24 | AN62: =IFERROR(INDEX('Guts-2'!$K$1:$K$30,MATCH(E62,'Guts-2'!$J$1:$J$30,0)),TRUE) -> TRUE | AO62: =IF(AN62=FALSE,"",IFERROR(CHOOSE('Guts-2'!$D$27,AE62,AF62,AG62,AH62,AI62,AJ62,AK62,AL62,AM62),"")) -> 27 | AP62: 27 | AQ62: =IF(AN62=FALSE,"",IFERROR(CHOOSE('Guts-2'!$D$26,G62,J62,M62,P62,S62,V62,Y62,AB62,AX62),"")) -> 35.14 | AR62: 36 | AS62: =IFERROR(IF(Settings!$L$5="Mixed (Standard)",(RANK(AQ62,$AQ$2:$AQ$999,1)/('Guts-2'!$N$1+1))+1,(RANK(AR62,$AR$2:$AR$999,1)/('Guts-2'!$N$1+1))+1),"") -> 3.769230769 | AT62: =IFERROR(CHOOSE('Guts-2'!$D$26,H62,K62,N62,Q62,T62,W62,Z62,AC62,AY62),"") -> 17 | AU62: =IFERROR(CHOOSE('Guts-2'!$D$26,I62,L62,O62,R62,U62,X62,AA62,AD62,AZ62),"") -> 49 | AV62: 17 | AW62: 49 | AX62: =INDEX('Import (ADP)'!$C$2:$C$999,MATCH(A62, 'Import (ADP)'!$B$2:$B$999,0)) ->  | BA62: =IF(VLOOKUP(A63,'Name-Sort'!$D$2:$E$999,2,FALSE)="",A63,"") -> Josh Bell | BB62: =IFERROR(INDEX($BA$1:$BA$999,SMALL(IF($BA$1:$BA$999<>"",ROW($BA$1:$BA$999)),ROW(BA62))),"") -> Josh Bell
A63: Josh Bell | B63: belljo02 | C63: 1B | E63: PIT | F63: 25 | G63: 167 | H63: 90 | I63: 251 | J63: 209 | K63: 90 | L63: 278 | M63: 154.82 | N63: 90 | O63: 208 | P63: 148 | Q63: 90 | R63: 251 | V63: 174.3 | W63: 90 | X63: 251 | Y63: 183.93 | Z63: 108 | AA63: 251 | AB63: 172.8416667 | AC63: 90 | AD63: 251 | AE63: 106 | AF63: 161 | AH63: 132 | AI63: 118 | AL63: 135 | AN63: =IFERROR(INDEX('Guts-2'!$K$1:$K$30,MATCH(E63,'Guts-2'!$J$1:$J$30,0)),TRUE) -> TRUE | AO63: =IF(AN63=FALSE,"",IFERROR(CHOOSE('Guts-2'!$D$27,AE63,AF63,AG63,AH63,AI63,AJ63,AK63,AL63,AM63),"")) -> 132 | AP63: 132 | AQ63: =IF(AN63=FALSE,"",IFERROR(CHOOSE('Guts-2'!$D$26,G63,J63,M63,P63,S63,V63,Y63,AB63,AX63),"")) -> 154.82 | AR63: 165 | AS63: =IFERROR(IF(Settings!$L$5="Mixed (Standard)",(RANK(AQ63,$AQ$2:$AQ$999,1)/('Guts-2'!$N$1+1))+1,(RANK(AR63,$AR$2:$AR$999,1)/('Guts-2'!$N$1+1))+1),"") -> 13.69230769 | AT63: =IFERROR(CHOOSE('Guts-2'!$D$26,H63,K63,N63,Q63,T63,W63,Z63,AC63,AY63),"") -> 90 | AU63: =IFERROR(CHOOSE('Guts-2'!$D$26,I63,L63,O63,R63,U63,X63,AA63,AD63,AZ63),"") -> 208 | AV63: 90 | AW63: 208 | AX63: =INDEX('Import (ADP)'!$C$2:$C$999,MATCH(A63, 'Import (ADP)'!$B$2:$B$999,0)) ->  | BA63: =IF(VLOOKUP(A64,'Name-Sort'!$D$2:$E$999,2,FALSE)="",A64,"") -> Brandon Belt | BB63: =IFERROR(INDEX($BA$1:$BA$999,SMALL(IF($BA$1:$BA$999<>"",ROW($BA$1:$BA$999)),ROW(BA63))),"") -> Brandon Belt
A64: Brandon Belt | B64: beltbr01 | C64: 1B | D64: LF | E64: SF | F64: 29 | G64: 290 | H64: 21 | I64: 386 | J64: 388 | K64: 21 | L64: 517 | M64: 206.1 | N64: 21 | O64: 365 | P64: 273 | Q64: 21 | R64: 374 | V64: 317 | W64: 21 | X64: 422 | Y64: 303.63 | Z64: 217 | AA64: 374 | AB64: 296.2883333 | AC64: 21 | AD64: 395 | AE64: 227 | AF64: 253 | AH64: 188 | AI64: 204 | AL64: 229 | AN64: =IFERROR(INDEX('Guts-2'!$K$1:$K$30,MATCH(E64,'Guts-2'!$J$1:$J$30,0)),TRUE) -> TRUE | AO64: =IF(AN64=FALSE,"",IFERROR(CHOOSE('Guts-2'!$D$27,AE64,AF64,AG64,AH64,AI64,AJ64,AK64,AL64,AM64),"")) -> 188 | AP64: 188 | AQ64: =IF(AN64=FALSE,"",IFERROR(CHOOSE('Guts-2'!$D$26,G64,J64,M64,P64,S64,V64,Y64,AB64,AX64),"")) -> 206.1 | AR64: 254 | AS64: =IFERROR(IF(Settings!$L$5="Mixed (Standard)",(RANK(AQ64,$AQ$2:$AQ$999,1)/('Guts-2'!$N$1+1))+1,(RANK(AR64,$AR$2:$AR$999,1)/('Guts-2'!$N$1+1))+1),"") -> 20.53846154 | AT64: =IFERROR(CHOOSE('Guts-2'!$D$26,H64,K64,N64,Q64,T64,W64,Z64,AC64,AY64),"") -> 21 | AU64: =IFERROR(CHOOSE('Guts-2'!$D$26,I64,L64,O64,R64,U64,X64,AA64,AD64,AZ64),"") -> 365 | AV64: 21 | AW64: 365 | AX64: =INDEX('Import (ADP)'!$C$2:$C$999,MATCH(A64, 'Import (ADP)'!$B$2:$B$999,0)) ->  | BA64: =IF(VLOOKUP(A65,'Name-Sort'!$D$2:$E$999,2,FALSE)="",A65,"") -> Adrian Beltre | BB64: =IFERROR(INDEX($BA$1:$BA$999,SMALL(IF($BA$1:$BA$999<>"",ROW($BA$1:$BA$999)),ROW(BA64))),"") -> Adrian Beltre
A65: Adrian Beltre | B65: beltrad01 | C65: 3B | E65: TEX | F65: 38 | G65: 157 | H65: 87 | I65: 274 | J65: 104 | K65: 69 | L65: 274 | M65: 158 | N65: 87 | O65: 274 | P65: 129 | Q65: 86 | R65: 274 | V65: 143.5 | W65: 87 | X65: 274 | Y65: 157.88 | Z65: 115 | AA65: 250 | AB65: 141.5633333 | AC65: 87 | AD65: 274 | AE65: 95 | AF65: 98 | AH65: 160 | AI65: 78 | AL65: 89 | AN65: =IFERROR(INDEX('Guts-2'!$K$1:$K$30,MATCH(E65,'Guts-2'!$J$1:$J$30,0)),TRUE) -> TRUE | AO65: =IF(AN65=FALSE,"",IFERROR(CHOOSE('Guts-2'!$D$27,AE65,AF65,AG65,AH65,AI65,AJ65,AK65,AL65,AM65),"")) -> 160 | AP65: 160 | AQ65: =IF(AN65=FALSE,"",IFERROR(CHOOSE('Guts-2'!$D$26,G65,J65,M65,P65,S65,V65,Y65,AB65,AX65),"")) -> 158 | AR65: 169 | AS65: =IFERROR(IF(Settings!$L$5="Mixed (Standard)",(RANK(AQ65,$AQ$2:$AQ$999,1)/('Guts-2'!$N$1+1))+1,(RANK(AR65,$AR$2:$AR$999,1)/('Guts-2'!$N$1+1))+1),"") -> 14 | AT65: =IFERROR(CHOOSE('Guts-2'!$D$26,H65,K65,N65,Q65,T65,W65,Z65,AC65,AY65),"") -> 87 | AU65: =IFERROR(CHOOSE('Guts-2'!$D$26,I65,L65,O65,R65,U65,X65,AA65,AD65,AZ65),"") -> 274 | AV65: 87 | AW65: 274 | AX65: =INDEX('Import (ADP)'!$C$2:$C$999,MATCH(A65, 'Import (ADP)'!$B$2:$B$999,0)) ->  | BA65: =IF(VLOOKUP(A66,'Name-Sort'!$D$2:$E$999,2,FALSE)="",A66,"") -> Andrew Benintendi | BB65: =IFERROR(INDEX($BA$1:$BA$999,SMALL(IF($BA$1:$BA$999<>"",ROW($BA$1:$BA$999)),ROW(BA65))),"") -> Andrew Benintendi
A66: Andrew Benintendi | B66: beninan01 | C66: OF | D66: LF,CF | E66: BOS | F66: 23 | G66: 39 | H66: 23 | I66: 66 | J66: 43 | K66: 23 | L66: 66 | M66: 49 | N66: 23 | O66: 60 | P66: 48 | Q66: 23 | R66: 66 | V66: 42 | W66: 23 | X66: 66 | Y66: 41.36 | Z66: 23 | AA66: 66 | AB66: 43.72666667 | AC66: 23 | AD66: 66 | AE66: 38 | AF66: 43 | AH66: 41 | AI66: 35 | AL66: 41 | AN66: =IFERROR(INDEX('Guts-2'!$K$1:$K$30,MATCH(E66,'Guts-2'!$J$1:$J$30,0)),TRUE) -> TRUE | AO66: =IF(AN66=FALSE,"",IFERROR(CHOOSE('Guts-2'!$D$27,AE66,AF66,AG66,AH66,AI66,AJ66,AK66,AL66,AM66),"")) -> 41 | AP66: =IFERROR(RANK(AO66,$AO$2:$AO$999,1),"") -> 41 | AQ66: =IF(AN66=FALSE,"",IFERROR(CHOOSE('Guts-2'!$D$26,G66,J66,M66,P66,S66,V66,Y66,AB66,AX66),"")) -> 49 | AR66: =IFERROR(RANK(AQ66,$AQ$2:$AQ$999,1),"") -> 47 | AS66: =IFERROR(IF(Settings!$L$5="Mixed (Standard)",(RANK(AQ66,$AQ$2:$AQ$999,1)/('Guts-2'!$N$1+1))+1,(RANK(AR66,$AR$2:$AR$999,1)/('Guts-2'!$N$1+1))+1),"") -> 4.615384615 | AT66: =IFERROR(CHOOSE('Guts-2'!$D$26,H66,K66,N66,Q66,T66,W66,Z66,AC66,AY66),"") -> 23 | AU66: =IFERROR(CHOOSE('Guts-2'!$D$26,I66,L66,O66,R66,U66,X66,AA66,AD66,AZ66),"") -> 60 | AV66: 23 | AW66: 60 | AX66: =INDEX('Import (ADP)'!$C$2:$C$999,MATCH(A66, 'Import (ADP)'!$B$2:$B$999,0)) ->  | BA66: =IF(VLOOKUP(A67,'Name-Sort'!$D$2:$E$999,2,FALSE)="",A67,"") -> Jose Berrios | BB66: =IFERROR(INDEX($BA$1:$BA$999,SMALL(IF($BA$1:$BA$999<>"",ROW($BA$1:$BA$999)),ROW(BA66))),"") -> Jose Berrios
A67: Jose Berrios | B67: berrijo01 | C67: SP | E67: MIN | F67: 23 | G67: 94 | H67: 62 | I67: 228 | J67: 101 | K67: 62 | L67: 228 | M67: 98.38 | N67: 62 | O67: 122 | P67: 110 | Q67: 62 | R67: 228 | V67: 100.7 | W67: 62 | X67: 228 | Y67: 108.15 | Z67: 63 | AA67: 228 | AB67: 102.0383333 | AC67: 62 | AD67: 228 | AE67: 158 | AF67: 97 | AH67: 214 | AI67: 119 | AL67: 124 | AN67: =IFERROR(INDEX('Guts-2'!$K$1:$K$30,MATCH(E67,'Guts-2'!$J$1:$J$30,0)),TRUE) -> TRUE | AO67: =IF(AN67=FALSE,"",IFERROR(CHOOSE('Guts-2'!$D$27,AE67,AF67,AG67,AH67,AI67,AJ67,AK67,AL67,AM67),"")) -> 214 | AP67: 214 | AQ67: =IF(AN67=FALSE,"",IFERROR(CHOOSE('Guts-2'!$D$26,G67,J67,M67,P67,S67,V67,Y67,AB67,AX67),"")) -> 98.38 | AR67: 95 | AS67: =IFERROR(IF(Settings!$L$5="Mixed (Standard)",(RANK(AQ67,$AQ$2:$AQ$999,1)/('Guts-2'!$N$1+1))+1,(RANK(AR67,$AR$2:$AR$999,1)/('Guts-2'!$N$1+1))+1),"") -> 8.307692308 | AT67: =IFERROR(CHOOSE('Guts-2'!$D$26,H67,K67,N67,Q67,T67,W67,Z67,AC67,AY67),"") -> 62 | AU67: =IFERROR(CHOOSE('Guts-2'!$D$26,I67,L67,O67,R67,U67,X67,AA67,AD67,AZ67),"") -> 122 | AV67: =IFERROR(IF(AN67=TRUE,IF((AT67-COUNTIFS($AT$2:$AT$999,"<"&AT67,$AN$2:$AN$999,FALSE))<1,1,AT67-COUNTIFS($AT$2:$AT$999,"<"&AT67,$AN$2:$AN$999,FALSE)),""),"") -> 62 | AW67: =IFERROR(IF(AN67=FALSE,"",IF((AU67-COUNTIFS($AU$2:$AU$999,"<"&AU67,$AN$2:$AN$999,FALSE))<1,1,AU67-COUNTIFS($AU$2:$AU$999,"<"&AU67,$AN$2:$AN$999,FALSE))),"") -> 122 | AX67: =INDEX('Import (ADP)'!$C$2:$C$999,MATCH(A67, 'Import (ADP)'!$B$2:$B$999,0)) ->  | AY67: =IFERROR(MIN(N67,Z67,ROUND(AX67*0.75,0)),ROUND(AX67*0.75,0)) ->  | AZ67: =IFERROR(MAX(O67,AA67,ROUND(AX67*1.25,0)),ROUND(AY67*1.25,0)) ->  | BA67: =IF(VLOOKUP(A68,'Name-Sort'!$D$2:$E$999,2,FALSE)="",A68,"") -> Dellin Betances | BB67: =IFERROR(INDEX($BA$1:$BA$999,SMALL(IF($BA$1:$BA$999<>"",ROW($BA$1:$BA$999)),ROW(BA67))),"") -> Dellin Betances
A68: Dellin Betances | B68: betande01 | C68: RP | E68: NYY | F68: 30 | G68: 254 | H68: 168 | I68: 689 | J68: 192 | K68: 127 | L68: 689 | M68: 414.75 | N68: 230 | O68: 689 | P68: 250 | Q68: 165 | R68: 689 | V68: 249.2 | W68: 165 | X68: 689 | Y68: 276.89 | Z68: 171 | AA68: 401 | AB68: 272.8066667 | AC68: 171 | AD68: 689 | AE68: 222 | AF68: 244 | AL68: 246 | AN68: =IFERROR(INDEX('Guts-2'!$K$1:$K$30,MATCH(E68,'Guts-2'!$J$1:$J$30,0)),TRUE) -> TRUE | AO68: =IF(AN68=FALSE,"",IFERROR(CHOOSE('Guts-2'!$D$27,AE68,AF68,AG68,AH68,AI68,AJ68,AK68,AL68,AM68),"")) ->  | AQ68: =IF(AN68=FALSE,"",IFERROR(CHOOSE('Guts-2'!$D$26,G68,J68,M68,P68,S68,V68,Y68,AB68,AX68),"")) -> 414.75 | AR68: 413 | AS68: =IFERROR(IF(Settings!$L$5="Mixed (Standard)",(RANK(AQ68,$AQ$2:$AQ$999,1)/('Guts-2'!$N$1+1))+1,(RANK(AR68,$AR$2:$AR$999,1)/('Guts-2'!$N$1+1))+1),"") -> 32.76923077 | AT68: =IFERROR(CHOOSE('Guts-2'!$D$26,H68,K68,N68,Q68,T68,W68,Z68,AC68,AY68),"") -> 230 | AU68: =IFERROR(CHOOSE('Guts-2'!$D$26,I68,L68,O68,R68,U68,X68,AA68,AD68,AZ68),"") -> 689 | AV68: 230 | AW68: 689 | AX68: =INDEX('Import (ADP)'!$C$2:$C$999,MATCH(A68, 'Import (ADP)'!$B$2:$B$999,0)) ->  | BA68: =IF(VLOOKUP(A69,'Name-Sort'!$D$2:$E$999,2,FALSE)="",A69,"") -> Chad Bettis | BB68: =IFERROR(INDEX($BA$1:$BA$999,SMALL(IF($BA$1:$BA$999<>"",ROW($BA$1:$BA$999)),ROW(BA68))),"") -> Chad Bettis
A69: Chad Bettis | B69: bettich01 | C69: SP | E69: COL | F69: 28 | G69: 825 | H69: 420 | I69: 1098 | V69: 779 | W69: 420 | X69: 1037 | Y69: 645.77 | Z69: 420 | AA69: 747 | AB69: 749.9233333 | AC69: 420 | AD69: 998 | AN69: =IFERROR(INDEX('Guts-2'!$K$1:$K$30,MATCH(E69,'Guts-2'!$J$1:$J$30,0)),TRUE) -> TRUE | AO69: =IF(AN69=FALSE,"",IFERROR(CHOOSE('Guts-2'!$D$27,AE69,AF69,AG69,AH69,AI69,AJ69,AK69,AL69,AM69),"")) ->  | AQ69: =IF(AN69=FALSE,"",IFERROR(CHOOSE('Guts-2'!$D$26,G69,J69,M69,P69,S69,V69,Y69,AB69,AX69),"")) ->  | AS69: =IFERROR(IF(Settings!$L$5="Mixed (Standard)",(RANK(AQ69,$AQ$2:$AQ$999,1)/('Guts-2'!$N$1+1))+1,(RANK(AR69,$AR$2:$AR$999,1)/('Guts-2'!$N$1+1))+1),"") ->  | AT69: =IFERROR(CHOOSE('Guts-2'!$D$26,H69,K69,N69,Q69,T69,W69,Z69,AC69,AY69),"") ->  | AU69: =IFERROR(CHOOSE('Guts-2'!$D$26,I69,L69,O69,R69,U69,X69,AA69,AD69,AZ69),"") ->  | AX69: =INDEX('Import (ADP)'!$C$2:$C$999,MATCH(A69, 'Import (ADP)'!$B$2:$B$999,0)) ->  | BA69: =IF(VLOOKUP(A70,'Name-Sort'!$D$2:$E$999,2,FALSE)="",A70,"") -> Mookie Betts | BB69: =IFERROR(INDEX($BA$1:$BA$999,SMALL(IF($BA$1:$BA$999<>"",ROW($BA$1:$BA$999)),ROW(BA69))),"") -> Mookie Betts
A70: Mookie Betts | B70: bettsmo01 | C70: OF | D70: RF | E70: BOS | F70: 25 | G70: 9 | H70: 3 | I70: 16 | J70: 7 | K70: 3 | L70: 16 | M70: 9.04 | N70: 4 | O70: 16 | P70: 5 | Q70: 3 | R70: 16 | V70: 7.7 | W70: 3 | X70: 16 | Y70: 8.15 | Z70: 3 | AA70: 15 | AB70: 7.648333333 | AC70: 3 | AD70: 16 | AE70: 6 | AF70: 7 | AH70: 7 | AI70: 3 | AL70: 7 | AN70: =IFERROR(INDEX('Guts-2'!$K$1:$K$30,MATCH(E70,'Guts-2'!$J$1:$J$30,0)),TRUE) -> TRUE | AO70: =IF(AN70=FALSE,"",IFERROR(CHOOSE('Guts-2'!$D$27,AE70,AF70,AG70,AH70,AI70,AJ70,AK70,AL70,AM70),"")) -> 7 | AP70: 7 | AQ70: =IF(AN70=FALSE,"",IFERROR(CHOOSE('Guts-2'!$D$26,G70,J70,M70,P70,S70,V70,Y70,AB70,AX70),"")) -> 9.04 | AR70: 8 | AS70: =IFERROR(IF(Settings!$L$5="Mixed (Standard)",(RANK(AQ70,$AQ$2:$AQ$999,1)/('Guts-2'!$N$1+1))+1,(RANK(AR70,$AR$2:$AR$999,1)/('Guts-2'!$N$1+1))+1),"") -> 1.615384615 | AT70: =IFERROR(CHOOSE('Guts-2'!$D$26,H70,K70,N70,Q70,T70,W70,Z70,AC70,AY70),"") -> 4 | AU70: =IFERROR(CHOOSE('Guts-2'!$D$26,I70,L70,O70,R70,U70,X70,AA70,AD70,AZ70),"") -> 16 | AV70: 4 | AW70: 16 | AX70: =INDEX('Import (ADP)'!$C$2:$C$999,MATCH(A70, 'Import (ADP)'!$B$2:$B$999,0)) -> 8.8 | AY70: 3 | AZ70: 16 | BA70: =IF(VLOOKUP(A71,'Name-Sort'!$D$2:$E$999,2,FALSE)="",A71,"") -> Joe Biagini | BB70: =IFERROR(INDEX($BA$1:$BA$999,SMALL(IF($BA$1:$BA$999<>"",ROW($BA$1:$BA$999)),ROW(BA70))),"") -> Joe Biagini
A71: Joe Biagini | B71: biagijo01 | C71: SP | E71: TOR | F71: 27 | G71: 591 | H71: 391 | I71: 787 | V71: 606 | W71: 400 | X71: 806 | Y71: 596 | Z71: 411 | AA71: 749 | AB71: 597.6666667 | AC71: 395 | AD71: 795 | AL71: 548 | AN71: =IFERROR(INDEX('Guts-2'!$K$1:$K$30,MATCH(E71,'Guts-2'!$J$1:$J$30,0)),TRUE) -> TRUE | AO71: =IF(AN71=FALSE,"",IFERROR(CHOOSE('Guts-2'!$D$27,AE71,AF71,AG71,AH71,AI71,AJ71,AK71,AL71,AM71),"")) ->  | AQ71: =IF(AN71=FALSE,"",IFERROR(CHOOSE('Guts-2'!$D$26,G71,J71,M71,P71,S71,V71,Y71,AB71,AX71),"")) ->  | AS71: =IFERROR(IF(Settings!$L$5="Mixed (Standard)",(RANK(AQ71,$AQ$2:$AQ$999,1)/('Guts-2'!$N$1+1))+1,(RANK(AR71,$AR$2:$AR$999,1)/('Guts-2'!$N$1+1))+1),"") ->  | AT71: =IFERROR(CHOOSE('Guts-2'!$D$26,H71,K71,N71,Q71,T71,W71,Z71,AC71,AY71),"") ->  | AU71: =IFERROR(CHOOSE('Guts-2'!$D$26,I71,L71,O71,R71,U71,X71,AA71,AD71,AZ71),"") ->  | AX71: =INDEX('Import (ADP)'!$C$2:$C$999,MATCH(A71, 'Import (ADP)'!$B$2:$B$999,0)) ->  | BA71: =IF(VLOOKUP(A72,'Name-Sort'!$D$2:$E$999,2,FALSE)="",A72,"") -> Greg Bird | BB71: =IFERROR(INDEX($BA$1:$BA$999,SMALL(IF($BA$1:$BA$999<>"",ROW($BA$1:$BA$999)),ROW(BA71))),"") -> Greg Bird
A72: Greg Bird | B72: birdgr01 | C72: 1B | E72: NYY | F72: 25 | G72: 149 | H72: 89 | I72: 228 | J72: 165 | K72: 89 | L72: 228 | M72: 151.92 | N72: 89 | O72: 193 | P72: 147 | Q72: 89 | R72: 228 | V72: 159.2 | W72: 89 | X72: 228 | Y72: 150.58 | Z72: 100 | AA72: 228 | AB72: 153.7833333 | AC72: 89 | AD72: 228 | AF72: 142 | AH72: 195 | AI72: 131 | AL72: 140 | AN72: =IFERROR(INDEX('Guts-2'!$K$1:$K$30,MATCH(E72,'Guts-2'!$J$1:$J$30,0)),TRUE) -> TRUE | AO72: =IF(AN72=FALSE,"",IFERROR(CHOOSE('Guts-2'!$D$27,AE72,AF72,AG72,AH72,AI72,AJ72,AK72,AL72,AM72),"")) -> 195 | AP72: 195 | AQ72: =IF(AN72=FALSE,"",IFERROR(CHOOSE('Guts-2'!$D$26,G72,J72,M72,P72,S72,V72,Y72,AB72,AX72),"")) -> 151.92 | AR72: 159 | AS72: =IFERROR(IF(Settings!$L$5="Mixed (Standard)",(RANK(AQ72,$AQ$2:$AQ$999,1)/('Guts-2'!$N$1+1))+1,(RANK(AR72,$AR$2:$AR$999,1)/('Guts-2'!$N$1+1))+1),"") -> 13.23076923 | AT72: =IFERROR(CHOOSE('Guts-2'!$D$26,H72,K72,N72,Q72,T72,W72,Z72,AC72,AY72),"") -> 89 | AU72: =IFERROR(CHOOSE('Guts-2'!$D$26,I72,L72,O72,R72,U72,X72,AA72,AD72,AZ72),"") -> 193 | AV72: 89 | AW72: 193 | AX72: =INDEX('Import (ADP)'!$C$2:$C$999,MATCH(A72, 'Import (ADP)'!$B$2:$B$999,0)) ->  | BA72: =IF(VLOOKUP(A73,'Name-Sort'!$D$2:$E$999,2,FALSE)="",A73,"") -> Ty Blach | BB72: =IFERROR(INDEX($BA$1:$BA$999,SMALL(IF($BA$1:$BA$999<>"",ROW($BA$1:$BA$999)),ROW(BA72))),"") -> Ty Blach
A73: Ty Blach | B73: blachty01 | C73: SP | E73: SF | F73: 27 | G73: 749 | H73: 131 | I73: 997 | M73: 174.67 | N73: 131 | O73: 279 | V73: 667 | W73: 131 | X73: 888 | Y73: 657.43 | Z73: 414 | AA73: 750 | AB73: 562.025 | AC73: 131 | AD73: 750 | AN73: =IFERROR(INDEX('Guts-2'!$K$1:$K$30,MATCH(E73,'Guts-2'!$J$1:$J$30,0)),TRUE) -> TRUE | AO73: =IF(AN73=FALSE,"",IFERROR(CHOOSE('Guts-2'!$D$27,AE73,AF73,AG73,AH73,AI73,AJ73,AK73,AL73,AM73),"")) ->  | AQ73: =IF(AN73=FALSE,"",IFERROR(CHOOSE('Guts-2'!$D$26,G73,J73,M73,P73,S73,V73,Y73,AB73,AX73),"")) -> 174.67 | AR73: 197 | AS73: =IFERROR(IF(Settings!$L$5="Mixed (Standard)",(RANK(AQ73,$AQ$2:$AQ$999,1)/('Guts-2'!$N$1+1))+1,(RANK(AR73,$AR$2:$AR$999,1)/('Guts-2'!$N$1+1))+1),"") -> 16.15384615 | AT73: =IFERROR(CHOOSE('Guts-2'!$D$26,H73,K73,N73,Q73,T73,W73,Z73,AC73,AY73),"") -> 131 | AU73: =IFERROR(CHOOSE('Guts-2'!$D$26,I73,L73,O73,R73,U73,X73,AA73,AD73,AZ73),"") -> 279 | AV73: 131 | AW73: 279 | AX73: =INDEX('Import (ADP)'!$C$2:$C$999,MATCH(A73, 'Import (ADP)'!$B$2:$B$999,0)) ->  | BA73: =IF(VLOOKUP(A74,'Name-Sort'!$D$2:$E$999,2,FALSE)="",A74,"") -> Charlie Blackmon | BB73: =IFERROR(INDEX($BA$1:$BA$999,SMALL(IF($BA$1:$BA$999<>"",ROW($BA$1:$BA$999)),ROW(BA73))),"") -> Charlie Blackmon
A74: Charlie Blackmon | B74: blackch02 | C74: OF | D74: CF | E74: COL | F74: 31 | G74: 8 | H74: 2 | I74: 19 | J74: 10 | K74: 2 | L74: 19 | M74: 10.3 | N74: 4 | O74: 18 | P74: 10 | Q74: 2 | R74: 19 | V74: 8.7 | W74: 2 | X74: 19 | Y74: 8.08 | Z74: 2 | AA74: 19 | AB74: 9.18 | AC74: 2 | AD74: 19 | AE74: 7 | AF74: 4 | AH74: 9 | AI74: 5 | AL74: 8 | AN74: =IFERROR(INDEX('Guts-2'!$K$1:$K$30,MATCH(E74,'Guts-2'!$J$1:$J$30,0)),TRUE) -> TRUE | AO74: =IF(AN74=FALSE,"",IFERROR(CHOOSE('Guts-2'!$D$27,AE74,AF74,AG74,AH74,AI74,AJ74,AK74,AL74,AM74),"")) -> 9 | AP74: 9 | AQ74: =IF(AN74=FALSE,"",IFERROR(CHOOSE('Guts-2'!$D$26,G74,J74,M74,P74,S74,V74,Y74,AB74,AX74),"")) -> 10.3 | AR74: 11 | AS74: =IFERROR(IF(Settings!$L$5="Mixed (Standard)",(RANK(AQ74,$AQ$2:$AQ$999,1)/('Guts-2'!$N$1+1))+1,(RANK(AR74,$AR$2:$AR$999,1)/('Guts-2'!$N$1+1))+1),"") -> 1.846153846 | AT74: =IFERROR(CHOOSE('Guts-2'!$D$26,H74,K74,N74,Q74,T74,W74,Z74,AC74,AY74),"") -> 4 | AU74: =IFERROR(CHOOSE('Guts-2'!$D$26,I74,L74,O74,R74,U74,X74,AA74,AD74,AZ74),"") -> 18 | AV74: 4 | AW74: 18 | AX74: =INDEX('Import (ADP)'!$C$2:$C$999,MATCH(A74, 'Import (ADP)'!$B$2:$B$999,0)) -> 9.5 | AY74: 2 | AZ74: 19 | BA74: =IF(VLOOKUP(A75,'Name-Sort'!$D$2:$E$999,2,FALSE)="",A75,"") -> Paul Blackburn | BB74: =IFERROR(INDEX($BA$1:$BA$999,SMALL(IF($BA$1:$BA$999<>"",ROW($BA$1:$BA$999)),ROW(BA74))),"") -> Paul Blackburn
A75: Paul Blackburn | B75: blackpa01 | C75: SP | E75: OAK | F75: 24 | Y75: 689.32 | Z75: 613 | AA75: 748 | AB75: 689.32 | AC75: 455 | AD75: 917 | AN75: =IFERROR(INDEX('Guts-2'!$K$1:$K$30,MATCH(E75,'Guts-2'!$J$1:$J$30,0)),TRUE) -> TRUE | AO75: =IF(AN75=FALSE,"",IFERROR(CHOOSE('Guts-2'!$D$27,AE75,AF75,AG75,AH75,AI75,AJ75,AK75,AL75,AM75),"")) ->  | AQ75: =IF(AN75=FALSE,"",IFERROR(CHOOSE('Guts-2'!$D$26,G75,J75,M75,P75,S75,V75,Y75,AB75,AX75),"")) ->  | AS75: =IFERROR(IF(Settings!$L$5="Mixed (Standard)",(RANK(AQ75,$AQ$2:$AQ$999,1)/('Guts-2'!$N$1+1))+1,(RANK(AR75,$AR$2:$AR$999,1)/('Guts-2'!$N$1+1))+1),"") ->  | AT75: =IFERROR(CHOOSE('Guts-2'!$D$26,H75,K75,N75,Q75,T75,W75,Z75,AC75,AY75),"") ->  | AU75: =IFERROR(CHOOSE('Guts-2'!$D$26,I75,L75,O75,R75,U75,X75,AA75,AD75,AZ75),"") ->  | AX75: =INDEX('Import (ADP)'!$C$2:$C$999,MATCH(A75, 'Import (ADP)'!$B$2:$B$999,0)) ->  | BA75: =IF(VLOOKUP(A76,'Name-Sort'!$D$2:$E$999,2,FALSE)="",A76,"") -> Jabari Blash | BB75: =IFERROR(INDEX($BA$1:$BA$999,SMALL(IF($BA$1:$BA$999<>"",ROW($BA$1:$BA$999)),ROW(BA75))),"") -> Jabari Blash
A76: Jabari Blash | B76: blashja01 | C76: OF | D76: LF,RF | E76: NYY | F76: 28 | G76: 940 | H76: 621 | I76: 1251 | V76: 968 | W76: 639 | X76: 1288 | Y76: 706.13 | Z76: 681 | AA76: 734 | AB76: 871.3766667 | AC76: 576 | AD76: 1159 | AN76: =IFERROR(INDEX('Guts-2'!$K$1:$K$30,MATCH(E76,'Guts-2'!$J$1:$J$30,0)),TRUE) -> TRUE | AO76: =IF(AN76=FALSE,"",IFERROR(CHOOSE('Guts-2'!$D$27,AE76,AF76,AG76,AH76,AI76,AJ76,AK76,AL76,AM76),"")) ->  | AQ76: =IF(AN76=FALSE,"",IFERROR(CHOOSE('Guts-2'!$D$26,G76,J76,M76,P76,S76,V76,Y76,AB76,AX76),"")) ->  | AS76: =IFERROR(IF(Settings!$L$5="Mixed (Standard)",(RANK(AQ76,$AQ$2:$AQ$999,1)/('Guts-2'!$N$1+1))+1,(RANK(AR76,$AR$2:$AR$999,1)/('Guts-2'!$N$1+1))+1),"") ->  | AT76: =IFERROR(CHOOSE('Guts-2'!$D$26,H76,K76,N76,Q76,T76,W76,Z76,AC76,AY76),"") ->  | AU76: =IFERROR(CHOOSE('Guts-2'!$D$26,I76,L76,O76,R76,U76,X76,AA76,AD76,AZ76),"") ->  | AX76: =INDEX('Import (ADP)'!$C$2:$C$999,MATCH(A76, 'Import (ADP)'!$B$2:$B$999,0)) ->  | BA76: =IF(VLOOKUP(A77,'Name-Sort'!$D$2:$E$999,2,FALSE)="",A77,"") -> Jerry Blevins | BB76: =IFERROR(INDEX($BA$1:$BA$999,SMALL(IF($BA$1:$BA$999<>"",ROW($BA$1:$BA$999)),ROW(BA76))),"") -> Jerry Blevins
A77: Jerry Blevins | B77: blevije01 | C77: RP | E77: NYM | F77: 34 | G77: 827 | H77: 546 | I77: 1100 | V77: 826 | W77: 546 | X77: 1099 | Y77: 675.86 | Z77: 562 | AA77: 741 | AB77: 776.2866667 | AC77: 513 | AD77: 1033 | AL77: 403 | AN77: =IFERROR(INDEX('Guts-2'!$K$1:$K$30,MATCH(E77,'Guts-2'!$J$1:$J$30,0)),TRUE) -> TRUE | AO77: =IF(AN77=FALSE,"",IFERROR(CHOOSE('Guts-2'!$D$27,AE77,AF77,AG77,AH77,AI77,AJ77,AK77,AL77,AM77),"")) ->  | AQ77: =IF(AN77=FALSE,"",IFERROR(CHOOSE('Guts-2'!$D$26,G77,J77,M77,P77,S77,V77,Y77,AB77,AX77),"")) ->  | AS77: =IFERROR(IF(Settings!$L$5="Mixed (Standard)",(RANK(AQ77,$AQ$2:$AQ$999,1)/('Guts-2'!$N$1+1))+1,(RANK(AR77,$AR$2:$AR$999,1)/('Guts-2'!$N$1+1))+1),"") ->  | AT77: =IFERROR(CHOOSE('Guts-2'!$D$26,H77,K77,N77,Q77,T77,W77,Z77,AC77,AY77),"") ->  | AU77: =IFERROR(CHOOSE('Guts-2'!$D$26,I77,L77,O77,R77,U77,X77,AA77,AD77,AZ77),"") ->  | AX77: =INDEX('Import (ADP)'!$C$2:$C$999,MATCH(A77, 'Import (ADP)'!$B$2:$B$999,0)) ->  | BA77: =IF(VLOOKUP(A78,'Name-Sort'!$D$2:$E$999,2,FALSE)="",A78,"") -> Xander Bogaerts | BB77: =IFERROR(INDEX($BA$1:$BA$999,SMALL(IF($BA$1:$BA$999<>"",ROW($BA$1:$BA$999)),ROW(BA77))),"") -> Xander Bogaerts
A78: Xander Bogaerts | B78: bogaexa01 | C78: SS | E78: BOS | F78: 25 | G78: 77 | H78: 41 | I78: 130 | J78: 68 | K78: 41 | L78: 130 | M78: 71.96 | N78: 41 | O78: 94 | P78: 71 | Q78: 41 | R78: 130 | V78: 73.7 | W78: 41 | X78: 130 | Y78: 84.54 | Z78: 55 | AA78: 130 | AB78: 74.36666667 | AC78: 41 | AD78: 130 | AE78: 40 | AF78: 63 | AH78: 112 | AI78: 56 | AL78: 69 | AN78: =IFERROR(INDEX('Guts-2'!$K$1:$K$30,MATCH(E78,'Guts-2'!$J$1:$J$30,0)),TRUE) -> TRUE | AO78: =IF(AN78=FALSE,"",IFERROR(CHOOSE('Guts-2'!$D$27,AE78,AF78,AG78,AH78,AI78,AJ78,AK78,AL78,AM78),"")) -> 112 | AP78: 112 | AQ78: =IF(AN78=FALSE,"",IFERROR(CHOOSE('Guts-2'!$D$26,G78,J78,M78,P78,S78,V78,Y78,AB78,AX78),"")) -> 71.96 | AR78: 70 | AS78: =IFERROR(IF(Settings!$L$5="Mixed (Standard)",(RANK(AQ78,$AQ$2:$AQ$999,1)/('Guts-2'!$N$1+1))+1,(RANK(AR78,$AR$2:$AR$999,1)/('Guts-2'!$N$1+1))+1),"") -> 6.384615385 | AT78: =IFERROR(CHOOSE('Guts-2'!$D$26,H78,K78,N78,Q78,T78,W78,Z78,AC78,AY78),"") -> 41 | AU78: =IFERROR(CHOOSE('Guts-2'!$D$26,I78,L78,O78,R78,U78,X78,AA78,AD78,AZ78),"") -> 94 | AV78: 41 | AW78: 94 | AX78: =INDEX('Import (ADP)'!$C$2:$C$999,MATCH(A78, 'Import (ADP)'!$B$2:$B$999,0)) ->  | BA78: =IF(VLOOKUP(A79,'Name-Sort'!$D$2:$E$999,2,FALSE)="",A79,"") -> Jorge Bonifacio | BB78: =IFERROR(INDEX($BA$1:$BA$999,SMALL(IF($BA$1:$BA$999<>"",ROW($BA$1:$BA$999)),ROW(BA78))),"") -> Jorge Bonifacio
A79: Jorge Bonifacio | B79: bonifjo01 | C79: OF | D79: LF,RF | E79: KC | F79: 24 | G79: 442 | H79: 251 | I79: 588 | V79: 425.5 | W79: 251 | X79: 566 | Y79: 401.13 | Z79: 251 | AA79: 534 | AB79: 422.8766667 | AC79: 251 | AD79: 563 | AL79: 442 | AN79: =IFERROR(INDEX('Guts-2'!$K$1:$K$30,MATCH(E79,'Guts-2'!$J$1:$J$30,0)),TRUE) -> TRUE | AO79: =IF(AN79=FALSE,"",IFERROR(CHOOSE('Guts-2'!$D$27,AE79,AF79,AG79,AH79,AI79,AJ79,AK79,AL79,AM79),"")) ->  | AQ79: =IF(AN79=FALSE,"",IFERROR(CHOOSE('Guts-2'!$D$26,G79,J79,M79,P79,S79,V79,Y79,AB79,AX79),"")) ->  | AS79: =IFERROR(IF(Settings!$L$5="Mixed (Standard)",(RANK(AQ79,$AQ$2:$AQ$999,1)/('Guts-2'!$N$1+1))+1,(RANK(AR79,$AR$2:$AR$999,1)/('Guts-2'!$N$1+1))+1),"") ->  | AT79: =IFERROR(CHOOSE('Guts-2'!$D$26,H79,K79,N79,Q79,T79,W79,Z79,AC79,AY79),"") ->  | AU79: =IFERROR(CHOOSE('Guts-2'!$D$26,I79,L79,O79,R79,U79,X79,AA79,AD79,AZ79),"") ->  | AX79: =INDEX('Import (ADP)'!$C$2:$C$999,MATCH(A79, 'Import (ADP)'!$B$2:$B$999,0)) ->  | BA79: =IF(VLOOKUP(A80,'Name-Sort'!$D$2:$E$999,2,FALSE)="",A80,"") -> Justin Bour | BB79: =IFERROR(INDEX($BA$1:$BA$999,SMALL(IF($BA$1:$BA$999<>"",ROW($BA$1:$BA$999)),ROW(BA79))),"") -> Justin Bour
A80: Justin Bour | B80: bourju01 | C80: 1B | E80: MIA | F80: 29 | G80: 189 | H80: 104 | I80: 293 | J80: 157 | K80: 104 | L80: 293 | M80: 182.14 | N80: 104 | O80: 258 | P80: 160 | Q80: 104 | R80: 293 | V80: 185.7 | W80: 104 | X80: 293 | Y80: 198.53 | Z80: 117 | AA80: 293 | AB80: 178.7283333 | AC80: 104 | AD80: 293 | AE80: 230 | AF80: 133 | AH80: 114 | AI80: 175 | AL80: 158 | AN80: =IFERROR(INDEX('Guts-2'!$K$1:$K$30,MATCH(E80,'Guts-2'!$J$1:$J$30,0)),TRUE) -> TRUE | AO80: =IF(AN80=FALSE,"",IFERROR(CHOOSE('Guts-2'!$D$27,AE80,AF80,AG80,AH80,AI80,AJ80,AK80,AL80,AM80),"")) -> 114 | AP80: 114 | AQ80: =IF(AN80=FALSE,"",IFERROR(CHOOSE('Guts-2'!$D$26,G80,J80,M80,P80,S80,V80,Y80,AB80,AX80),"")) -> 182.14 | AR80: 214 | AS80: =IFERROR(IF(Settings!$L$5="Mixed (Standard)",(RANK(AQ80,$AQ$2:$AQ$999,1)/('Guts-2'!$N$1+1))+1,(RANK(AR80,$AR$2:$AR$999,1)/('Guts-2'!$N$1+1))+1),"") -> 17.46153846 | AT80: =IFERROR(CHOOSE('Guts-2'!$D$26,H80,K80,N80,Q80,T80,W80,Z80,AC80,AY80),"") -> 104 | AU80: =IFERROR(CHOOSE('Guts-2'!$D$26,I80,L80,O80,R80,U80,X80,AA80,AD80,AZ80),"") -> 258 | AV80: 104 | AW80: 258 | AX80: =INDEX('Import (ADP)'!$C$2:$C$999,MATCH(A80, 'Import (ADP)'!$B$2:$B$999,0)) ->  | BA80: =IF(VLOOKUP(A81,'Name-Sort'!$D$2:$E$999,2,FALSE)="",A81,"") -> Brad Boxberger | BB80: =IFERROR(INDEX($BA$1:$BA$999,SMALL(IF($BA$1:$BA$999<>"",ROW($BA$1:$BA$999)),ROW(BA80))),"") -> Brad Boxberger
A81: Brad Boxberger | B81: boxbebr01 | C81: RP | E81: ARI | F81: 29 | G81: 322 | H81: 13 | I81: 532 | M81: 241.25 | N81: 13 | O81: 394 | V81: 358 | W81: 13 | X81: 532 | Y81: 322.02 | Z81: 179 | AA81: 532 | AB81: 310.8175 | AC81: 13 | AD81: 532 | AL81: 336 | AN81: =IFERROR(INDEX('Guts-2'!$K$1:$K$30,MATCH(E81,'Guts-2'!$J$1:$J$30,0)),TRUE) -> TRUE | AO81: =IF(AN81=FALSE,"",IFERROR(CHOOSE('Guts-2'!$D$27,AE81,AF81,AG81,AH81,AI81,AJ81,AK81,AL81,AM81),"")) ->  | AQ81: =IF(AN81=FALSE,"",IFERROR(CHOOSE('Guts-2'!$D$26,G81,J81,M81,P81,S81,V81,Y81,AB81,AX81),"")) -> 241.25 | AR81: 296 | AS81: =IFERROR(IF(Settings!$L$5="Mixed (Standard)",(RANK(AQ81,$AQ$2:$AQ$999,1)/('Guts-2'!$N$1+1))+1,(RANK(AR81,$AR$2:$AR$999,1)/('Guts-2'!$N$1+1))+1),"") -> 23.76923077 | AT81: =IFERROR(CHOOSE('Guts-2'!$D$26,H81,K81,N81,Q81,T81,W81,Z81,AC81,AY81),"") -> 13 | AU81: =IFERROR(CHOOSE('Guts-2'!$D$26,I81,L81,O81,R81,U81,X81,AA81,AD81,AZ81),"") -> 394 | AV81: 13 | AW81: 394 | AX81: =INDEX('Import (ADP)'!$C$2:$C$999,MATCH(A81, 'Import (ADP)'!$B$2:$B$999,0)) ->  | BA81: =IF(VLOOKUP(A82,'Name-Sort'!$D$2:$E$999,2,FALSE)="",A82,"") -> Matt Boyd | BB81: =IFERROR(INDEX($BA$1:$BA$999,SMALL(IF($BA$1:$BA$999<>"",ROW($BA$1:$BA$999)),ROW(BA81))),"") -> Matt Boyd
A82: Matt Boyd | B82: boydma01 | C82: SP | E82: DET | F82: 27 | G82: 529 | H82: 350 | I82: 704 | V82: 526 | W82: 348 | X82: 700 | Y82: 522.88 | Z82: 359 | AA82: 653 | AB82: 525.96 | AC82: 348 | AD82: 700 | AN82: =IFERROR(INDEX('Guts-2'!$K$1:$K$30,MATCH(E82,'Guts-2'!$J$1:$J$30,0)),TRUE) -> TRUE | AO82: =IF(AN82=FALSE,"",IFERROR(CHOOSE('Guts-2'!$D$27,AE82,AF82,AG82,AH82,AI82,AJ82,AK82,AL82,AM82),"")) ->  | AQ82: =IF(AN82=FALSE,"",IFERROR(CHOOSE('Guts-2'!$D$26,G82,J82,M82,P82,S82,V82,Y82,AB82,AX82),"")) ->  | AS82: =IFERROR(IF(Settings!$L$5="Mixed (Standard)",(RANK(AQ82,$AQ$2:$AQ$999,1)/('Guts-2'!$N$1+1))+1,(RANK(AR82,$AR$2:$AR$999,1)/('Guts-2'!$N$1+1))+1),"") ->  | AT82: =IFERROR(CHOOSE('Guts-2'!$D$26,H82,K82,N82,Q82,T82,W82,Z82,AC82,AY82),"") ->  | AU82: =IFERROR(CHOOSE('Guts-2'!$D$26,I82,L82,O82,R82,U82,X82,AA82,AD82,AZ82),"") ->  | AX82: =INDEX('Import (ADP)'!$C$2:$C$999,MATCH(A82, 'Import (ADP)'!$B$2:$B$999,0)) ->  | BA82: =IF(VLOOKUP(A83,'Name-Sort'!$D$2:$E$999,2,FALSE)="",A83,"") -> Brad Brach | BB82: =IFERROR(INDEX($BA$1:$BA$999,SMALL(IF($BA$1:$BA$999<>"",ROW($BA$1:$BA$999)),ROW(BA82))),"") -> Brad Brach
A83: Brad Brach | B83: brachbr01 | C83: RP | E83: BAL | F83: 31 | G83: 215 | H83: 111 | I83: 520 | J83: 181 | K83: 111 | L83: 520 | M83: 234.25 | N83: 140 | O83: 520 | P83: 289 | Q83: 111 | R83: 520 | V83: 220 | W83: 111 | X83: 520 | Y83: 214.17 | Z83: 111 | AA83: 377 | AB83: 225.57 | AC83: 111 | AD83: 520 | AE83: 169 | AF83: 222 | AH83: 209 | AI83: 234 | AL83: 215 | AN83: =IFERROR(INDEX('Guts-2'!$K$1:$K$30,MATCH(E83,'Guts-2'!$J$1:$J$30,0)),TRUE) -> TRUE | AO83: =IF(AN83=FALSE,"",IFERROR(CHOOSE('Guts-2'!$D$27,AE83,AF83,AG83,AH83,AI83,AJ83,AK83,AL83,AM83),"")) -> 209 | AP83: 209 | AQ83: =IF(AN83=FALSE,"",IFERROR(CHOOSE('Guts-2'!$D$26,G83,J83,M83,P83,S83,V83,Y83,AB83,AX83),"")) -> 234.25 | AR83: 290 | AS83: =IFERROR(IF(Settings!$L$5="Mixed (Standard)",(RANK(AQ83,$AQ$2:$AQ$999,1)/('Guts-2'!$N$1+1))+1,(RANK(AR83,$AR$2:$AR$999,1)/('Guts-2'!$N$1+1))+1),"") -> 23.30769231 | AT83: =IFERROR(CHOOSE('Guts-2'!$D$26,H83,K83,N83,Q83,T83,W83,Z83,AC83,AY83),"") -> 140 | AU83: =IFERROR(CHOOSE('Guts-2'!$D$26,I83,L83,O83,R83,U83,X83,AA83,AD83,AZ83),"") -> 520 | AV83: 140 | AW83: 520 | AX83: =INDEX('Import (ADP)'!$C$2:$C$999,MATCH(A83, 'Import (ADP)'!$B$2:$B$999,0)) ->  | BA83: =IF(VLOOKUP(A84,'Name-Sort'!$D$2:$E$999,2,FALSE)="",A84,"") -> Archie Bradley | BB83: =IFERROR(INDEX($BA$1:$BA$999,SMALL(IF($BA$1:$BA$999<>"",ROW($BA$1:$BA$999)),ROW(BA83))),"") -> Archie Bradley
A84: Archie Bradley | B84: bradlar01 | C84: RP | E84: ARI | F84: 25 | G84: 172 | H84: 105 | I84: 300 | J84: 197 | K84: 105 | L84: 300 | M84: 205.53 | N84: 183 | O84: 277 | P84: 206 | Q84: 105 | R84: 300 | V84: 188.8 | W84: 105 | X84: 300 | Y84: 187.78 | Z84: 105 | AA84: 300 | AB84: 192.8516667 | AC84: 105 | AD84: 300 | AE84: 188 | AF84: 231 | AH84: 184 | AI84: 231 | AL84: 217 | AN84: =IFERROR(INDEX('Guts-2'!$K$1:$K$30,MATCH(E84,'Guts-2'!$J$1:$J$30,0)),TRUE) -> TRUE | AO84: =IF(AN84=FALSE,"",IFERROR(CHOOSE('Guts-2'!$D$27,AE84,AF84,AG84,AH84,AI84,AJ84,AK84,AL84,AM84),"")) -> 184 | AP84: 184 | AQ84: =IF(AN84=FALSE,"",IFERROR(CHOOSE('Guts-2'!$D$26,G84,J84,M84,P84,S84,V84,Y84,AB84,AX84),"")) -> 205.53 | AR84: 253 | AS84: =IFERROR(IF(Settings!$L$5="Mixed (Standard)",(RANK(AQ84,$AQ$2:$AQ$999,1)/('Guts-2'!$N$1+1))+1,(RANK(AR84,$AR$2:$AR$999,1)/('Guts-2'!$N$1+1))+1),"") -> 20.46153846 | AT84: =IFERROR(CHOOSE('Guts-2'!$D$26,H84,K84,N84,Q84,T84,W84,Z84,AC84,AY84),"") -> 183 | AU84: =IFERROR(CHOOSE('Guts-2'!$D$26,I84,L84,O84,R84,U84,X84,AA84,AD84,AZ84),"") -> 277 | AV84: 183 | AW84: 277 | AX84: =INDEX('Import (ADP)'!$C$2:$C$999,MATCH(A84, 'Import (ADP)'!$B$2:$B$999,0)) ->  | BA84: =IF(VLOOKUP(A85,'Name-Sort'!$D$2:$E$999,2,FALSE)="",A85,"") -> Bobby Bradley | BB84: =IFERROR(INDEX($BA$1:$BA$999,SMALL(IF($BA$1:$BA$999<>"",ROW($BA$1:$BA$999)),ROW(BA84))),"") -> Bobby Bradley
A85: Bobby Bradley | B85: bradlbo01 | C85: 1B | E85: CLE | F85: 21 | G85: 824 | H85: 544 | I85: 1096 | V85: 857.5 | W85: 566 | X85: 1141 | Y85: 685.73 | Z85: 592 | AA85: 750 | AB85: 789.0766667 | AC85: 521 | AD85: 1050 | AN85: =IFERROR(INDEX('Guts-2'!$K$1:$K$30,MATCH(E85,'Guts-2'!$J$1:$J$30,0)),TRUE) -> TRUE | AO85: =IF(AN85=FALSE,"",IFERROR(CHOOSE('Guts-2'!$D$27,AE85,AF85,AG85,AH85,AI85,AJ85,AK85,AL85,AM85),"")) ->  | AQ85: =IF(AN85=FALSE,"",IFERROR(CHOOSE('Guts-2'!$D$26,G85,J85,M85,P85,S85,V85,Y85,AB85,AX85),"")) ->  | AS85: =IFERROR(IF(Settings!$L$5="Mixed (Standard)",(RANK(AQ85,$AQ$2:$AQ$999,1)/('Guts-2'!$N$1+1))+1,(RANK(AR85,$AR$2:$AR$999,1)/('Guts-2'!$N$1+1))+1),"") ->  | AT85: =IFERROR(CHOOSE('Guts-2'!$D$26,H85,K85,N85,Q85,T85,W85,Z85,AC85,AY85),"") ->  | AU85: =IFERROR(CHOOSE('Guts-2'!$D$26,I85,L85,O85,R85,U85,X85,AA85,AD85,AZ85),"") ->  | AX85: =INDEX('Import (ADP)'!$C$2:$C$999,MATCH(A85, 'Import (ADP)'!$B$2:$B$999,0)) ->  | BA85: =IF(VLOOKUP(A86,'Name-Sort'!$D$2:$E$999,2,FALSE)="",A86,"") -> Jackie Bradley Jr. | BB85: =IFERROR(INDEX($BA$1:$BA$999,SMALL(IF($BA$1:$BA$999<>"",ROW($BA$1:$BA$999)),ROW(BA85))),"") -> Jackie Bradley Jr.
A86: Jackie Bradley Jr. | B86: bradlja02 | C86: OF | D86: CF | E86: BOS | F86: 27 | G86: 233 | H86: 154 | I86: 384 | J86: 341 | K86: 202 | L86: 454 | P86: 215 | Q86: 142 | R86: 384 | V86: 267.2 | W86: 177 | X86: 384 | Y86: 284.44 | Z86: 202 | AA86: 384 | AB86: 268.128 | AC86: 177 | AD86: 384 | AE86: 147 | AF86: 218 | AH86: 169 | AI86: 159 | AL86: 195 | AN86: =IFERROR(INDEX('Guts-2'!$K$1:$K$30,MATCH(E86,'Guts-2'!$J$1:$J$30,0)),TRUE) -> TRUE | AO86: =IF(AN86=FALSE,"",IFERROR(CHOOSE('Guts-2'!$D$27,AE86,AF86,AG86,AH86,AI86,AJ86,AK86,AL86,AM86),"")) -> 169 | AP86: 169 | AQ86: =IF(AN86=FALSE,"",IFERROR(CHOOSE('Guts-2'!$D$26,G86,J86,M86,P86,S86,V86,Y86,AB86,AX86),"")) ->  | AS86: =IFERROR(IF(Settings!$L$5="Mixed (Standard)",(RANK(AQ86,$AQ$2:$AQ$999,1)/('Guts-2'!$N$1+1))+1,(RANK(AR86,$AR$2:$AR$999,1)/('Guts-2'!$N$1+1))+1),"") ->  | AT86: =IFERROR(CHOOSE('Guts-2'!$D$26,H86,K86,N86,Q86,T86,W86,Z86,AC86,AY86),"") ->  | AU86: =IFERROR(CHOOSE('Guts-2'!$D$26,I86,L86,O86,R86,U86,X86,AA86,AD86,AZ86),"") ->  | AX86: =INDEX('Import (ADP)'!$C$2:$C$999,MATCH(A86, 'Import (ADP)'!$B$2:$B$999,0)) ->  | BA86: =IF(VLOOKUP(A87,'Name-Sort'!$D$2:$E$999,2,FALSE)="",A87,"") -> Michael Brantley | BB86: =IFERROR(INDEX($BA$1:$BA$999,SMALL(IF($BA$1:$BA$999<>"",ROW($BA$1:$BA$999)),ROW(BA86))),"") -> Michael Brantley
A87: Michael Brantley | B87: brantmi02 | C87: OF | D87: LF | E87: CLE | F87: 30 | G87: 250 | H87: 82 | I87: 372 | J87: 249 | K87: 82 | L87: 372 | M87: 200.18 | N87: 82 | O87: 325 | P87: 253 | Q87: 82 | R87: 372 | V87: 246.2 | W87: 82 | X87: 372 | Y87: 244.27 | Z87: 162 | AA87: 372 | AB87: 240.4416667 | AC87: 82 | AD87: 372 | AF87: 240 | AH87: 256 | AL87: 210 | AN87: =IFERROR(INDEX('Guts-2'!$K$1:$K$30,MATCH(E87,'Guts-2'!$J$1:$J$30,0)),TRUE) -> TRUE | AO87: =IF(AN87=FALSE,"",IFERROR(CHOOSE('Guts-2'!$D$27,AE87,AF87,AG87,AH87,AI87,AJ87,AK87,AL87,AM87),"")) -> 256 | AP87: 256 | AQ87: =IF(AN87=FALSE,"",IFERROR(CHOOSE('Guts-2'!$D$26,G87,J87,M87,P87,S87,V87,Y87,AB87,AX87),"")) -> 200.18 | AR87: 249 | AS87: =IFERROR(IF(Settings!$L$5="Mixed (Standard)",(RANK(AQ87,$AQ$2:$AQ$999,1)/('Guts-2'!$N$1+1))+1,(RANK(AR87,$AR$2:$AR$999,1)/('Guts-2'!$N$1+1))+1),"") -> 20.15384615 | AT87: =IFERROR(CHOOSE('Guts-2'!$D$26,H87,K87,N87,Q87,T87,W87,Z87,AC87,AY87),"") -> 82 | AU87: =IFERROR(CHOOSE('Guts-2'!$D$26,I87,L87,O87,R87,U87,X87,AA87,AD87,AZ87),"") -> 325 | AV87: 82 | AW87: 325 | AX87: =INDEX('Import (ADP)'!$C$2:$C$999,MATCH(A87, 'Import (ADP)'!$B$2:$B$999,0)) ->  | BA87: =IF(VLOOKUP(A88,'Name-Sort'!$D$2:$E$999,2,FALSE)="",A88,"") -> Ryan Braun | BB87: =IFERROR(INDEX($BA$1:$BA$999,SMALL(IF($BA$1:$BA$999<>"",ROW($BA$1:$BA$999)),ROW(BA87))),"") -> Ryan Braun
A88: Ryan Braun | B88: braunry02 | C88: OF | D88: LF | E88: MIL | F88: 34 | G88: 102 | H88: 35 | I88: 191 | J88: 84 | K88: 35 | L88: 191 | M88: 87.1 | N88: 35 | O88: 184 | P88: 87 | Q88: 35 | R88: 191 | V88: 104.8 | W88: 35 | X88: 191 | Y88: 113.93 | Z88: 74 | AA88: 191 | AB88: 96.47166667 | AC88: 35 | AD88: 191 | AE88: 63 | AF88: 80 | AH88: 98 | AI88: 102 | AL88: 77 | AN88: =IFERROR(INDEX('Guts-2'!$K$1:$K$30,MATCH(E88,'Guts-2'!$J$1:$J$30,0)),TRUE) -> TRUE | AO88: =IF(AN88=FALSE,"",IFERROR(CHOOSE('Guts-2'!$D$27,AE88,AF88,AG88,AH88,AI88,AJ88,AK88,AL88,AM88),"")) -> 98 | AP88: 98 | AQ88: =IF(AN88=FALSE,"",IFERROR(CHOOSE('Guts-2'!$D$26,G88,J88,M88,P88,S88,V88,Y88,AB88,AX88),"")) -> 87.1 | AR88: 80 | AS88: =IFERROR(IF(Settings!$L$5="Mixed (Standard)",(RANK(AQ88,$AQ$2:$AQ$999,1)/('Guts-2'!$N$1+1))+1,(RANK(AR88,$AR$2:$AR$999,1)/('Guts-2'!$N$1+1))+1),"") -> 7.153846154 | AT88: =IFERROR(CHOOSE('Guts-2'!$D$26,H88,K88,N88,Q88,T88,W88,Z88,AC88,AY88),"") -> 35 | AU88: =IFERROR(CHOOSE('Guts-2'!$D$26,I88,L88,O88,R88,U88,X88,AA88,AD88,AZ88),"") -> 184 | AV88: 35 | AW88: 184 | AX88: =INDEX('Import (ADP)'!$C$2:$C$999,MATCH(A88, 'Import (ADP)'!$B$2:$B$999,0)) ->  | BA88: =IF(VLOOKUP(A89,'Name-Sort'!$D$2:$E$999,2,FALSE)="",A89,"") -> John Brebbia | BB88: =IFERROR(INDEX($BA$1:$BA$999,SMALL(IF($BA$1:$BA$999<>"",ROW($BA$1:$BA$999)),ROW(BA88))),"") -> John Brebbia
A89: John Brebbia | B89: brebbjo01 | C89: RP | E89: STL | F89: 27 | Y89: 688.22 | Z89: 576 | AA89: 749 | AB89: 688.22 | AC89: 455 | AD89: 916 | AN89: =IFERROR(INDEX('Guts-2'!$K$1:$K$30,MATCH(E89,'Guts-2'!$J$1:$J$30,0)),TRUE) -> TRUE | AO89: =IF(AN89=FALSE,"",IFERROR(CHOOSE('Guts-2'!$D$27,AE89,AF89,AG89,AH89,AI89,AJ89,AK89,AL89,AM89),"")) ->  | AQ89: =IF(AN89=FALSE,"",IFERROR(CHOOSE('Guts-2'!$D$26,G89,J89,M89,P89,S89,V89,Y89,AB89,AX89),"")) ->  | AS89: =IFERROR(IF(Settings!$L$5="Mixed (Standard)",(RANK(AQ89,$AQ$2:$AQ$999,1)/('Guts-2'!$N$1+1))+1,(RANK(AR89,$AR$2:$AR$999,1)/('Guts-2'!$N$1+1))+1),"") ->  | AT89: =IFERROR(CHOOSE('Guts-2'!$D$26,H89,K89,N89,Q89,T89,W89,Z89,AC89,AY89),"") ->  | AU89: =IFERROR(CHOOSE('Guts-2'!$D$26,I89,L89,O89,R89,U89,X89,AA89,AD89,AZ89),"") ->  | AX89: =INDEX('Import (ADP)'!$C$2:$C$999,MATCH(A89, 'Import (ADP)'!$B$2:$B$999,0)) ->  | BA89: =IF(VLOOKUP(A90,'Name-Sort'!$D$2:$E$999,2,FALSE)="",A90,"") -> Alex Bregman | BB89: =IFERROR(INDEX($BA$1:$BA$999,SMALL(IF($BA$1:$BA$999<>"",ROW($BA$1:$BA$999)),ROW(BA89))),"") -> Alex Bregman
A90: Alex Bregman | B90: bregmal01 | C90: 3B | E90: HOU | F90: 24 | G90: 35 | H90: 17 | I90: 71 | J90: 53 | K90: 17 | L90: 71 | M90: 51.56 | N90: 30 | O90: 71 | P90: 45 | Q90: 17 | R90: 71 | V90: 40.2 | W90: 17 | X90: 71 | Y90: 32 | Z90: 17 | AA90: 65 | AB90: 42.79333333 | AC90: 17 | AD90: 71 | AE90: 49 | AF90: 64 | AH90: 44 | AI90: 33 | AL90: 42 | AN90: =IFERROR(INDEX('Guts-2'!$K$1:$K$30,MATCH(E90,'Guts-2'!$J$1:$J$30,0)),TRUE) -> TRUE | AO90: =IF(AN90=FALSE,"",IFERROR(CHOOSE('Guts-2'!$D$27,AE90,AF90,AG90,AH90,AI90,AJ90,AK90,AL90,AM90),"")) -> 44 | AP90: 44 | AQ90: =IF(AN90=FALSE,"",IFERROR(CHOOSE('Guts-2'!$D$26,G90,J90,M90,P90,S90,V90,Y90,AB90,AX90),"")) -> 51.56 | AR90: 51 | AS90: =IFERROR(IF(Settings!$L$5="Mixed (Standard)",(RANK(AQ90,$AQ$2:$AQ$999,1)/('Guts-2'!$N$1+1))+1,(RANK(AR90,$AR$2:$AR$999,1)/('Guts-2'!$N$1+1))+1),"") -> 4.923076923 | AT90: =IFERROR(CHOOSE('Guts-2'!$D$26,H90,K90,N90,Q90,T90,W90,Z90,AC90,AY90),"") -> 30 | AU90: =IFERROR(CHOOSE('Guts-2'!$D$26,I90,L90,O90,R90,U90,X90,AA90,AD90,AZ90),"") -> 71 | AV90: 30 | AW90: 71 | AX90: =INDEX('Import (ADP)'!$C$2:$C$999,MATCH(A90, 'Import (ADP)'!$B$2:$B$999,0)) ->  | BA90: =IF(VLOOKUP(A91,'Name-Sort'!$D$2:$E$999,2,FALSE)="",A91,"") -> Parker Bridwell | BB90: =IFERROR(INDEX($BA$1:$BA$999,SMALL(IF($BA$1:$BA$999<>"",ROW($BA$1:$BA$999)),ROW(BA90))),"") -> Parker Bridwell
A91: Parker Bridwell | B91: bridwpa01 | C91: SP | E91: LAA | F91: 26 | G91: 462 | H91: 32 | I91: 659 | M91: 226.5 | N91: 32 | O91: 448 | V91: 409 | W91: 32 | X91: 659 | Y91: 461.84 | Z91: 267 | AA91: 659 | AB91: 389.835 | AC91: 32 | AD91: 659 | AN91: =IFERROR(INDEX('Guts-2'!$K$1:$K$30,MATCH(E91,'Guts-2'!$J$1:$J$30,0)),TRUE) -> TRUE | AO91: =IF(AN91=FALSE,"",IFERROR(CHOOSE('Guts-2'!$D$27,AE91,AF91,AG91,AH91,AI91,AJ91,AK91,AL91,AM91),"")) ->  | AQ91: =IF(AN91=FALSE,"",IFERROR(CHOOSE('Guts-2'!$D$26,G91,J91,M91,P91,S91,V91,Y91,AB91,AX91),"")) -> 226.5 | AR91: 279 | AS91: =IFERROR(IF(Settings!$L$5="Mixed (Standard)",(RANK(AQ91,$AQ$2:$AQ$999,1)/('Guts-2'!$N$1+1))+1,(RANK(AR91,$AR$2:$AR$999,1)/('Guts-2'!$N$1+1))+1),"") -> 22.46153846 | AT91: =IFERROR(CHOOSE('Guts-2'!$D$26,H91,K91,N91,Q91,T91,W91,Z91,AC91,AY91),"") -> 32 | AU91: =IFERROR(CHOOSE('Guts-2'!$D$26,I91,L91,O91,R91,U91,X91,AA91,AD91,AZ91),"") -> 448 | AV91: 32 | AW91: 448 | AX91: =INDEX('Import (ADP)'!$C$2:$C$999,MATCH(A91, 'Import (ADP)'!$B$2:$B$999,0)) ->  | BA91: =IF(VLOOKUP(A92,'Name-Sort'!$D$2:$E$999,2,FALSE)="",A92,"") -> Lewis Brinson | BB91: =IFERROR(INDEX($BA$1:$BA$999,SMALL(IF($BA$1:$BA$999<>"",ROW($BA$1:$BA$999)),ROW(BA91))),"") -> Lewis Brinson
A92: Lewis Brinson | B92: brinsle01 | C92: OF | D92: LF,CF | E92: MIA | F92: 23 | G92: 300 | H92: 125 | I92: 451 | J92: 372 | K92: 125 | L92: 495 | M92: 219.38 | N92: 125 | O92: 409 | V92: 307.6 | W92: 125 | X92: 451 | Y92: 305.52 | Z92: 182 | AA92: 451 | AB92: 300.9 | AC92: 125 | AD92: 451 | AF92: 337 | AH92: 267 | AI92: 247 | AL92: 293 | AN92: =IFERROR(INDEX('Guts-2'!$K$1:$K$30,MATCH(E92,'Guts-2'!$J$1:$J$30,0)),TRUE) -> TRUE | AO92: =IF(AN92=FALSE,"",IFERROR(CHOOSE('Guts-2'!$D$27,AE92,AF92,AG92,AH92,AI92,AJ92,AK92,AL92,AM92),"")) -> 267 | AP92: 267 | AQ92: =IF(AN92=FALSE,"",IFERROR(CHOOSE('Guts-2'!$D$26,G92,J92,M92,P92,S92,V92,Y92,AB92,AX92),"")) -> 219.38 | AR92: 270 | AS92: =IFERROR(IF(Settings!$L$5="Mixed (Standard)",(RANK(AQ92,$AQ$2:$AQ$999,1)/('Guts-2'!$N$1+1))+1,(RANK(AR92,$AR$2:$AR$999,1)/('Guts-2'!$N$1+1))+1),"") -> 21.76923077 | AT92: =IFERROR(CHOOSE('Guts-2'!$D$26,H92,K92,N92,Q92,T92,W92,Z92,AC92,AY92),"") -> 125 | AU92: =IFERROR(CHOOSE('Guts-2'!$D$26,I92,L92,O92,R92,U92,X92,AA92,AD92,AZ92),"") -> 409 | AV92: 125 | AW92: 409 | AX92: =INDEX('Import (ADP)'!$C$2:$C$999,MATCH(A92, 'Import (ADP)'!$B$2:$B$999,0)) ->  | BA92: =IF(VLOOKUP(A93,'Name-Sort'!$D$2:$E$999,2,FALSE)="",A93,"") -> Socrates Brito | BB92: =IFERROR(INDEX($BA$1:$BA$999,SMALL(IF($BA$1:$BA$999<>"",ROW($BA$1:$BA$999)),ROW(BA92))),"") -> Socrates Brito
A93: Socrates Brito | B93: britoso01 | C93: OF | D93: CF,RF | E93: ARI | F93: 25 | Y93: 698.6 | Z93: 656 | AA93: 736 | AB93: 698.6 | AC93: 462 | AD93: 930 | AN93: =IFERROR(INDEX('Guts-2'!$K$1:$K$30,MATCH(E93,'Guts-2'!$J$1:$J$30,0)),TRUE) -> TRUE | AO93: =IF(AN93=FALSE,"",IFERROR(CHOOSE('Guts-2'!$D$27,AE93,AF93,AG93,AH93,AI93,AJ93,AK93,AL93,AM93),"")) ->  | AQ93: =IF(AN93=FALSE,"",IFERROR(CHOOSE('Guts-2'!$D$26,G93,J93,M93,P93,S93,V93,Y93,AB93,AX93),"")) ->  | AS93: =IFERROR(IF(Settings!$L$5="Mixed (Standard)",(RANK(AQ93,$AQ$2:$AQ$999,1)/('Guts-2'!$N$1+1))+1,(RANK(AR93,$AR$2:$AR$999,1)/('Guts-2'!$N$1+1))+1),"") ->  | AT93: =IFERROR(CHOOSE('Guts-2'!$D$26,H93,K93,N93,Q93,T93,W93,Z93,AC93,AY93),"") ->  | AU93: =IFERROR(CHOOSE('Guts-2'!$D$26,I93,L93,O93,R93,U93,X93,AA93,AD93,AZ93),"") ->  | AX93: =INDEX('Import (ADP)'!$C$2:$C$999,MATCH(A93, 'Import (ADP)'!$B$2:$B$999,0)) ->  | BA93: =IF(VLOOKUP(A94,'Name-Sort'!$D$2:$E$999,2,FALSE)="",A94,"") -> Zach Britton | BB93: =IFERROR(INDEX($BA$1:$BA$999,SMALL(IF($BA$1:$BA$999<>"",ROW($BA$1:$BA$999)),ROW(BA93))),"") -> Zach Britton
A94: Zach Britton | B94: brittza01 | C94: RP | E94: BAL | F94: 30 | G94: 224 | H94: 94 | I94: 456 | J94: 267 | K94: 94 | L94: 456 | M94: 278.75 | N94: 137 | O94: 456 | P94: 297 | Q94: 94 | R94: 456 | V94: 266 | W94: 94 | X94: 456 | Y94: 283.7 | Z94: 94 | AA94: 444 | AB94: 269.4083333 | AC94: 94 | AD94: 456 | AF94: 269 | AI94: 296 | AL94: 286 | AN94: =IFERROR(INDEX('Guts-2'!$K$1:$K$30,MATCH(E94,'Guts-2'!$J$1:$J$30,0)),TRUE) -> TRUE | AO94: =IF(AN94=FALSE,"",IFERROR(CHOOSE('Guts-2'!$D$27,AE94,AF94,AG94,AH94,AI94,AJ94,AK94,AL94,AM94),"")) ->  | AQ94: =IF(AN94=FALSE,"",IFERROR(CHOOSE('Guts-2'!$D$26,G94,J94,M94,P94,S94,V94,Y94,AB94,AX94),"")) -> 278.75 | AR94: 339 | AS94: =IFERROR(IF(Settings!$L$5="Mixed (Standard)",(RANK(AQ94,$AQ$2:$AQ$999,1)/('Guts-2'!$N$1+1))+1,(RANK(AR94,$AR$2:$AR$999,1)/('Guts-2'!$N$1+1))+1),"") -> 27.07692308 | AT94: =IFERROR(CHOOSE('Guts-2'!$D$26,H94,K94,N94,Q94,T94,W94,Z94,AC94,AY94),"") -> 137 | AU94: =IFERROR(CHOOSE('Guts-2'!$D$26,I94,L94,O94,R94,U94,X94,AA94,AD94,AZ94),"") -> 456 | AV94: 137 | AW94: 456 | AX94: =INDEX('Import (ADP)'!$C$2:$C$999,MATCH(A94, 'Import (ADP)'!$B$2:$B$999,0)) ->  | BA94: =IF(VLOOKUP(A95,'Name-Sort'!$D$2:$E$999,2,FALSE)="",A95,"") -> Rex Brothers | BB94: =IFERROR(INDEX($BA$1:$BA$999,SMALL(IF($BA$1:$BA$999<>"",ROW($BA$1:$BA$999)),ROW(BA94))),"") -> Rex Brothers
A95: Rex Brothers | B95: brothre01 | C95: RP | E95: ATL | F95: 30 | G95: 968 | H95: 639 | I95: 1288 | V95: 1004.5 | W95: 663 | X95: 1336 | Y95: 725.5 | Z95: 717 | AA95: 734 | AB95: 899.3333333 | AC95: 594 | AD95: 1197 | AN95: =IFERROR(INDEX('Guts-2'!$K$1:$K$30,MATCH(E95,'Guts-2'!$J$1:$J$30,0)),TRUE) -> TRUE | AO95: =IF(AN95=FALSE,"",IFERROR(CHOOSE('Guts-2'!$D$27,AE95,AF95,AG95,AH95,AI95,AJ95,AK95,AL95,AM95),"")) ->  | AQ95: =IF(AN95=FALSE,"",IFERROR(CHOOSE('Guts-2'!$D$26,G95,J95,M95,P95,S95,V95,Y95,AB95,AX95),"")) ->  | AS95: =IFERROR(IF(Settings!$L$5="Mixed (Standard)",(RANK(AQ95,$AQ$2:$AQ$999,1)/('Guts-2'!$N$1+1))+1,(RANK(AR95,$AR$2:$AR$999,1)/('Guts-2'!$N$1+1))+1),"") ->  | AT95: =IFERROR(CHOOSE('Guts-2'!$D$26,H95,K95,N95,Q95,T95,W95,Z95,AC95,AY95),"") ->  | AU95: =IFERROR(CHOOSE('Guts-2'!$D$26,I95,L95,O95,R95,U95,X95,AA95,AD95,AZ95),"") ->  | AX95: =INDEX('Import (ADP)'!$C$2:$C$999,MATCH(A95, 'Import (ADP)'!$B$2:$B$999,0)) ->  | BA95: =IF(VLOOKUP(A96,'Name-Sort'!$D$2:$E$999,2,FALSE)="",A96,"") -> Keon Broxton | BB95: =IFERROR(INDEX($BA$1:$BA$999,SMALL(IF($BA$1:$BA$999<>"",ROW($BA$1:$BA$999)),ROW(BA95))),"") -> Keon Broxton
A96: Keon Broxton | B96: broxtke01 | C96: OF | D96: CF | E96: MIL | F96: 27 | G96: 332 | H96: 192 | I96: 549 | J96: 374 | K96: 192 | L96: 549 | V96: 334 | W96: 192 | X96: 549 | Y96: 326.62 | Z96: 192 | AA96: 549 | AB96: 341.655 | AC96: 192 | AD96: 549 | AF96: 291 | AL96: 319 | AN96: =IFERROR(INDEX('Guts-2'!$K$1:$K$30,MATCH(E96,'Guts-2'!$J$1:$J$30,0)),TRUE) -> TRUE | AO96: =IF(AN96=FALSE,"",IFERROR(CHOOSE('Guts-2'!$D$27,AE96,AF96,AG96,AH96,AI96,AJ96,AK96,AL96,AM96),"")) ->  | AQ96: =IF(AN96=FALSE,"",IFERROR(CHOOSE('Guts-2'!$D$26,G96,J96,M96,P96,S96,V96,Y96,AB96,AX96),"")) ->  | AS96: =IFERROR(IF(Settings!$L$5="Mixed (Standard)",(RANK(AQ96,$AQ$2:$AQ$999,1)/('Guts-2'!$N$1+1))+1,(RANK(AR96,$AR$2:$AR$999,1)/('Guts-2'!$N$1+1))+1),"") ->  | AT96: =IFERROR(CHOOSE('Guts-2'!$D$26,H96,K96,N96,Q96,T96,W96,Z96,AC96,AY96),"") ->  | AU96: =IFERROR(CHOOSE('Guts-2'!$D$26,I96,L96,O96,R96,U96,X96,AA96,AD96,AZ96),"") ->  | AX96: =INDEX('Import (ADP)'!$C$2:$C$999,MATCH(A96, 'Import (ADP)'!$B$2:$B$999,0)) ->  | BA96: =IF(VLOOKUP(A97,'Name-Sort'!$D$2:$E$999,2,FALSE)="",A97,"") -> Jay Bruce | BB96: =IFERROR(INDEX($BA$1:$BA$999,SMALL(IF($BA$1:$BA$999<>"",ROW($BA$1:$BA$999)),ROW(BA96))),"") -> Jay Bruce
A97: Jay Bruce | B97: bruceja01 | C97: 1B | D97: RF | E97: NYM | F97: 30 | G97: 151 | H97: 76 | I97: 210 | J97: 156 | K97: 76 | L97: 210 | M97: 146.65 | N97: 102 | O97: 188 | P97: 140 | Q97: 76 | R97: 210 | V97: 141.2 | W97: 76 | X97: 210 | Y97: 161.06 | Z97: 76 | AA97: 210 | AB97: 149.3183333 | AC97: 76 | AD97: 210 | AE97: 159 | AF97: 193 | AH97: 97 | AI97: 114 | AL97: 142 | AN97: =IFERROR(INDEX('Guts-2'!$K$1:$K$30,MATCH(E97,'Guts-2'!$J$1:$J$30,0)),TRUE) -> TRUE | AO97: =IF(AN97=FALSE,"",IFERROR(CHOOSE('Guts-2'!$D$27,AE97,AF97,AG97,AH97,AI97,AJ97,AK97,AL97,AM97),"")) -> 97 | AP97: 97 | AQ97: =IF(AN97=FALSE,"",IFERROR(CHOOSE('Guts-2'!$D$26,G97,J97,M97,P97,S97,V97,Y97,AB97,AX97),"")) -> 146.65 | AR97: 146 | AS97: =IFERROR(IF(Settings!$L$5="Mixed (Standard)",(RANK(AQ97,$AQ$2:$AQ$999,1)/('Guts-2'!$N$1+1))+1,(RANK(AR97,$AR$2:$AR$999,1)/('Guts-2'!$N$1+1))+1),"") -> 12.23076923 | AT97: =IFERROR(CHOOSE('Guts-2'!$D$26,H97,K97,N97,Q97,T97,W97,Z97,AC97,AY97),"") -> 102 | AU97: =IFERROR(CHOOSE('Guts-2'!$D$26,I97,L97,O97,R97,U97,X97,AA97,AD97,AZ97),"") -> 188 | AV97: 102 | AW97: 188 | AX97: =INDEX('Import (ADP)'!$C$2:$C$999,MATCH(A97, 'Import (ADP)'!$B$2:$B$999,0)) ->  | BA97: =IF(VLOOKUP(A98,'Name-Sort'!$D$2:$E$999,2,FALSE)="",A98,"") -> Kris Bryant | BB97: =IFERROR(INDEX($BA$1:$BA$999,SMALL(IF($BA$1:$BA$999<>"",ROW($BA$1:$BA$999)),ROW(BA97))),"") -> Kris Bryant
A98: Kris Bryant | B98: bryankr01 | C98: 3B | D98: RF | E98: CHC | F98: 26 | G98: 12 | H98: 5 | I98: 32 | J98: 12 | K98: 5 | L98: 32 | M98: 19.96 | N98: 5 | O98: 32 | P98: 14 | Q98: 5 | R98: 32 | V98: 13.2 | W98: 5 | X98: 32 | Y98: 15.09 | Z98: 6 | AA98: 30 | AB98: 14.375 | AC98: 5 | AD98: 32 | AE98: 12 | AF98: 11 | AH98: 20 | AI98: 8 | AL98: 11 | AN98: =IFERROR(INDEX('Guts-2'!$K$1:$K$30,MATCH(E98,'Guts-2'!$J$1:$J$30,0)),TRUE) -> TRUE | AO98: =IF(AN98=FALSE,"",IFERROR(CHOOSE('Guts-2'!$D$27,AE98,AF98,AG98,AH98,AI98,AJ98,AK98,AL98,AM98),"")) -> 20 | AP98: 20 | AQ98: =IF(AN98=FALSE,"",IFERROR(CHOOSE('Guts-2'!$D$26,G98,J98,M98,P98,S98,V98,Y98,AB98,AX98),"")) -> 19.96 | AR98: 17 | AS98: =IFERROR(IF(Settings!$L$5="Mixed (Standard)",(RANK(AQ98,$AQ$2:$AQ$999,1)/('Guts-2'!$N$1+1))+1,(RANK(AR98,$AR$2:$AR$999,1)/('Guts-2'!$N$1+1))+1),"") -> 2.307692308 | AT98: =IFERROR(CHOOSE('Guts-2'!$D$26,H98,K98,N98,Q98,T98,W98,Z98,AC98,AY98),"") -> 5 | AU98: =IFERROR(CHOOSE('Guts-2'!$D$26,I98,L98,O98,R98,U98,X98,AA98,AD98,AZ98),"") -> 32 | AV98: 5 | AW98: 32 | AX98: =INDEX('Import (ADP)'!$C$2:$C$999,MATCH(A98, 'Import (ADP)'!$B$2:$B$999,0)) -> 13 | AY98: 5 | AZ98: 32 | BA98: =IF(VLOOKUP(A99,'Name-Sort'!$D$2:$E$999,2,FALSE)="",A99,"") -> Clay Buchholz | BB98: =IFERROR(INDEX($BA$1:$BA$999,SMALL(IF($BA$1:$BA$999<>"",ROW($BA$1:$BA$999)),ROW(BA98))),"") -> Clay Buchholz
A99: Clay Buchholz | B99: buchhcl01 | C99: SP | E99: N/A | F99: 33 | Y99: 705 | Z99: 705 | AA99: 705 | AB99: 705 | AC99: 466 | AD99: 938 | AN99: =IFERROR(INDEX('Guts-2'!$K$1:$K$30,MATCH(E99,'Guts-2'!$J$1:$J$30,0)),TRUE) -> TRUE | AO99: =IF(AN99=FALSE,"",IFERROR(CHOOSE('Guts-2'!$D$27,AE99,AF99,AG99,AH99,AI99,AJ99,AK99,AL99,AM99),"")) ->  | AQ99: =IF(AN99=FALSE,"",IFERROR(CHOOSE('Guts-2'!$D$26,G99,J99,M99,P99,S99,V99,Y99,AB99,AX99),"")) ->  | AS99: =IFERROR(IF(Settings!$L$5="Mixed (Standard)",(RANK(AQ99,$AQ$2:$AQ$999,1)/('Guts-2'!$N$1+1))+1,(RANK(AR99,$AR$2:$AR$999,1)/('Guts-2'!$N$1+1))+1),"") ->  | AT99: =IFERROR(CHOOSE('Guts-2'!$D$26,H99,K99,N99,Q99,T99,W99,Z99,AC99,AY99),"") ->  | AU99: =IFERROR(CHOOSE('Guts-2'!$D$26,I99,L99,O99,R99,U99,X99,AA99,AD99,AZ99),"") ->  | AX99: =INDEX('Import (ADP)'!$C$2:$C$999,MATCH(A99, 'Import (ADP)'!$B$2:$B$999,0)) ->  | BA99: =IF(VLOOKUP(A100,'Name-Sort'!$D$2:$E$999,2,FALSE)="",A100,"") -> Ryan Buchter | BB99: =IFERROR(INDEX($BA$1:$BA$999,SMALL(IF($BA$1:$BA$999<>"",ROW($BA$1:$BA$999)),ROW(BA99))),"") -> Ryan Buchter
A100: Ryan Buchter | B100: buchtry01 | C100: RP | E100: OAK | F100: 31 | G100: 673 | H100: 445 | I100: 896 | V100: 754.5 | W100: 476 | X100: 1004 | Y100: 671.47 | Z100: 476 | AA100: 750 | AB100: 699.6566667 | AC100: 462 | AD100: 931 | AL100: 445 | AN100: =IFERROR(INDEX('Guts-2'!$K$1:$K$30,MATCH(E100,'Guts-2'!$J$1:$J$30,0)),TRUE) -> TRUE | AO100: =IF(AN100=FALSE,"",IFERROR(CHOOSE('Guts-2'!$D$27,AE100,AF100,AG100,AH100,AI100,AJ100,AK100,AL100,AM100),"")) ->  | AQ100: =IF(AN100=FALSE,"",IFERROR(CHOOSE('Guts-2'!$D$26,G100,J100,M100,P100,S100,V100,Y100,AB100,AX100),"")) ->  | AS100: =IFERROR(IF(Settings!$L$5="Mixed (Standard)",(RANK(AQ100,$AQ$2:$AQ$999,1)/('Guts-2'!$N$1+1))+1,(RANK(AR100,$AR$2:$AR$999,1)/('Guts-2'!$N$1+1))+1),"") ->  | AT100: =IFERROR(CHOOSE('Guts-2'!$D$26,H100,K100,N100,Q100,T100,W100,Z100,AC100,AY100),"") ->  | AU100: =IFERROR(CHOOSE('Guts-2'!$D$26,I100,L100,O100,R100,U100,X100,AA100,AD100,AZ100),"") ->  | AX100: =INDEX('Import (ADP)'!$C$2:$C$999,MATCH(A100, 'Import (ADP)'!$B$2:$B$999,0)) ->  | BA100: =IF(VLOOKUP(A101,'Name-Sort'!$D$2:$E$999,2,FALSE)="",A101,"") -> Walker Buehler | BB100: =IFERROR(INDEX($BA$1:$BA$999,SMALL(IF($BA$1:$BA$999<>"",ROW($BA$1:$BA$999)),ROW(BA100))),"") -> Walker Buehler
A101: Walker Buehler | B101: buehlwa01 | C101: RP | E101: LAD | F101: 23 | G101: 326 | H101: 106 | I101: 461 | M101: 184.29 | N101: 106 | O101: 358 | V101: 311.3 | W101: 106 | X101: 461 | Y101: 353.99 | Z101: 230 | AA101: 461 | AB101: 293.895 | AC101: 106 | AD101: 461 | AL101: 494 | AN101: =IFERROR(INDEX('Guts-2'!$K$1:$K$30,MATCH(E101,'Guts-2'!$J$1:$J$30,0)),TRUE) -> TRUE | AO101: =IF(AN101=FALSE,"",IFERROR(CHOOSE('Guts-2'!$D$27,AE101,AF101,AG101,AH101,AI101,AJ101,AK101,AL101,AM101),"")) ->  | AQ101: =IF(AN101=FALSE,"",IFERROR(CHOOSE('Guts-2'!$D$26,G101,J101,M101,P101,S101,V101,Y101,AB101,AX101),"")) -> 184.29 | AR101: 218 | AS101: =IFERROR(IF(Settings!$L$5="Mixed (Standard)",(RANK(AQ101,$AQ$2:$AQ$999,1)/('Guts-2'!$N$1+1))+1,(RANK(AR101,$AR$2:$AR$999,1)/('Guts-2'!$N$1+1))+1),"") -> 17.76923077 | AT101: =IFERROR(CHOOSE('Guts-2'!$D$26,H101,K101,N101,Q101,T101,W101,Z101,AC101,AY101),"") -> 106 | AU101: =IFERROR(CHOOSE('Guts-2'!$D$26,I101,L101,O101,R101,U101,X101,AA101,AD101,AZ101),"") -> 358 | AV101: 106 | AW101: 358 | AX101: =INDEX('Import (ADP)'!$C$2:$C$999,MATCH(A101, 'Import (ADP)'!$B$2:$B$999,0)) ->  | BA101: =IF(VLOOKUP(A102,'Name-Sort'!$D$2:$E$999,2,FALSE)="",A102,"") -> Madison Bumgarner | BB101: =IFERROR(INDEX($BA$1:$BA$999,SMALL(IF($BA$1:$BA$999<>"",ROW($BA$1:$BA$999)),ROW(BA101))),"") -> Madison Bumgarner
A102: Madison Bumgarner | B102: bumgama01 | C102: SP | E102: SF | F102: 28 | G102: 25 | H102: 10 | I102: 47 | J102: 25 | K102: 10 | L102: 47 | M102: 18.56 | N102: 10 | O102: 29 | P102: 24 | Q102: 10 | R102: 47 | V102: 25.7 | W102: 10 | X102: 47 | Y102: 26.21 | Z102: 13 | AA102: 47 | AB102: 24.07833333 | AC102: 10 | AD102: 47 | AE102: 61 | AF102: 27 | AH102: 37 | AI102: 31 | AL102: 29 | AN102: =IFERROR(INDEX('Guts-2'!$K$1:$K$30,MATCH(E102,'Guts-2'!$J$1:$J$30,0)),TRUE) -> TRUE | AO102: =IF(AN102=FALSE,"",IFERROR(CHOOSE('Guts-2'!$D$27,AE102,AF102,AG102,AH102,AI102,AJ102,AK102,AL102,AM102),"")) -> 37 | AP102: 37 | AQ102: =IF(AN102=FALSE,"",IFERROR(CHOOSE('Guts-2'!$D$26,G102,J102,M102,P102,S102,V102,Y102,AB102,AX102),"")) -> 18.56 | AR102: 16 | AS102: =IFERROR(IF(Settings!$L$5="Mixed (Standard)",(RANK(AQ102,$AQ$2:$AQ$999,1)/('Guts-2'!$N$1+1))+1,(RANK(AR102,$AR$2:$AR$999,1)/('Guts-2'!$N$1+1))+1),"") -> 2.230769231 | AT102: =IFERROR(CHOOSE('Guts-2'!$D$26,H102,K102,N102,Q102,T102,W102,Z102,AC102,AY102),"") -> 10 | AU102: =IFERROR(CHOOSE('Guts-2'!$D$26,I102,L102,O102,R102,U102,X102,AA102,AD102,AZ102),"") -> 29 | AV102: 10 | AW102: 29 | AX102: =INDEX('Import (ADP)'!$C$2:$C$999,MATCH(A102, 'Import (ADP)'!$B$2:$B$999,0)) ->  | BA102: =IF(VLOOKUP(A103,'Name-Sort'!$D$2:$E$999,2,FALSE)="",A103,"") -> Dylan Bundy | BB102: =IFERROR(INDEX($BA$1:$BA$999,SMALL(IF($BA$1:$BA$999<>"",ROW($BA$1:$BA$999)),ROW(BA102))),"") -> Dylan Bundy
A103: Dylan Bundy | B103: bundydy01 | C103: SP | E103: BAL | F103: 25 | G103: 181 | H103: 88 | I103: 247 | J103: 186 | K103: 88 | L103: 248 | M103: 116.62 | N103: 88 | O103: 163 | P103: 151 | Q103: 88 | R103: 247 | V103: 174.5 | W103: 88 | X103: 247 | Y103: 192.16 | Z103: 98 | AA103: 247 | AB103: 166.88 | AC103: 88 | AD103: 247 | AE103: 195 | AF103: 197 | AH103: 240 | AI103: 158 | AL103: 199 | AN103: =IFERROR(INDEX('Guts-2'!$K$1:$K$30,MATCH(E103,'Guts-2'!$J$1:$J$30,0)),TRUE) -> TRUE | AO103: =IF(AN103=FALSE,"",IFERROR(CHOOSE('Guts-2'!$D$27,AE103,AF103,AG103,AH103,AI103,AJ103,AK103,AL103,AM103),"")) -> 240 | AP103: 240 | AQ103: =IF(AN103=FALSE,"",IFERROR(CHOOSE('Guts-2'!$D$26,G103,J103,M103,P103,S103,V103,Y103,AB103,AX103),"")) -> 116.62 | AR103: 112 | AS103: =IFERROR(IF(Settings!$L$5="Mixed (Standard)",(RANK(AQ103,$AQ$2:$AQ$999,1)/('Guts-2'!$N$1+1))+1,(RANK(AR103,$AR$2:$AR$999,1)/('Guts-2'!$N$1+1))+1),"") -> 9.615384615 | AT103: =IFERROR(CHOOSE('Guts-2'!$D$26,H103,K103,N103,Q103,T103,W103,Z103,AC103,AY103),"") -> 88 | AU103: =IFERROR(CHOOSE('Guts-2'!$D$26,I103,L103,O103,R103,U103,X103,AA103,AD103,AZ103),"") -> 163 | AV103: 88 | AW103: 163 | AX103: =INDEX('Import (ADP)'!$C$2:$C$999,MATCH(A103, 'Import (ADP)'!$B$2:$B$999,0)) ->  | BA103: =IF(VLOOKUP(A104,'Name-Sort'!$D$2:$E$999,2,FALSE)="",A104,"") -> Matt Bush | BB103: =IFERROR(INDEX($BA$1:$BA$999,SMALL(IF($BA$1:$BA$999<>"",ROW($BA$1:$BA$999)),ROW(BA103))),"") -> Matt Bush
A104: Matt Bush | B104: bushma01 | C104: RP | E104: TEX | F104: 32 | G104: 500 | H104: 299 | I104: 665 | J104: 280 | K104: 185 | L104: 598 | V104: 412.8 | W104: 273 | X104: 598 | Y104: 466.26 | Z104: 299 | AA104: 598 | AB104: 414.765 | AC104: 274 | AD104: 598 | AL104: 423 | AN104: =IFERROR(INDEX('Guts-2'!$K$1:$K$30,MATCH(E104,'Guts-2'!$J$1:$J$30,0)),TRUE) -> TRUE | AO104: =IF(AN104=FALSE,"",IFERROR(CHOOSE('Guts-2'!$D$27,AE104,AF104,AG104,AH104,AI104,AJ104,AK104,AL104,AM104),"")) ->  | AQ104: =IF(AN104=FALSE,"",IFERROR(CHOOSE('Guts-2'!$D$26,G104,J104,M104,P104,S104,V104,Y104,AB104,AX104),"")) ->  | AS104: =IFERROR(IF(Settings!$L$5="Mixed (Standard)",(RANK(AQ104,$AQ$2:$AQ$999,1)/('Guts-2'!$N$1+1))+1,(RANK(AR104,$AR$2:$AR$999,1)/('Guts-2'!$N$1+1))+1),"") ->  | AT104: =IFERROR(CHOOSE('Guts-2'!$D$26,H104,K104,N104,Q104,T104,W104,Z104,AC104,AY104),"") ->  | AU104: =IFERROR(CHOOSE('Guts-2'!$D$26,I104,L104,O104,R104,U104,X104,AA104,AD104,AZ104),"") ->  | AX104: =INDEX('Import (ADP)'!$C$2:$C$999,MATCH(A104, 'Import (ADP)'!$B$2:$B$999,0)) ->  | BA104: =IF(VLOOKUP(A105,'Name-Sort'!$D$2:$E$999,2,FALSE)="",A105,"") -> Drew Butera | BB104: =IFERROR(INDEX($BA$1:$BA$999,SMALL(IF($BA$1:$BA$999<>"",ROW($BA$1:$BA$999)),ROW(BA104))),"") -> Drew Butera
A105: Drew Butera | B105: buterdr01 | C105: C | E105: KC | F105: 34 | Y105: 683.93 | Z105: 486 | AA105: 749 | AB105: 683.93 | AC105: 452 | AD105: 910 | AN105: =IFERROR(INDEX('Guts-2'!$K$1:$K$30,MATCH(E105,'Guts-2'!$J$1:$J$30,0)),TRUE) -> TRUE | AO105: =IF(AN105=FALSE,"",IFERROR(CHOOSE('Guts-2'!$D$27,AE105,AF105,AG105,AH105,AI105,AJ105,AK105,AL105,AM105),"")) ->  | AQ105: =IF(AN105=FALSE,"",IFERROR(CHOOSE('Guts-2'!$D$26,G105,J105,M105,P105,S105,V105,Y105,AB105,AX105),"")) ->  | AS105: =IFERROR(IF(Settings!$L$5="Mixed (Standard)",(RANK(AQ105,$AQ$2:$AQ$999,1)/('Guts-2'!$N$1+1))+1,(RANK(AR105,$AR$2:$AR$999,1)/('Guts-2'!$N$1+1))+1),"") ->  | AT105: =IFERROR(CHOOSE('Guts-2'!$D$26,H105,K105,N105,Q105,T105,W105,Z105,AC105,AY105),"") ->  | AU105: =IFERROR(CHOOSE('Guts-2'!$D$26,I105,L105,O105,R105,U105,X105,AA105,AD105,AZ105),"") ->  | AX105: =INDEX('Import (ADP)'!$C$2:$C$999,MATCH(A105, 'Import (ADP)'!$B$2:$B$999,0)) ->  | BA105: =IF(VLOOKUP(A106,'Name-Sort'!$D$2:$E$999,2,FALSE)="",A106,"") -> Eddie Butler | BB105: =IFERROR(INDEX($BA$1:$BA$999,SMALL(IF($BA$1:$BA$999<>"",ROW($BA$1:$BA$999)),ROW(BA105))),"") -> Eddie Butler
A106: Eddie Butler | B106: butleed01 | C106: SP | E106: CHC | F106: 27 | G106: 964 | H106: 550 | I106: 1283 | V106: 909.5 | W106: 550 | X106: 1210 | Y106: 674 | Z106: 550 | AA106: 748 | AB106: 849.1666667 | AC106: 550 | AD106: 1130 | AN106: =IFERROR(INDEX('Guts-2'!$K$1:$K$30,MATCH(E106,'Guts-2'!$J$1:$J$30,0)),TRUE) -> TRUE | AO106: =IF(AN106=FALSE,"",IFERROR(CHOOSE('Guts-2'!$D$27,AE106,AF106,AG106,AH106,AI106,AJ106,AK106,AL106,AM106),"")) ->  | AQ106: =IF(AN106=FALSE,"",IFERROR(CHOOSE('Guts-2'!$D$26,G106,J106,M106,P106,S106,V106,Y106,AB106,AX106),"")) ->  | AS106: =IFERROR(IF(Settings!$L$5="Mixed (Standard)",(RANK(AQ106,$AQ$2:$AQ$999,1)/('Guts-2'!$N$1+1))+1,(RANK(AR106,$AR$2:$AR$999,1)/('Guts-2'!$N$1+1))+1),"") ->  | AT106: =IFERROR(CHOOSE('Guts-2'!$D$26,H106,K106,N106,Q106,T106,W106,Z106,AC106,AY106),"") ->  | AU106: =IFERROR(CHOOSE('Guts-2'!$D$26,I106,L106,O106,R106,U106,X106,AA106,AD106,AZ106),"") ->  | AX106: =INDEX('Import (ADP)'!$C$2:$C$999,MATCH(A106, 'Import (ADP)'!$B$2:$B$999,0)) ->  | BA106: =IF(VLOOKUP(A107,'Name-Sort'!$D$2:$E$999,2,FALSE)="",A107,"") -> Byron Buxton | BB106: =IFERROR(INDEX($BA$1:$BA$999,SMALL(IF($BA$1:$BA$999<>"",ROW($BA$1:$BA$999)),ROW(BA106))),"") -> Byron Buxton
A107: Byron Buxton | B107: buxtoby01 | C107: OF | D107: CF | E107: MIN | F107: 24 | G107: 57 | H107: 23 | I107: 145 | J107: 65 | K107: 23 | L107: 145 | M107: 108.88 | N107: 68 | O107: 145 | P107: 64 | Q107: 23 | R107: 145 | V107: 59.7 | W107: 23 | X107: 145 | Y107: 52.39 | Z107: 23 | AA107: 82 | AB107: 67.82833333 | AC107: 23 | AD107: 145 | AE107: 97 | AF107: 56 | AH107: 65 | AI107: 54 | AL107: 64 | AN107: =IFERROR(INDEX('Guts-2'!$K$1:$K$30,MATCH(E107,'Guts-2'!$J$1:$J$30,0)),TRUE) -> TRUE | AO107: =IF(AN107=FALSE,"",IFERROR(CHOOSE('Guts-2'!$D$27,AE107,AF107,AG107,AH107,AI107,AJ107,AK107,AL107,AM107),"")) -> 65 | AP107: 65 | AQ107: =IF(AN107=FALSE,"",IFERROR(CHOOSE('Guts-2'!$D$26,G107,J107,M107,P107,S107,V107,Y107,AB107,AX107),"")) -> 108.88 | AR107: 104 | AS107: =IFERROR(IF(Settings!$L$5="Mixed (Standard)",(RANK(AQ107,$AQ$2:$AQ$999,1)/('Guts-2'!$N$1+1))+1,(RANK(AR107,$AR$2:$AR$999,1)/('Guts-2'!$N$1+1))+1),"") -> 9 | AT107: =IFERROR(CHOOSE('Guts-2'!$D$26,H107,K107,N107,Q107,T107,W107,Z107,AC107,AY107),"") -> 68 | AU107: =IFERROR(CHOOSE('Guts-2'!$D$26,I107,L107,O107,R107,U107,X107,AA107,AD107,AZ107),"") -> 145 | AV107: 68 | AW107: 145 | AX107: =INDEX('Import (ADP)'!$C$2:$C$999,MATCH(A107, 'Import (ADP)'!$B$2:$B$999,0)) ->  | BA107: =IF(VLOOKUP(A108,'Name-Sort'!$D$2:$E$999,2,FALSE)="",A108,"") -> Asdrubal Cabrera | BB107: =IFERROR(INDEX($BA$1:$BA$999,SMALL(IF($BA$1:$BA$999<>"",ROW($BA$1:$BA$999)),ROW(BA107))),"") -> Asdrubal Cabrera
A108: Asdrubal Cabrera | B108: cabreas01 | C108: 2B | E108: NYM | F108: 32 | G108: 323 | H108: 134 | I108: 512 | J108: 304 | K108: 134 | L108: 512 | M108: 297.88 | N108: 134 | O108: 512 | P108: 216 | Q108: 134 | R108: 512 | V108: 325.8 | W108: 134 | X108: 512 | Y108: 310.8 | Z108: 190 | AA108: 454 | AB108: 296.2466667 | AC108: 134 | AD108: 512 | AH108: 237 | AI108: 284 | AL108: 330 | AN108: =IFERROR(INDEX('Guts-2'!$K$1:$K$30,MATCH(E108,'Guts-2'!$J$1:$J$30,0)),TRUE) -> TRUE | AO108: =IF(AN108=FALSE,"",IFERROR(CHOOSE('Guts-2'!$D$27,AE108,AF108,AG108,AH108,AI108,AJ108,AK108,AL108,AM108),"")) -> 237 | AP108: 237 | AQ108: =IF(AN108=FALSE,"",IFERROR(CHOOSE('Guts-2'!$D$26,G108,J108,M108,P108,S108,V108,Y108,AB108,AX108),"")) -> 297.88 | AR108: 365 | AS108: =IFERROR(IF(Settings!$L$5="Mixed (Standard)",(RANK(AQ108,$AQ$2:$AQ$999,1)/('Guts-2'!$N$1+1))+1,(RANK(AR108,$AR$2:$AR$999,1)/('Guts-2'!$N$1+1))+1),"") -> 29.07692308 | AT108: =IFERROR(CHOOSE('Guts-2'!$D$26,H108,K108,N108,Q108,T108,W108,Z108,AC108,AY108),"") -> 134 | AU108: =IFERROR(CHOOSE('Guts-2'!$D$26,I108,L108,O108,R108,U108,X108,AA108,AD108,AZ108),"") -> 512 | AV108: 134 | AW108: 512 | AX108: =INDEX('Import (ADP)'!$C$2:$C$999,MATCH(A108, 'Import (ADP)'!$B$2:$B$999,0)) ->  | BA108: =IF(VLOOKUP(A109,'Name-Sort'!$D$2:$E$999,2,FALSE)="",A109,"") -> Melky Cabrera | BB108: =IFERROR(INDEX($BA$1:$BA$999,SMALL(IF($BA$1:$BA$999<>"",ROW($BA$1:$BA$999)),ROW(BA108))),"") -> Melky Cabrera
A109: Melky Cabrera | B109: cabreme01 | C109: OF | D109: LF,RF | E109: N/A | F109: 33 | G109: 355 | H109: 106 | I109: 803 | J109: 302 | K109: 106 | L109: 803 | M109: 271.11 | N109: 143 | O109: 803 | P109: 204 | Q109: 106 | R109: 803 | V109: 317.3 | W109: 106 | X109: 803 | Y109: 328.33 | Z109: 106 | AA109: 477 | AB109: 296.29 | AC109: 106 | AD109: 803 | AF109: 341 | AH109: 189 | AL109: 321 | AN109: =IFERROR(INDEX('Guts-2'!$K$1:$K$30,MATCH(E109,'Guts-2'!$J$1:$J$30,0)),TRUE) -> TRUE | AO109: =IF(AN109=FALSE,"",IFERROR(CHOOSE('Guts-2'!$D$27,AE109,AF109,AG109,AH109,AI109,AJ109,AK109,AL109,AM109),"")) -> 189 | AP109: 189 | AQ109: =IF(AN109=FALSE,"",IFERROR(CHOOSE('Guts-2'!$D$26,G109,J109,M109,P109,S109,V109,Y109,AB109,AX109),"")) -> 271.11 | AR109: 330 | AS109: =IFERROR(IF(Settings!$L$5="Mixed (Standard)",(RANK(AQ109,$AQ$2:$AQ$999,1)/('Guts-2'!$N$1+1))+1,(RANK(AR109,$AR$2:$AR$999,1)/('Guts-2'!$N$1+1))+1),"") -> 26.38461538 | AT109: =IFERROR(CHOOSE('Guts-2'!$D$26,H109,K109,N109,Q109,T109,W109,Z109,AC109,AY109),"") -> 143 | AU109: =IFERROR(CHOOSE('Guts-2'!$D$26,I109,L109,O109,R109,U109,X109,AA109,AD109,AZ109),"") -> 803 | AV109: 143 | AW109: 803 | AX109: =INDEX('Import (ADP)'!$C$2:$C$999,MATCH(A109, 'Import (ADP)'!$B$2:$B$999,0)) ->  | BA109: =IF(VLOOKUP(A110,'Name-Sort'!$D$2:$E$999,2,FALSE)="",A110,"") -> Miguel Cabrera | BB109: =IFERROR(INDEX($BA$1:$BA$999,SMALL(IF($BA$1:$BA$999<>"",ROW($BA$1:$BA$999)),ROW(BA109))),"") -> Miguel Cabrera
A110: Miguel Cabrera | B110: cabremi01 | C110: 1B | E110: DET | F110: 34 | G110: 90 | H110: 48 | I110: 221 | J110: 71 | K110: 47 | L110: 221 | M110: 99.4 | N110: 53 | O110: 177 | P110: 123 | Q110: 48 | R110: 221 | V110: 93.7 | W110: 48 | X110: 221 | Y110: 95.69 | Z110: 48 | AA110: 221 | AB110: 95.465 | AC110: 48 | AD110: 221 | AE110: 96 | AF110: 62 | AH110: 111 | AI110: 96 | AL110: 72 | AN110: =IFERROR(INDEX('Guts-2'!$K$1:$K$30,MATCH(E110,'Guts-2'!$J$1:$J$30,0)),TRUE) -> TRUE | AO110: =IF(AN110=FALSE,"",IFERROR(CHOOSE('Guts-2'!$D$27,AE110,AF110,AG110,AH110,AI110,AJ110,AK110,AL110,AM110),"")) -> 111 | AP110: 111 | AQ110: =IF(AN110=FALSE,"",IFERROR(CHOOSE('Guts-2'!$D$26,G110,J110,M110,P110,S110,V110,Y110,AB110,AX110),"")) -> 99.4 | AR110: 96 | AS110: =IFERROR(IF(Settings!$L$5="Mixed (Standard)",(RANK(AQ110,$AQ$2:$AQ$999,1)/('Guts-2'!$N$1+1))+1,(RANK(AR110,$AR$2:$AR$999,1)/('Guts-2'!$N$1+1))+1),"") -> 8.384615385 | AT110: =IFERROR(CHOOSE('Guts-2'!$D$26,H110,K110,N110,Q110,T110,W110,Z110,AC110,AY110),"") -> 53 | AU110: =IFERROR(CHOOSE('Guts-2'!$D$26,I110,L110,O110,R110,U110,X110,AA110,AD110,AZ110),"") -> 177 | AV110: 53 | AW110: 177 | AX110: =INDEX('Import (ADP)'!$C$2:$C$999,MATCH(A110, 'Import (ADP)'!$B$2:$B$999,0)) ->  | BA110: =IF(VLOOKUP(A111,'Name-Sort'!$D$2:$E$999,2,FALSE)="",A111,"") -> Trevor Cahill | BB110: =IFERROR(INDEX($BA$1:$BA$999,SMALL(IF($BA$1:$BA$999<>"",ROW($BA$1:$BA$999)),ROW(BA110))),"") -> Trevor Cahill
A111: Trevor Cahill | B111: cahiltr01 | C111: SP | E111: N/A | F111: 30 | G111: 583 | H111: 384 | I111: 776 | V111: 591.5 | W111: 384 | X111: 787 | Y111: 577.71 | Z111: 384 | AA111: 733 | AB111: 584.07 | AC111: 384 | AD111: 777 | AN111: =IFERROR(INDEX('Guts-2'!$K$1:$K$30,MATCH(E111,'Guts-2'!$J$1:$J$30,0)),TRUE) -> TRUE | AO111: =IF(AN111=FALSE,"",IFERROR(CHOOSE('Guts-2'!$D$27,AE111,AF111,AG111,AH111,AI111,AJ111,AK111,AL111,AM111),"")) ->  | AQ111: =IF(AN111=FALSE,"",IFERROR(CHOOSE('Guts-2'!$D$26,G111,J111,M111,P111,S111,V111,Y111,AB111,AX111),"")) ->  | AS111: =IFERROR(IF(Settings!$L$5="Mixed (Standard)",(RANK(AQ111,$AQ$2:$AQ$999,1)/('Guts-2'!$N$1+1))+1,(RANK(AR111,$AR$2:$AR$999,1)/('Guts-2'!$N$1+1))+1),"") ->  | AT111: =IFERROR(CHOOSE('Guts-2'!$D$26,H111,K111,N111,Q111,T111,W111,Z111,AC111,AY111),"") ->  | AU111: =IFERROR(CHOOSE('Guts-2'!$D$26,I111,L111,O111,R111,U111,X111,AA111,AD111,AZ111),"") ->  | AX111: =INDEX('Import (ADP)'!$C$2:$C$999,MATCH(A111, 'Import (ADP)'!$B$2:$B$999,0)) ->  | BA111: =IF(VLOOKUP(A112,'Name-Sort'!$D$2:$E$999,2,FALSE)="",A112,"") -> Lorenzo Cain | BB111: =IFERROR(INDEX($BA$1:$BA$999,SMALL(IF($BA$1:$BA$999<>"",ROW($BA$1:$BA$999)),ROW(BA111))),"") -> Lorenzo Cain
A112: Lorenzo Cain | B112: cainlo01 | C112: OF | D112: CF | E112: MIL | F112: 31 | G112: 91 | H112: 55 | I112: 155 | J112: 92 | K112: 55 | L112: 155 | M112: 111.07 | N112: 66 | O112: 155 | P112: 83 | Q112: 55 | R112: 155 | V112: 89.2 | W112: 55 | X112: 155 | Y112: 90.81 | Z112: 55 | AA112: 146 | AB112: 92.84666667 | AC112: 55 | AD112: 155 | AE112: 65 | AF112: 85 | AH112: 46 | AI112: 82 | AL112: 73 | AN112: =IFERROR(INDEX('Guts-2'!$K$1:$K$30,MATCH(E112,'Guts-2'!$J$1:$J$30,0)),TRUE) -> TRUE | AO112: =IF(AN112=FALSE,"",IFERROR(CHOOSE('Guts-2'!$D$27,AE112,AF112,AG112,AH112,AI112,AJ112,AK112,AL112,AM112),"")) -> 46 | AP112: 46 | AQ112: =IF(AN112=FALSE,"",IFERROR(CHOOSE('Guts-2'!$D$26,G112,J112,M112,P112,S112,V112,Y112,AB112,AX112),"")) -> 111.07 | AR112: 106 | AS112: =IFERROR(IF(Settings!$L$5="Mixed (Standard)",(RANK(AQ112,$AQ$2:$AQ$999,1)/('Guts-2'!$N$1+1))+1,(RANK(AR112,$AR$2:$AR$999,1)/('Guts-2'!$N$1+1))+1),"") -> 9.153846154 | AT112: =IFERROR(CHOOSE('Guts-2'!$D$26,H112,K112,N112,Q112,T112,W112,Z112,AC112,AY112),"") -> 66 | AU112: =IFERROR(CHOOSE('Guts-2'!$D$26,I112,L112,O112,R112,U112,X112,AA112,AD112,AZ112),"") -> 155 | AV112: 66 | AW112: 155 | AX112: =INDEX('Import (ADP)'!$C$2:$C$999,MATCH(A112, 'Import (ADP)'!$B$2:$B$999,0)) ->  | BA112: =IF(VLOOKUP(A113,'Name-Sort'!$D$2:$E$999,2,FALSE)="",A113,"") -> Kole Calhoun | BB112: =IFERROR(INDEX($BA$1:$BA$999,SMALL(IF($BA$1:$BA$999<>"",ROW($BA$1:$BA$999)),ROW(BA112))),"") -> Kole Calhoun
A113: Kole Calhoun | B113: calhoko01 | C113: OF | D113: RF | E113: LAA | F113: 30 | G113: 278 | H113: 107 | I113: 514 | J113: 381 | K113: 107 | L113: 514 | M113: 238.33 | N113: 107 | O113: 514 | P113: 243 | Q113: 107 | R113: 514 | V113: 316.2 | W113: 107 | X113: 514 | Y113: 289.47 | Z113: 177 | AA113: 383 | AB113: 291 | AC113: 107 | AD113: 514 | AE113: 189 | AF113: 248 | AH113: 141 | AI113: 212 | AL113: 237 | AN113: =IFERROR(INDEX('Guts-2'!$K$1:$K$30,MATCH(E113,'Guts-2'!$J$1:$J$30,0)),TRUE) -> TRUE | AO113: =IF(AN113=FALSE,"",IFERROR(CHOOSE('Guts-2'!$D$27,AE113,AF113,AG113,AH113,AI113,AJ113,AK113,AL113,AM113),"")) -> 141 | AP113: 141 | AQ113: =IF(AN113=FALSE,"",IFERROR(CHOOSE('Guts-2'!$D$26,G113,J113,M113,P113,S113,V113,Y113,AB113,AX113),"")) -> 238.33 | AR113: 292 | AS113: =IFERROR(IF(Settings!$L$5="Mixed (Standard)",(RANK(AQ113,$AQ$2:$AQ$999,1)/('Guts-2'!$N$1+1))+1,(RANK(AR113,$AR$2:$AR$999,1)/('Guts-2'!$N$1+1))+1),"") -> 23.46153846 | AT113: =IFERROR(CHOOSE('Guts-2'!$D$26,H113,K113,N113,Q113,T113,W113,Z113,AC113,AY113),"") -> 107 | AU113: =IFERROR(CHOOSE('Guts-2'!$D$26,I113,L113,O113,R113,U113,X113,AA113,AD113,AZ113),"") -> 514 | AV113: 107 | AW113: 514 | AX113: =INDEX('Import (ADP)'!$C$2:$C$999,MATCH(A113, 'Import (ADP)'!$B$2:$B$999,0)) ->  | BA113: =IF(VLOOKUP(A114,'Name-Sort'!$D$2:$E$999,2,FALSE)="",A114,"") -> Willie Calhoun | BB113: =IFERROR(INDEX($BA$1:$BA$999,SMALL(IF($BA$1:$BA$999<>"",ROW($BA$1:$BA$999)),ROW(BA113))),"") -> Willie Calhoun
A114: Willie Calhoun | B114: calhowi01 | C114: OF | D114: LF | E114: TEX | F114: 23 | G114: 200 | H114: 132 | I114: 391 | J114: 357 | K114: 157 | L114: 475 | M114: 257.83 | N114: 175 | O114: 391 | P114: 270 | Q114: 157 | R114: 391 | V114: 268.3 | W114: 157 | X114: 391 | Y114: 254.09 | Z114: 157 | AA114: 386 | AB114: 267.87 | AC114: 157 | AD114: 391 | AF114: 268 | AH114: 247 | AI114: 278 | AL114: 240 | AN114: =IFERROR(INDEX('Guts-2'!$K$1:$K$30,MATCH(E114,'Guts-2'!$J$1:$J$30,0)),TRUE) -> TRUE | AO114: =IF(AN114=FALSE,"",IFERROR(CHOOSE('Guts-2'!$D$27,AE114,AF114,AG114,AH114,AI114,AJ114,AK114,AL114,AM114),"")) -> 247 | AP114: 247 | AQ114: =IF(AN114=FALSE,"",IFERROR(CHOOSE('Guts-2'!$D$26,G114,J114,M114,P114,S114,V114,Y114,AB114,AX114),"")) -> 257.83 | AR114: 313 | AS114: =IFERROR(IF(Settings!$L$5="Mixed (Standard)",(RANK(AQ114,$AQ$2:$AQ$999,1)/('Guts-2'!$N$1+1))+1,(RANK(AR114,$AR$2:$AR$999,1)/('Guts-2'!$N$1+1))+1),"") -> 25.07692308 | AT114: =IFERROR(CHOOSE('Guts-2'!$D$26,H114,K114,N114,Q114,T114,W114,Z114,AC114,AY114),"") -> 175 | AU114: =IFERROR(CHOOSE('Guts-2'!$D$26,I114,L114,O114,R114,U114,X114,AA114,AD114,AZ114),"") -> 391 | AV114: 175 | AW114: 391 | AX114: =INDEX('Import (ADP)'!$C$2:$C$999,MATCH(A114, 'Import (ADP)'!$B$2:$B$999,0)) ->  | BA114: =IF(VLOOKUP(A115,'Name-Sort'!$D$2:$E$999,2,FALSE)="",A115,"") -> Johan Camargo | BB114: =IFERROR(INDEX($BA$1:$BA$999,SMALL(IF($BA$1:$BA$999<>"",ROW($BA$1:$BA$999)),ROW(BA114))),"") -> Johan Camargo
A115: Johan Camargo | B115: camarjo01 | C115: 2B | E115: ATL | F115: 24 | G115: 483 | H115: 224 | I115: 643 | V115: 466 | W115: 224 | X115: 620 | Y115: 443.79 | Z115: 224 | AA115: 589 | AB115: 464.2633333 | AC115: 224 | AD115: 618 | AL115: 531 | AN115: =IFERROR(INDEX('Guts-2'!$K$1:$K$30,MATCH(E115,'Guts-2'!$J$1:$J$30,0)),TRUE) -> TRUE | AO115: =IF(AN115=FALSE,"",IFERROR(CHOOSE('Guts-2'!$D$27,AE115,AF115,AG115,AH115,AI115,AJ115,AK115,AL115,AM115),"")) ->  | AQ115: =IF(AN115=FALSE,"",IFERROR(CHOOSE('Guts-2'!$D$26,G115,J115,M115,P115,S115,V115,Y115,AB115,AX115),"")) ->  | AS115: =IFERROR(IF(Settings!$L$5="Mixed (Standard)",(RANK(AQ115,$AQ$2:$AQ$999,1)/('Guts-2'!$N$1+1))+1,(RANK(AR115,$AR$2:$AR$999,1)/('Guts-2'!$N$1+1))+1),"") ->  | AT115: =IFERROR(CHOOSE('Guts-2'!$D$26,H115,K115,N115,Q115,T115,W115,Z115,AC115,AY115),"") ->  | AU115: =IFERROR(CHOOSE('Guts-2'!$D$26,I115,L115,O115,R115,U115,X115,AA115,AD115,AZ115),"") ->  | AX115: =INDEX('Import (ADP)'!$C$2:$C$999,MATCH(A115, 'Import (ADP)'!$B$2:$B$999,0)) ->  | BA115: =IF(VLOOKUP(A116,'Name-Sort'!$D$2:$E$999,2,FALSE)="",A116,"") -> Jeimer Candelario | BB115: =IFERROR(INDEX($BA$1:$BA$999,SMALL(IF($BA$1:$BA$999<>"",ROW($BA$1:$BA$999)),ROW(BA115))),"") -> Jeimer Candelario
A116: Jeimer Candelario | B116: candeje01 | C116: 3B | E116: DET | F116: 24 | G116: 334 | H116: 72 | I116: 451 | J116: 300 | K116: 72 | L116: 451 | M116: 288.67 | N116: 72 | O116: 439 | V116: 340.4 | W116: 72 | X116: 453 | Y116: 337.05 | Z116: 189 | AA116: 451 | AB116: 320.024 | AC116: 72 | AD116: 451 | AF116: 294 | AH116: 238 | AL116: 337 | AN116: =IFERROR(INDEX('Guts-2'!$K$1:$K$30,MATCH(E116,'Guts-2'!$J$1:$J$30,0)),TRUE) -> TRUE | AO116: =IF(AN116=FALSE,"",IFERROR(CHOOSE('Guts-2'!$D$27,AE116,AF116,AG116,AH116,AI116,AJ116,AK116,AL116,AM116),"")) -> 238 | AP116: 238 | AQ116: =IF(AN116=FALSE,"",IFERROR(CHOOSE('Guts-2'!$D$26,G116,J116,M116,P116,S116,V116,Y116,AB116,AX116),"")) -> 288.67 | AR116: 355 | AS116: =IFERROR(IF(Settings!$L$5="Mixed (Standard)",(RANK(AQ116,$AQ$2:$AQ$999,1)/('Guts-2'!$N$1+1))+1,(RANK(AR116,$AR$2:$AR$999,1)/('Guts-2'!$N$1+1))+1),"") -> 28.30769231 | AT116: =IFERROR(CHOOSE('Guts-2'!$D$26,H116,K116,N116,Q116,T116,W116,Z116,AC116,AY116),"") -> 72 | AU116: =IFERROR(CHOOSE('Guts-2'!$D$26,I116,L116,O116,R116,U116,X116,AA116,AD116,AZ116),"") -> 439 | AV116: 72 | AW116: 439 | AX116: =INDEX('Import (ADP)'!$C$2:$C$999,MATCH(A116, 'Import (ADP)'!$B$2:$B$999,0)) ->  | BA116: =IF(VLOOKUP(A117,'Name-Sort'!$D$2:$E$999,2,FALSE)="",A117,"") -> Robinson Cano | BB116: =IFERROR(INDEX($BA$1:$BA$999,SMALL(IF($BA$1:$BA$999<>"",ROW($BA$1:$BA$999)),ROW(BA116))),"") -> Robinson Cano
A117: Robinson Cano | B117: canoro01 | C117: 2B | E117: SEA | F117: 35 | G117: 79 | H117: 28 | I117: 196 | J117: 60 | K117: 28 | L117: 196 | M117: 87.41 | N117: 46 | O117: 160 | P117: 59 | Q117: 28 | R117: 196 | V117: 78.2 | W117: 28 | X117: 196 | Y117: 83.62 | Z117: 28 | AA117: 196 | AB117: 74.53833333 | AC117: 28 | AD117: 196 | AE117: 58 | AF117: 55 | AH117: 68 | AI117: 47 | AL117: 61 | AN117: =IFERROR(INDEX('Guts-2'!$K$1:$K$30,MATCH(E117,'Guts-2'!$J$1:$J$30,0)),TRUE) -> TRUE | AO117: =IF(AN117=FALSE,"",IFERROR(CHOOSE('Guts-2'!$D$27,AE117,AF117,AG117,AH117,AI117,AJ117,AK117,AL117,AM117),"")) -> 68 | AP117: 68 | AQ117: =IF(AN117=FALSE,"",IFERROR(CHOOSE('Guts-2'!$D$26,G117,J117,M117,P117,S117,V117,Y117,AB117,AX117),"")) -> 87.41 | AR117: 81 | AS117: =IFERROR(IF(Settings!$L$5="Mixed (Standard)",(RANK(AQ117,$AQ$2:$AQ$999,1)/('Guts-2'!$N$1+1))+1,(RANK(AR117,$AR$2:$AR$999,1)/('Guts-2'!$N$1+1))+1),"") -> 7.230769231 | AT117: =IFERROR(CHOOSE('Guts-2'!$D$26,H117,K117,N117,Q117,T117,W117,Z117,AC117,AY117),"") -> 46 | AU117: =IFERROR(CHOOSE('Guts-2'!$D$26,I117,L117,O117,R117,U117,X117,AA117,AD117,AZ117),"") -> 160 | AV117: 46 | AW117: 160 | AX117: =INDEX('Import (ADP)'!$C$2:$C$999,MATCH(A117, 'Import (ADP)'!$B$2:$B$999,0)) ->  | BA117: =IF(VLOOKUP(A118,'Name-Sort'!$D$2:$E$999,2,FALSE)="",A118,"") -> Carter Capps | BB117: =IFERROR(INDEX($BA$1:$BA$999,SMALL(IF($BA$1:$BA$999<>"",ROW($BA$1:$BA$999)),ROW(BA117))),"") -> Carter Capps
A118: Carter Capps | B118: cappsca01 | C118: RP | E118: SD | F118: 27 | G118: 596 | H118: 394 | I118: 793 | V118: 629 | W118: 416 | X118: 837 | Y118: 623.52 | Z118: 479 | AA118: 749 | AB118: 616.1733333 | AC118: 407 | AD118: 820 | AN118: =IFERROR(INDEX('Guts-2'!$K$1:$K$30,MATCH(E118,'Guts-2'!$J$1:$J$30,0)),TRUE) -> TRUE | AO118: =IF(AN118=FALSE,"",IFERROR(CHOOSE('Guts-2'!$D$27,AE118,AF118,AG118,AH118,AI118,AJ118,AK118,AL118,AM118),"")) ->  | AQ118: =IF(AN118=FALSE,"",IFERROR(CHOOSE('Guts-2'!$D$26,G118,J118,M118,P118,S118,V118,Y118,AB118,AX118),"")) ->  | AS118: =IFERROR(IF(Settings!$L$5="Mixed (Standard)",(RANK(AQ118,$AQ$2:$AQ$999,1)/('Guts-2'!$N$1+1))+1,(RANK(AR118,$AR$2:$AR$999,1)/('Guts-2'!$N$1+1))+1),"") ->  | AT118: =IFERROR(CHOOSE('Guts-2'!$D$26,H118,K118,N118,Q118,T118,W118,Z118,AC118,AY118),"") ->  | AU118: =IFERROR(CHOOSE('Guts-2'!$D$26,I118,L118,O118,R118,U118,X118,AA118,AD118,AZ118),"") ->  | AX118: =INDEX('Import (ADP)'!$C$2:$C$999,MATCH(A118, 'Import (ADP)'!$B$2:$B$999,0)) ->  | BA118: =IF(VLOOKUP(A119,'Name-Sort'!$D$2:$E$999,2,FALSE)="",A119,"") -> Matt Carpenter | BB118: =IFERROR(INDEX($BA$1:$BA$999,SMALL(IF($BA$1:$BA$999<>"",ROW($BA$1:$BA$999)),ROW(BA118))),"") -> Matt Carpenter
A119: Matt Carpenter | B119: carpema01 | C119: 1B | E119: STL | F119: 32 | G119: 150 | H119: 71 | I119: 241 | J119: 108 | K119: 71 | L119: 241 | M119: 139.96 | N119: 71 | O119: 185 | P119: 104 | Q119: 69 | R119: 241 | V119: 140 | W119: 71 | X119: 241 | Y119: 180.31 | Z119: 97 | AA119: 241 | AB119: 137.045 | AC119: 71 | AD119: 241 | AE119: 237 | AF119: 95 | AH119: 84 | AI119: 85 | AL119: 122 | AN119: =IFERROR(INDEX('Guts-2'!$K$1:$K$30,MATCH(E119,'Guts-2'!$J$1:$J$30,0)),TRUE) -> TRUE | AO119: =IF(AN119=FALSE,"",IFERROR(CHOOSE('Guts-2'!$D$27,AE119,AF119,AG119,AH119,AI119,AJ119,AK119,AL119,AM119),"")) -> 84 | AP119: 84 | AQ119: =IF(AN119=FALSE,"",IFERROR(CHOOSE('Guts-2'!$D$26,G119,J119,M119,P119,S119,V119,Y119,AB119,AX119),"")) -> 139.96 | AR119: 140 | AS119: =IFERROR(IF(Settings!$L$5="Mixed (Standard)",(RANK(AQ119,$AQ$2:$AQ$999,1)/('Guts-2'!$N$1+1))+1,(RANK(AR119,$AR$2:$AR$999,1)/('Guts-2'!$N$1+1))+1),"") -> 11.76923077 | AT119: =IFERROR(CHOOSE('Guts-2'!$D$26,H119,K119,N119,Q119,T119,W119,Z119,AC119,AY119),"") -> 71 | AU119: =IFERROR(CHOOSE('Guts-2'!$D$26,I119,L119,O119,R119,U119,X119,AA119,AD119,AZ119),"") -> 185 | AV119: 71 | AW119: 185 | AX119: =INDEX('Import (ADP)'!$C$2:$C$999,MATCH(A119, 'Import (ADP)'!$B$2:$B$999,0)) ->  | BA119: =IF(VLOOKUP(A120,'Name-Sort'!$D$2:$E$999,2,FALSE)="",A120,"") -> Carlos Carrasco | BB119: =IFERROR(INDEX($BA$1:$BA$999,SMALL(IF($BA$1:$BA$999<>"",ROW($BA$1:$BA$999)),ROW(BA119))),"") -> Carlos Carrasco
A120: Carlos Carrasco | B120: carraca01 | C120: SP | E120: CLE | F120: 31 | G120: 31 | H120: 18 | I120: 58 | J120: 32 | K120: 18 | L120: 58 | M120: 30.19 | N120: 18 | O120: 42 | P120: 34 | Q120: 18 | R120: 58 | V120: 34.7 | W120: 18 | X120: 58 | Y120: 35.85 | Z120: 20 | AA120: 58 | AB120: 32.95666667 | AC120: 18 | AD120: 58 | AE120: 52 | AF120: 34 | AH120: 57 | AI120: 43 | AL120: 37 | AN120: =IFERROR(INDEX('Guts-2'!$K$1:$K$30,MATCH(E120,'Guts-2'!$J$1:$J$30,0)),TRUE) -> TRUE | AO120: =IF(AN120=FALSE,"",IFERROR(CHOOSE('Guts-2'!$D$27,AE120,AF120,AG120,AH120,AI120,AJ120,AK120,AL120,AM120),"")) -> 57 | AP120: 57 | AQ120: =IF(AN120=FALSE,"",IFERROR(CHOOSE('Guts-2'!$D$26,G120,J120,M120,P120,S120,V120,Y120,AB120,AX120),"")) -> 30.19 | AR120: 29 | AS120: =IFERROR(IF(Settings!$L$5="Mixed (Standard)",(RANK(AQ120,$AQ$2:$AQ$999,1)/('Guts-2'!$N$1+1))+1,(RANK(AR120,$AR$2:$AR$999,1)/('Guts-2'!$N$1+1))+1),"") -> 3.230769231 | AT120: =IFERROR(CHOOSE('Guts-2'!$D$26,H120,K120,N120,Q120,T120,W120,Z120,AC120,AY120),"") -> 18 | AU120: =IFERROR(CHOOSE('Guts-2'!$D$26,I120,L120,O120,R120,U120,X120,AA120,AD120,AZ120),"") -> 42 | AV120: 18 | AW120: 42 | AX120: =INDEX('Import (ADP)'!$C$2:$C$999,MATCH(A120, 'Import (ADP)'!$B$2:$B$999,0)) ->  | BA120: =IF(VLOOKUP(A121,'Name-Sort'!$D$2:$E$999,2,FALSE)="",A121,"") -> Ezequiel Carrera | BB120: =IFERROR(INDEX($BA$1:$BA$999,SMALL(IF($BA$1:$BA$999<>"",ROW($BA$1:$BA$999)),ROW(BA120))),"") -> Ezequiel Carrera
A121: Ezequiel Carrera | B121: carreez01 | C121: OF | D121: LF,CF,RF | E121: TOR | F121: 30 | G121: 729 | H121: 456 | I121: 970 | V121: 737.5 | W121: 456 | X121: 981 | Y121: 649.76 | Z121: 456 | AA121: 739 | AB121: 705.42 | AC121: 456 | AD121: 939 | AN121: =IFERROR(INDEX('Guts-2'!$K$1:$K$30,MATCH(E121,'Guts-2'!$J$1:$J$30,0)),TRUE) -> TRUE | AO121: =IF(AN121=FALSE,"",IFERROR(CHOOSE('Guts-2'!$D$27,AE121,AF121,AG121,AH121,AI121,AJ121,AK121,AL121,AM121),"")) ->  | AQ121: =IF(AN121=FALSE,"",IFERROR(CHOOSE('Guts-2'!$D$26,G121,J121,M121,P121,S121,V121,Y121,AB121,AX121),"")) ->  | AS121: =IFERROR(IF(Settings!$L$5="Mixed (Standard)",(RANK(AQ121,$AQ$2:$AQ$999,1)/('Guts-2'!$N$1+1))+1,(RANK(AR121,$AR$2:$AR$999,1)/('Guts-2'!$N$1+1))+1),"") ->  | AT121: =IFERROR(CHOOSE('Guts-2'!$D$26,H121,K121,N121,Q121,T121,W121,Z121,AC121,AY121),"") ->  | AU121: =IFERROR(CHOOSE('Guts-2'!$D$26,I121,L121,O121,R121,U121,X121,AA121,AD121,AZ121),"") ->  | AX121: =INDEX('Import (ADP)'!$C$2:$C$999,MATCH(A121, 'Import (ADP)'!$B$2:$B$999,0)) ->  | BA121: =IF(VLOOKUP(A122,'Name-Sort'!$D$2:$E$999,2,FALSE)="",A122,"") -> Andrew Cashner | BB121: =IFERROR(INDEX($BA$1:$BA$999,SMALL(IF($BA$1:$BA$999<>"",ROW($BA$1:$BA$999)),ROW(BA121))),"") -> Andrew Cashner
A122: Andrew Cashner | B122: cashnan01 | C122: SP | E122: BAL | F122: 31 | G122: 567 | H122: 289 | I122: 755 | V122: 499.7 | W122: 289 | X122: 686 | Y122: 527.71 | Z122: 289 | AA122: 686 | AB122: 531.47 | AC122: 289 | AD122: 707 | AL122: 456 | AN122: =IFERROR(INDEX('Guts-2'!$K$1:$K$30,MATCH(E122,'Guts-2'!$J$1:$J$30,0)),TRUE) -> TRUE | AO122: =IF(AN122=FALSE,"",IFERROR(CHOOSE('Guts-2'!$D$27,AE122,AF122,AG122,AH122,AI122,AJ122,AK122,AL122,AM122),"")) ->  | AQ122: =IF(AN122=FALSE,"",IFERROR(CHOOSE('Guts-2'!$D$26,G122,J122,M122,P122,S122,V122,Y122,AB122,AX122),"")) ->  | AS122: =IFERROR(IF(Settings!$L$5="Mixed (Standard)",(RANK(AQ122,$AQ$2:$AQ$999,1)/('Guts-2'!$N$1+1))+1,(RANK(AR122,$AR$2:$AR$999,1)/('Guts-2'!$N$1+1))+1),"") ->  | AT122: =IFERROR(CHOOSE('Guts-2'!$D$26,H122,K122,N122,Q122,T122,W122,Z122,AC122,AY122),"") ->  | AU122: =IFERROR(CHOOSE('Guts-2'!$D$26,I122,L122,O122,R122,U122,X122,AA122,AD122,AZ122),"") ->  | AX122: =INDEX('Import (ADP)'!$C$2:$C$999,MATCH(A122, 'Import (ADP)'!$B$2:$B$999,0)) ->  | BA122: =IF(VLOOKUP(A123,'Name-Sort'!$D$2:$E$999,2,FALSE)="",A123,"") -> Santiago Casilla | BB122: =IFERROR(INDEX($BA$1:$BA$999,SMALL(IF($BA$1:$BA$999<>"",ROW($BA$1:$BA$999)),ROW(BA122))),"") -> Santiago Casilla
A123: Santiago Casilla | B123: casilja01 | C123: RP | E123: OAK | F123: 37 | G123: 784 | H123: 281 | I123: 1043 | V123: 725 | W123: 281 | X123: 965 | Y123: 627.79 | Z123: 281 | AA123: 742 | AB123: 712.2633333 | AC123: 281 | AD123: 948 | AL123: 493 | AN123: =IFERROR(INDEX('Guts-2'!$K$1:$K$30,MATCH(E123,'Guts-2'!$J$1:$J$30,0)),TRUE) -> TRUE | AO123: =IF(AN123=FALSE,"",IFERROR(CHOOSE('Guts-2'!$D$27,AE123,AF123,AG123,AH123,AI123,AJ123,AK123,AL123,AM123),"")) ->  | AQ123: =IF(AN123=FALSE,"",IFERROR(CHOOSE('Guts-2'!$D$26,G123,J123,M123,P123,S123,V123,Y123,AB123,AX123),"")) ->  | AS123: =IFERROR(IF(Settings!$L$5="Mixed (Standard)",(RANK(AQ123,$AQ$2:$AQ$999,1)/('Guts-2'!$N$1+1))+1,(RANK(AR123,$AR$2:$AR$999,1)/('Guts-2'!$N$1+1))+1),"") ->  | AT123: =IFERROR(CHOOSE('Guts-2'!$D$26,H123,K123,N123,Q123,T123,W123,Z123,AC123,AY123),"") ->  | AU123: =IFERROR(CHOOSE('Guts-2'!$D$26,I123,L123,O123,R123,U123,X123,AA123,AD123,AZ123),"") ->  | AX123: =INDEX('Import (ADP)'!$C$2:$C$999,MATCH(A123, 'Import (ADP)'!$B$2:$B$999,0)) ->  | BA123: =IF(VLOOKUP(A124,'Name-Sort'!$D$2:$E$999,2,FALSE)="",A124,"") -> Nick Castellanos | BB123: =IFERROR(INDEX($BA$1:$BA$999,SMALL(IF($BA$1:$BA$999<>"",ROW($BA$1:$BA$999)),ROW(BA123))),"") -> Nick Castellanos
A124: Nick Castellanos | B124: casteni01 | C124: 3B | D124: RF | E124: DET | F124: 26 | G124: 113 | H124: 62 | I124: 153 | J124: 137 | K124: 62 | L124: 183 | P124: 102 | Q124: 62 | R124: 153 | V124: 119.7 | W124: 62 | X124: 160 | Y124: 100.67 | Z124: 62 | AA124: 153 | AB124: 114.474 | AC124: 62 | AD124: 153 | AE124: 84 | AF124: 138 | AH124: 77 | AI124: 112 | AL124: 129 | AN124: =IFERROR(INDEX('Guts-2'!$K$1:$K$30,MATCH(E124,'Guts-2'!$J$1:$J$30,0)),TRUE) -> TRUE | AO124: =IF(AN124=FALSE,"",IFERROR(CHOOSE('Guts-2'!$D$27,AE124,AF124,AG124,AH124,AI124,AJ124,AK124,AL124,AM124),"")) -> 77 | AP124: 77 | AQ124: =IF(AN124=FALSE,"",IFERROR(CHOOSE('Guts-2'!$D$26,G124,J124,M124,P124,S124,V124,Y124,AB124,AX124),"")) ->  | AS124: =IFERROR(IF(Settings!$L$5="Mixed (Standard)",(RANK(AQ124,$AQ$2:$AQ$999,1)/('Guts-2'!$N$1+1))+1,(RANK(AR124,$AR$2:$AR$999,1)/('Guts-2'!$N$1+1))+1),"") ->  | AT124: =IFERROR(CHOOSE('Guts-2'!$D$26,H124,K124,N124,Q124,T124,W124,Z124,AC124,AY124),"") ->  | AU124: =IFERROR(CHOOSE('Guts-2'!$D$26,I124,L124,O124,R124,U124,X124,AA124,AD124,AZ124),"") ->  | AX124: =INDEX('Import (ADP)'!$C$2:$C$999,MATCH(A124, 'Import (ADP)'!$B$2:$B$999,0)) ->  | BA124: =IF(VLOOKUP(A125,'Name-Sort'!$D$2:$E$999,2,FALSE)="",A125,"") -> Luis Castillo | BB124: =IFERROR(INDEX($BA$1:$BA$999,SMALL(IF($BA$1:$BA$999<>"",ROW($BA$1:$BA$999)),ROW(BA124))),"") -> Luis Castillo
A125: Luis Castillo | B125: castilu02 | C125: SP | E125: CIN | F125: 25 | G125: 800 | H125: 52 | I125: 1064 | J125: 130 | K125: 52 | L125: 183 | M125: 117.22 | N125: 62 | O125: 183 | P125: 115 | Q125: 52 | R125: 183 | V125: 222.7 | W125: 52 | X125: 297 | Y125: 100.06 | Z125: 52 | AA125: 172 | AB125: 247.4966667 | AC125: 52 | AD125: 330 | AE125: 177 | AF125: 118 | AH125: 171 | AI125: 115 | AL125: 121 | AN125: =IFERROR(INDEX('Guts-2'!$K$1:$K$30,MATCH(E125,'Guts-2'!$J$1:$J$30,0)),TRUE) -> TRUE | AO125: =IF(AN125=FALSE,"",IFERROR(CHOOSE('Guts-2'!$D$27,AE125,AF125,AG125,AH125,AI125,AJ125,AK125,AL125,AM125),"")) -> 171 | AP125: 171 | AQ125: =IF(AN125=FALSE,"",IFERROR(CHOOSE('Guts-2'!$D$26,G125,J125,M125,P125,S125,V125,Y125,AB125,AX125),"")) -> 117.22 | AR125: 113 | AS125: =IFERROR(IF(Settings!$L$5="Mixed (Standard)",(RANK(AQ125,$AQ$2:$AQ$999,1)/('Guts-2'!$N$1+1))+1,(RANK(AR125,$AR$2:$AR$999,1)/('Guts-2'!$N$1+1))+1),"") -> 9.692307692 | AT125: =IFERROR(CHOOSE('Guts-2'!$D$26,H125,K125,N125,Q125,T125,W125,Z125,AC125,AY125),"") -> 62 | AU125: =IFERROR(CHOOSE('Guts-2'!$D$26,I125,L125,O125,R125,U125,X125,AA125,AD125,AZ125),"") -> 183 | AV125: 62 | AW125: 183 | AX125: =INDEX('Import (ADP)'!$C$2:$C$999,MATCH(A125, 'Import (ADP)'!$B$2:$B$999,0)) ->  | BA125: =IF(VLOOKUP(A126,'Name-Sort'!$D$2:$E$999,2,FALSE)="",A126,"") -> Rusney Castillo | BB125: =IFERROR(INDEX($BA$1:$BA$999,SMALL(IF($BA$1:$BA$999<>"",ROW($BA$1:$BA$999)),ROW(BA125))),"") -> Rusney Castillo
... 156 more rows

Sheet Guts-1 (hidden)
A1: =Settings!B6 -> AB | B1: =IF(Settings!C6=0,"",Settings!C6) ->  | C1: 3 | D1: =Settings!B24 -> W | E1: =IF(Settings!C24=0,"",Settings!C24) -> 5 | F1: 2 | I1: Stats or Points or Hide? | K1: =IF('Your Points Draft'!Q6=O5,1,IF('Your Points Draft'!Q6=O6,2,IF('Your Points Draft'!Q6=O7,3,""))) -> 1 | L1: =MAX(COUNTIF(K2:K14,">"""),COUNTIF(K20:K34,">""")) -> 13 | N1: List | O1: List | P1: Pos | Q1: Sort by ADP | R1: Show All Positions | S1: =IFERROR(INDEX($R$1:$R$24,SMALL(IF($R$1:$R$24<>"",ROW($R$1:$R$24)),ROW(B1))),"") -> Show All Positions
A2: =Settings!B8 -> Single | B2: =IF(Settings!C8=0,"",Settings!C8) -> 1 | C2: 6 | D2: =Settings!B25 -> L | E2: =IF(Settings!C25=0,"",Settings!C25) -> -5 | F2: 3 | I2: H1 | J2: =IF(Settings!C5=0,"",Settings!B5) ->  | K2: =IFERROR(INDEX($J$1:$J$18,SMALL(IF($J$1:$J$18<>"",ROW($J$1:$J$18)),ROW(A1))),"") -> Single | L2: =IF(K$1=2,1,IF(OR(K2="AVG",K2="OBP",K2="SLG",K2="OPS"),2,IF(K2="","",1))) -> 1 | M2: =IF(OR(K2="AVG",K2="OBP",K2="SLG",K2="OPS"),2,IF(K2="","",1)) -> 1 | N2: =IFERROR(INDEX($K$1:$K$34,SMALL(IF($K$1:$K$34<>"",ROW($K$1:$K$34)),ROW(B2))),"") -> Single | O2: Stats | P2: =IF('Guts-2'!$N$2>=ROW(P1),"C","") -> C | Q2: Sort by Projected Points | R2: =IF('Guts-2'!$N2>0,"Only Show: "&'Guts-2'!M2,"") -> Only Show: C | S2: =IFERROR(INDEX($R$1:$R$24,SMALL(IF($R$1:$R$24<>"",ROW($R$1:$R$24)),ROW(B2))),"") -> Only Show: C
A3: =Settings!B9 -> Double | B3: =IF(Settings!C9=0,"",Settings!C9) -> 2 | C3: 7 | D3: =Settings!B26 -> IP | E3: =IF(Settings!C26=0,"",Settings!C26) -> 1.5 | F3: 4 | I3: H2 | J3: =IF(Settings!C6=0,"",Settings!B6) ->  | K3: =IFERROR(INDEX($J$1:$J$18,SMALL(IF($J$1:$J$18<>"",ROW($J$1:$J$18)),ROW(A2))),"") -> Double | L3: =IF(K$1=2,1,IF(OR(K3="AVG",K3="OBP",K3="SLG",K3="OPS"),2,IF(K3="","",1))) -> 1 | M3: =IF(OR(K3="AVG",K3="OBP",K3="SLG",K3="OPS"),2,IF(K3="","",1)) -> 1 | N3: =IFERROR(INDEX($K$1:$K$34,SMALL(IF($K$1:$K$34<>"",ROW($K$1:$K$34)),ROW(B3))),"") -> Double | O3: Ranks | P3: =IF('Guts-2'!$N$2>=ROW(P2),"C","") ->  | Q3: Sort by Expert Ranking | R3: =IF('Guts-2'!$N3>0,"Only Show: "&'Guts-2'!M3,"") -> Only Show: 1B | S3: =IFERROR(INDEX($R$1:$R$24,SMALL(IF($R$1:$R$24<>"",ROW($R$1:$R$24)),ROW(B3))),"") -> Only Show: 1B
A4: =Settings!B10 -> Triple | B4: =IF(Settings!C10=0,"",Settings!C10) -> 3 | C4: 8 | D4: =Settings!B27 -> Hit Allowed | E4: =IF(Settings!C27=0,"",Settings!C27) -> -0.5 | F4: 5 | I4: H3 | J4: =IF(Settings!C7=0,"",Settings!B7) ->  | K4: =IFERROR(INDEX($J$1:$J$18,SMALL(IF($J$1:$J$18<>"",ROW($J$1:$J$18)),ROW(A3))),"") -> Triple | L4: 1 | M4: 1 | N4: =IFERROR(INDEX($K$1:$K$34,SMALL(IF($K$1:$K$34<>"",ROW($K$1:$K$34)),ROW(B4))),"") -> Triple | O4: List | P4: =IF('Guts-2'!$N$2>=ROW(P3),"C","") ->  | Q4: Sort by StDev Above Average | R4: =IF('Guts-2'!$N4>0,"Only Show: "&'Guts-2'!M4,"") -> Only Show: 2B | S4: =IFERROR(INDEX($R$1:$R$24,SMALL(IF($R$1:$R$24<>"",ROW($R$1:$R$24)),ROW(B4))),"") -> Only Show: 2B
A5: =Settings!B11 -> HR | B5: =IF(Settings!C11=0,"",Settings!C11) -> 5 | C5: 9 | D5: =Settings!B28 -> BB | E5: =IF(Settings!C28=0,"",Settings!C28) -> -1 | F5: 6 | I5: H4 | J5: =IF(Settings!C8=0,"",Settings!B8) -> Single | K5: =IFERROR(INDEX($J$1:$J$18,SMALL(IF($J$1:$J$18<>"",ROW($J$1:$J$18)),ROW(A4))),"") -> HR | L5: 1 | M5: 1 | N5: =IFERROR(INDEX($K$1:$K$34,SMALL(IF($K$1:$K$34<>"",ROW($K$1:$K$34)),ROW(B5))),"") -> HR | O5: Show Basic Stats | P5: =IF('Guts-2'!$N$2>=ROW(P4),"C","") ->  | Q5: Sort by Points Per IP | R5: =IF('Guts-2'!$N5>0,"Only Show: "&'Guts-2'!M5,"") -> Only Show: 3B | S5: =IFERROR(INDEX($R$1:$R$24,SMALL(IF($R$1:$R$24<>"",ROW($R$1:$R$24)),ROW(B5))),"") -> Only Show: 3B
A6: =Settings!B12 -> BB | B6: =IF(Settings!C12=0,"",Settings!C12) -> 1 | C6: 13 | D6: =Settings!B29 -> K | E6: =IF(Settings!C29=0,"",Settings!C29) -> 1 | F6: 7 | I6: H5 | J6: =IF(Settings!C9=0,"",Settings!B9) -> Double | K6: =IFERROR(INDEX($J$1:$J$18,SMALL(IF($J$1:$J$18<>"",ROW($J$1:$J$18)),ROW(A5))),"") -> BB | L6: 1 | M6: 1 | N6: =IFERROR(INDEX($K$1:$K$34,SMALL(IF($K$1:$K$34<>"",ROW($K$1:$K$34)),ROW(B6))),"") -> BB | O6: Show Point Totals | P6: =IF('Guts-2'!$N$3>=ROW(P1),"1B","") -> 1B | Q6: Sort by Points Per PA | R6: =IF('Guts-2'!$N6>0,"Only Show: "&'Guts-2'!M6,"") -> Only Show: SS | S6: =IFERROR(INDEX($R$1:$R$24,SMALL(IF($R$1:$R$24<>"",ROW($R$1:$R$24)),ROW(B6))),"") -> Only Show: SS
A7: =Settings!B13 -> SB | B7: =IF(Settings!C13=0,"",Settings!C13) -> 2 | C7: 11 | D7: =Settings!B30 -> ER | E7: =IF(Settings!C30=0,"",Settings!C30) -> -1 | F7: 8 | I7: H6 | J7: =IF(Settings!C10=0,"",Settings!B10) -> Triple | K7: =IFERROR(INDEX($J$1:$J$18,SMALL(IF($J$1:$J$18<>"",ROW($J$1:$J$18)),ROW(A6))),"") -> SB | L7: 1 | M7: 1 | N7: =IFERROR(INDEX($K$1:$K$34,SMALL(IF($K$1:$K$34<>"",ROW($K$1:$K$34)),ROW(B7))),"") -> SB | O7: Show Neither | P7: =IF('Guts-2'!$N$3>=ROW(P2),"1B","") ->  | R7: =IF('Guts-2'!$N7>0,"Only Show: "&'Guts-2'!M7,"") ->  | S7: =IFERROR(INDEX($R$1:$R$24,SMALL(IF($R$1:$R$24<>"",ROW($R$1:$R$24)),ROW(B7))),"") -> Only Show: OF
A8: =Settings!B14 -> CS | B8: =IF(Settings!C14=0,"",Settings!C14) -> -1 | C8: 12 | D8: =Settings!B31 -> S | E8: =IF(Settings!C31=0,"",Settings!C31) -> 10 | F8: 9 | I8: H7 | J8: =IF(Settings!C11=0,"",Settings!B11) -> HR | K8: =IFERROR(INDEX($J$1:$J$18,SMALL(IF($J$1:$J$18<>"",ROW($J$1:$J$18)),ROW(A7))),"") -> CS | L8: 1 | M8: 1 | N8: =IFERROR(INDEX($K$1:$K$34,SMALL(IF($K$1:$K$34<>"",ROW($K$1:$K$34)),ROW(B8))),"") -> CS | O8: List | P8: =IF('Guts-2'!$N$3>=ROW(P3),"1B","") ->  | R8: =IF('Guts-2'!$N8>0,"Only Show: "&'Guts-2'!M8,"") ->  | S8: =IFERROR(INDEX($R$1:$R$24,SMALL(IF($R$1:$R$24<>"",ROW($R$1:$R$24)),ROW(B8))),"") -> Only Show: DH
A9: =Settings!B15 -> K | B9: =IF(Settings!C15=0,"",Settings!C15) -> -1 | C9: 14 | D9: =Settings!B32 -> QS | E9: =IF(Settings!C32=0,"",Settings!C32) -> 10 | F9: 10 | I9: H8 | J9: =IF(Settings!C12=0,"",Settings!B12) -> BB | K9: =IFERROR(INDEX($J$1:$J$18,SMALL(IF($J$1:$J$18<>"",ROW($J$1:$J$18)),ROW(A8))),"") -> K | L9: 1 | M9: 1 | N9: =IFERROR(INDEX($K$1:$K$34,SMALL(IF($K$1:$K$34<>"",ROW($K$1:$K$34)),ROW(B9))),"") -> K | O9: Mixed (Standard) | P9: =IF('Guts-2'!$N$4>=ROW(P1),"2B","") -> 2B | R9: =IF('Guts-2'!$N9>0,"Only Show: "&'Guts-2'!M9,"") -> Only Show: OF | S9: =IFERROR(INDEX($R$1:$R$24,SMALL(IF($R$1:$R$24<>"",ROW($R$1:$R$24)),ROW(B9))),"") -> Only Show: P
A10: =Settings!B16 -> R | B10: =IF(Settings!C16=0,"",Settings!C16) -> 1 | C10: 4 | D10: =Settings!B33 -> CG | E10: =IF(Settings!C33=0,"",Settings!C33) -> 10 | F10: 14 | I10: H9 | J10: =IF(Settings!C13=0,"",Settings!B13) -> SB | K10: =IFERROR(INDEX($J$1:$J$18,SMALL(IF($J$1:$J$18<>"",ROW($J$1:$J$18)),ROW(A9))),"") -> R | L10: 1 | M10: 1 | N10: =IFERROR(INDEX($K$1:$K$34,SMALL(IF($K$1:$K$34<>"",ROW($K$1:$K$34)),ROW(B10))),"") -> R | O10: AL-Only | P10: =IF('Guts-2'!$N$4>=ROW(P2),"2B","") ->  | R10: =IF('Guts-2'!$N10>0,"Only Show: "&'Guts-2'!M10,"") -> Only Show: DH | S10: =IFERROR(INDEX($R$1:$R$24,SMALL(IF($R$1:$R$24<>"",ROW($R$1:$R$24)),ROW(B10))),"") -> 
A11: =Settings!B17 -> RBI | B11: =IF(Settings!C17=0,"",Settings!C17) -> 1 | C11: 10 | D11: =Settings!B34 -> Shutout | E11: =IF(Settings!C34=0,"",Settings!C34) -> 10 | F11: 15 | I11: H10 | J11: =IF(Settings!C14=0,"",Settings!B14) -> CS | K11: =IFERROR(INDEX($J$1:$J$18,SMALL(IF($J$1:$J$18<>"",ROW($J$1:$J$18)),ROW(A10))),"") -> RBI | L11: 1 | M11: 1 | N11: =IFERROR(INDEX($K$1:$K$34,SMALL(IF($K$1:$K$34<>"",ROW($K$1:$K$34)),ROW(B11))),"") -> RBI | O11: NL-Only | P11: =IF('Guts-2'!$N$4>=ROW(P3),"2B","") ->  | R11: =IF('Guts-2'!$N11>0,"Only Show: "&'Guts-2'!M11,"") ->  | S11: =IFERROR(INDEX($R$1:$R$24,SMALL(IF($R$1:$R$24<>"",ROW($R$1:$R$24)),ROW(B11))),"") -> 
A12: =Settings!B18 -> Errors | B12: =IF(Settings!C18=0,"",Settings!C18) -> -1 | C12: 15 | D12: =Settings!B35 -> Holds | E12: =IF(Settings!C35=0,"",Settings!C35) ->  | F12: 16 | I12: H11 | J12: =IF(Settings!C15=0,"",Settings!B15) -> K | K12: =IFERROR(INDEX($J$1:$J$18,SMALL(IF($J$1:$J$18<>"",ROW($J$1:$J$18)),ROW(A11))),"") -> Errors | L12: 1 | M12: 1 | N12: =IFERROR(INDEX($K$1:$K$34,SMALL(IF($K$1:$K$34<>"",ROW($K$1:$K$34)),ROW(B12))),"") -> Errors | O12: Specific Teams Only | P12: =IF('Guts-2'!$N$5>=ROW(P1),"3B","") -> 3B | R12: =IF('Guts-2'!$N12>0,"Only Show: "&'Guts-2'!M12,"") ->  | S12: =IFERROR(INDEX($R$1:$R$24,SMALL(IF($R$1:$R$24<>"",ROW($R$1:$R$24)),ROW(B12))),"") -> 
A13: =Settings!B19 -> GIDP | B13: =IF(Settings!C19=0,"",Settings!C19) -> -1 | C13: 16 | D13: =Settings!B36 -> Game Started | E13: =IF(Settings!C36=0,"",Settings!C36) ->  | F13: 17 | I13: H12 | J13: =IF(Settings!C16=0,"",Settings!B16) -> R | K13: =IFERROR(INDEX($J$1:$J$18,SMALL(IF($J$1:$J$18<>"",ROW($J$1:$J$18)),ROW(A12))),"") -> GIDP | L13: 1 | M13: 1 | N13: =IFERROR(INDEX($K$1:$K$34,SMALL(IF($K$1:$K$34<>"",ROW($K$1:$K$34)),ROW(B13))),"") -> GIDP | O13: Y | P13: =IF('Guts-2'!$N$5>=ROW(P2),"3B","") ->  | R13: =IF('Guts-2'!$N13>0,"Only Show: "&'Guts-2'!M13,"") -> Only Show: P | S13: =IFERROR(INDEX($R$1:$R$24,SMALL(IF($R$1:$R$24<>"",ROW($R$1:$R$24)),ROW(B13))),"") -> 
A14: HBP | B14: =IF(Settings!C20=0,"",Settings!C20) -> 1 | C14: 17 | D14: =Settings!B37 -> HRA | E14: =IF(Settings!C37=0,"",Settings!C37) ->  | F14: 18 | I14: H13 | J14: =IF(Settings!C17=0,"",Settings!B17) -> RBI | K14: =IFERROR(INDEX($J$1:$J$18,SMALL(IF($J$1:$J$18<>"",ROW($J$1:$J$18)),ROW(A13))),"") -> HBP | L14: =IF(K$1=2,1,IF(OR(K14="AVG",K14="OBP",K14="SLG",K14="OPS"),2,IF(K14="","",1))) -> 1 | M14: =IF(OR(K14="AVG",K14="OBP",K14="SLG",K14="OPS"),2,IF(K14="","",1)) -> 1 | N14: =IFERROR(INDEX($K$1:$K$34,SMALL(IF($K$1:$K$34<>"",ROW($K$1:$K$34)),ROW(B14))),"") -> HBP | O14: N | P14: =IF('Guts-2'!$N$5>=ROW(P3),"3B","") ->  | R14: =IF('Guts-2'!$N14>0,"Only Show: "&'Guts-2'!M14,"") ->  | S14: =IFERROR(INDEX($R$1:$R$24,SMALL(IF($R$1:$R$24<>"",ROW($R$1:$R$24)),ROW(#REF!))),"") -> 
A15: XBH | B15: =IF(Settings!C21=0,"",Settings!C21) ->  | C15: 18 | D15: Blown Save | E15: =IF(Settings!C38=0,"",Settings!C38) -> -5 | F15: 19 | I15: H14 | J15: =IF(Settings!C18=0,"",Settings!B18) -> Errors | K15: =IFERROR(INDEX($J$1:$J$18,SMALL(IF($J$1:$J$18<>"",ROW($J$1:$J$18)),ROW(A14))),"") ->  | N15: =IFERROR(INDEX($K$1:$K$34,SMALL(IF($K$1:$K$34<>"",ROW($K$1:$K$34)),ROW(B15))),"") -> W | O15: Full | P15: =IF('Guts-2'!$N$6>=ROW(P1),"SS","") -> SS | R15: =IF('Guts-2'!$N15>0,"Only Show: "&'Guts-2'!M15,"") ->  | S15: =IFERROR(INDEX($R$1:$R$24,SMALL(IF($R$1:$R$24<>"",ROW($R$1:$R$24)),ROW(#REF!))),"") -> 
A16: PA | B16: =IF(Settings!C5=0,"",Settings!C5) ->  | C16: 2 | I16: H15 | J16: =IF(Settings!C19=0,"",Settings!B19) -> GIDP | K16: =IFERROR(INDEX($J$1:$J$18,SMALL(IF($J$1:$J$18<>"",ROW($J$1:$J$18)),ROW(A15))),"") ->  | L16: =IF(K$1=2,1,IF(OR(K20="ERA",K20="WHIP"),4,IF(OR(K20="K/9",K20="K/BB"),3,IF(K20="BAA",2,IF(K20="","",1))))) -> 1 | M16: =IF(OR(K20="ERA",K20="WHIP"),4,IF(OR(K20="K/9",K20="K/BB"),3,IF(K20="BAA",2,IF(K20="","",1)))) -> 1 | N16: =IFERROR(INDEX($K$1:$K$34,SMALL(IF($K$1:$K$34<>"",ROW($K$1:$K$34)),ROW(B16))),"") -> L | O16: Half | P16: =IF('Guts-2'!$N$6>=ROW(P2),"SS","") ->  | R16: =IF('Guts-2'!$N16>0,"Only Show: "&'Guts-2'!M16,"") ->  | S16: =IFERROR(INDEX($R$1:$R$24,SMALL(IF($R$1:$R$24<>"",ROW($R$1:$R$24)),ROW(#REF!))),"") -> 
A17: Hit | B17: =IF(Settings!C7=0,"",Settings!C7) ->  | C17: 5 | I17: H16 | J17: =IF(Settings!C20=0,"",Settings!B20) -> HBP | K17: =IFERROR(INDEX($J$1:$J$18,SMALL(IF($J$1:$J$18<>"",ROW($J$1:$J$18)),ROW(A16))),"") ->  | L17: 1 | M17: =IF(OR(K21="ERA",K21="WHIP"),4,IF(OR(K21="K/9",K21="K/BB"),3,IF(K21="BAA",2,IF(K21="","",1)))) -> 1 | N17: =IFERROR(INDEX($K$1:$K$34,SMALL(IF($K$1:$K$34<>"",ROW($K$1:$K$34)),ROW(B17))),"") -> IP | O17: Snake Draft | P17: =IF('Guts-2'!$N$6>=ROW(P3),"SS","") ->  | R17: =IF('Guts-2'!$N17>0,"Only Show: "&'Guts-2'!M17,"") ->  | S17: =IFERROR(INDEX($R$1:$R$24,SMALL(IF($R$1:$R$24<>"",ROW($R$1:$R$24)),ROW(#REF!))),"") -> 
I18: H17 | J18: =IF(Settings!C21=0,"",Settings!B21) ->  | K18: =IFERROR(INDEX($J$1:$J$18,SMALL(IF($J$1:$J$18<>"",ROW($J$1:$J$18)),ROW(A17))),"") ->  | L18: 1 | M18: 1 | N18: =IFERROR(INDEX($K$1:$K$34,SMALL(IF($K$1:$K$34<>"",ROW($K$1:$K$34)),ROW(B18))),"") -> Hit Allowed | O18: Same Order Every Round | P18: =IF('Guts-2'!$N$7>=ROW(P1),"CI","") -> 
L19: 1 | M19: 1 | N19: =IFERROR(INDEX($K$1:$K$34,SMALL(IF($K$1:$K$34<>"",ROW($K$1:$K$34)),ROW(B19))),"") -> BB | O19: Show Drafted Players | P19: =IF('Guts-2'!$N$7>=ROW(P2),"CI","") -> 
I20: P1 | J20: =IF(Settings!C24=0,"",Settings!B24) -> W | K20: =IFERROR(INDEX($J$1:$J$34,SMALL(IF($J$1:$J$34<>"",ROW($J$1:$J$34)),COUNTIF(($K$2:$K$14),">""")+ROW(A1))),"") -> W | L20: 1 | M20: 1 | N20: =IFERROR(INDEX($K$1:$K$34,SMALL(IF($K$1:$K$34<>"",ROW($K$1:$K$34)),ROW(B20))),"") -> K | O20: Hide Drafted Players | P20: =IF('Guts-2'!$N$7>=ROW(P3),"CI","") -> 
I21: P2 | J21: =IF(Settings!C25=0,"",Settings!B25) -> L | K21: =IFERROR(INDEX($J$1:$J$34,SMALL(IF($J$1:$J$34<>"",ROW($J$1:$J$34)),COUNTIF(($K$2:$K$14),">""")+ROW(A2))),"") -> L | L21: 1 | M21: 1 | N21: =IFERROR(INDEX($K$1:$K$34,SMALL(IF($K$1:$K$34<>"",ROW($K$1:$K$34)),ROW(B21))),"") -> ER | P21: =IF('Guts-2'!$N$8>=ROW(P1),"MI","") -> 
I22: P3 | J22: =IF(Settings!C26=0,"",Settings!B26) -> IP | K22: =IFERROR(INDEX($J$1:$J$34,SMALL(IF($J$1:$J$34<>"",ROW($J$1:$J$34)),COUNTIF(($K$2:$K$14),">""")+ROW(A3))),"") -> IP | L22: 1 | M22: 1 | N22: =IFERROR(INDEX($K$1:$K$34,SMALL(IF($K$1:$K$34<>"",ROW($K$1:$K$34)),ROW(B22))),"") -> S | O22: Hot | P22: =IF('Guts-2'!$N$8>=ROW(P2),"MI","") -> 
I23: P4 | J23: =IF(Settings!C27=0,"",Settings!B27) -> Hit Allowed | K23: =IFERROR(INDEX($J$1:$J$34,SMALL(IF($J$1:$J$34<>"",ROW($J$1:$J$34)),COUNTIF(($K$2:$K$14),">""")+ROW(A4))),"") -> Hit Allowed | L23: 1 | M23: 1 | N23: =IFERROR(INDEX($K$1:$K$34,SMALL(IF($K$1:$K$34<>"",ROW($K$1:$K$34)),ROW(B23))),"") -> QS | O23: Cold | P23: =IF('Guts-2'!$N$8>=ROW(P3),"MI","") -> 
I24: P5 | J24: =IF(Settings!C28=0,"",Settings!B28) -> BB | K24: =IFERROR(INDEX($J$1:$J$34,SMALL(IF($J$1:$J$34<>"",ROW($J$1:$J$34)),COUNTIF(($K$2:$K$14),">""")+ROW(A5))),"") -> BB | L24: 1 | M24: 1 | N24: =IFERROR(INDEX($K$1:$K$34,SMALL(IF($K$1:$K$34<>"",ROW($K$1:$K$34)),ROW(B24))),"") -> CG | O24: Target | P24: =IF('Guts-2'!$N$17>=ROW(P1),"IF","") -> 
I25: P6 | J25: =IF(Settings!C29=0,"",Settings!B29) -> K | K25: =IFERROR(INDEX($J$1:$J$34,SMALL(IF($J$1:$J$34<>"",ROW($J$1:$J$34)),COUNTIF(($K$2:$K$14),">""")+ROW(A6))),"") -> K | L25: 1 | M25: 1 | N25: =IFERROR(INDEX($K$1:$K$34,SMALL(IF($K$1:$K$34<>"",ROW($K$1:$K$34)),ROW(B25))),"") -> Shutout | O25: Avoid | P25: =IF('Guts-2'!$N$17>=ROW(P2),"IF","") -> 
I26: P7 | J26: =IF(Settings!C30=0,"",Settings!B30) -> ER | K26: =IFERROR(INDEX($J$1:$J$34,SMALL(IF($J$1:$J$34<>"",ROW($J$1:$J$34)),COUNTIF(($K$2:$K$14),">""")+ROW(A7))),"") -> ER | L26: 1 | M26: 1 | O26: Injury | P26: =IF('Guts-2'!$N$17>=ROW(P3),"IF","") -> 
I27: P8 | J27: =IF(Settings!C31=0,"",Settings!B31) -> S | K27: =IFERROR(INDEX($J$1:$J$34,SMALL(IF($J$1:$J$34<>"",ROW($J$1:$J$34)),COUNTIF(($K$2:$K$14),">""")+ROW(A8))),"") -> S | L27: 1 | M27: 1 | O27: Note | P27: =IF('Guts-2'!$N$17>=ROW(P4),"IF","") -> 
I28: P9 | J28: =IF(Settings!C32=0,"",Settings!B32) -> QS | K28: =IFERROR(INDEX($J$1:$J$34,SMALL(IF($J$1:$J$34<>"",ROW($J$1:$J$34)),COUNTIF(($K$2:$K$14),">""")+ROW(A9))),"") -> QS | M28: =IF(OR(K32="ERA",K32="WHIP"),4,IF(OR(K32="K/9",K32="K/BB"),3,IF(K32="BAA",2,IF(K32="","",1)))) ->  | O28: Sleeper | P28: =IF('Guts-2'!$N$17>=ROW(P5),"IF","") -> 
I29: P10 | J29: =IF(Settings!C33=0,"",Settings!B33) -> CG | K29: =IFERROR(INDEX($J$1:$J$34,SMALL(IF($J$1:$J$34<>"",ROW($J$1:$J$34)),COUNTIF(($K$2:$K$14),">""")+ROW(A10))),"") -> CG | M29: =IF(OR(K33="ERA",K33="WHIP"),4,IF(OR(K33="K/9",K33="K/BB"),3,IF(K33="BAA",2,IF(K33="","",1)))) ->  | O29: Bust | P29: =IF('Guts-2'!$N$17>=ROW(P6),"IF","") -> 
I30: P11 | J30: =IF(Settings!C34=0,"",Settings!B34) -> Shutout | K30: =IFERROR(INDEX($J$1:$J$34,SMALL(IF($J$1:$J$34<>"",ROW($J$1:$J$34)),COUNTIF(($K$2:$K$14),">""")+ROW(A11))),"") -> Shutout | M30: =IF(OR(K34="ERA",K34="WHIP"),4,IF(OR(K34="K/9",K34="K/BB"),3,IF(K34="BAA",2,IF(K34="","",1)))) ->  | P30: =IF('Guts-2'!$N$9>=ROW(P1),"OF","") -> OF
I31: P12 | J31: =IF(Settings!C35=0,"",Settings!B35) ->  | K31: =IFERROR(INDEX($J$1:$J$34,SMALL(IF($J$1:$J$34<>"",ROW($J$1:$J$34)),COUNTIF(($K$2:$K$14),">""")+ROW(A12))),"") -> Blown Save | P31: =IF('Guts-2'!$N$9>=ROW(P2),"OF","") -> OF
I32: P13 | J32: =IF(Settings!C36=0,"",Settings!B36) ->  | K32: =IFERROR(INDEX($J$1:$J$34,SMALL(IF($J$1:$J$34<>"",ROW($J$1:$J$34)),COUNTIF(($K$2:$K$14),">""")+ROW(A13))),"") ->  | P32: =IF('Guts-2'!$N$9>=ROW(P3),"OF","") -> OF
I33: P14 | J33: =IF(Settings!C37=0,"",Settings!B37) ->  | K33: =IFERROR(INDEX($J$1:$J$34,SMALL(IF($J$1:$J$34<>"",ROW($J$1:$J$34)),COUNTIF(($K$2:$K$14),">""")+ROW(A14))),"") ->  | P33: =IF('Guts-2'!$N$9>=ROW(P4),"OF","") -> 
I34: P15 | J34: =IF(Settings!C38=0,"",Settings!B38) -> Blown Save | K34: =IFERROR(INDEX($J$1:$J$34,SMALL(IF($J$1:$J$34<>"",ROW($J$1:$J$34)),COUNTIF(($K$2:$K$14),">""")+ROW(A15))),"") ->  | P34: =IF('Guts-2'!$N$9>=ROW(P5),"OF","") -> 
P35: =IF('Guts-2'!$N$9>=ROW(P6),"OF","") -> 
P36: =IF('Guts-2'!$N$9>=ROW(P7),"OF","") -> 
P37: =IF('Guts-2'!$N$9>=ROW(P8),"OF","") -> 
P38: =IF('Guts-2'!$N$9>=ROW(P9),"OF","") -> 
P39: =IF('Guts-2'!$N$14>=ROW(P1),"LF","") -> 
P40: =IF('Guts-2'!$N$14>=ROW(P2),"LF","") -> 
P41: =IF('Guts-2'!$N$14>=ROW(P3),"LF","") -> 
P42: =IF('Guts-2'!$N$15>=ROW(P1),"CF","") -> 
P43: =IF('Guts-2'!$N$15>=ROW(P2),"CF","") -> 
P44: =IF('Guts-2'!$N$15>=ROW(P3),"CF","") -> 
P45: =IF('Guts-2'!$N$16>=ROW(P1),"RF","") -> 
P46: =IF('Guts-2'!$N$16>=ROW(P2),"RF","") -> 
P47: =IF('Guts-2'!$N$16>=ROW(P3),"RF","") -> 
P48: =IF('Guts-2'!$N$10>=ROW(P1),"DH","") -> DH
P49: =IF('Guts-2'!$N$10>=ROW(P2),"DH","") -> 
P50: =IF('Guts-2'!$N$10>=ROW(P3),"DH","") -> 
P51: =IF('Guts-2'!$N$10>=ROW(P4),"DH","") -> 
P52: =IF('Guts-2'!$N$10>=ROW(P5),"DH","") -> 
P53: =IF('Guts-2'!$N$10>=ROW(P6),"DH","") -> 
P54: =IF('Guts-2'!$N$11>=ROW(P1),"SP","") -> 
P55: =IF('Guts-2'!$N$11>=ROW(P2),"SP","") -> 
P56: =IF('Guts-2'!$N$11>=ROW(P3),"SP","") -> 
P57: =IF('Guts-2'!$N$11>=ROW(P4),"SP","") -> 
P58: =IF('Guts-2'!$N$11>=ROW(P5),"SP","") -> 
P59: =IF('Guts-2'!$N$11>=ROW(P6),"SP","") -> 
P60: =IF('Guts-2'!$N$11>=ROW(P7),"SP","") -> 
P61: =IF('Guts-2'!$N$11>=ROW(P8),"SP","") -> 
P62: =IF('Guts-2'!$N$11>=ROW(P9),"SP","") -> 
P63: =IF('Guts-2'!$N$11>=ROW(P10),"SP","") -> 
P64: =IF('Guts-2'!$N$12>=ROW(P1),"RP","") -> 
P65: =IF('Guts-2'!$N$12>=ROW(P2),"RP","") -> 
P66: =IF('Guts-2'!$N$12>=ROW(P3),"RP","") -> 
P67: =IF('Guts-2'!$N$12>=ROW(P4),"RP","") -> 
P68: =IF('Guts-2'!$N$12>=ROW(P5),"RP","") -> 
P69: =IF('Guts-2'!$N$12>=ROW(P6),"RP","") -> 
P70: =IF('Guts-2'!$N$12>=ROW(P7),"RP","") -> 
P71: =IF('Guts-2'!$N$12>=ROW(P8),"RP","") -> 
P72: =IF('Guts-2'!$N$12>=ROW(P9),"RP","") -> 
P73: =IF('Guts-2'!$N$12>=ROW(P10),"RP","") -> 
P74: =IF('Guts-2'!$N$13>=ROW(P1),"P","") -> P
P75: =IF('Guts-2'!$N$13>=ROW(P2),"P","") -> P
P76: =IF('Guts-2'!$N$13>=ROW(P3),"P","") -> P
P77: =IF('Guts-2'!$N$13>=ROW(P4),"P","") -> P
P78: =IF('Guts-2'!$N$13>=ROW(P5),"P","") -> P
P79: =IF('Guts-2'!$N$13>=ROW(P6),"P","") -> P
P80: =IF('Guts-2'!$N$13>=ROW(P7),"P","") -> P
P81: =IF('Guts-2'!$N$13>=ROW(P8),"P","") -> P
P82: =IF('Guts-2'!$N$13>=ROW(P9),"P","") -> P
P83: =IF('Guts-2'!$N$13>=ROW(P10),"P","") -> 
P84: =IF('Guts-2'!$N$13>=ROW(P11),"P","") -> 
P85: =IF('Guts-2'!$N$13>=ROW(P12),"P","") -> 
P86: =IF('Guts-2'!$N$13>=ROW(P13),"P","") -> 
P87: =IF('Guts-2'!$N$13>=ROW(P14),"P","") -> 
P88: =IF('Guts-2'!$N$13>=ROW(P15),"P","") -> 

Sheet Guts-2 (hidden)
A1: =Settings!J10 -> Team 1 | B1: CBS - Points Leagues | E1: Teams | F1: Starters | G1: CAIRO | J1: LAA | K1: =IF(OR(Settings!$L$5="AL-Only",Settings!$L$5="Mixed (Standard)"),TRUE,IF(Settings!$L$5="Specific Teams Only",IF(Settings!N6="Y",TRUE,FALSE),FALSE)) -> TRUE | L1: C | M1: # of Teams | N1: =Settings!J5 -> 12
A2: =Settings!J11 -> Team 2 | B2: ESPN | C2: ESPN - Points Rankings | D2: Clay Davenport | E2: 6 | F2: 0 | G2: Clay Davenport | H2: =IF(OR(Settings!$R$24<>100,Settings!$Q$24<>100),0,Settings!Q16) -> 20 | I2: =IF(OR(Settings!$R$24<>100,Settings!$Q$24<>100),0,Settings!R16) -> 20 | J2: ARI | K2: =IF(OR(Settings!$L$5="NL-Only",Settings!$L$5="Mixed (Standard)"),TRUE,IF(Settings!$L$5="Specific Teams Only",IF(Settings!N7="Y",TRUE,FALSE),FALSE)) -> TRUE | L2: 1B | M2: C | N2: =Settings!F5 -> 1
A3: =Settings!J12 -> Team 3 | B3: NFBC | C3: ESPN - Karabell (Roto) | D3: Fangraphs - Depth Chart | E3: 7 | F3: 1 | G3: Fangraphs - Depth Chart | H3: =IF(OR(Settings!$R$24<>100,Settings!$Q$24<>100),0,Settings!Q17) -> 0 | I3: =IF(OR(Settings!$R$24<>100,Settings!$Q$24<>100),0,Settings!R17) -> 0 | J3: ATL | K3: =IF(OR(Settings!$L$5="NL-Only",Settings!$L$5="Mixed (Standard)"),TRUE,IF(Settings!$L$5="Specific Teams Only",IF(Settings!N8="Y",TRUE,FALSE),FALSE)) -> TRUE | L3: 2B | M3: 1B | N3: =Settings!F6 -> 1
A4: =Settings!J13 -> Team 4 | B4: Yahoo | D4: Fangraphs - Fan Projections | E4: 8 | F4: 2 | G4: Fangraphs - Fan Projections | H4: =IF(OR(Settings!$R$24<>100,Settings!$Q$24<>100),0,Settings!Q18) -> 20 | I4: =IF(OR(Settings!$R$24<>100,Settings!$Q$24<>100),0,Settings!R18) -> 20 | J4: BAL | K4: =IF(OR(Settings!$L$5="AL-Only",Settings!$L$5="Mixed (Standard)"),TRUE,IF(Settings!$L$5="Specific Teams Only",IF(Settings!N9="Y",TRUE,FALSE),FALSE)) -> TRUE | L4: 3B | M4: 2B | N4: =Settings!F7 -> 1
A5: =Settings!J14 -> Team 5 | B5: FantasyPros Avg | D5: Mr. Cheatsheet's Special Blend | E5: 9 | F5: 3 | G5: MORPS | J5: BOS | K5: =IF(OR(Settings!$L$5="AL-Only",Settings!$L$5="Mixed (Standard)"),TRUE,IF(Settings!$L$5="Specific Teams Only",IF(Settings!N10="Y",TRUE,FALSE),FALSE)) -> TRUE | L5: SS | M5: 3B | N5: =Settings!F8 -> 1
A6: =Settings!J15 -> Team 6 | B6: Avg of ADP Sources | C6: RotoChamp | D6: Special Blend w/ Steamer Replacements | E6: 10 | F6: 4 | G6: MCSB | J6: CHC | K6: =IF(OR(Settings!$L$5="NL-Only",Settings!$L$5="Mixed (Standard)"),TRUE,IF(Settings!$L$5="Specific Teams Only",IF(Settings!N11="Y",TRUE,FALSE),FALSE)) -> TRUE | L6: OF | M6: SS | N6: =Settings!F9 -> 1
A7: =IF($N$1>=ROW(A7),Settings!J16,#N/A) -> Team 7 | B7: Imported ADP | C7: Yahoo Staff | D7: Steamer | E7: 11 | F7: 5 | G7: Steamer | H7: =IF(OR(Settings!$R$24<>100,Settings!$Q$24<>100),0,Settings!Q19) -> 40 | I7: =IF(OR(Settings!$R$24<>100,Settings!$Q$24<>100),0,Settings!R19) -> 40 | J7: CWS | K7: =IF(OR(Settings!$L$5="AL-Only",Settings!$L$5="Mixed (Standard)"),TRUE,IF(Settings!$L$5="Specific Teams Only",IF(Settings!N12="Y",TRUE,FALSE),FALSE)) -> TRUE | L7: SP | M7: CI | N7: =Settings!F12 -> 0
A8: =IF($N$1>=ROW(A8),Settings!J17,#N/A) -> Team 8 | B8: =IFERROR(INDEX($B$1:$B$7,SMALL(IF($B$1:$B$7<>"",ROW($B$1:$B$7)),ROW(B1))),"") -> CBS - Points Leagues | C8: FantasyPros Avg | D8: Steamer - 600 PA | E8: 12 | F8: 6 | G8: Steamer - 600 | H8: =IF(OR(Settings!$R$24<>100,Settings!$Q$24<>100),0,Settings!Q20) -> 0 | I8: =IF(OR(Settings!$R$24<>100,Settings!$Q$24<>100),0,Settings!R20) -> 0 | J8: CIN | K8: =IF(OR(Settings!$L$5="NL-Only",Settings!$L$5="Mixed (Standard)"),TRUE,IF(Settings!$L$5="Specific Teams Only",IF(Settings!N13="Y",TRUE,FALSE),FALSE)) -> TRUE | L8: RP | M8: MI | N8: =Settings!F13 -> 0
A9: =IF($N$1>=ROW(A9),Settings!J18,#N/A) -> Team 9 | B9: =IFERROR(INDEX($B$1:$B$7,SMALL(IF($B$1:$B$7<>"",ROW($B$1:$B$7)),ROW(B2))),"") -> ESPN | C9: =IFERROR(INDEX($C$1:$C$8,SMALL(IF($C$1:$C$8<>"",ROW($C$1:$C$8)),ROW(C1))),"") -> ESPN - Points Rankings | D9: ZiPS | E9: 13 | F9: 7 | G9: ZiPS | H9: =IF(OR(Settings!$R$24<>100,Settings!$Q$24<>100),0,Settings!Q21) -> 20 | I9: =IF(OR(Settings!$R$24<>100,Settings!$Q$24<>100),0,Settings!R21) -> 20 | J9: CLE | K9: =IF(OR(Settings!$L$5="AL-Only",Settings!$L$5="Mixed (Standard)"),TRUE,IF(Settings!$L$5="Specific Teams Only",IF(Settings!N14="Y",TRUE,FALSE),FALSE)) -> TRUE | L9: DH | M9: OF | N9: =Settings!F10 -> 3
A10: =IF($N$1>=ROW(A10),Settings!J19,#N/A) -> Team 10 | B10: =IFERROR(INDEX($B$1:$B$7,SMALL(IF($B$1:$B$7<>"",ROW($B$1:$B$7)),ROW(B3))),"") -> NFBC | C10: =IFERROR(INDEX($C$1:$C$8,SMALL(IF($C$1:$C$8<>"",ROW($C$1:$C$8)),ROW(C2))),"") -> ESPN - Karabell (Roto) | D10: Import Your Own Projections | E10: 14 | F10: 8 | J10: COL | K10: =IF(OR(Settings!$L$5="NL-Only",Settings!$L$5="Mixed (Standard)"),TRUE,IF(Settings!$L$5="Specific Teams Only",IF(Settings!N15="Y",TRUE,FALSE),FALSE)) -> TRUE | M10: DH | N10: =Settings!F11 -> 1
A11: =IF($N$1>=ROW(A11),Settings!J20,#N/A) -> Team 11 | B11: =IFERROR(INDEX($B$1:$B$7,SMALL(IF($B$1:$B$7<>"",ROW($B$1:$B$7)),ROW(B4))),"") -> Yahoo | C11: =IFERROR(INDEX($C$1:$C$8,SMALL(IF($C$1:$C$8<>"",ROW($C$1:$C$8)),ROW(C3))),"") -> RotoChamp | D11: Your Own Custom Combination | E11: 15 | F11: 9 | J11: DET | K11: =IF(OR(Settings!$L$5="AL-Only",Settings!$L$5="Mixed (Standard)"),TRUE,IF(Settings!$L$5="Specific Teams Only",IF(Settings!N16="Y",TRUE,FALSE),FALSE)) -> TRUE | M11: SP | N11: =Settings!F19 -> 0
A12: =IF($N$1>=ROW(A12),Settings!J21,#N/A) -> Team 12 | B12: =IFERROR(INDEX($B$1:$B$7,SMALL(IF($B$1:$B$7<>"",ROW($B$1:$B$7)),ROW(B5))),"") -> FantasyPros Avg | C12: =IFERROR(INDEX($C$1:$C$8,SMALL(IF($C$1:$C$8<>"",ROW($C$1:$C$8)),ROW(C4))),"") -> Yahoo Staff | E12: 16 | J12: HOU | K12: =IF(OR(Settings!$L$5="AL-Only",Settings!$L$5="Mixed (Standard)"),TRUE,IF(Settings!$L$5="Specific Teams Only",IF(Settings!N17="Y",TRUE,FALSE),FALSE)) -> TRUE | M12: RP | N12: =Settings!F20 -> 0
A13: =IF($N$1>=ROW(A13),Settings!J22,#N/A) ->  | B13: =IFERROR(INDEX($B$1:$B$7,SMALL(IF($B$1:$B$7<>"",ROW($B$1:$B$7)),ROW(B6))),"") -> Avg of ADP Sources | C13: =IFERROR(INDEX($C$1:$C$8,SMALL(IF($C$1:$C$8<>"",ROW($C$1:$C$8)),ROW(C5))),"") -> FantasyPros Avg | E13: 17 | J13: KC | K13: =IF(OR(Settings!$L$5="AL-Only",Settings!$L$5="Mixed (Standard)"),TRUE,IF(Settings!$L$5="Specific Teams Only",IF(Settings!N18="Y",TRUE,FALSE),FALSE)) -> TRUE | M13: P | N13: =Settings!F21 -> 9
A14: =IF($N$1>=ROW(A14),Settings!J23,#N/A) ->  | B14: =IFERROR(INDEX($B$1:$B$7,SMALL(IF($B$1:$B$7<>"",ROW($B$1:$B$7)),ROW(B7))),"") -> Imported ADP | C14: =IFERROR(INDEX($C$1:$C$8,SMALL(IF($C$1:$C$8<>"",ROW($C$1:$C$8)),ROW(C6))),"") ->  | D14: =IFERROR(INDEX($D$1:$D$12,SMALL(IF($D$1:$D$12<>"",ROW($D$1:$D$12)),ROW(D1))),"") -> Clay Davenport | E14: 18 | J14: LAD | K14: =IF(OR(Settings!$L$5="NL-Only",Settings!$L$5="Mixed (Standard)"),TRUE,IF(Settings!$L$5="Specific Teams Only",IF(Settings!N19="Y",TRUE,FALSE),FALSE)) -> TRUE | M14: LF | N14: =Settings!F15 -> 0
A15: =IF($N$1>=ROW(A15),Settings!J24,#N/A) ->  | C15: =IFERROR(INDEX($C$1:$C$8,SMALL(IF($C$1:$C$8<>"",ROW($C$1:$C$8)),ROW(C7))),"") ->  | D15: =IFERROR(INDEX($D$1:$D$12,SMALL(IF($D$1:$D$12<>"",ROW($D$1:$D$12)),ROW(D2))),"") -> Fangraphs - Depth Chart | E15: 19 | J15: MIA | K15: =IF(OR(Settings!$L$5="NL-Only",Settings!$L$5="Mixed (Standard)"),TRUE,IF(Settings!$L$5="Specific Teams Only",IF(Settings!N20="Y",TRUE,FALSE),FALSE)) -> TRUE | M15: CF | N15: =Settings!F16 -> 0
A16: =IF($N$1>=ROW(A16),Settings!J25,#N/A) ->  | C16: =IFERROR(INDEX($C$1:$C$8,SMALL(IF($C$1:$C$8<>"",ROW($C$1:$C$8)),ROW(C8))),"") ->  | D16: =IFERROR(INDEX($D$1:$D$12,SMALL(IF($D$1:$D$12<>"",ROW($D$1:$D$12)),ROW(D3))),"") -> Fangraphs - Fan Projections | E16: 20 | J16: MIL | K16: =IF(OR(Settings!$L$5="NL-Only",Settings!$L$5="Mixed (Standard)"),TRUE,IF(Settings!$L$5="Specific Teams Only",IF(Settings!N21="Y",TRUE,FALSE),FALSE)) -> TRUE | M16: RF | N16: =Settings!F17 -> 0
A17: =IF($N$1>=ROW(A17),Settings!J26,#N/A) ->  | D17: =IFERROR(INDEX($D$1:$D$12,SMALL(IF($D$1:$D$12<>"",ROW($D$1:$D$12)),ROW(D4))),"") -> Mr. Cheatsheet's Special Blend | E17: 21 | J17: MIN | K17: =IF(OR(Settings!$L$5="AL-Only",Settings!$L$5="Mixed (Standard)"),TRUE,IF(Settings!$L$5="Specific Teams Only",IF(Settings!N22="Y",TRUE,FALSE),FALSE)) -> TRUE | M17: IF | N17: =Settings!F14 -> 0
A18: =IF($N$1>=ROW(A18),Settings!J27,#N/A) ->  | D18: =IFERROR(INDEX($D$1:$D$12,SMALL(IF($D$1:$D$12<>"",ROW($D$1:$D$12)),ROW(D5))),"") -> Special Blend w/ Steamer Replacements | E18: 22 | J18: NYM | K18: =IF(OR(Settings!$L$5="NL-Only",Settings!$L$5="Mixed (Standard)"),TRUE,IF(Settings!$L$5="Specific Teams Only",IF(Settings!N23="Y",TRUE,FALSE),FALSE)) -> TRUE
A19: =IF($N$1>=ROW(A19),Settings!J28,#N/A) ->  | D19: =IFERROR(INDEX($D$1:$D$12,SMALL(IF($D$1:$D$12<>"",ROW($D$1:$D$12)),ROW(D6))),"") -> Steamer | E19: 23 | J19: NYY | K19: =IF(OR(Settings!$L$5="AL-Only",Settings!$L$5="Mixed (Standard)"),TRUE,IF(Settings!$L$5="Specific Teams Only",IF(Settings!N24="Y",TRUE,FALSE),FALSE)) -> TRUE
A20: =IF($N$1>=ROW(A20),Settings!J29,#N/A) ->  | D20: =IFERROR(INDEX($D$1:$D$12,SMALL(IF($D$1:$D$12<>"",ROW($D$1:$D$12)),ROW(D7))),"") -> Steamer - 600 PA | E20: 24 | J20: OAK | K20: =IF(OR(Settings!$L$5="AL-Only",Settings!$L$5="Mixed (Standard)"),TRUE,IF(Settings!$L$5="Specific Teams Only",IF(Settings!N25="Y",TRUE,FALSE),FALSE)) -> TRUE
A21: =IF($N$1>=ROW(A21),Settings!J30,#N/A) ->  | D21: =IFERROR(INDEX($D$1:$D$12,SMALL(IF($D$1:$D$12<>"",ROW($D$1:$D$12)),ROW(D8))),"") -> ZiPS | J21: PHI | K21: =IF(OR(Settings!$L$5="NL-Only",Settings!$L$5="Mixed (Standard)"),TRUE,IF(Settings!$L$5="Specific Teams Only",IF(Settings!N26="Y",TRUE,FALSE),FALSE)) -> TRUE
A22: =IF($N$1>=ROW(A22),Settings!J31,#N/A) ->  | D22: =IFERROR(INDEX($D$1:$D$12,SMALL(IF($D$1:$D$12<>"",ROW($D$1:$D$12)),ROW(D9))),"") -> Import Your Own Projections | J22: PIT | K22: =IF(OR(Settings!$L$5="NL-Only",Settings!$L$5="Mixed (Standard)"),TRUE,IF(Settings!$L$5="Specific Teams Only",IF(Settings!N27="Y",TRUE,FALSE),FALSE)) -> TRUE
A23: =IF($N$1>=ROW(A23),Settings!J32,#N/A) ->  | D23: =IFERROR(INDEX($D$1:$D$12,SMALL(IF($D$1:$D$12<>"",ROW($D$1:$D$12)),ROW(D10))),"") -> Your Own Custom Combination | J23: SD | K23: =IF(OR(Settings!$L$5="NL-Only",Settings!$L$5="Mixed (Standard)"),TRUE,IF(Settings!$L$5="Specific Teams Only",IF(Settings!N28="Y",TRUE,FALSE),FALSE)) -> TRUE
A24: =IF($N$1>=ROW(A24),Settings!J33,#N/A) ->  | D24: =IFERROR(INDEX($D$1:$D$12,SMALL(IF($D$1:$D$12<>"",ROW($D$1:$D$12)),ROW(D11))),"") ->  | J24: SEA | K24: =IF(OR(Settings!$L$5="AL-Only",Settings!$L$5="Mixed (Standard)"),TRUE,IF(Settings!$L$5="Specific Teams Only",IF(Settings!N29="Y",TRUE,FALSE),FALSE)) -> TRUE
D25: =IFERROR(INDEX($D$1:$D$12,SMALL(IF($D$1:$D$12<>"",ROW($D$1:$D$12)),ROW(D12))),"") ->  | J25: SF | K25: =IF(OR(Settings!$L$5="NL-Only",Settings!$L$5="Mixed (Standard)"),TRUE,IF(Settings!$L$5="Specific Teams Only",IF(Settings!N30="Y",TRUE,FALSE),FALSE)) -> TRUE
A26: From Settings | B26: =Settings!Q5 -> CBS - Points Leagues | C26: ADP Site: | D26: =IF(B26="Yahoo",2,IF(B26="CBS - Points Leagues",3,IF(B26="ESPN",4,IF(B26="FantasyPros Avg",6,IF(B26="NFBC",7,IF(B26="Avg of ADP Sources",8,IF(B26="Imported ADP",9,0))))))) -> 3 | J26: STL | K26: =IF(OR(Settings!$L$5="NL-Only",Settings!$L$5="Mixed (Standard)"),TRUE,IF(Settings!$L$5="Specific Teams Only",IF(Settings!N31="Y",TRUE,FALSE),FALSE)) -> TRUE
A27: For a List | B27: =Settings!Q9 -> ESPN - Points Rankings | C27: Rankings: | D27: =IF(B27="RotoChamp",1,IF(B27="Yahoo Staff",2,IF(B27="Fox Sports Staff",3,IF(B27="ESPN - Points Rankings",4,IF(B27="ESPN - Karabell (Roto)",5,IF(B27="CBS - S. White",6,IF(B27="FantasyPros Avg",8,IF(B27="Mr. Cheatsheet",9)))))))) -> 4 | J27: TB | K27: =IF(OR(Settings!$L$5="AL-Only",Settings!$L$5="Mixed (Standard)"),TRUE,IF(Settings!$L$5="Specific Teams Only",IF(Settings!N32="Y",TRUE,FALSE),FALSE)) -> TRUE
A28: Controlled by Formulas | B28: =Settings!Q7 -> Special Blend w/ Steamer Replacements | C28: Projections: | D28: =IF(B28="CAIRO",1,IF(B28="Steamer",2,IF(B28="Steamer - 600 PA",7,IF(B28="ZiPS",4,IF(B28="Fangraphs - Depth Chart",5,IF(B28="Your Own Custom Combination",8,IF(B28="Mr. Cheatsheet's Special Blend",9,IF(B28="Special Blend w/ Steamer Replacements",10,IF(B28="Fangraphs - Fan Projections",3,IF(B28="Clay Davenport",6,IF(B28="Import Your Own Projections",11,0))))))))))) -> 10 | J28: TEX | K28: =IF(OR(Settings!$L$5="AL-Only",Settings!$L$5="Mixed (Standard)"),TRUE,IF(Settings!$L$5="Specific Teams Only",IF(Settings!N33="Y",TRUE,FALSE),FALSE)) -> TRUE
J29: TOR | K29: =IF(OR(Settings!$L$5="AL-Only",Settings!$L$5="Mixed (Standard)"),TRUE,IF(Settings!$L$5="Specific Teams Only",IF(Settings!N34="Y",TRUE,FALSE),FALSE)) -> TRUE
J30: WAS | K30: =IF(OR(Settings!$L$5="NL-Only",Settings!$L$5="Mixed (Standard)"),TRUE,IF(Settings!$L$5="Specific Teams Only",IF(Settings!N35="Y",TRUE,FALSE),FALSE)) -> TRUE

Sheet Projection-P (hidden)
C1: 10 | D1: 11 | E1: 18 | F1: 19 | G1: 23 | H1: 25 | I1: 21 | J1: 17 | K1: 31 | O1: 13 | P1: 12 | Q1: 22 | R1: 3 | S1: 4 | T1: 9 | U1: 10 | V1: 14 | W1: 13 | X1: 11 | Y1: 8 | Z1: 5 | AA1: 15 | AB1: 16 | AD1: 6 | AE1: 7 | AF1: 12 | AG1: 3 | AH1: 4 | AI1: 9 | AJ1: 10 | AK1: 14 | AL1: 13 | AM1: 11 | AN1: 8 | AO1: 5 | AP1: 15 | AQ1: 16 | AS1: 6 | AT1: 7 | AU1: 12 | AV1: 3 | AW1: 4 | AX1: 8 | AY1: 9 | AZ1: 13 | BA1: 12 | BB1: 10 | BD1: 5 | BE1: 14 | BF1: 15 | BH1: 6 | BI1: 7 | BJ1: 11 | BK1: 3 | BL1: 4 | BM1: 10 | BN1: 11 | BO1: 15 | BP1: 14 | BQ1: 12 | BR1: 5 | BS1: 7 | BT1: 16 | BU1: 17 | BW1: 8 | BX1: 9 | BY1: 13 | BZ1: 8 | CA1: 9 | CB1: 13 | CC1: 14 | CD1: 18 | CE1: 19 | CF1: 16 | CG1: 10 | CH1: 25 | CI1: 23 | CK1: 42 | CL1: 12 | CM1: 11 | CN1: 17 | CO1: 3 | CP1: 4 | CQ1: 9 | CR1: 10 | CS1: 14 | CT1: 13 | CU1: 11 | CV1: 8 | CW1: 5 | CX1: 15 | CY1: 16 | DA1: 6 | DB1: 7 | DC1: 12 | DD1: Combined | EH1: SpecialBlend.With.Replacement | EW1: *IMPORT* | FL1: Calc | FM1: Calc | FN1: Calc | FO1: CAIRO | FP1: CAIRO | FQ1: CAIRO | FR1: CAIRO | FS1: CBS | FT1: CBS | FU1: CBS | FV1: CBS | FW1: FGDC
A2: PLAYERNAME | B2: PlayerID | C2: CAIRO.W | D2: CAIRO.L | E2: CAIRO.IP | F2: CAIRO.H | G2: CAIRO.BB | H2: CAIRO.K | I2: CAIRO.ER | J2: CAIRO.S | K2: CAIRO.ERA | L2: CAIRO.WHIP | M2: CAIRO.K/9 | N2: CAIRO.xQS | O2: CAIRO.GS | P2: CAIRO.G | Q2: CAIRO.HRA | R2: Steamer.W | S2: Steamer.L | T2: Steamer.IP | U2: Steamer.H | V2: Steamer.BB | W2: Steamer.K | X2: Steamer.ER | Y2: Steamer.S | Z2: Steamer.ERA | AA2: Steamer.WHIP | AB2: Steamer.K/9 | AC2: Steamer.xQS | AD2: Steamer.GS | AE2: Steamer.G | AF2: Steamer.HRA | AG2: Fans.W | AH2: Fans.L | AI2: Fans.IP | AJ2: Fans.H | AK2: Fans.BB | AL2: Fans.K | AM2: Fans.ER | AN2: Fans.S | AO2: Fans.ERA | AP2: Fans.WHIP | AQ2: Fans.K/9 | AR2: Fans.xQS | AS2: Fans.GS | AT2: Fans.G | AU2: Fans.HRA | AV2: ZiPS.W | AW2: ZiPS.L | AX2: ZiPS.IP | AY2: ZiPS.H | AZ2: ZiPS.BB | BA2: ZiPS.K | BB2: ZiPS.ER | BC2: ZiPS.S | BD2: ZiPS.ERA | BE2: ZiPS.WHIP | BF2: ZiPS.K/9 | BG2: ZiPS.xQS | BH2: ZiPS.GS | BI2: ZiPS.G | BJ2: ZiPS.HRA | BK2: DepthCharts.W | BL2: DepthCharts.L | BM2: DepthCharts.IP | BN2: DepthCharts.H | BO2: DepthCharts.BB | BP2: DepthCharts.K | BQ2: DepthCharts.ER | BR2: DepthCharts.S | BS2: DepthCharts.ERA | BT2: DepthCharts.WHIP | BU2: DepthCharts.K/9 | BV2: DepthCharts.xQS | BW2: DepthCharts.GS | BX2: DepthCharts.G | BY2: DepthCharts.HRA | BZ2: Clay.W | CA2: Clay.L | CB2: Clay.IP | CC2: Clay.H | CD2: Clay.BB | CE2: Clay.K | CF2: Clay.ER | CG2: Clay.S | CH2: Clay.ERA | CI2: Clay.WHIP | CJ2: Clay.K/9 | CK2: Clay.QS | CL2: Clay.GS | CM2: Clay.G | CN2: Clay.HRA | CO2: Steamer600.W | CP2: Steamer600.L | CQ2: Steamer600.IP | CR2: Steamer600.H | CS2: Steamer600.BB | CT2: Steamer600.K | CU2: Steamer600.ER | CV2: Steamer600.S | CW2: Steamer600.ERA | CX2: Steamer600.WHIP | CY2: Steamer600.K/9 | CZ2: Steamer600.xQS | DA2: Steamer600.GS | DB2: Steamer600.G | DC2: Steamer600.HRA | DD2: W | DE2: L | DF2: IP | DG2: H | DH2: BB | DI2: K | DJ2: ER | DK2: S | DL2: ERA | DM2: WHIP | DN2: K/9 | DO2: xQS | DP2: GS | DQ2: G | DR2: HRA | DS2: SpecialBlend.W | DT2: SpecialBlend.L | DU2: SpecialBlend.IP | DV2: SpecialBlend.H | DW2: SpecialBlend.BB | DX2: SpecialBlend.K | DY2: SpecialBlend.ER | DZ2: SpecialBlend.S | EA2: SpecialBlend.ERA | EB2: SpecialBlend.WHIP | EC2: SpecialBlend.K/9 | ED2: SpecialBlend.xQS | EE2: SpecialBlend.GS | EF2: SpecialBlend.G | EG2: SpecialBlend.HRA | EH2: W | EI2: L | EJ2: IP | EK2: H | EL2: BB | EM2: K | EN2: ER | EO2: S | EP2: ERA | EQ2: WHIP | ER2: K/9 | ES2: xQS | ET2: GS | EU2: G | EV2: HRA | EW2: W | EX2: L | EY2: IP | EZ2: H | FA2: BB | FB2: K | FC2: ER | FD2: S | FE2: ERA | FF2: WHIP | FG2: K/9 | FH2: xQS | FI2: GS | FJ2: G | FK2: HRA | FL2: CG | FM2: SO | FN2: HLD | FO2: BAA | FP2: CG/GS | FQ2: Shutout/GS | FR2: Game Finished per G | FS2: Shutout/GS | FT2: CG/GS | FU2: Blown Sv | FV2: Hold | FW2: Hold
A3: Chance Adams | B3: adamsch01 | R3: 0 | S3: 0 | T3: 1 | U3: 1 | V3: 0 | W3: 1 | X3: 1 | Y3: 0 | Z3: 5.25 | AA3: 1.48 | AB3: 7.79 | AC3: 0 | AD3: 0 | AE3: 0 | AF3: 0 | AV3: 10 | AW3: 9 | AX3: 132.7 | AY3: 129 | AZ3: 59 | BA3: 120 | BB3: 67 | BC3: 0 | BD3: 4.55 | BE3: 1.42 | BF3: 8.14 | BG3: 9 | BH3: 27 | BI3: 27 | BJ3: 19 | CO3: 11 | CP3: 13 | CQ3: 200 | CR3: 203 | CS3: 93 | CT3: 173 | CU3: 117 | CV3: 0 | CW3: 5.25 | CX3: 1.48 | CY3: 7.79 | CZ3: 15 | DA3: 32 | DB3: 32 | DC3: 38 | DD3: =(('Guts-2'!$I$7*0.01)*R3)+(('Guts-2'!$I$3*0.01)*AG3)+(('Guts-2'!$I$9*0.01)*AV3)+(('Guts-2'!$I$4*0.01)*BK3)+(('Guts-2'!$I$2*0.01)*BZ3)+(('Guts-2'!$I$8*0.01)*CO3) ->  | DE3: =(('Guts-2'!$I$7*0.01)*S3)+(('Guts-2'!$I$3*0.01)*AH3)+(('Guts-2'!$I$9*0.01)*AW3)+(('Guts-2'!$I$4*0.01)*BL3)+(('Guts-2'!$I$2*0.01)*CA3)+(('Guts-2'!$I$8*0.01)*CP3) ->  | DF3: =(('Guts-2'!$I$7*0.01)*T3)+(('Guts-2'!$I$3*0.01)*AI3)+(('Guts-2'!$I$9*0.01)*AX3)+(('Guts-2'!$I$4*0.01)*BM3)+(('Guts-2'!$I$2*0.01)*CB3)+(('Guts-2'!$I$8*0.01)*CQ3) ->  | DG3: =(('Guts-2'!$I$7*0.01)*U3)+(('Guts-2'!$I$3*0.01)*AJ3)+(('Guts-2'!$I$9*0.01)*AY3)+(('Guts-2'!$I$4*0.01)*BN3)+(('Guts-2'!$I$2*0.01)*CC3)+(('Guts-2'!$I$8*0.01)*CR3) ->  | DH3: =(('Guts-2'!$I$7*0.01)*V3)+(('Guts-2'!$I$3*0.01)*AK3)+(('Guts-2'!$I$9*0.01)*AZ3)+(('Guts-2'!$I$4*0.01)*BO3)+(('Guts-2'!$I$2*0.01)*CD3)+(('Guts-2'!$I$8*0.01)*CS3) ->  | DI3: =(('Guts-2'!$I$7*0.01)*W3)+(('Guts-2'!$I$3*0.01)*AL3)+(('Guts-2'!$I$9*0.01)*BA3)+(('Guts-2'!$I$4*0.01)*BP3)+(('Guts-2'!$I$2*0.01)*CE3)+(('Guts-2'!$I$8*0.01)*CT3) ->  | DJ3: =(('Guts-2'!$I$7*0.01)*X3)+(('Guts-2'!$I$3*0.01)*AM3)+(('Guts-2'!$I$9*0.01)*BB3)+(('Guts-2'!$I$4*0.01)*BQ3)+(('Guts-2'!$I$2*0.01)*CF3)+(('Guts-2'!$I$8*0.01)*CU3) ->  | DK3: =(('Guts-2'!$I$7*0.01)*Y3)+(('Guts-2'!$I$3*0.01)*AN3)+(('Guts-2'!$I$9*0.01)*BC3)+(('Guts-2'!$I$4*0.01)*BR3)+(('Guts-2'!$I$2*0.01)*CG3)+(('Guts-2'!$I$8*0.01)*CV3) ->  | DL3: =(DJ3/DF3)*9 ->  | DM3: =(DG3+DH3)/DF3 ->  | DN3: =(DI3/DF3)*9 ->  | DO3: =(('Guts-2'!$I$7*0.01)*AC3)+(('Guts-2'!$I$3*0.01)*AR3)+(('Guts-2'!$I$9*0.01)*BG3)+(('Guts-2'!$I$4*0.01)*BV3)+(('Guts-2'!$I$2*0.01)*CK3)+(('Guts-2'!$I$8*0.01)*CZ3) ->  | DP3: =(('Guts-2'!$I$7*0.01)*AD3)+(('Guts-2'!$I$3*0.01)*AS3)+(('Guts-2'!$I$9*0.01)*BH3)+(('Guts-2'!$I$4*0.01)*BW3)+(('Guts-2'!$I$2*0.01)*CL3)+(('Guts-2'!$I$8*0.01)*DA3) ->  | DQ3: =(('Guts-2'!$I$7*0.01)*AE3)+(('Guts-2'!$I$3*0.01)*AT3)+(('Guts-2'!$I$9*0.01)*BI3)+(('Guts-2'!$I$4*0.01)*BX3)+(('Guts-2'!$I$2*0.01)*CM3)+(('Guts-2'!$I$8*0.01)*DB3) ->  | DR3: =(('Guts-2'!$I$7*0.01)*AF3)+(('Guts-2'!$I$3*0.01)*AU3)+(('Guts-2'!$I$9*0.01)*BJ3)+(('Guts-2'!$I$4*0.01)*BY3)+(('Guts-2'!$I$2*0.01)*CN3)+(('Guts-2'!$I$8*0.01)*DC3) ->  | EH3: =IFERROR(DS3,R3) -> 0 | EI3: =IFERROR(DT3,S3) -> 0 | EJ3: 1 | EK3: 1 | EL3: 0 | EM3: 1 | EN3: 1 | EO3: 0 | EP3: 5.25 | EQ3: 1.48 | ER3: 7.79 | ES3: 0 | ET3: 0 | EU3: 0 | EV3: 0 | EW3: =VLOOKUP($A3,'Import (Projections)'!$O$2:$X$8997,COLUMN(B1),FALSE) ->  | EX3: =VLOOKUP($A3,'Import (Projections)'!$O$2:$X$8997,COLUMN(C1),FALSE) ->  | EY3: =VLOOKUP($A3,'Import (Projections)'!$O$2:$X$8997,COLUMN(D1),FALSE) ->  | EZ3: =VLOOKUP($A3,'Import (Projections)'!$O$2:$X$8997,COLUMN(E1),FALSE) ->  | FA3: =VLOOKUP($A3,'Import (Projections)'!$O$2:$X$8997,COLUMN(F1),FALSE) ->  | FB3: =VLOOKUP($A3,'Import (Projections)'!$O$2:$X$8997,COLUMN(G1),FALSE) ->  | FC3: =VLOOKUP($A3,'Import (Projections)'!$O$2:$X$8997,COLUMN(H1),FALSE) ->  | FD3: =VLOOKUP($A3,'Import (Projections)'!$O$2:$X$8997,COLUMN(I1),FALSE) ->  | FE3: =(FC3/EY3)*9 ->  | FF3: =(EZ3+FA3)/EY3 ->  | FG3: =(FB3/EY3)*9 ->  | FH3: =IF(FE3="#N/A","#N/A",IFERROR(IF((EY3/FI3)<8,(ROUNDUP((((EY3/FI3)/6.15)-(0.11*FE3))*FI3,0)),0),0)) ->  | FI3: =VLOOKUP($A3,'Import (Projections)'!$O$2:$X$8997,COLUMN(J1),FALSE) ->  | FL3: =IFERROR(IFERROR(AVERAGE(FP3,FT3),IFERROR(FT3,IFERROR(FP3,0)))*CHOOSE('Guts-2'!$D$28,O3,AD3,AS3,BH3,BW3,CL3,DA3,DP3,EE3,ET3,FI3,),0) -> 0 | FM3: =IFERROR(IFERROR(AVERAGE(FQ3,FS3),IFERROR(FS3,IFERROR(FQ3,0)))*CHOOSE('Guts-2'!$D$28,O3,AD3,AS3,BH3,BW3,CL3,DA3,DP3,EE3,ET3,FI3,),0) -> 0 | FN3: =IFERROR(AVERAGE(FV3:FW3),IFERROR(FV3,IFERROR(FW3,0))) -> 0 | FS3: 0 | FT3: 0 | FU3: 0 | FV3: 0
A4: Andrew Albers | B4: alberan01 | R4: 0 | S4: 0 | T4: 1 | U4: 1 | V4: 0 | W4: 1 | X4: 0 | Y4: 0 | Z4: 4.27 | AA4: 1.3 | AB4: 7.28 | AC4: 0 | AD4: 0 | AE4: 0 | AF4: 0 | AV4: 8 | AW4: 9 | AX4: 132 | AY4: 146 | AZ4: 33 | BA4: 103 | BB4: 67 | BC4: 0 | BD4: 4.57 | BE4: 1.36 | BF4: 7.02 | BG4: 11 | BH4: 21 | BI4: 29 | BJ4: 20 | CO4: 4 | CP4: 4 | CQ4: 65 | CR4: 67 | CS4: 17 | CT4: 53 | CU4: 31 | CV4: 0 | CW4: 4.27 | CX4: 1.3 | CY4: 7.28 | CZ4: 0 | DA4: 0 | DB4: 65 | DC4: 10 | DD4: =(('Guts-2'!$I$7*0.01)*R4)+(('Guts-2'!$I$3*0.01)*AG4)+(('Guts-2'!$I$9*0.01)*AV4)+(('Guts-2'!$I$4*0.01)*BK4)+(('Guts-2'!$I$2*0.01)*BZ4)+(('Guts-2'!$I$8*0.01)*CO4) ->  | DE4: =(('Guts-2'!$I$7*0.01)*S4)+(('Guts-2'!$I$3*0.01)*AH4)+(('Guts-2'!$I$9*0.01)*AW4)+(('Guts-2'!$I$4*0.01)*BL4)+(('Guts-2'!$I$2*0.01)*CA4)+(('Guts-2'!$I$8*0.01)*CP4) ->  | DF4: =(('Guts-2'!$I$7*0.01)*T4)+(('Guts-2'!$I$3*0.01)*AI4)+(('Guts-2'!$I$9*0.01)*AX4)+(('Guts-2'!$I$4*0.01)*BM4)+(('Guts-2'!$I$2*0.01)*CB4)+(('Guts-2'!$I$8*0.01)*CQ4) ->  | DG4: =(('Guts-2'!$I$7*0.01)*U4)+(('Guts-2'!$I$3*0.01)*AJ4)+(('Guts-2'!$I$9*0.01)*AY4)+(('Guts-2'!$I$4*0.01)*BN4)+(('Guts-2'!$I$2*0.01)*CC4)+(('Guts-2'!$I$8*0.01)*CR4) ->  | DH4: =(('Guts-2'!$I$7*0.01)*V4)+(('Guts-2'!$I$3*0.01)*AK4)+(('Guts-2'!$I$9*0.01)*AZ4)+(('Guts-2'!$I$4*0.01)*BO4)+(('Guts-2'!$I$2*0.01)*CD4)+(('Guts-2'!$I$8*0.01)*CS4) ->  | DI4: =(('Guts-2'!$I$7*0.01)*W4)+(('Guts-2'!$I$3*0.01)*AL4)+(('Guts-2'!$I$9*0.01)*BA4)+(('Guts-2'!$I$4*0.01)*BP4)+(('Guts-2'!$I$2*0.01)*CE4)+(('Guts-2'!$I$8*0.01)*CT4) ->  | DJ4: =(('Guts-2'!$I$7*0.01)*X4)+(('Guts-2'!$I$3*0.01)*AM4)+(('Guts-2'!$I$9*0.01)*BB4)+(('Guts-2'!$I$4*0.01)*BQ4)+(('Guts-2'!$I$2*0.01)*CF4)+(('Guts-2'!$I$8*0.01)*CU4) ->  | DK4: =(('Guts-2'!$I$7*0.01)*Y4)+(('Guts-2'!$I$3*0.01)*AN4)+(('Guts-2'!$I$9*0.01)*BC4)+(('Guts-2'!$I$4*0.01)*BR4)+(('Guts-2'!$I$2*0.01)*CG4)+(('Guts-2'!$I$8*0.01)*CV4) ->  | DL4: =(DJ4/DF4)*9 ->  | DM4: =(DG4+DH4)/DF4 ->  | DN4: =(DI4/DF4)*9 ->  | DO4: =(('Guts-2'!$I$7*0.01)*AC4)+(('Guts-2'!$I$3*0.01)*AR4)+(('Guts-2'!$I$9*0.01)*BG4)+(('Guts-2'!$I$4*0.01)*BV4)+(('Guts-2'!$I$2*0.01)*CK4)+(('Guts-2'!$I$8*0.01)*CZ4) ->  | DP4: =(('Guts-2'!$I$7*0.01)*AD4)+(('Guts-2'!$I$3*0.01)*AS4)+(('Guts-2'!$I$9*0.01)*BH4)+(('Guts-2'!$I$4*0.01)*BW4)+(('Guts-2'!$I$2*0.01)*CL4)+(('Guts-2'!$I$8*0.01)*DA4) ->  | DQ4: =(('Guts-2'!$I$7*0.01)*AE4)+(('Guts-2'!$I$3*0.01)*AT4)+(('Guts-2'!$I$9*0.01)*BI4)+(('Guts-2'!$I$4*0.01)*BX4)+(('Guts-2'!$I$2*0.01)*CM4)+(('Guts-2'!$I$8*0.01)*DB4) ->  | DR4: =(('Guts-2'!$I$7*0.01)*AF4)+(('Guts-2'!$I$3*0.01)*AU4)+(('Guts-2'!$I$9*0.01)*BJ4)+(('Guts-2'!$I$4*0.01)*BY4)+(('Guts-2'!$I$2*0.01)*CN4)+(('Guts-2'!$I$8*0.01)*DC4) ->  | EH4: =IFERROR(DS4,R4) -> 0 | EI4: 0 | EJ4: 1 | EK4: 1 | EL4: 0 | EM4: 1 | EN4: 0 | EO4: 0 | EP4: 4.27 | EQ4: 1.3 | ER4: 7.28 | ES4: 0 | ET4: 0 | EU4: 0 | EV4: 0 | EW4: =VLOOKUP($A4,'Import (Projections)'!$O$2:$X$8997,COLUMN(B2),FALSE) ->  | EX4: =VLOOKUP($A4,'Import (Projections)'!$O$2:$X$8997,COLUMN(C2),FALSE) ->  | EY4: =VLOOKUP($A4,'Import (Projections)'!$O$2:$X$8997,COLUMN(D2),FALSE) ->  | EZ4: =VLOOKUP($A4,'Import (Projections)'!$O$2:$X$8997,COLUMN(E2),FALSE) ->  | FA4: =VLOOKUP($A4,'Import (Projections)'!$O$2:$X$8997,COLUMN(F2),FALSE) ->  | FB4: =VLOOKUP($A4,'Import (Projections)'!$O$2:$X$8997,COLUMN(G2),FALSE) ->  | FC4: =VLOOKUP($A4,'Import (Projections)'!$O$2:$X$8997,COLUMN(H2),FALSE) ->  | FD4: =VLOOKUP($A4,'Import (Projections)'!$O$2:$X$8997,COLUMN(I2),FALSE) ->  | FE4: =(FC4/EY4)*9 ->  | FF4: =(EZ4+FA4)/EY4 ->  | FG4: =(FB4/EY4)*9 ->  | FH4: =IF(FE4="#N/A","#N/A",IFERROR(IF((EY4/FI4)<8,(ROUNDUP((((EY4/FI4)/6.15)-(0.11*FE4))*FI4,0)),0),0)) ->  | FI4: =VLOOKUP($A4,'Import (Projections)'!$O$2:$X$8997,COLUMN(J2),FALSE) ->  | FL4: =IFERROR(IFERROR(AVERAGE(FP4,FT4),IFERROR(FT4,IFERROR(FP4,0)))*CHOOSE('Guts-2'!$D$28,O4,AD4,AS4,BH4,BW4,CL4,DA4,DP4,EE4,ET4,FI4,),0) -> 0 | FM4: =IFERROR(IFERROR(AVERAGE(FQ4,FS4),IFERROR(FS4,IFERROR(FQ4,0)))*CHOOSE('Guts-2'!$D$28,O4,AD4,AS4,BH4,BW4,CL4,DA4,DP4,EE4,ET4,FI4,),0) -> 0 | FN4: =IFERROR(AVERAGE(FV4:FW4),IFERROR(FV4,IFERROR(FW4,0))) -> 3 | FS4: 0 | FT4: 0 | FU4: 0 | FV4: 3
A5: Matt Albers | B5: alberma01 | R5: 3 | S5: 3 | T5: 55 | U5: 54 | V5: 19 | W5: 52 | X5: 24 | Y5: 0 | Z5: 3.98 | AA5: 1.33 | AB5: 8.56 | AC5: 0 | AD5: 0 | AE5: 55 | AF5: 6 | AV5: 4 | AW5: 3 | AX5: 48 | AY5: 44 | AZ5: 15 | BA5: 45 | BB5: 20 | BC5: 0.25 | BD5: 3.75 | BE5: 1.23 | BF5: 8.44 | BG5: 0 | BH5: 0 | BI5: 53 | BJ5: 6 | BK5: 4 | BL5: 3 | BM5: 55 | BN5: 52 | BO5: 18 | BP5: 52 | BQ5: 24 | BR5: 1 | BS5: 3.86 | BT5: 1.28 | BU5: 8.5 | BV5: 0 | BW5: 0 | BX5: 55 | BY5: 7 | BZ5: 3 | CA5: 2 | CB5: 59.3 | CC5: 54 | CD5: 20 | CE5: 57 | CF5: 25 | CG5: 0 | CH5: 3.78 | CI5: 1.25 | CJ5: 8.650927487 | CK5: 0 | CL5: 0 | CM5: 61 | CN5: 8 | CO5: 3 | CP5: 3 | CQ5: 65 | CR5: 64 | CS5: 23 | CT5: 62 | CU5: 29 | CV5: 0 | CW5: 3.98 | CX5: 1.33 | CY5: 8.56 | CZ5: 0 | DA5: 0 | DB5: 65 | DC5: 7 | DD5: =(('Guts-2'!$I$7*0.01)*R5)+(('Guts-2'!$I$3*0.01)*AG5)+(('Guts-2'!$I$9*0.01)*AV5)+(('Guts-2'!$I$4*0.01)*BK5)+(('Guts-2'!$I$2*0.01)*BZ5)+(('Guts-2'!$I$8*0.01)*CO5) ->  | DE5: =(('Guts-2'!$I$7*0.01)*S5)+(('Guts-2'!$I$3*0.01)*AH5)+(('Guts-2'!$I$9*0.01)*AW5)+(('Guts-2'!$I$4*0.01)*BL5)+(('Guts-2'!$I$2*0.01)*CA5)+(('Guts-2'!$I$8*0.01)*CP5) ->  | DF5: =(('Guts-2'!$I$7*0.01)*T5)+(('Guts-2'!$I$3*0.01)*AI5)+(('Guts-2'!$I$9*0.01)*AX5)+(('Guts-2'!$I$4*0.01)*BM5)+(('Guts-2'!$I$2*0.01)*CB5)+(('Guts-2'!$I$8*0.01)*CQ5) ->  | DG5: =(('Guts-2'!$I$7*0.01)*U5)+(('Guts-2'!$I$3*0.01)*AJ5)+(('Guts-2'!$I$9*0.01)*AY5)+(('Guts-2'!$I$4*0.01)*BN5)+(('Guts-2'!$I$2*0.01)*CC5)+(('Guts-2'!$I$8*0.01)*CR5) ->  | DH5: =(('Guts-2'!$I$7*0.01)*V5)+(('Guts-2'!$I$3*0.01)*AK5)+(('Guts-2'!$I$9*0.01)*AZ5)+(('Guts-2'!$I$4*0.01)*BO5)+(('Guts-2'!$I$2*0.01)*CD5)+(('Guts-2'!$I$8*0.01)*CS5) ->  | DI5: =(('Guts-2'!$I$7*0.01)*W5)+(('Guts-2'!$I$3*0.01)*AL5)+(('Guts-2'!$I$9*0.01)*BA5)+(('Guts-2'!$I$4*0.01)*BP5)+(('Guts-2'!$I$2*0.01)*CE5)+(('Guts-2'!$I$8*0.01)*CT5) ->  | DJ5: =(('Guts-2'!$I$7*0.01)*X5)+(('Guts-2'!$I$3*0.01)*AM5)+(('Guts-2'!$I$9*0.01)*BB5)+(('Guts-2'!$I$4*0.01)*BQ5)+(('Guts-2'!$I$2*0.01)*CF5)+(('Guts-2'!$I$8*0.01)*CU5) ->  | DK5: =(('Guts-2'!$I$7*0.01)*Y5)+(('Guts-2'!$I$3*0.01)*AN5)+(('Guts-2'!$I$9*0.01)*BC5)+(('Guts-2'!$I$4*0.01)*BR5)+(('Guts-2'!$I$2*0.01)*CG5)+(('Guts-2'!$I$8*0.01)*CV5) ->  | DO5: =(('Guts-2'!$I$7*0.01)*AC5)+(('Guts-2'!$I$3*0.01)*AR5)+(('Guts-2'!$I$9*0.01)*BG5)+(('Guts-2'!$I$4*0.01)*BV5)+(('Guts-2'!$I$2*0.01)*CK5)+(('Guts-2'!$I$8*0.01)*CZ5) ->  | DP5: =(('Guts-2'!$I$7*0.01)*AD5)+(('Guts-2'!$I$3*0.01)*AS5)+(('Guts-2'!$I$9*0.01)*BH5)+(('Guts-2'!$I$4*0.01)*BW5)+(('Guts-2'!$I$2*0.01)*CL5)+(('Guts-2'!$I$8*0.01)*DA5) ->  | DQ5: =(('Guts-2'!$I$7*0.01)*AE5)+(('Guts-2'!$I$3*0.01)*AT5)+(('Guts-2'!$I$9*0.01)*BI5)+(('Guts-2'!$I$4*0.01)*BX5)+(('Guts-2'!$I$2*0.01)*CM5)+(('Guts-2'!$I$8*0.01)*DB5) ->  | DR5: =(('Guts-2'!$I$7*0.01)*AF5)+(('Guts-2'!$I$3*0.01)*AU5)+(('Guts-2'!$I$9*0.01)*BJ5)+(('Guts-2'!$I$4*0.01)*BY5)+(('Guts-2'!$I$2*0.01)*CN5)+(('Guts-2'!$I$8*0.01)*DC5) ->  | EH5: 3 | EI5: 3 | EJ5: 55 | EK5: 54 | EL5: 19 | EM5: 52 | EN5: 24 | EO5: 0 | EP5: 3.98 | EQ5: 1.33 | ER5: 8.56 | ES5: 0 | ET5: 0 | EU5: 55 | EV5: 6 | EW5: =VLOOKUP($A5,'Import (Projections)'!$O$2:$X$8997,COLUMN(B3),FALSE) ->  | EX5: =VLOOKUP($A5,'Import (Projections)'!$O$2:$X$8997,COLUMN(C3),FALSE) ->  | EY5: =VLOOKUP($A5,'Import (Projections)'!$O$2:$X$8997,COLUMN(D3),FALSE) ->  | EZ5: =VLOOKUP($A5,'Import (Projections)'!$O$2:$X$8997,COLUMN(E3),FALSE) ->  | FA5: =VLOOKUP($A5,'Import (Projections)'!$O$2:$X$8997,COLUMN(F3),FALSE) ->  | FB5: =VLOOKUP($A5,'Import (Projections)'!$O$2:$X$8997,COLUMN(G3),FALSE) ->  | FC5: =VLOOKUP($A5,'Import (Projections)'!$O$2:$X$8997,COLUMN(H3),FALSE) ->  | FD5: =VLOOKUP($A5,'Import (Projections)'!$O$2:$X$8997,COLUMN(I3),FALSE) ->  | FI5: =VLOOKUP($A5,'Import (Projections)'!$O$2:$X$8997,COLUMN(J3),FALSE) ->  | FL5: =IFERROR(IFERROR(AVERAGE(FP5,FT5),IFERROR(FT5,IFERROR(FP5,0)))*CHOOSE('Guts-2'!$D$28,O5,AD5,AS5,BH5,BW5,CL5,DA5,DP5,EE5,ET5,FI5,),0) -> 0 | FM5: =IFERROR(IFERROR(AVERAGE(FQ5,FS5),IFERROR(FS5,IFERROR(FQ5,0)))*CHOOSE('Guts-2'!$D$28,O5,AD5,AS5,BH5,BW5,CL5,DA5,DP5,EE5,ET5,FI5,),0) -> 0 | FN5: 14.5 | FS5: 0 | FT5: 0 | FU5: 0 | FV5: 18 | FW5: 11
A6: Sandy Alcantara | B6: alcansa01 | DD6: =(('Guts-2'!$I$7*0.01)*R6)+(('Guts-2'!$I$3*0.01)*AG6)+(('Guts-2'!$I$9*0.01)*AV6)+(('Guts-2'!$I$4*0.01)*BK6)+(('Guts-2'!$I$2*0.01)*BZ6)+(('Guts-2'!$I$8*0.01)*CO6) ->  | DE6: =(('Guts-2'!$I$7*0.01)*S6)+(('Guts-2'!$I$3*0.01)*AH6)+(('Guts-2'!$I$9*0.01)*AW6)+(('Guts-2'!$I$4*0.01)*BL6)+(('Guts-2'!$I$2*0.01)*CA6)+(('Guts-2'!$I$8*0.01)*CP6) ->  | DF6: =(('Guts-2'!$I$7*0.01)*T6)+(('Guts-2'!$I$3*0.01)*AI6)+(('Guts-2'!$I$9*0.01)*AX6)+(('Guts-2'!$I$4*0.01)*BM6)+(('Guts-2'!$I$2*0.01)*CB6)+(('Guts-2'!$I$8*0.01)*CQ6) ->  | DG6: =(('Guts-2'!$I$7*0.01)*U6)+(('Guts-2'!$I$3*0.01)*AJ6)+(('Guts-2'!$I$9*0.01)*AY6)+(('Guts-2'!$I$4*0.01)*BN6)+(('Guts-2'!$I$2*0.01)*CC6)+(('Guts-2'!$I$8*0.01)*CR6) ->  | DH6: =(('Guts-2'!$I$7*0.01)*V6)+(('Guts-2'!$I$3*0.01)*AK6)+(('Guts-2'!$I$9*0.01)*AZ6)+(('Guts-2'!$I$4*0.01)*BO6)+(('Guts-2'!$I$2*0.01)*CD6)+(('Guts-2'!$I$8*0.01)*CS6) ->  | DI6: =(('Guts-2'!$I$7*0.01)*W6)+(('Guts-2'!$I$3*0.01)*AL6)+(('Guts-2'!$I$9*0.01)*BA6)+(('Guts-2'!$I$4*0.01)*BP6)+(('Guts-2'!$I$2*0.01)*CE6)+(('Guts-2'!$I$8*0.01)*CT6) ->  | DJ6: =(('Guts-2'!$I$7*0.01)*X6)+(('Guts-2'!$I$3*0.01)*AM6)+(('Guts-2'!$I$9*0.01)*BB6)+(('Guts-2'!$I$4*0.01)*BQ6)+(('Guts-2'!$I$2*0.01)*CF6)+(('Guts-2'!$I$8*0.01)*CU6) ->  | DK6: =(('Guts-2'!$I$7*0.01)*Y6)+(('Guts-2'!$I$3*0.01)*AN6)+(('Guts-2'!$I$9*0.01)*BC6)+(('Guts-2'!$I$4*0.01)*BR6)+(('Guts-2'!$I$2*0.01)*CG6)+(('Guts-2'!$I$8*0.01)*CV6) ->  | DO6: =(('Guts-2'!$I$7*0.01)*AC6)+(('Guts-2'!$I$3*0.01)*AR6)+(('Guts-2'!$I$9*0.01)*BG6)+(('Guts-2'!$I$4*0.01)*BV6)+(('Guts-2'!$I$2*0.01)*CK6)+(('Guts-2'!$I$8*0.01)*CZ6) ->  | DP6: =(('Guts-2'!$I$7*0.01)*AD6)+(('Guts-2'!$I$3*0.01)*AS6)+(('Guts-2'!$I$9*0.01)*BH6)+(('Guts-2'!$I$4*0.01)*BW6)+(('Guts-2'!$I$2*0.01)*CL6)+(('Guts-2'!$I$8*0.01)*DA6) ->  | DQ6: =(('Guts-2'!$I$7*0.01)*AE6)+(('Guts-2'!$I$3*0.01)*AT6)+(('Guts-2'!$I$9*0.01)*BI6)+(('Guts-2'!$I$4*0.01)*BX6)+(('Guts-2'!$I$2*0.01)*CM6)+(('Guts-2'!$I$8*0.01)*DB6) ->  | DR6: =(('Guts-2'!$I$7*0.01)*AF6)+(('Guts-2'!$I$3*0.01)*AU6)+(('Guts-2'!$I$9*0.01)*BJ6)+(('Guts-2'!$I$4*0.01)*BY6)+(('Guts-2'!$I$2*0.01)*CN6)+(('Guts-2'!$I$8*0.01)*DC6) ->  | EW6: =VLOOKUP($A6,'Import (Projections)'!$O$2:$X$8997,COLUMN(B4),FALSE) ->  | EX6: =VLOOKUP($A6,'Import (Projections)'!$O$2:$X$8997,COLUMN(C4),FALSE) ->  | EY6: =VLOOKUP($A6,'Import (Projections)'!$O$2:$X$8997,COLUMN(D4),FALSE) ->  | EZ6: =VLOOKUP($A6,'Import (Projections)'!$O$2:$X$8997,COLUMN(E4),FALSE) ->  | FA6: =VLOOKUP($A6,'Import (Projections)'!$O$2:$X$8997,COLUMN(F4),FALSE) ->  | FB6: =VLOOKUP($A6,'Import (Projections)'!$O$2:$X$8997,COLUMN(G4),FALSE) ->  | FC6: =VLOOKUP($A6,'Import (Projections)'!$O$2:$X$8997,COLUMN(H4),FALSE) ->  | FD6: =VLOOKUP($A6,'Import (Projections)'!$O$2:$X$8997,COLUMN(I4),FALSE) ->  | FI6: =VLOOKUP($A6,'Import (Projections)'!$O$2:$X$8997,COLUMN(J4),FALSE) ->  | FL6: =IFERROR(IFERROR(AVERAGE(FP6,FT6),IFERROR(FT6,IFERROR(FP6,0)))*CHOOSE('Guts-2'!$D$28,O6,AD6,AS6,BH6,BW6,CL6,DA6,DP6,EE6,ET6,FI6,),0) -> 0 | FM6: =IFERROR(IFERROR(AVERAGE(FQ6,FS6),IFERROR(FS6,IFERROR(FQ6,0)))*CHOOSE('Guts-2'!$D$28,O6,AD6,AS6,BH6,BW6,CL6,DA6,DP6,EE6,ET6,FI6,),0) -> 0 | FN6: 0 | FS6: 0 | FT6: 0 | FU6: 0 | FV6: 0
A7: Scott Alexander | B7: alexasc02 | R7: 4 | S7: 3 | T7: 65 | U7: 60 | V7: 25 | W7: 60 | X7: 22 | Y7: 0 | Z7: 3.11 | AA7: 1.3 | AB7: 8.32 | AC7: 0 | AD7: 0 | AE7: 65 | AF7: 4 | AV7: 5 | AW7: 3 | AX7: 72 | AY7: 68 | AZ7: 27 | BA7: 61 | BB7: 28 | BC7: 1.666666667 | BD7: 3.5 | BE7: 1.32 | BF7: 7.63 | BG7: 0 | BH7: 0 | BI7: 60 | BJ7: 5 | BK7: 4 | BL7: 3 | BM7: 65 | BN7: 61 | BO7: 24 | BP7: 58 | BQ7: 24 | BR7: 5 | BS7: 3.3 | BT7: 1.31 | BU7: 7.97 | BV7: 0 | BW7: 0 | BX7: 65 | BY7: 4 | CO7: 4 | CP7: 3 | CQ7: 65 | CR7: 60 | CS7: 25 | CT7: 60 | CU7: 22 | CV7: 0 | CW7: 3.11 | CX7: 1.3 | CY7: 8.32 | CZ7: 0 | DA7: 0 | DB7: 65 | DC7: 4 | DD7: =(('Guts-2'!$I$7*0.01)*R7)+(('Guts-2'!$I$3*0.01)*AG7)+(('Guts-2'!$I$9*0.01)*AV7)+(('Guts-2'!$I$4*0.01)*BK7)+(('Guts-2'!$I$2*0.01)*BZ7)+(('Guts-2'!$I$8*0.01)*CO7) ->  | DE7: =(('Guts-2'!$I$7*0.01)*S7)+(('Guts-2'!$I$3*0.01)*AH7)+(('Guts-2'!$I$9*0.01)*AW7)+(('Guts-2'!$I$4*0.01)*BL7)+(('Guts-2'!$I$2*0.01)*CA7)+(('Guts-2'!$I$8*0.01)*CP7) ->  | DF7: =(('Guts-2'!$I$7*0.01)*T7)+(('Guts-2'!$I$3*0.01)*AI7)+(('Guts-2'!$I$9*0.01)*AX7)+(('Guts-2'!$I$4*0.01)*BM7)+(('Guts-2'!$I$2*0.01)*CB7)+(('Guts-2'!$I$8*0.01)*CQ7) ->  | DG7: =(('Guts-2'!$I$7*0.01)*U7)+(('Guts-2'!$I$3*0.01)*AJ7)+(('Guts-2'!$I$9*0.01)*AY7)+(('Guts-2'!$I$4*0.01)*BN7)+(('Guts-2'!$I$2*0.01)*CC7)+(('Guts-2'!$I$8*0.01)*CR7) ->  | DH7: =(('Guts-2'!$I$7*0.01)*V7)+(('Guts-2'!$I$3*0.01)*AK7)+(('Guts-2'!$I$9*0.01)*AZ7)+(('Guts-2'!$I$4*0.01)*BO7)+(('Guts-2'!$I$2*0.01)*CD7)+(('Guts-2'!$I$8*0.01)*CS7) ->  | DI7: =(('Guts-2'!$I$7*0.01)*W7)+(('Guts-2'!$I$3*0.01)*AL7)+(('Guts-2'!$I$9*0.01)*BA7)+(('Guts-2'!$I$4*0.01)*BP7)+(('Guts-2'!$I$2*0.01)*CE7)+(('Guts-2'!$I$8*0.01)*CT7) ->  | DJ7: =(('Guts-2'!$I$7*0.01)*X7)+(('Guts-2'!$I$3*0.01)*AM7)+(('Guts-2'!$I$9*0.01)*BB7)+(('Guts-2'!$I$4*0.01)*BQ7)+(('Guts-2'!$I$2*0.01)*CF7)+(('Guts-2'!$I$8*0.01)*CU7) ->  | DK7: =(('Guts-2'!$I$7*0.01)*Y7)+(('Guts-2'!$I$3*0.01)*AN7)+(('Guts-2'!$I$9*0.01)*BC7)+(('Guts-2'!$I$4*0.01)*BR7)+(('Guts-2'!$I$2*0.01)*CG7)+(('Guts-2'!$I$8*0.01)*CV7) ->  | DO7: =(('Guts-2'!$I$7*0.01)*AC7)+(('Guts-2'!$I$3*0.01)*AR7)+(('Guts-2'!$I$9*0.01)*BG7)+(('Guts-2'!$I$4*0.01)*BV7)+(('Guts-2'!$I$2*0.01)*CK7)+(('Guts-2'!$I$8*0.01)*CZ7) ->  | DP7: =(('Guts-2'!$I$7*0.01)*AD7)+(('Guts-2'!$I$3*0.01)*AS7)+(('Guts-2'!$I$9*0.01)*BH7)+(('Guts-2'!$I$4*0.01)*BW7)+(('Guts-2'!$I$2*0.01)*CL7)+(('Guts-2'!$I$8*0.01)*DA7) ->  | DQ7: =(('Guts-2'!$I$7*0.01)*AE7)+(('Guts-2'!$I$3*0.01)*AT7)+(('Guts-2'!$I$9*0.01)*BI7)+(('Guts-2'!$I$4*0.01)*BX7)+(('Guts-2'!$I$2*0.01)*CM7)+(('Guts-2'!$I$8*0.01)*DB7) ->  | DR7: =(('Guts-2'!$I$7*0.01)*AF7)+(('Guts-2'!$I$3*0.01)*AU7)+(('Guts-2'!$I$9*0.01)*BJ7)+(('Guts-2'!$I$4*0.01)*BY7)+(('Guts-2'!$I$2*0.01)*CN7)+(('Guts-2'!$I$8*0.01)*DC7) ->  | EH7: 4 | EI7: 3 | EJ7: 65 | EK7: 60 | EL7: 25 | EM7: 60 | EN7: 22 | EO7: 0 | EP7: 3.11 | EQ7: 1.3 | ER7: 8.32 | ES7: 0 | ET7: 0 | EU7: 65 | EV7: 4 | EW7: =VLOOKUP($A7,'Import (Projections)'!$O$2:$X$8997,COLUMN(B5),FALSE) ->  | EX7: =VLOOKUP($A7,'Import (Projections)'!$O$2:$X$8997,COLUMN(C5),FALSE) ->  | EY7: =VLOOKUP($A7,'Import (Projections)'!$O$2:$X$8997,COLUMN(D5),FALSE) ->  | EZ7: =VLOOKUP($A7,'Import (Projections)'!$O$2:$X$8997,COLUMN(E5),FALSE) ->  | FA7: =VLOOKUP($A7,'Import (Projections)'!$O$2:$X$8997,COLUMN(F5),FALSE) ->  | FB7: =VLOOKUP($A7,'Import (Projections)'!$O$2:$X$8997,COLUMN(G5),FALSE) ->  | FC7: =VLOOKUP($A7,'Import (Projections)'!$O$2:$X$8997,COLUMN(H5),FALSE) ->  | FD7: =VLOOKUP($A7,'Import (Projections)'!$O$2:$X$8997,COLUMN(I5),FALSE) ->  | FI7: =VLOOKUP($A7,'Import (Projections)'!$O$2:$X$8997,COLUMN(J5),FALSE) ->  | FL7: =IFERROR(IFERROR(AVERAGE(FP7,FT7),IFERROR(FT7,IFERROR(FP7,0)))*CHOOSE('Guts-2'!$D$28,O7,AD7,AS7,BH7,BW7,CL7,DA7,DP7,EE7,ET7,FI7,),0) -> 0 | FM7: =IFERROR(IFERROR(AVERAGE(FQ7,FS7),IFERROR(FS7,IFERROR(FQ7,0)))*CHOOSE('Guts-2'!$D$28,O7,AD7,AS7,BH7,BW7,CL7,DA7,DP7,EE7,ET7,FI7,),0) -> 0 | FN7: 12 | FS7: 0 | FT7: 0 | FU7: 0 | FV7: 9 | FW7: 15
A8: Kolby Allard | B8: allarko01 | R8: 0 | S8: 0 | T8: 1 | U8: 1 | V8: 0 | W8: 1 | X8: 1 | Y8: 0 | Z8: 4.72 | AA8: 1.43 | AB8: 7.18 | AC8: 0 | AD8: 0 | AE8: 0 | AF8: 0 | AV8: 9 | AW8: 10 | AX8: 139 | AY8: 148 | AZ8: 54 | BA8: 115 | BB8: 71 | BC8: 0 | BD8: 4.6 | BE8: 1.45 | BF8: 7.45 | BG8: 9 | BH8: 27 | BI8: 27 | BJ8: 18 | CO8: 11 | CP8: 14 | CQ8: 200 | CR8: 207 | CS8: 78 | CT8: 160 | CU8: 105 | CV8: 0 | CW8: 4.72 | CX8: 1.43 | CY8: 7.18 | CZ8: 16 | DA8: 32 | DB8: 32 | DC8: 31 | DD8: =(('Guts-2'!$I$7*0.01)*R8)+(('Guts-2'!$I$3*0.01)*AG8)+(('Guts-2'!$I$9*0.01)*AV8)+(('Guts-2'!$I$4*0.01)*BK8)+(('Guts-2'!$I$2*0.01)*BZ8)+(('Guts-2'!$I$8*0.01)*CO8) ->  | DE8: =(('Guts-2'!$I$7*0.01)*S8)+(('Guts-2'!$I$3*0.01)*AH8)+(('Guts-2'!$I$9*0.01)*AW8)+(('Guts-2'!$I$4*0.01)*BL8)+(('Guts-2'!$I$2*0.01)*CA8)+(('Guts-2'!$I$8*0.01)*CP8) ->  | DF8: =(('Guts-2'!$I$7*0.01)*T8)+(('Guts-2'!$I$3*0.01)*AI8)+(('Guts-2'!$I$9*0.01)*AX8)+(('Guts-2'!$I$4*0.01)*BM8)+(('Guts-2'!$I$2*0.01)*CB8)+(('Guts-2'!$I$8*0.01)*CQ8) ->  | DG8: =(('Guts-2'!$I$7*0.01)*U8)+(('Guts-2'!$I$3*0.01)*AJ8)+(('Guts-2'!$I$9*0.01)*AY8)+(('Guts-2'!$I$4*0.01)*BN8)+(('Guts-2'!$I$2*0.01)*CC8)+(('Guts-2'!$I$8*0.01)*CR8) ->  | DH8: =(('Guts-2'!$I$7*0.01)*V8)+(('Guts-2'!$I$3*0.01)*AK8)+(('Guts-2'!$I$9*0.01)*AZ8)+(('Guts-2'!$I$4*0.01)*BO8)+(('Guts-2'!$I$2*0.01)*CD8)+(('Guts-2'!$I$8*0.01)*CS8) ->  | DI8: =(('Guts-2'!$I$7*0.01)*W8)+(('Guts-2'!$I$3*0.01)*AL8)+(('Guts-2'!$I$9*0.01)*BA8)+(('Guts-2'!$I$4*0.01)*BP8)+(('Guts-2'!$I$2*0.01)*CE8)+(('Guts-2'!$I$8*0.01)*CT8) ->  | DJ8: =(('Guts-2'!$I$7*0.01)*X8)+(('Guts-2'!$I$3*0.01)*AM8)+(('Guts-2'!$I$9*0.01)*BB8)+(('Guts-2'!$I$4*0.01)*BQ8)+(('Guts-2'!$I$2*0.01)*CF8)+(('Guts-2'!$I$8*0.01)*CU8) ->  | DK8: =(('Guts-2'!$I$7*0.01)*Y8)+(('Guts-2'!$I$3*0.01)*AN8)+(('Guts-2'!$I$9*0.01)*BC8)+(('Guts-2'!$I$4*0.01)*BR8)+(('Guts-2'!$I$2*0.01)*CG8)+(('Guts-2'!$I$8*0.01)*CV8) ->  | DO8: =(('Guts-2'!$I$7*0.01)*AC8)+(('Guts-2'!$I$3*0.01)*AR8)+(('Guts-2'!$I$9*0.01)*BG8)+(('Guts-2'!$I$4*0.01)*BV8)+(('Guts-2'!$I$2*0.01)*CK8)+(('Guts-2'!$I$8*0.01)*CZ8) ->  | DP8: =(('Guts-2'!$I$7*0.01)*AD8)+(('Guts-2'!$I$3*0.01)*AS8)+(('Guts-2'!$I$9*0.01)*BH8)+(('Guts-2'!$I$4*0.01)*BW8)+(('Guts-2'!$I$2*0.01)*CL8)+(('Guts-2'!$I$8*0.01)*DA8) ->  | DQ8: =(('Guts-2'!$I$7*0.01)*AE8)+(('Guts-2'!$I$3*0.01)*AT8)+(('Guts-2'!$I$9*0.01)*BI8)+(('Guts-2'!$I$4*0.01)*BX8)+(('Guts-2'!$I$2*0.01)*CM8)+(('Guts-2'!$I$8*0.01)*DB8) ->  | DR8: =(('Guts-2'!$I$7*0.01)*AF8)+(('Guts-2'!$I$3*0.01)*AU8)+(('Guts-2'!$I$9*0.01)*BJ8)+(('Guts-2'!$I$4*0.01)*BY8)+(('Guts-2'!$I$2*0.01)*CN8)+(('Guts-2'!$I$8*0.01)*DC8) ->  | EH8: 0 | EI8: 0 | EJ8: 1 | EK8: 1 | EL8: 0 | EM8: 1 | EN8: 1 | EO8: 0 | EP8: 4.72 | EQ8: 1.43 | ER8: 7.18 | ES8: 0 | ET8: 0 | EU8: 0 | EV8: 0 | EW8: =VLOOKUP($A8,'Import (Projections)'!$O$2:$X$8997,COLUMN(B6),FALSE) ->  | EX8: =VLOOKUP($A8,'Import (Projections)'!$O$2:$X$8997,COLUMN(C6),FALSE) ->  | EY8: =VLOOKUP($A8,'Import (Projections)'!$O$2:$X$8997,COLUMN(D6),FALSE) ->  | EZ8: =VLOOKUP($A8,'Import (Projections)'!$O$2:$X$8997,COLUMN(E6),FALSE) ->  | FA8: =VLOOKUP($A8,'Import (Projections)'!$O$2:$X$8997,COLUMN(F6),FALSE) ->  | FB8: =VLOOKUP($A8,'Import (Projections)'!$O$2:$X$8997,COLUMN(G6),FALSE) ->  | FC8: =VLOOKUP($A8,'Import (Projections)'!$O$2:$X$8997,COLUMN(H6),FALSE) ->  | FD8: =VLOOKUP($A8,'Import (Projections)'!$O$2:$X$8997,COLUMN(I6),FALSE) ->  | FI8: =VLOOKUP($A8,'Import (Projections)'!$O$2:$X$8997,COLUMN(J6),FALSE) ->  | FL8: =IFERROR(IFERROR(AVERAGE(FP8,FT8),IFERROR(FT8,IFERROR(FP8,0)))*CHOOSE('Guts-2'!$D$28,O8,AD8,AS8,BH8,BW8,CL8,DA8,DP8,EE8,ET8,FI8,),0) -> 0 | FM8: =IFERROR(IFERROR(AVERAGE(FQ8,FS8),IFERROR(FS8,IFERROR(FQ8,0)))*CHOOSE('Guts-2'!$D$28,O8,AD8,AS8,BH8,BW8,CL8,DA8,DP8,EE8,ET8,FI8,),0) -> 0 | FN8: 0 | FS8: 0 | FT8: 0 | FU8: 0 | FV8: 0
A9: Cody Allen | B9: allenco01 | R9: 4 | S9: 3 | T9: 65 | U9: 54 | V9: 25 | W9: 78 | X9: 27 | Y9: 22 | Z9: 3.69 | AA9: 1.21 | AB9: 10.73 | AC9: 0 | AD9: 0 | AE9: 65 | AF9: 9 | AV9: 6 | AW9: 3 | AX9: 65 | AY9: 50 | AZ9: 23 | BA9: 81 | BB9: 21 | BC9: 30 | BD9: 2.91 | BE9: 1.12 | BF9: 11.22 | BG9: 0 | BH9: 0 | BI9: 67 | BJ9: 6 | BK9: 5 | BL9: 3 | BM9: 65 | BN9: 52 | BO9: 24 | BP9: 79 | BQ9: 24 | BR9: 32 | BS9: 3.3 | BT9: 1.17 | BU9: 10.97 | BV9: 0 | BW9: 0 | BX9: 65 | BY9: 7 | BZ9: 4 | CA9: 2 | CB9: 69.3 | CC9: 54 | CD9: 25 | CE9: 86 | CF9: 23 | CG9: 43 | CH9: 2.96 | CI9: 1.15 | CJ9: 11.16883117 | CK9: 0 | CL9: 0 | CM9: 74 | CN9: 9 | CO9: 4 | CP9: 3 | CQ9: 65 | CR9: 54 | CS9: 25 | CT9: 78 | CU9: 27 | CV9: 22 | CW9: 3.69 | CX9: 1.21 | CY9: 10.73 | CZ9: 0 | DA9: 0 | DB9: 65 | DC9: 9 | DD9: =(('Guts-2'!$I$7*0.01)*R9)+(('Guts-2'!$I$3*0.01)*AG9)+(('Guts-2'!$I$9*0.01)*AV9)+(('Guts-2'!$I$4*0.01)*BK9)+(('Guts-2'!$I$2*0.01)*BZ9)+(('Guts-2'!$I$8*0.01)*CO9) ->  | DE9: =(('Guts-2'!$I$7*0.01)*S9)+(('Guts-2'!$I$3*0.01)*AH9)+(('Guts-2'!$I$9*0.01)*AW9)+(('Guts-2'!$I$4*0.01)*BL9)+(('Guts-2'!$I$2*0.01)*CA9)+(('Guts-2'!$I$8*0.01)*CP9) ->  | DF9: =(('Guts-2'!$I$7*0.01)*T9)+(('Guts-2'!$I$3*0.01)*AI9)+(('Guts-2'!$I$9*0.01)*AX9)+(('Guts-2'!$I$4*0.01)*BM9)+(('Guts-2'!$I$2*0.01)*CB9)+(('Guts-2'!$I$8*0.01)*CQ9) ->  | DG9: =(('Guts-2'!$I$7*0.01)*U9)+(('Guts-2'!$I$3*0.01)*AJ9)+(('Guts-2'!$I$9*0.01)*AY9)+(('Guts-2'!$I$4*0.01)*BN9)+(('Guts-2'!$I$2*0.01)*CC9)+(('Guts-2'!$I$8*0.01)*CR9) ->  | DH9: =(('Guts-2'!$I$7*0.01)*V9)+(('Guts-2'!$I$3*0.01)*AK9)+(('Guts-2'!$I$9*0.01)*AZ9)+(('Guts-2'!$I$4*0.01)*BO9)+(('Guts-2'!$I$2*0.01)*CD9)+(('Guts-2'!$I$8*0.01)*CS9) ->  | DI9: =(('Guts-2'!$I$7*0.01)*W9)+(('Guts-2'!$I$3*0.01)*AL9)+(('Guts-2'!$I$9*0.01)*BA9)+(('Guts-2'!$I$4*0.01)*BP9)+(('Guts-2'!$I$2*0.01)*CE9)+(('Guts-2'!$I$8*0.01)*CT9) ->  | DJ9: =(('Guts-2'!$I$7*0.01)*X9)+(('Guts-2'!$I$3*0.01)*AM9)+(('Guts-2'!$I$9*0.01)*BB9)+(('Guts-2'!$I$4*0.01)*BQ9)+(('Guts-2'!$I$2*0.01)*CF9)+(('Guts-2'!$I$8*0.01)*CU9) ->  | DK9: =(('Guts-2'!$I$7*0.01)*Y9)+(('Guts-2'!$I$3*0.01)*AN9)+(('Guts-2'!$I$9*0.01)*BC9)+(('Guts-2'!$I$4*0.01)*BR9)+(('Guts-2'!$I$2*0.01)*CG9)+(('Guts-2'!$I$8*0.01)*CV9) ->  | DO9: =(('Guts-2'!$I$7*0.01)*AC9)+(('Guts-2'!$I$3*0.01)*AR9)+(('Guts-2'!$I$9*0.01)*BG9)+(('Guts-2'!$I$4*0.01)*BV9)+(('Guts-2'!$I$2*0.01)*CK9)+(('Guts-2'!$I$8*0.01)*CZ9) ->  | DP9: =(('Guts-2'!$I$7*0.01)*AD9)+(('Guts-2'!$I$3*0.01)*AS9)+(('Guts-2'!$I$9*0.01)*BH9)+(('Guts-2'!$I$4*0.01)*BW9)+(('Guts-2'!$I$2*0.01)*CL9)+(('Guts-2'!$I$8*0.01)*DA9) ->  | DQ9: =(('Guts-2'!$I$7*0.01)*AE9)+(('Guts-2'!$I$3*0.01)*AT9)+(('Guts-2'!$I$9*0.01)*BI9)+(('Guts-2'!$I$4*0.01)*BX9)+(('Guts-2'!$I$2*0.01)*CM9)+(('Guts-2'!$I$8*0.01)*DB9) ->  | DR9: =(('Guts-2'!$I$7*0.01)*AF9)+(('Guts-2'!$I$3*0.01)*AU9)+(('Guts-2'!$I$9*0.01)*BJ9)+(('Guts-2'!$I$4*0.01)*BY9)+(('Guts-2'!$I$2*0.01)*CN9)+(('Guts-2'!$I$8*0.01)*DC9) ->  | EH9: 4 | EI9: 3 | EJ9: 65 | EK9: 54 | EL9: 25 | EM9: 78 | EN9: 27 | EO9: 22 | EP9: 3.69 | EQ9: 1.21 | ER9: 10.73 | ES9: 0 | ET9: 0 | EU9: 65 | EV9: 9 | EW9: =VLOOKUP($A9,'Import (Projections)'!$O$2:$X$8997,COLUMN(B7),FALSE) ->  | EX9: =VLOOKUP($A9,'Import (Projections)'!$O$2:$X$8997,COLUMN(C7),FALSE) ->  | EY9: =VLOOKUP($A9,'Import (Projections)'!$O$2:$X$8997,COLUMN(D7),FALSE) ->  | EZ9: =VLOOKUP($A9,'Import (Projections)'!$O$2:$X$8997,COLUMN(E7),FALSE) ->  | FA9: =VLOOKUP($A9,'Import (Projections)'!$O$2:$X$8997,COLUMN(F7),FALSE) ->  | FB9: =VLOOKUP($A9,'Import (Projections)'!$O$2:$X$8997,COLUMN(G7),FALSE) ->  | FC9: =VLOOKUP($A9,'Import (Projections)'!$O$2:$X$8997,COLUMN(H7),FALSE) ->  | FD9: =VLOOKUP($A9,'Import (Projections)'!$O$2:$X$8997,COLUMN(I7),FALSE) ->  | FI9: =VLOOKUP($A9,'Import (Projections)'!$O$2:$X$8997,COLUMN(J7),FALSE) ->  | FL9: =IFERROR(IFERROR(AVERAGE(FP9,FT9),IFERROR(FT9,IFERROR(FP9,0)))*CHOOSE('Guts-2'!$D$28,O9,AD9,AS9,BH9,BW9,CL9,DA9,DP9,EE9,ET9,FI9,),0) -> 0 | FM9: =IFERROR(IFERROR(AVERAGE(FQ9,FS9),IFERROR(FS9,IFERROR(FQ9,0)))*CHOOSE('Guts-2'!$D$28,O9,AD9,AS9,BH9,BW9,CL9,DA9,DP9,EE9,ET9,FI9,),0) -> 0 | FN9: 3.5 | FS9: 0 | FT9: 0 | FU9: 4 | FV9: 3 | FW9: 4
A10: Chase Anderson | B10: anderch01 | R10: 9 | S10: 11 | T10: 168 | U10: 172 | V10: 55 | W10: 153 | X10: 89 | Y10: 0 | Z10: 4.77 | AA10: 1.35 | AB10: 8.24 | AC10: 13 | AD10: 29 | AE10: 29 | AF10: 29 | AV10: 8 | AW10: 8 | AX10: 135.3 | AY10: 136 | AZ10: 44 | BA10: 119 | BB10: 65 | BC10: 0 | BD10: 4.32 | BE10: 1.33 | BF10: 7.91 | BG10: 10 | BH10: 26 | BI10: 26 | BJ10: 21 | BK10: 10 | BL10: 10 | BM10: 168 | BN10: 171 | BO10: 55 | BP10: 151 | BQ10: 85 | BR10: 0 | BS10: 4.54 | BT10: 1.34 | BU10: 8.08 | BV10: 13 | BW10: 29 | BX10: 29 | BY10: 28 | BZ10: 11 | CA10: 10 | CB10: 149.7 | CC10: 150 | CD10: 55 | CE10: 123 | CF10: 75 | CG10: 0 | CH10: 4.48 | CI10: 1.37 | CJ10: 7.394789579 | CK10: 14 | CL10: 28 | CM10: 28 | CN10: 21 | CO10: 11 | CP10: 13 | CQ10: 200 | CR10: 206 | CS10: 65 | CT10: 183 | CU10: 106 | CV10: 0 | CW10: 4.77 | CX10: 1.35 | CY10: 8.24 | CZ10: 16 | DA10: 32 | DB10: 32 | DC10: 35 | DD10: =(('Guts-2'!$I$7*0.01)*R10)+(('Guts-2'!$I$3*0.01)*AG10)+(('Guts-2'!$I$9*0.01)*AV10)+(('Guts-2'!$I$4*0.01)*BK10)+(('Guts-2'!$I$2*0.01)*BZ10)+(('Guts-2'!$I$8*0.01)*CO10) ->  | DE10: =(('Guts-2'!$I$7*0.01)*S10)+(('Guts-2'!$I$3*0.01)*AH10)+(('Guts-2'!$I$9*0.01)*AW10)+(('Guts-2'!$I$4*0.01)*BL10)+(('Guts-2'!$I$2*0.01)*CA10)+(('Guts-2'!$I$8*0.01)*CP10) ->  | DF10: =(('Guts-2'!$I$7*0.01)*T10)+(('Guts-2'!$I$3*0.01)*AI10)+(('Guts-2'!$I$9*0.01)*AX10)+(('Guts-2'!$I$4*0.01)*BM10)+(('Guts-2'!$I$2*0.01)*CB10)+(('Guts-2'!$I$8*0.01)*CQ10) ->  | DG10: =(('Guts-2'!$I$7*0.01)*U10)+(('Guts-2'!$I$3*0.01)*AJ10)+(('Guts-2'!$I$9*0.01)*AY10)+(('Guts-2'!$I$4*0.01)*BN10)+(('Guts-2'!$I$2*0.01)*CC10)+(('Guts-2'!$I$8*0.01)*CR10) ->  | DH10: =(('Guts-2'!$I$7*0.01)*V10)+(('Guts-2'!$I$3*0.01)*AK10)+(('Guts-2'!$I$9*0.01)*AZ10)+(('Guts-2'!$I$4*0.01)*BO10)+(('Guts-2'!$I$2*0.01)*CD10)+(('Guts-2'!$I$8*0.01)*CS10) ->  | DI10: =(('Guts-2'!$I$7*0.01)*W10)+(('Guts-2'!$I$3*0.01)*AL10)+(('Guts-2'!$I$9*0.01)*BA10)+(('Guts-2'!$I$4*0.01)*BP10)+(('Guts-2'!$I$2*0.01)*CE10)+(('Guts-2'!$I$8*0.01)*CT10) ->  | DJ10: =(('Guts-2'!$I$7*0.01)*X10)+(('Guts-2'!$I$3*0.01)*AM10)+(('Guts-2'!$I$9*0.01)*BB10)+(('Guts-2'!$I$4*0.01)*BQ10)+(('Guts-2'!$I$2*0.01)*CF10)+(('Guts-2'!$I$8*0.01)*CU10) ->  | DK10: =(('Guts-2'!$I$7*0.01)*Y10)+(('Guts-2'!$I$3*0.01)*AN10)+(('Guts-2'!$I$9*0.01)*BC10)+(('Guts-2'!$I$4*0.01)*BR10)+(('Guts-2'!$I$2*0.01)*CG10)+(('Guts-2'!$I$8*0.01)*CV10) ->  | DO10: =(('Guts-2'!$I$7*0.01)*AC10)+(('Guts-2'!$I$3*0.01)*AR10)+(('Guts-2'!$I$9*0.01)*BG10)+(('Guts-2'!$I$4*0.01)*BV10)+(('Guts-2'!$I$2*0.01)*CK10)+(('Guts-2'!$I$8*0.01)*CZ10) ->  | DP10: =(('Guts-2'!$I$7*0.01)*AD10)+(('Guts-2'!$I$3*0.01)*AS10)+(('Guts-2'!$I$9*0.01)*BH10)+(('Guts-2'!$I$4*0.01)*BW10)+(('Guts-2'!$I$2*0.01)*CL10)+(('Guts-2'!$I$8*0.01)*DA10) ->  | DQ10: =(('Guts-2'!$I$7*0.01)*AE10)+(('Guts-2'!$I$3*0.01)*AT10)+(('Guts-2'!$I$9*0.01)*BI10)+(('Guts-2'!$I$4*0.01)*BX10)+(('Guts-2'!$I$2*0.01)*CM10)+(('Guts-2'!$I$8*0.01)*DB10) ->  | DR10: =(('Guts-2'!$I$7*0.01)*AF10)+(('Guts-2'!$I$3*0.01)*AU10)+(('Guts-2'!$I$9*0.01)*BJ10)+(('Guts-2'!$I$4*0.01)*BY10)+(('Guts-2'!$I$2*0.01)*CN10)+(('Guts-2'!$I$8*0.01)*DC10) ->  | EH10: 9 | EI10: 11 | EJ10: 168 | EK10: 172 | EL10: 55 | EM10: 153 | EN10: 89 | EO10: 0 | EP10: 4.77 | EQ10: 1.35 | ER10: 8.24 | ES10: 13 | ET10: 29 | EU10: 29 | EV10: 29 | EW10: =VLOOKUP($A10,'Import (Projections)'!$O$2:$X$8997,COLUMN(B8),FALSE) ->  | EX10: =VLOOKUP($A10,'Import (Projections)'!$O$2:$X$8997,COLUMN(C8),FALSE) ->  | EY10: =VLOOKUP($A10,'Import (Projections)'!$O$2:$X$8997,COLUMN(D8),FALSE) ->  | EZ10: =VLOOKUP($A10,'Import (Projections)'!$O$2:$X$8997,COLUMN(E8),FALSE) ->  | FA10: =VLOOKUP($A10,'Import (Projections)'!$O$2:$X$8997,COLUMN(F8),FALSE) ->  | FB10: =VLOOKUP($A10,'Import (Projections)'!$O$2:$X$8997,COLUMN(G8),FALSE) ->  | FC10: =VLOOKUP($A10,'Import (Projections)'!$O$2:$X$8997,COLUMN(H8),FALSE) ->  | FD10: =VLOOKUP($A10,'Import (Projections)'!$O$2:$X$8997,COLUMN(I8),FALSE) ->  | FI10: =VLOOKUP($A10,'Import (Projections)'!$O$2:$X$8997,COLUMN(J8),FALSE) ->  | FL10: =IFERROR(IFERROR(AVERAGE(FP10,FT10),IFERROR(FT10,IFERROR(FP10,0)))*CHOOSE('Guts-2'!$D$28,O10,AD10,AS10,BH10,BW10,CL10,DA10,DP10,EE10,ET10,FI10,),0) -> 0 | FM10: =IFERROR(IFERROR(AVERAGE(FQ10,FS10),IFERROR(FS10,IFERROR(FQ10,0)))*CHOOSE('Guts-2'!$D$28,O10,AD10,AS10,BH10,BW10,CL10,DA10,DP10,EE10,ET10,FI10,),0) -> 0 | FN10: 0 | FS10: 0 | FT10: 0 | FU10: 0 | FV10: 0 | FW10: 0
A11: Tyler Anderson | B11: anderty01 | R11: 9 | S11: 8 | T11: 141 | U11: 144 | V11: 46 | W11: 128 | X11: 69 | Y11: 0 | Z11: 4.4 | AA11: 1.35 | AB11: 8.16 | AC11: 12 | AD11: 24 | AE11: 24 | AF11: 21 | AV11: 8 | AW11: 5 | AX11: 105 | AY11: 109 | AZ11: 36 | BA11: 91 | BB11: 52 | BC11: 0 | BD11: 4.46 | BE11: 1.38 | BF11: 7.8 | BG11: 8 | BH11: 19 | BI11: 21 | BJ11: 16 | BK11: 10 | BL11: 7 | BM11: 141 | BN11: 145 | BO11: 47 | BP11: 125 | BQ11: 69 | BR11: 0 | BS11: 4.43 | BT11: 1.37 | BU11: 7.98 | BV11: 12 | BW11: 24 | BX11: 24 | BY11: 21 | BZ11: 8 | CA11: 8 | CB11: 114.7 | CC11: 123 | CD11: 41 | CE11: 96 | CF11: 62 | CG11: 0 | CH11: 4.88 | CI11: 1.43 | CJ11: 7.532693984 | CK11: 10 | CL11: 21 | CM11: 21 | CN11: 16 | CO11: 12 | CP11: 12 | CQ11: 200 | CR11: 205 | CS11: 65 | CT11: 181 | CU11: 98 | CV11: 0 | CW11: 4.4 | CX11: 1.35 | CY11: 8.16 | CZ11: 18 | DA11: 32 | DB11: 32 | DC11: 29 | DD11: =(('Guts-2'!$I$7*0.01)*R11)+(('Guts-2'!$I$3*0.01)*AG11)+(('Guts-2'!$I$9*0.01)*AV11)+(('Guts-2'!$I$4*0.01)*BK11)+(('Guts-2'!$I$2*0.01)*BZ11)+(('Guts-2'!$I$8*0.01)*CO11) ->  | DE11: =(('Guts-2'!$I$7*0.01)*S11)+(('Guts-2'!$I$3*0.01)*AH11)+(('Guts-2'!$I$9*0.01)*AW11)+(('Guts-2'!$I$4*0.01)*BL11)+(('Guts-2'!$I$2*0.01)*CA11)+(('Guts-2'!$I$8*0.01)*CP11) ->  | DF11: =(('Guts-2'!$I$7*0.01)*T11)+(('Guts-2'!$I$3*0.01)*AI11)+(('Guts-2'!$I$9*0.01)*AX11)+(('Guts-2'!$I$4*0.01)*BM11)+(('Guts-2'!$I$2*0.01)*CB11)+(('Guts-2'!$I$8*0.01)*CQ11) ->  | DG11: =(('Guts-2'!$I$7*0.01)*U11)+(('Guts-2'!$I$3*0.01)*AJ11)+(('Guts-2'!$I$9*0.01)*AY11)+(('Guts-2'!$I$4*0.01)*BN11)+(('Guts-2'!$I$2*0.01)*CC11)+(('Guts-2'!$I$8*0.01)*CR11) ->  | DH11: =(('Guts-2'!$I$7*0.01)*V11)+(('Guts-2'!$I$3*0.01)*AK11)+(('Guts-2'!$I$9*0.01)*AZ11)+(('Guts-2'!$I$4*0.01)*BO11)+(('Guts-2'!$I$2*0.01)*CD11)+(('Guts-2'!$I$8*0.01)*CS11) ->  | DI11: =(('Guts-2'!$I$7*0.01)*W11)+(('Guts-2'!$I$3*0.01)*AL11)+(('Guts-2'!$I$9*0.01)*BA11)+(('Guts-2'!$I$4*0.01)*BP11)+(('Guts-2'!$I$2*0.01)*CE11)+(('Guts-2'!$I$8*0.01)*CT11) ->  | DJ11: =(('Guts-2'!$I$7*0.01)*X11)+(('Guts-2'!$I$3*0.01)*AM11)+(('Guts-2'!$I$9*0.01)*BB11)+(('Guts-2'!$I$4*0.01)*BQ11)+(('Guts-2'!$I$2*0.01)*CF11)+(('Guts-2'!$I$8*0.01)*CU11) ->  | DK11: =(('Guts-2'!$I$7*0.01)*Y11)+(('Guts-2'!$I$3*0.01)*AN11)+(('Guts-2'!$I$9*0.01)*BC11)+(('Guts-2'!$I$4*0.01)*BR11)+(('Guts-2'!$I$2*0.01)*CG11)+(('Guts-2'!$I$8*0.01)*CV11) ->  | DO11: =(('Guts-2'!$I$7*0.01)*AC11)+(('Guts-2'!$I$3*0.01)*AR11)+(('Guts-2'!$I$9*0.01)*BG11)+(('Guts-2'!$I$4*0.01)*BV11)+(('Guts-2'!$I$2*0.01)*CK11)+(('Guts-2'!$I$8*0.01)*CZ11) ->  | DP11: =(('Guts-2'!$I$7*0.01)*AD11)+(('Guts-2'!$I$3*0.01)*AS11)+(('Guts-2'!$I$9*0.01)*BH11)+(('Guts-2'!$I$4*0.01)*BW11)+(('Guts-2'!$I$2*0.01)*CL11)+(('Guts-2'!$I$8*0.01)*DA11) ->  | DQ11: =(('Guts-2'!$I$7*0.01)*AE11)+(('Guts-2'!$I$3*0.01)*AT11)+(('Guts-2'!$I$9*0.01)*BI11)+(('Guts-2'!$I$4*0.01)*BX11)+(('Guts-2'!$I$2*0.01)*CM11)+(('Guts-2'!$I$8*0.01)*DB11) ->  | DR11: =(('Guts-2'!$I$7*0.01)*AF11)+(('Guts-2'!$I$3*0.01)*AU11)+(('Guts-2'!$I$9*0.01)*BJ11)+(('Guts-2'!$I$4*0.01)*BY11)+(('Guts-2'!$I$2*0.01)*CN11)+(('Guts-2'!$I$8*0.01)*DC11) ->  | EH11: 9 | EI11: 8 | EJ11: 141 | EK11: 144 | EL11: 46 | EM11: 128 | EN11: 69 | EO11: 0 | EP11: 4.4 | EQ11: 1.35 | ER11: 8.16 | ES11: 12 | ET11: 24 | EU11: 24 | EV11: 21 | EW11: =VLOOKUP($A11,'Import (Projections)'!$O$2:$X$8997,COLUMN(B9),FALSE) ->  | EX11: =VLOOKUP($A11,'Import (Projections)'!$O$2:$X$8997,COLUMN(C9),FALSE) ->  | EY11: =VLOOKUP($A11,'Import (Projections)'!$O$2:$X$8997,COLUMN(D9),FALSE) ->  | EZ11: =VLOOKUP($A11,'Import (Projections)'!$O$2:$X$8997,COLUMN(E9),FALSE) ->  | FA11: =VLOOKUP($A11,'Import (Projections)'!$O$2:$X$8997,COLUMN(F9),FALSE) ->  | FB11: =VLOOKUP($A11,'Import (Projections)'!$O$2:$X$8997,COLUMN(G9),FALSE) ->  | FC11: =VLOOKUP($A11,'Import (Projections)'!$O$2:$X$8997,COLUMN(H9),FALSE) ->  | FD11: =VLOOKUP($A11,'Import (Projections)'!$O$2:$X$8997,COLUMN(I9),FALSE) ->  | FI11: =VLOOKUP($A11,'Import (Projections)'!$O$2:$X$8997,COLUMN(J9),FALSE) ->  | FL11: =IFERROR(IFERROR(AVERAGE(FP11,FT11),IFERROR(FT11,IFERROR(FP11,0)))*CHOOSE('Guts-2'!$D$28,O11,AD11,AS11,BH11,BW11,CL11,DA11,DP11,EE11,ET11,FI11,),0) -> 0 | FM11: =IFERROR(IFERROR(AVERAGE(FQ11,FS11),IFERROR(FS11,IFERROR(FQ11,0)))*CHOOSE('Guts-2'!$D$28,O11,AD11,AS11,BH11,BW11,CL11,DA11,DP11,EE11,ET11,FI11,),0) -> 0 | FN11: 0 | FS11: 0 | FT11: 0 | FU11: 0 | FV11: 0 | FW11: 0
A12: Matt Andriese | B12: andrima01 | R12: 7 | S12: 8 | T12: 122 | U12: 121 | V12: 34 | W12: 105 | X12: 57 | Y12: 0 | Z12: 4.19 | AA12: 1.27 | AB12: 7.78 | AC12: 12 | AD12: 18 | AE12: 43 | AF12: 18 | AV12: 7 | AW12: 7 | AX12: 121 | AY12: 123 | AZ12: 27 | BA12: 109 | BB12: 55 | BC12: 0 | BD12: 4.09 | BE12: 1.24 | BF12: 8.11 | BG12: 10 | BH12: 22 | BI12: 26 | BJ12: 18 | BK12: 7 | BL12: 8 | BM12: 128 | BN12: 129 | BO12: 32 | BP12: 113 | BQ12: 59 | BR12: 0 | BS12: 4.14 | BT12: 1.25 | BU12: 7.95 | BV12: 13 | BW12: 18 | BX12: 43 | BY12: 19 | BZ12: 8 | CA12: 10 | CB12: 137.3 | CC12: 137 | CD12: 45 | CE12: 120 | CF12: 68 | CG12: 0 | CH12: 4.42 | CI12: 1.32 | CJ12: 7.86598689 | CK12: 11 | CL12: 21 | CM12: 29 | CN12: 20 | CO12: 4 | CP12: 4 | CQ12: 65 | CR12: 64 | CS12: 18 | CT12: 56 | CU12: 30 | CV12: 0 | CW12: 4.19 | CX12: 1.27 | CY12: 7.78 | CZ12: 0 | DA12: 0 | DB12: 65 | DC12: 9 | DD12: =(('Guts-2'!$I$7*0.01)*R12)+(('Guts-2'!$I$3*0.01)*AG12)+(('Guts-2'!$I$9*0.01)*AV12)+(('Guts-2'!$I$4*0.01)*BK12)+(('Guts-2'!$I$2*0.01)*BZ12)+(('Guts-2'!$I$8*0.01)*CO12) ->  | DE12: =(('Guts-2'!$I$7*0.01)*S12)+(('Guts-2'!$I$3*0.01)*AH12)+(('Guts-2'!$I$9*0.01)*AW12)+(('Guts-2'!$I$4*0.01)*BL12)+(('Guts-2'!$I$2*0.01)*CA12)+(('Guts-2'!$I$8*0.01)*CP12) ->  | DF12: =(('Guts-2'!$I$7*0.01)*T12)+(('Guts-2'!$I$3*0.01)*AI12)+(('Guts-2'!$I$9*0.01)*AX12)+(('Guts-2'!$I$4*0.01)*BM12)+(('Guts-2'!$I$2*0.01)*CB12)+(('Guts-2'!$I$8*0.01)*CQ12) ->  | DG12: =(('Guts-2'!$I$7*0.01)*U12)+(('Guts-2'!$I$3*0.01)*AJ12)+(('Guts-2'!$I$9*0.01)*AY12)+(('Guts-2'!$I$4*0.01)*BN12)+(('Guts-2'!$I$2*0.01)*CC12)+(('Guts-2'!$I$8*0.01)*CR12) ->  | DH12: =(('Guts-2'!$I$7*0.01)*V12)+(('Guts-2'!$I$3*0.01)*AK12)+(('Guts-2'!$I$9*0.01)*AZ12)+(('Guts-2'!$I$4*0.01)*BO12)+(('Guts-2'!$I$2*0.01)*CD12)+(('Guts-2'!$I$8*0.01)*CS12) ->  | DI12: =(('Guts-2'!$I$7*0.01)*W12)+(('Guts-2'!$I$3*0.01)*AL12)+(('Guts-2'!$I$9*0.01)*BA12)+(('Guts-2'!$I$4*0.01)*BP12)+(('Guts-2'!$I$2*0.01)*CE12)+(('Guts-2'!$I$8*0.01)*CT12) ->  | DJ12: =(('Guts-2'!$I$7*0.01)*X12)+(('Guts-2'!$I$3*0.01)*AM12)+(('Guts-2'!$I$9*0.01)*BB12)+(('Guts-2'!$I$4*0.01)*BQ12)+(('Guts-2'!$I$2*0.01)*CF12)+(('Guts-2'!$I$8*0.01)*CU12) ->  | DK12: =(('Guts-2'!$I$7*0.01)*Y12)+(('Guts-2'!$I$3*0.01)*AN12)+(('Guts-2'!$I$9*0.01)*BC12)+(('Guts-2'!$I$4*0.01)*BR12)+(('Guts-2'!$I$2*0.01)*CG12)+(('Guts-2'!$I$8*0.01)*CV12) ->  | DO12: =(('Guts-2'!$I$7*0.01)*AC12)+(('Guts-2'!$I$3*0.01)*AR12)+(('Guts-2'!$I$9*0.01)*BG12)+(('Guts-2'!$I$4*0.01)*BV12)+(('Guts-2'!$I$2*0.01)*CK12)+(('Guts-2'!$I$8*0.01)*CZ12) ->  | DP12: =(('Guts-2'!$I$7*0.01)*AD12)+(('Guts-2'!$I$3*0.01)*AS12)+(('Guts-2'!$I$9*0.01)*BH12)+(('Guts-2'!$I$4*0.01)*BW12)+(('Guts-2'!$I$2*0.01)*CL12)+(('Guts-2'!$I$8*0.01)*DA12) ->  | DQ12: =(('Guts-2'!$I$7*0.01)*AE12)+(('Guts-2'!$I$3*0.01)*AT12)+(('Guts-2'!$I$9*0.01)*BI12)+(('Guts-2'!$I$4*0.01)*BX12)+(('Guts-2'!$I$2*0.01)*CM12)+(('Guts-2'!$I$8*0.01)*DB12) ->  | DR12: =(('Guts-2'!$I$7*0.01)*AF12)+(('Guts-2'!$I$3*0.01)*AU12)+(('Guts-2'!$I$9*0.01)*BJ12)+(('Guts-2'!$I$4*0.01)*BY12)+(('Guts-2'!$I$2*0.01)*CN12)+(('Guts-2'!$I$8*0.01)*DC12) ->  | EH12: 7 | EI12: 8 | EJ12: 122 | EK12: 121 | EL12: 34 | EM12: 105 | EN12: 57 | EO12: 0 | EP12: 4.19 | EQ12: 1.27 | ER12: 7.78 | ES12: 12 | ET12: 18 | EU12: 43 | EV12: 18 | EW12: =VLOOKUP($A12,'Import (Projections)'!$O$2:$X$8997,COLUMN(B10),FALSE) ->  | EX12: =VLOOKUP($A12,'Import (Projections)'!$O$2:$X$8997,COLUMN(C10),FALSE) ->  | EY12: =VLOOKUP($A12,'Import (Projections)'!$O$2:$X$8997,COLUMN(D10),FALSE) ->  | EZ12: =VLOOKUP($A12,'Import (Projections)'!$O$2:$X$8997,COLUMN(E10),FALSE) ->  | FA12: =VLOOKUP($A12,'Import (Projections)'!$O$2:$X$8997,COLUMN(F10),FALSE) ->  | FB12: =VLOOKUP($A12,'Import (Projections)'!$O$2:$X$8997,COLUMN(G10),FALSE) ->  | FC12: =VLOOKUP($A12,'Import (Projections)'!$O$2:$X$8997,COLUMN(H10),FALSE) ->  | FD12: =VLOOKUP($A12,'Import (Projections)'!$O$2:$X$8997,COLUMN(I10),FALSE) ->  | FI12: =VLOOKUP($A12,'Import (Projections)'!$O$2:$X$8997,COLUMN(J10),FALSE) ->  | FL12: =IFERROR(IFERROR(AVERAGE(FP12,FT12),IFERROR(FT12,IFERROR(FP12,0)))*CHOOSE('Guts-2'!$D$28,O12,AD12,AS12,BH12,BW12,CL12,DA12,DP12,EE12,ET12,FI12,),0) -> 0 | FM12: =IFERROR(IFERROR(AVERAGE(FQ12,FS12),IFERROR(FS12,IFERROR(FQ12,0)))*CHOOSE('Guts-2'!$D$28,O12,AD12,AS12,BH12,BW12,CL12,DA12,DP12,EE12,ET12,FI12,),0) -> 0 | FN12: 2 | FS12: 0 | FT12: 0 | FU12: 0 | FV12: 3 | FW12: 1
A13: Chris Archer | B13: archech01 | R13: 12 | S13: 11 | T13: 196 | U13: 169 | V13: 61 | W13: 222 | X13: 76 | Y13: 0 | Z13: 3.49 | AA13: 1.17 | AB13: 10.17 | AC13: 20 | AD13: 32 | AE13: 32 | AF13: 24 | AG13: 12 | AH13: 10 | AI13: 196 | AJ13: 170 | AK13: 62 | AL13: 236 | AM13: 78 | AN13: 0 | AO13: 3.58 | AP13: 1.18 | AQ13: 10.84 | AR13: 19 | AS13: 33 | AT13: 33 | AU13: 27 | AV13: 13 | AW13: 9 | AX13: 195.7 | AY13: 171 | AZ13: 59 | BA13: 230 | BB13: 71 | BC13: 0 | BD13: 3.27 | BE13: 1.18 | BF13: 10.58 | BG13: 21 | BH13: 32 | BI13: 32 | BJ13: 20 | BK13: 13 | BL13: 10 | BM13: 198 | BN13: 172 | BO13: 61 | BP13: 229 | BQ13: 74 | BR13: 0 | BS13: 3.38 | BT13: 1.17 | BU13: 10.38 | BV13: 21 | BW13: 32 | BX13: 32 | BY13: 22 | BZ13: 15 | CA13: 11 | CB13: 203 | CC13: 167 | CD13: 63 | CE13: 235 | CF13: 75 | CG13: 0 | CH13: 3.32 | CI13: 1.13 | CJ13: 10.41871921 | CK13: 20 | CL13: 32 | CM13: 32 | CN13: 28 | CO13: 12 | CP13: 11 | CQ13: 200 | CR13: 172 | CS13: 63 | CT13: 226 | CU13: 78 | CV13: 0 | CW13: 3.49 | CX13: 1.17 | CY13: 10.17 | CZ13: 21 | DA13: 32 | DB13: 32 | DC13: 24 | DD13: =(('Guts-2'!$I$7*0.01)*R13)+(('Guts-2'!$I$3*0.01)*AG13)+(('Guts-2'!$I$9*0.01)*AV13)+(('Guts-2'!$I$4*0.01)*BK13)+(('Guts-2'!$I$2*0.01)*BZ13)+(('Guts-2'!$I$8*0.01)*CO13) -> 13 | DE13: =(('Guts-2'!$I$7*0.01)*S13)+(('Guts-2'!$I$3*0.01)*AH13)+(('Guts-2'!$I$9*0.01)*AW13)+(('Guts-2'!$I$4*0.01)*BL13)+(('Guts-2'!$I$2*0.01)*CA13)+(('Guts-2'!$I$8*0.01)*CP13) -> 10.4 | DF13: =(('Guts-2'!$I$7*0.01)*T13)+(('Guts-2'!$I$3*0.01)*AI13)+(('Guts-2'!$I$9*0.01)*AX13)+(('Guts-2'!$I$4*0.01)*BM13)+(('Guts-2'!$I$2*0.01)*CB13)+(('Guts-2'!$I$8*0.01)*CQ13) -> 197.74 | DG13: =(('Guts-2'!$I$7*0.01)*U13)+(('Guts-2'!$I$3*0.01)*AJ13)+(('Guts-2'!$I$9*0.01)*AY13)+(('Guts-2'!$I$4*0.01)*BN13)+(('Guts-2'!$I$2*0.01)*CC13)+(('Guts-2'!$I$8*0.01)*CR13) -> 169.6 | DH13: =(('Guts-2'!$I$7*0.01)*V13)+(('Guts-2'!$I$3*0.01)*AK13)+(('Guts-2'!$I$9*0.01)*AZ13)+(('Guts-2'!$I$4*0.01)*BO13)+(('Guts-2'!$I$2*0.01)*CD13)+(('Guts-2'!$I$8*0.01)*CS13) -> 61 | DI13: =(('Guts-2'!$I$7*0.01)*W13)+(('Guts-2'!$I$3*0.01)*AL13)+(('Guts-2'!$I$9*0.01)*BA13)+(('Guts-2'!$I$4*0.01)*BP13)+(('Guts-2'!$I$2*0.01)*CE13)+(('Guts-2'!$I$8*0.01)*CT13) -> 227.6 | DJ13: =(('Guts-2'!$I$7*0.01)*X13)+(('Guts-2'!$I$3*0.01)*AM13)+(('Guts-2'!$I$9*0.01)*BB13)+(('Guts-2'!$I$4*0.01)*BQ13)+(('Guts-2'!$I$2*0.01)*CF13)+(('Guts-2'!$I$8*0.01)*CU13) -> 74.4 | DK13: =(('Guts-2'!$I$7*0.01)*Y13)+(('Guts-2'!$I$3*0.01)*AN13)+(('Guts-2'!$I$9*0.01)*BC13)+(('Guts-2'!$I$4*0.01)*BR13)+(('Guts-2'!$I$2*0.01)*CG13)+(('Guts-2'!$I$8*0.01)*CV13) -> 0 | DL13: 3.386264792 | DM13: 1.166177809 | DN13: 10.35905735 | DO13: =(('Guts-2'!$I$7*0.01)*AC13)+(('Guts-2'!$I$3*0.01)*AR13)+(('Guts-2'!$I$9*0.01)*BG13)+(('Guts-2'!$I$4*0.01)*BV13)+(('Guts-2'!$I$2*0.01)*CK13)+(('Guts-2'!$I$8*0.01)*CZ13) -> 20.4 | DP13: =(('Guts-2'!$I$7*0.01)*AD13)+(('Guts-2'!$I$3*0.01)*AS13)+(('Guts-2'!$I$9*0.01)*BH13)+(('Guts-2'!$I$4*0.01)*BW13)+(('Guts-2'!$I$2*0.01)*CL13)+(('Guts-2'!$I$8*0.01)*DA13) -> 32 | DQ13: =(('Guts-2'!$I$7*0.01)*AE13)+(('Guts-2'!$I$3*0.01)*AT13)+(('Guts-2'!$I$9*0.01)*BI13)+(('Guts-2'!$I$4*0.01)*BX13)+(('Guts-2'!$I$2*0.01)*CM13)+(('Guts-2'!$I$8*0.01)*DB13) -> 32 | DR13: =(('Guts-2'!$I$7*0.01)*AF13)+(('Guts-2'!$I$3*0.01)*AU13)+(('Guts-2'!$I$9*0.01)*BJ13)+(('Guts-2'!$I$4*0.01)*BY13)+(('Guts-2'!$I$2*0.01)*CN13)+(('Guts-2'!$I$8*0.01)*DC13) -> 23.6 | DS13: 12.15538353 | DT13: 10.32696886 | DU13: 197 | DV13: 170.3540618 | DW13: 61.16195934 | DX13: 231.9272959 | DY13: 77.19183673 | DZ13: 0 | EA13: 3.526530612 | EB13: 1.175208229 | EC13: 10.59566327 | ED13: 20 | EE13: 33 | EF13: 33 | EG13: 23.97630601 | EH13: 12.15538353 | EI13: 10.32696886 | EJ13: 197 | EK13: 170.3540618 | EL13: 61.16195934 | EM13: 231.9272959 | EN13: 77.19183673 | EO13: 0 | EP13: 3.526530612 | EQ13: 1.175208229 | ER13: 10.59566327 | ES13: 20 | ET13: 33 | EU13: 33 | EV13: 23.97630601 | EW13: =VLOOKUP($A13,'Import (Projections)'!$O$2:$X$8997,COLUMN(B11),FALSE) ->  | EX13: =VLOOKUP($A13,'Import (Projections)'!$O$2:$X$8997,COLUMN(C11),FALSE) ->  | EY13: =VLOOKUP($A13,'Import (Projections)'!$O$2:$X$8997,COLUMN(D11),FALSE) ->  | EZ13: =VLOOKUP($A13,'Import (Projections)'!$O$2:$X$8997,COLUMN(E11),FALSE) ->  | FA13: =VLOOKUP($A13,'Import (Projections)'!$O$2:$X$8997,COLUMN(F11),FALSE) ->  | FB13: =VLOOKUP($A13,'Import (Projections)'!$O$2:$X$8997,COLUMN(G11),FALSE) ->  | FC13: =VLOOKUP($A13,'Import (Projections)'!$O$2:$X$8997,COLUMN(H11),FALSE) ->  | FD13: =VLOOKUP($A13,'Import (Projections)'!$O$2:$X$8997,COLUMN(I11),FALSE) ->  | FI13: =VLOOKUP($A13,'Import (Projections)'!$O$2:$X$8997,COLUMN(J11),FALSE) ->  | FL13: =IFERROR(IFERROR(AVERAGE(FP13,FT13),IFERROR(FT13,IFERROR(FP13,0)))*CHOOSE('Guts-2'!$D$28,O13,AD13,AS13,BH13,BW13,CL13,DA13,DP13,EE13,ET13,FI13,),0) -> 0 | FM13: =IFERROR(IFERROR(AVERAGE(FQ13,FS13),IFERROR(FS13,IFERROR(FQ13,0)))*CHOOSE('Guts-2'!$D$28,O13,AD13,AS13,BH13,BW13,CL13,DA13,DP13,EE13,ET13,FI13,),0) -> 0 | FN13: 0 | FS13: 0 | FT13: 0 | FU13: 0 | FV13: 0 | FW13: 0
A14: Jake Arrieta | B14: arrieja01 | R14: 11 | S14: 10 | T14: 179 | U14: 177 | V14: 59 | W14: 160 | X14: 83 | Y14: 0 | Z14: 4.19 | AA14: 1.32 | AB14: 8.01 | AC14: 16 | AD14: 29 | AE14: 29 | AF14: 22 | AG14: 13 | AH14: 9 | AI14: 181 | AJ14: 157 | AK14: 59 | AL14: 169 | AM14: 73 | AN14: 0 | AO14: 3.64 | AP14: 1.19 | AQ14: 8.4 | AR14: 18 | AS14: 31 | AT14: 31 | AU14: 23 | AV14: 14 | AW14: 9 | AX14: 161.7 | AY14: 143 | AZ14: 56 | BA14: 158 | BB14: 66 | BC14: 0 | BD14: 3.67 | BE14: 1.23 | BF14: 8.8 | BG14: 15 | BH14: 29 | BI14: 29 | BJ14: 20 | BK14: 12 | BL14: 10 | BM14: 171 | BN14: 160 | BO14: 58 | BP14: 159 | BQ14: 75 | BR14: 0 | BS14: 3.94 | BT14: 1.28 | BU14: 8.39 | BV14: 16 | BW14: 29 | BX14: 29 | BY14: 21 | BZ14: 14 | CA14: 11 | CB14: 180.3 | CC14: 167 | CD14: 63 | CE14: 177 | CF14: 79 | CG14: 0 | CH14: 3.94 | CI14: 1.28 | CJ14: 8.835274542 | CK14: 18 | CL14: 32 | CM14: 32 | CN14: 23 | CO14: 12 | CP14: 11 | CQ14: 200 | CR14: 197 | CS14: 66 | CT14: 178 | CU14: 93 | CV14: 0 | CW14: 4.19 | CX14: 1.32 | CY14: 8.01 | CZ14: 18 | DA14: 32 | DB14: 32 | DC14: 25 | DD14: =(('Guts-2'!$I$7*0.01)*R14)+(('Guts-2'!$I$3*0.01)*AG14)+(('Guts-2'!$I$9*0.01)*AV14)+(('Guts-2'!$I$4*0.01)*BK14)+(('Guts-2'!$I$2*0.01)*BZ14)+(('Guts-2'!$I$8*0.01)*CO14) -> 12.4 | DE14: =(('Guts-2'!$I$7*0.01)*S14)+(('Guts-2'!$I$3*0.01)*AH14)+(('Guts-2'!$I$9*0.01)*AW14)+(('Guts-2'!$I$4*0.01)*BL14)+(('Guts-2'!$I$2*0.01)*CA14)+(('Guts-2'!$I$8*0.01)*CP14) -> 10 | DF14: =(('Guts-2'!$I$7*0.01)*T14)+(('Guts-2'!$I$3*0.01)*AI14)+(('Guts-2'!$I$9*0.01)*AX14)+(('Guts-2'!$I$4*0.01)*BM14)+(('Guts-2'!$I$2*0.01)*CB14)+(('Guts-2'!$I$8*0.01)*CQ14) -> 174.2 | DG14: =(('Guts-2'!$I$7*0.01)*U14)+(('Guts-2'!$I$3*0.01)*AJ14)+(('Guts-2'!$I$9*0.01)*AY14)+(('Guts-2'!$I$4*0.01)*BN14)+(('Guts-2'!$I$2*0.01)*CC14)+(('Guts-2'!$I$8*0.01)*CR14) -> 164.8 | DH14: =(('Guts-2'!$I$7*0.01)*V14)+(('Guts-2'!$I$3*0.01)*AK14)+(('Guts-2'!$I$9*0.01)*AZ14)+(('Guts-2'!$I$4*0.01)*BO14)+(('Guts-2'!$I$2*0.01)*CD14)+(('Guts-2'!$I$8*0.01)*CS14) -> 59 | DI14: =(('Guts-2'!$I$7*0.01)*W14)+(('Guts-2'!$I$3*0.01)*AL14)+(('Guts-2'!$I$9*0.01)*BA14)+(('Guts-2'!$I$4*0.01)*BP14)+(('Guts-2'!$I$2*0.01)*CE14)+(('Guts-2'!$I$8*0.01)*CT14) -> 162.8 | DJ14: =(('Guts-2'!$I$7*0.01)*X14)+(('Guts-2'!$I$3*0.01)*AM14)+(('Guts-2'!$I$9*0.01)*BB14)+(('Guts-2'!$I$4*0.01)*BQ14)+(('Guts-2'!$I$2*0.01)*CF14)+(('Guts-2'!$I$8*0.01)*CU14) -> 77.2 | DK14: =(('Guts-2'!$I$7*0.01)*Y14)+(('Guts-2'!$I$3*0.01)*AN14)+(('Guts-2'!$I$9*0.01)*BC14)+(('Guts-2'!$I$4*0.01)*BR14)+(('Guts-2'!$I$2*0.01)*CG14)+(('Guts-2'!$I$8*0.01)*CV14) -> 0 | DL14: 3.988518944 | DM14: 1.284730195 | DN14: 8.411021814 | DO14: =(('Guts-2'!$I$7*0.01)*AC14)+(('Guts-2'!$I$3*0.01)*AR14)+(('Guts-2'!$I$9*0.01)*BG14)+(('Guts-2'!$I$4*0.01)*BV14)+(('Guts-2'!$I$2*0.01)*CK14)+(('Guts-2'!$I$8*0.01)*CZ14) -> 16.2 | DP14: =(('Guts-2'!$I$7*0.01)*AD14)+(('Guts-2'!$I$3*0.01)*AS14)+(('Guts-2'!$I$9*0.01)*BH14)+(('Guts-2'!$I$4*0.01)*BW14)+(('Guts-2'!$I$2*0.01)*CL14)+(('Guts-2'!$I$8*0.01)*DA14) -> 29.6 | DQ14: =(('Guts-2'!$I$7*0.01)*AE14)+(('Guts-2'!$I$3*0.01)*AT14)+(('Guts-2'!$I$9*0.01)*BI14)+(('Guts-2'!$I$4*0.01)*BX14)+(('Guts-2'!$I$2*0.01)*CM14)+(('Guts-2'!$I$8*0.01)*DB14) -> 29.6 | DR14: =(('Guts-2'!$I$7*0.01)*AF14)+(('Guts-2'!$I$3*0.01)*AU14)+(('Guts-2'!$I$9*0.01)*BJ14)+(('Guts-2'!$I$4*0.01)*BY14)+(('Guts-2'!$I$2*0.01)*CN14)+(('Guts-2'!$I$8*0.01)*DC14) -> 21.6 | DS14: 11.65649755 | DT14: 9.399669889 | DU14: 180 | DV14: 171.8896193 | DW14: 59.01293878 | DX14: 165.376632 | DY14: 79.11688632 | DZ14: 0 | EA14: 3.955844316 | EB14: 1.282791989 | EC14: 8.2688316 | ED14: 16 | EE14: 31 | EF14: 31 | EG14: 22.25649037 | EH14: 11.65649755 | EI14: 9.399669889 | EJ14: 180 | EK14: 171.8896193 | EL14: 59.01293878 | EM14: 165.376632 | EN14: 79.11688632 | EO14: 0 | EP14: 3.955844316 | EQ14: 1.282791989 | ER14: 8.2688316 | ES14: 16 | ET14: 31 | EU14: 31 | EV14: 22.25649037 | EW14: =VLOOKUP($A14,'Import (Projections)'!$O$2:$X$8997,COLUMN(B12),FALSE) ->  | EX14: =VLOOKUP($A14,'Import (Projections)'!$O$2:$X$8997,COLUMN(C12),FALSE) ->  | EY14: =VLOOKUP($A14,'Import (Projections)'!$O$2:$X$8997,COLUMN(D12),FALSE) ->  | EZ14: =VLOOKUP($A14,'Import (Projections)'!$O$2:$X$8997,COLUMN(E12),FALSE) ->  | FA14: =VLOOKUP($A14,'Import (Projections)'!$O$2:$X$8997,COLUMN(F12),FALSE) ->  | FB14: =VLOOKUP($A14,'Import (Projections)'!$O$2:$X$8997,COLUMN(G12),FALSE) ->  | FC14: =VLOOKUP($A14,'Import (Projections)'!$O$2:$X$8997,COLUMN(H12),FALSE) ->  | FD14: =VLOOKUP($A14,'Import (Projections)'!$O$2:$X$8997,COLUMN(I12),FALSE) ->  | FI14: =VLOOKUP($A14,'Import (Projections)'!$O$2:$X$8997,COLUMN(J12),FALSE) ->  | FL14: =IFERROR(IFERROR(AVERAGE(FP14,FT14),IFERROR(FT14,IFERROR(FP14,0)))*CHOOSE('Guts-2'!$D$28,O14,AD14,AS14,BH14,BW14,CL14,DA14,DP14,EE14,ET14,FI14,),0) -> 0 | FM14: =IFERROR(IFERROR(AVERAGE(FQ14,FS14),IFERROR(FS14,IFERROR(FQ14,0)))*CHOOSE('Guts-2'!$D$28,O14,AD14,AS14,BH14,BW14,CL14,DA14,DP14,EE14,ET14,FI14,),0) -> 0 | FN14: 1 | FS14: 0 | FT14: 0 | FU14: 0 | FV14: 2 | FW14: 0
A15: Pedro Baez | B15: baezpe01 | R15: 2 | S15: 2 | T15: 45 | U15: 40 | V15: 16 | W15: 47 | X15: 20 | Y15: 0 | Z15: 3.91 | AA15: 1.25 | AB15: 9.39 | AC15: 0 | AD15: 0 | AE15: 45 | AF15: 6 | AV15: 4 | AW15: 3 | AX15: 63 | AY15: 57 | AZ15: 23 | BA15: 67 | BB15: 27 | BC15: 0 | BD15: 3.86 | BE15: 1.27 | BF15: 9.57 | BG15: 0 | BH15: 0 | BI15: 66 | BJ15: 9 | BK15: 3 | BL15: 2 | BM15: 45 | BN15: 40 | BO15: 16 | BP15: 47 | BQ15: 19 | BR15: 0 | BS15: 3.88 | BT15: 1.26 | BU15: 9.48 | BV15: 0 | BW15: 0 | BX15: 45 | BY15: 6 | BZ15: 3 | CA15: 2 | CB15: 64.7 | CC15: 59 | CD15: 25 | CE15: 67 | CF15: 29 | CG15: 0 | CH15: 3.98 | CI15: 1.29 | CJ15: 9.319938176 | CK15: 0 | CL15: 0 | CM15: 72 | CN15: 9 | CO15: 3 | CP15: 3 | CQ15: 65 | CR15: 58 | CS15: 24 | CT15: 68 | CU15: 28 | CV15: 0 | CW15: 3.91 | CX15: 1.25 | CY15: 9.39 | CZ15: 0 | DA15: 0 | DB15: 65 | DC15: 9 | DD15: =(('Guts-2'!$I$7*0.01)*R15)+(('Guts-2'!$I$3*0.01)*AG15)+(('Guts-2'!$I$9*0.01)*AV15)+(('Guts-2'!$I$4*0.01)*BK15)+(('Guts-2'!$I$2*0.01)*BZ15)+(('Guts-2'!$I$8*0.01)*CO15) ->  | DE15: =(('Guts-2'!$I$7*0.01)*S15)+(('Guts-2'!$I$3*0.01)*AH15)+(('Guts-2'!$I$9*0.01)*AW15)+(('Guts-2'!$I$4*0.01)*BL15)+(('Guts-2'!$I$2*0.01)*CA15)+(('Guts-2'!$I$8*0.01)*CP15) ->  | DF15: =(('Guts-2'!$I$7*0.01)*T15)+(('Guts-2'!$I$3*0.01)*AI15)+(('Guts-2'!$I$9*0.01)*AX15)+(('Guts-2'!$I$4*0.01)*BM15)+(('Guts-2'!$I$2*0.01)*CB15)+(('Guts-2'!$I$8*0.01)*CQ15) ->  | DG15: =(('Guts-2'!$I$7*0.01)*U15)+(('Guts-2'!$I$3*0.01)*AJ15)+(('Guts-2'!$I$9*0.01)*AY15)+(('Guts-2'!$I$4*0.01)*BN15)+(('Guts-2'!$I$2*0.01)*CC15)+(('Guts-2'!$I$8*0.01)*CR15) ->  | DH15: =(('Guts-2'!$I$7*0.01)*V15)+(('Guts-2'!$I$3*0.01)*AK15)+(('Guts-2'!$I$9*0.01)*AZ15)+(('Guts-2'!$I$4*0.01)*BO15)+(('Guts-2'!$I$2*0.01)*CD15)+(('Guts-2'!$I$8*0.01)*CS15) ->  | DI15: =(('Guts-2'!$I$7*0.01)*W15)+(('Guts-2'!$I$3*0.01)*AL15)+(('Guts-2'!$I$9*0.01)*BA15)+(('Guts-2'!$I$4*0.01)*BP15)+(('Guts-2'!$I$2*0.01)*CE15)+(('Guts-2'!$I$8*0.01)*CT15) ->  | DJ15: =(('Guts-2'!$I$7*0.01)*X15)+(('Guts-2'!$I$3*0.01)*AM15)+(('Guts-2'!$I$9*0.01)*BB15)+(('Guts-2'!$I$4*0.01)*BQ15)+(('Guts-2'!$I$2*0.01)*CF15)+(('Guts-2'!$I$8*0.01)*CU15) ->  | DK15: =(('Guts-2'!$I$7*0.01)*Y15)+(('Guts-2'!$I$3*0.01)*AN15)+(('Guts-2'!$I$9*0.01)*BC15)+(('Guts-2'!$I$4*0.01)*BR15)+(('Guts-2'!$I$2*0.01)*CG15)+(('Guts-2'!$I$8*0.01)*CV15) ->  | DO15: =(('Guts-2'!$I$7*0.01)*AC15)+(('Guts-2'!$I$3*0.01)*AR15)+(('Guts-2'!$I$9*0.01)*BG15)+(('Guts-2'!$I$4*0.01)*BV15)+(('Guts-2'!$I$2*0.01)*CK15)+(('Guts-2'!$I$8*0.01)*CZ15) ->  | DP15: =(('Guts-2'!$I$7*0.01)*AD15)+(('Guts-2'!$I$3*0.01)*AS15)+(('Guts-2'!$I$9*0.01)*BH15)+(('Guts-2'!$I$4*0.01)*BW15)+(('Guts-2'!$I$2*0.01)*CL15)+(('Guts-2'!$I$8*0.01)*DA15) ->  | DQ15: =(('Guts-2'!$I$7*0.01)*AE15)+(('Guts-2'!$I$3*0.01)*AT15)+(('Guts-2'!$I$9*0.01)*BI15)+(('Guts-2'!$I$4*0.01)*BX15)+(('Guts-2'!$I$2*0.01)*CM15)+(('Guts-2'!$I$8*0.01)*DB15) ->  | DR15: =(('Guts-2'!$I$7*0.01)*AF15)+(('Guts-2'!$I$3*0.01)*AU15)+(('Guts-2'!$I$9*0.01)*BJ15)+(('Guts-2'!$I$4*0.01)*BY15)+(('Guts-2'!$I$2*0.01)*CN15)+(('Guts-2'!$I$8*0.01)*DC15) ->  | EH15: 2 | EI15: 2 | EJ15: 45 | EK15: 40 | EL15: 16 | EM15: 47 | EN15: 20 | EO15: 0 | EP15: 3.91 | EQ15: 1.25 | ER15: 9.39 | ES15: 0 | ET15: 0 | EU15: 45 | EV15: 6 | EW15: =VLOOKUP($A15,'Import (Projections)'!$O$2:$X$8997,COLUMN(B13),FALSE) ->  | EX15: =VLOOKUP($A15,'Import (Projections)'!$O$2:$X$8997,COLUMN(C13),FALSE) ->  | EY15: =VLOOKUP($A15,'Import (Projections)'!$O$2:$X$8997,COLUMN(D13),FALSE) ->  | EZ15: =VLOOKUP($A15,'Import (Projections)'!$O$2:$X$8997,COLUMN(E13),FALSE) ->  | FA15: =VLOOKUP($A15,'Import (Projections)'!$O$2:$X$8997,COLUMN(F13),FALSE) ->  | FB15: =VLOOKUP($A15,'Import (Projections)'!$O$2:$X$8997,COLUMN(G13),FALSE) ->  | FC15: =VLOOKUP($A15,'Import (Projections)'!$O$2:$X$8997,COLUMN(H13),FALSE) ->  | FD15: =VLOOKUP($A15,'Import (Projections)'!$O$2:$X$8997,COLUMN(I13),FALSE) ->  | FI15: =VLOOKUP($A15,'Import (Projections)'!$O$2:$X$8997,COLUMN(J13),FALSE) ->  | FL15: =IFERROR(IFERROR(AVERAGE(FP15,FT15),IFERROR(FT15,IFERROR(FP15,0)))*CHOOSE('Guts-2'!$D$28,O15,AD15,AS15,BH15,BW15,CL15,DA15,DP15,EE15,ET15,FI15,),0) -> 0 | FM15: =IFERROR(IFERROR(AVERAGE(FQ15,FS15),IFERROR(FS15,IFERROR(FQ15,0)))*CHOOSE('Guts-2'!$D$28,O15,AD15,AS15,BH15,BW15,CL15,DA15,DP15,EE15,ET15,FI15,),0) -> 0 | FN15: 18 | FS15: 0 | FT15: 0 | FU15: 0 | FV15: 24 | FW15: 12
A16: Homer Bailey | B16: baileho02 | R16: 7 | S16: 10 | T16: 138 | U16: 146 | V16: 51 | W16: 108 | X16: 74 | Y16: 0 | Z16: 4.81 | AA16: 1.43 | AB16: 7.02 | AC16: 10 | AD16: 24 | AE16: 24 | AF16: 21 | AG16: 10 | AH16: 9 | AI16: 140 | AJ16: 134 | AK16: 50 | AL16: 122 | AM16: 69 | AN16: 0 | AO16: 4.42 | AP16: 1.31 | AQ16: 7.84 | AR16: 11 | AS16: 25 | AT16: 25 | AU16: 17 | AV16: 7 | AW16: 10 | AX16: 108.7 | AY16: 131 | AZ16: 40 | BA16: 63 | BB16: 65 | BC16: 0 | BD16: 5.38 | BE16: 1.57 | BF16: 5.22 | BG16: 6 | BH16: 21 | BI16: 21 | BJ16: 15 | BK16: 8 | BL16: 11 | BM16: 139 | BN16: 158 | BO16: 52 | BP16: 95 | BQ16: 79 | BR16: 0 | BS16: 5.1 | BT16: 1.5 | BU16: 6.11 | BV16: 10 | BW16: 24 | BX16: 24 | BY16: 20 | BZ16: 5 | CA16: 8 | CB16: 88 | CC16: 99 | CD16: 32 | CE16: 68 | CF16: 52 | CG16: 0 | CH16: 5.34 | CI16: 1.48 | CJ16: 6.954545455 | CK16: 7 | CL16: 16 | CM16: 16 | CN16: 15 | CO16: 10 | CP16: 14 | CQ16: 200 | CR16: 212 | CS16: 74 | CT16: 156 | CU16: 107 | CV16: 0 | CW16: 4.81 | CX16: 1.43 | CY16: 7.02 | CZ16: 16 | DA16: 32 | DB16: 32 | DC16: 31 | DD16: =(('Guts-2'!$I$7*0.01)*R16)+(('Guts-2'!$I$3*0.01)*AG16)+(('Guts-2'!$I$9*0.01)*AV16)+(('Guts-2'!$I$4*0.01)*BK16)+(('Guts-2'!$I$2*0.01)*BZ16)+(('Guts-2'!$I$8*0.01)*CO16) -> 6.8 | DE16: =(('Guts-2'!$I$7*0.01)*S16)+(('Guts-2'!$I$3*0.01)*AH16)+(('Guts-2'!$I$9*0.01)*AW16)+(('Guts-2'!$I$4*0.01)*BL16)+(('Guts-2'!$I$2*0.01)*CA16)+(('Guts-2'!$I$8*0.01)*CP16) -> 9.8 | DF16: =(('Guts-2'!$I$7*0.01)*T16)+(('Guts-2'!$I$3*0.01)*AI16)+(('Guts-2'!$I$9*0.01)*AX16)+(('Guts-2'!$I$4*0.01)*BM16)+(('Guts-2'!$I$2*0.01)*CB16)+(('Guts-2'!$I$8*0.01)*CQ16) -> 122.34 | DG16: =(('Guts-2'!$I$7*0.01)*U16)+(('Guts-2'!$I$3*0.01)*AJ16)+(('Guts-2'!$I$9*0.01)*AY16)+(('Guts-2'!$I$4*0.01)*BN16)+(('Guts-2'!$I$2*0.01)*CC16)+(('Guts-2'!$I$8*0.01)*CR16) -> 136 | DH16: =(('Guts-2'!$I$7*0.01)*V16)+(('Guts-2'!$I$3*0.01)*AK16)+(('Guts-2'!$I$9*0.01)*AZ16)+(('Guts-2'!$I$4*0.01)*BO16)+(('Guts-2'!$I$2*0.01)*CD16)+(('Guts-2'!$I$8*0.01)*CS16) -> 45.2 | DI16: =(('Guts-2'!$I$7*0.01)*W16)+(('Guts-2'!$I$3*0.01)*AL16)+(('Guts-2'!$I$9*0.01)*BA16)+(('Guts-2'!$I$4*0.01)*BP16)+(('Guts-2'!$I$2*0.01)*CE16)+(('Guts-2'!$I$8*0.01)*CT16) -> 88.4 | DJ16: =(('Guts-2'!$I$7*0.01)*X16)+(('Guts-2'!$I$3*0.01)*AM16)+(('Guts-2'!$I$9*0.01)*BB16)+(('Guts-2'!$I$4*0.01)*BQ16)+(('Guts-2'!$I$2*0.01)*CF16)+(('Guts-2'!$I$8*0.01)*CU16) -> 68.8 | DK16: =(('Guts-2'!$I$7*0.01)*Y16)+(('Guts-2'!$I$3*0.01)*AN16)+(('Guts-2'!$I$9*0.01)*BC16)+(('Guts-2'!$I$4*0.01)*BR16)+(('Guts-2'!$I$2*0.01)*CG16)+(('Guts-2'!$I$8*0.01)*CV16) -> 0 | DL16: 5.061304561 | DM16: 1.481118195 | DN16: 6.503187837 | DO16: =(('Guts-2'!$I$7*0.01)*AC16)+(('Guts-2'!$I$3*0.01)*AR16)+(('Guts-2'!$I$9*0.01)*BG16)+(('Guts-2'!$I$4*0.01)*BV16)+(('Guts-2'!$I$2*0.01)*CK16)+(('Guts-2'!$I$8*0.01)*CZ16) -> 8.6 | DP16: =(('Guts-2'!$I$7*0.01)*AD16)+(('Guts-2'!$I$3*0.01)*AS16)+(('Guts-2'!$I$9*0.01)*BH16)+(('Guts-2'!$I$4*0.01)*BW16)+(('Guts-2'!$I$2*0.01)*CL16)+(('Guts-2'!$I$8*0.01)*DA16) -> 21.8 | DQ16: =(('Guts-2'!$I$7*0.01)*AE16)+(('Guts-2'!$I$3*0.01)*AT16)+(('Guts-2'!$I$9*0.01)*BI16)+(('Guts-2'!$I$4*0.01)*BX16)+(('Guts-2'!$I$2*0.01)*CM16)+(('Guts-2'!$I$8*0.01)*DB16) -> 21.8 | DR16: =(('Guts-2'!$I$7*0.01)*AF16)+(('Guts-2'!$I$3*0.01)*AU16)+(('Guts-2'!$I$9*0.01)*BJ16)+(('Guts-2'!$I$4*0.01)*BY16)+(('Guts-2'!$I$2*0.01)*CN16)+(('Guts-2'!$I$8*0.01)*DC16) -> 18.4 | DS16: 7.597981366 | DT16: 9.291647763 | DU16: 132 | DV16: 140.5699558 | DW16: 50.6367893 | DX16: 110.6319876 | DY16: 68.49242236 | DZ16: 0 | EA16: 4.669937888 | EB16: 1.448535948 | EC16: 7.543090062 | ED16: 10 | EE16: 24 | EF16: 24 | EG16: 19.19744599 | EH16: 7.597981366 | EI16: 9.291647763 | EJ16: 132 | EK16: 140.5699558 | EL16: 50.6367893 | EM16: 110.6319876 | EN16: 68.49242236 | EO16: 0 | EP16: 4.669937888 | EQ16: 1.448535948 | ER16: 7.543090062 | ES16: 10 | ET16: 24 | EU16: 24 | EV16: 19.19744599 | EW16: =VLOOKUP($A16,'Import (Projections)'!$O$2:$X$8997,COLUMN(B14),FALSE) ->  | EX16: =VLOOKUP($A16,'Import (Projections)'!$O$2:$X$8997,COLUMN(C14),FALSE) ->  | EY16: =VLOOKUP($A16,'Import (Projections)'!$O$2:$X$8997,COLUMN(D14),FALSE) ->  | EZ16: =VLOOKUP($A16,'Import (Projections)'!$O$2:$X$8997,COLUMN(E14),FALSE) ->  | FA16: =VLOOKUP($A16,'Import (Projections)'!$O$2:$X$8997,COLUMN(F14),FALSE) ->  | FB16: =VLOOKUP($A16,'Import (Projections)'!$O$2:$X$8997,COLUMN(G14),FALSE) ->  | FC16: =VLOOKUP($A16,'Import (Projections)'!$O$2:$X$8997,COLUMN(H14),FALSE) ->  | FD16: =VLOOKUP($A16,'Import (Projections)'!$O$2:$X$8997,COLUMN(I14),FALSE) ->  | FI16: =VLOOKUP($A16,'Import (Projections)'!$O$2:$X$8997,COLUMN(J14),FALSE) ->  | FL16: =IFERROR(IFERROR(AVERAGE(FP16,FT16),IFERROR(FT16,IFERROR(FP16,0)))*CHOOSE('Guts-2'!$D$28,O16,AD16,AS16,BH16,BW16,CL16,DA16,DP16,EE16,ET16,FI16,),0) -> 0 | FM16: =IFERROR(IFERROR(AVERAGE(FQ16,FS16),IFERROR(FS16,IFERROR(FQ16,0)))*CHOOSE('Guts-2'!$D$28,O16,AD16,AS16,BH16,BW16,CL16,DA16,DP16,EE16,ET16,FI16,),0) -> 0 | FN16: 0 | FS16: 0 | FT16: 0 | FU16: 0 | FV16: 0 | FW16: 0
A17: Anthony Banda | B17: bandaan01 | R17: 2 | S17: 2 | T17: 27 | U17: 26 | V17: 12 | W17: 25 | X17: 13 | Y17: 0 | Z17: 4.26 | AA17: 1.37 | AB17: 8.31 | AC17: 3 | AD17: 5 | AE17: 5 | AF17: 4 | AV17: 10 | AW17: 9 | AX17: 150.3 | AY17: 150 | AZ17: 62 | BA17: 141 | BB17: 77 | BC17: 0 | BD17: 4.61 | BE17: 1.41 | BF17: 8.44 | BG17: 11 | BH17: 27 | BI17: 30 | BJ17: 21 | BK17: 2 | BL17: 2 | BM17: 28 | BN17: 27 | BO17: 12 | BP17: 26 | BQ17: 14 | BR17: 0 | BS17: 4.44 | BT17: 1.39 | BU17: 8.38 | BV17: 3 | BW17: 5 | BX17: 5 | BY17: 4 | CO17: 11 | CP17: 13 | CQ17: 200 | CR17: 188 | CS17: 86 | CT17: 185 | CU17: 95 | CV17: 0 | CW17: 4.26 | CX17: 1.37 | CY17: 8.31 | CZ17: 18 | DA17: 32 | DB17: 32 | DC17: 28 | DD17: =(('Guts-2'!$I$7*0.01)*R17)+(('Guts-2'!$I$3*0.01)*AG17)+(('Guts-2'!$I$9*0.01)*AV17)+(('Guts-2'!$I$4*0.01)*BK17)+(('Guts-2'!$I$2*0.01)*BZ17)+(('Guts-2'!$I$8*0.01)*CO17) ->  | DE17: =(('Guts-2'!$I$7*0.01)*S17)+(('Guts-2'!$I$3*0.01)*AH17)+(('Guts-2'!$I$9*0.01)*AW17)+(('Guts-2'!$I$4*0.01)*BL17)+(('Guts-2'!$I$2*0.01)*CA17)+(('Guts-2'!$I$8*0.01)*CP17) ->  | DF17: =(('Guts-2'!$I$7*0.01)*T17)+(('Guts-2'!$I$3*0.01)*AI17)+(('Guts-2'!$I$9*0.01)*AX17)+(('Guts-2'!$I$4*0.01)*BM17)+(('Guts-2'!$I$2*0.01)*CB17)+(('Guts-2'!$I$8*0.01)*CQ17) ->  | DG17: =(('Guts-2'!$I$7*0.01)*U17)+(('Guts-2'!$I$3*0.01)*AJ17)+(('Guts-2'!$I$9*0.01)*AY17)+(('Guts-2'!$I$4*0.01)*BN17)+(('Guts-2'!$I$2*0.01)*CC17)+(('Guts-2'!$I$8*0.01)*CR17) ->  | DH17: =(('Guts-2'!$I$7*0.01)*V17)+(('Guts-2'!$I$3*0.01)*AK17)+(('Guts-2'!$I$9*0.01)*AZ17)+(('Guts-2'!$I$4*0.01)*BO17)+(('Guts-2'!$I$2*0.01)*CD17)+(('Guts-2'!$I$8*0.01)*CS17) ->  | DI17: =(('Guts-2'!$I$7*0.01)*W17)+(('Guts-2'!$I$3*0.01)*AL17)+(('Guts-2'!$I$9*0.01)*BA17)+(('Guts-2'!$I$4*0.01)*BP17)+(('Guts-2'!$I$2*0.01)*CE17)+(('Guts-2'!$I$8*0.01)*CT17) ->  | DJ17: =(('Guts-2'!$I$7*0.01)*X17)+(('Guts-2'!$I$3*0.01)*AM17)+(('Guts-2'!$I$9*0.01)*BB17)+(('Guts-2'!$I$4*0.01)*BQ17)+(('Guts-2'!$I$2*0.01)*CF17)+(('Guts-2'!$I$8*0.01)*CU17) ->  | DK17: =(('Guts-2'!$I$7*0.01)*Y17)+(('Guts-2'!$I$3*0.01)*AN17)+(('Guts-2'!$I$9*0.01)*BC17)+(('Guts-2'!$I$4*0.01)*BR17)+(('Guts-2'!$I$2*0.01)*CG17)+(('Guts-2'!$I$8*0.01)*CV17) ->  | DO17: =(('Guts-2'!$I$7*0.01)*AC17)+(('Guts-2'!$I$3*0.01)*AR17)+(('Guts-2'!$I$9*0.01)*BG17)+(('Guts-2'!$I$4*0.01)*BV17)+(('Guts-2'!$I$2*0.01)*CK17)+(('Guts-2'!$I$8*0.01)*CZ17) ->  | DP17: =(('Guts-2'!$I$7*0.01)*AD17)+(('Guts-2'!$I$3*0.01)*AS17)+(('Guts-2'!$I$9*0.01)*BH17)+(('Guts-2'!$I$4*0.01)*BW17)+(('Guts-2'!$I$2*0.01)*CL17)+(('Guts-2'!$I$8*0.01)*DA17) ->  | DQ17: =(('Guts-2'!$I$7*0.01)*AE17)+(('Guts-2'!$I$3*0.01)*AT17)+(('Guts-2'!$I$9*0.01)*BI17)+(('Guts-2'!$I$4*0.01)*BX17)+(('Guts-2'!$I$2*0.01)*CM17)+(('Guts-2'!$I$8*0.01)*DB17) ->  | DR17: =(('Guts-2'!$I$7*0.01)*AF17)+(('Guts-2'!$I$3*0.01)*AU17)+(('Guts-2'!$I$9*0.01)*BJ17)+(('Guts-2'!$I$4*0.01)*BY17)+(('Guts-2'!$I$2*0.01)*CN17)+(('Guts-2'!$I$8*0.01)*DC17) ->  | EH17: 2 | EI17: 2 | EJ17: 27 | EK17: 26 | EL17: 12 | EM17: 25 | EN17: 13 | EO17: 0 | EP17: 4.26 | EQ17: 1.37 | ER17: 8.31 | ES17: 3 | ET17: 5 | EU17: 5 | EV17: 4 | EW17: =VLOOKUP($A17,'Import (Projections)'!$O$2:$X$8997,COLUMN(B15),FALSE) ->  | EX17: =VLOOKUP($A17,'Import (Projections)'!$O$2:$X$8997,COLUMN(C15),FALSE) ->  | EY17: =VLOOKUP($A17,'Import (Projections)'!$O$2:$X$8997,COLUMN(D15),FALSE) ->  | EZ17: =VLOOKUP($A17,'Import (Projections)'!$O$2:$X$8997,COLUMN(E15),FALSE) ->  | FA17: =VLOOKUP($A17,'Import (Projections)'!$O$2:$X$8997,COLUMN(F15),FALSE) ->  | FB17: =VLOOKUP($A17,'Import (Projections)'!$O$2:$X$8997,COLUMN(G15),FALSE) ->  | FC17: =VLOOKUP($A17,'Import (Projections)'!$O$2:$X$8997,COLUMN(H15),FALSE) ->  | FD17: =VLOOKUP($A17,'Import (Projections)'!$O$2:$X$8997,COLUMN(I15),FALSE) ->  | FI17: =VLOOKUP($A17,'Import (Projections)'!$O$2:$X$8997,COLUMN(J15),FALSE) ->  | FL17: =IFERROR(IFERROR(AVERAGE(FP17,FT17),IFERROR(FT17,IFERROR(FP17,0)))*CHOOSE('Guts-2'!$D$28,O17,AD17,AS17,BH17,BW17,CL17,DA17,DP17,EE17,ET17,FI17,),0) -> 0 | FM17: =IFERROR(IFERROR(AVERAGE(FQ17,FS17),IFERROR(FS17,IFERROR(FQ17,0)))*CHOOSE('Guts-2'!$D$28,O17,AD17,AS17,BH17,BW17,CL17,DA17,DP17,EE17,ET17,FI17,),0) -> 0 | FN17: 0 | FS17: 0 | FT17: 0 | FU17: 0 | FV17: 0 | FW17: 0
A18: Jacob Barnes | B18: barneja01 | R18: 3 | S18: 3 | T18: 65 | U18: 58 | V18: 27 | W18: 72 | X18: 27 | Y18: 3 | Z18: 3.72 | AA18: 1.31 | AB18: 9.91 | AC18: 0 | AD18: 0 | AE18: 65 | AF18: 7 | AV18: 4 | AW18: 3 | AX18: 65.3 | AY18: 57 | AZ18: 29 | BA18: 72 | BB18: 26 | BC18: 2.75 | BD18: 3.58 | BE18: 1.32 | BF18: 9.92 | BG18: 0 | BH18: 0 | BI18: 66 | BJ18: 5 | BK18: 4 | BL18: 3 | BM18: 65 | BN18: 58 | BO18: 28 | BP18: 72 | BQ18: 26 | BR18: 5 | BS18: 3.65 | BT18: 1.31 | BU18: 9.91 | BV18: 0 | BW18: 0 | BX18: 65 | BY18: 6 | BZ18: 3 | CA18: 2 | CB18: 63.3 | CC18: 56 | CD18: 26 | CE18: 66 | CF18: 26 | CG18: 0 | CH18: 3.66 | CI18: 1.3 | CJ18: 9.383886256 | CK18: 0 | CL18: 0 | CM18: 62 | CN18: 8 | CO18: 3 | CP18: 3 | CQ18: 65 | CR18: 58 | CS18: 27 | CT18: 72 | CU18: 27 | CV18: 3 | CW18: 3.72 | CX18: 1.31 | CY18: 9.91 | CZ18: 0 | DA18: 0 | DB18: 65 | DC18: 7 | DD18: =(('Guts-2'!$I$7*0.01)*R18)+(('Guts-2'!$I$3*0.01)*AG18)+(('Guts-2'!$I$9*0.01)*AV18)+(('Guts-2'!$I$4*0.01)*BK18)+(('Guts-2'!$I$2*0.01)*BZ18)+(('Guts-2'!$I$8*0.01)*CO18) ->  | DE18: =(('Guts-2'!$I$7*0.01)*S18)+(('Guts-2'!$I$3*0.01)*AH18)+(('Guts-2'!$I$9*0.01)*AW18)+(('Guts-2'!$I$4*0.01)*BL18)+(('Guts-2'!$I$2*0.01)*CA18)+(('Guts-2'!$I$8*0.01)*CP18) ->  | DF18: =(('Guts-2'!$I$7*0.01)*T18)+(('Guts-2'!$I$3*0.01)*AI18)+(('Guts-2'!$I$9*0.01)*AX18)+(('Guts-2'!$I$4*0.01)*BM18)+(('Guts-2'!$I$2*0.01)*CB18)+(('Guts-2'!$I$8*0.01)*CQ18) ->  | DG18: =(('Guts-2'!$I$7*0.01)*U18)+(('Guts-2'!$I$3*0.01)*AJ18)+(('Guts-2'!$I$9*0.01)*AY18)+(('Guts-2'!$I$4*0.01)*BN18)+(('Guts-2'!$I$2*0.01)*CC18)+(('Guts-2'!$I$8*0.01)*CR18) ->  | DH18: =(('Guts-2'!$I$7*0.01)*V18)+(('Guts-2'!$I$3*0.01)*AK18)+(('Guts-2'!$I$9*0.01)*AZ18)+(('Guts-2'!$I$4*0.01)*BO18)+(('Guts-2'!$I$2*0.01)*CD18)+(('Guts-2'!$I$8*0.01)*CS18) ->  | DI18: =(('Guts-2'!$I$7*0.01)*W18)+(('Guts-2'!$I$3*0.01)*AL18)+(('Guts-2'!$I$9*0.01)*BA18)+(('Guts-2'!$I$4*0.01)*BP18)+(('Guts-2'!$I$2*0.01)*CE18)+(('Guts-2'!$I$8*0.01)*CT18) ->  | DJ18: =(('Guts-2'!$I$7*0.01)*X18)+(('Guts-2'!$I$3*0.01)*AM18)+(('Guts-2'!$I$9*0.01)*BB18)+(('Guts-2'!$I$4*0.01)*BQ18)+(('Guts-2'!$I$2*0.01)*CF18)+(('Guts-2'!$I$8*0.01)*CU18) ->  | DK18: =(('Guts-2'!$I$7*0.01)*Y18)+(('Guts-2'!$I$3*0.01)*AN18)+(('Guts-2'!$I$9*0.01)*BC18)+(('Guts-2'!$I$4*0.01)*BR18)+(('Guts-2'!$I$2*0.01)*CG18)+(('Guts-2'!$I$8*0.01)*CV18) ->  | DO18: =(('Guts-2'!$I$7*0.01)*AC18)+(('Guts-2'!$I$3*0.01)*AR18)+(('Guts-2'!$I$9*0.01)*BG18)+(('Guts-2'!$I$4*0.01)*BV18)+(('Guts-2'!$I$2*0.01)*CK18)+(('Guts-2'!$I$8*0.01)*CZ18) ->  | DP18: =(('Guts-2'!$I$7*0.01)*AD18)+(('Guts-2'!$I$3*0.01)*AS18)+(('Guts-2'!$I$9*0.01)*BH18)+(('Guts-2'!$I$4*0.01)*BW18)+(('Guts-2'!$I$2*0.01)*CL18)+(('Guts-2'!$I$8*0.01)*DA18) ->  | DQ18: =(('Guts-2'!$I$7*0.01)*AE18)+(('Guts-2'!$I$3*0.01)*AT18)+(('Guts-2'!$I$9*0.01)*BI18)+(('Guts-2'!$I$4*0.01)*BX18)+(('Guts-2'!$I$2*0.01)*CM18)+(('Guts-2'!$I$8*0.01)*DB18) ->  | DR18: =(('Guts-2'!$I$7*0.01)*AF18)+(('Guts-2'!$I$3*0.01)*AU18)+(('Guts-2'!$I$9*0.01)*BJ18)+(('Guts-2'!$I$4*0.01)*BY18)+(('Guts-2'!$I$2*0.01)*CN18)+(('Guts-2'!$I$8*0.01)*DC18) ->  | EH18: 3 | EI18: 3 | EJ18: 65 | EK18: 58 | EL18: 27 | EM18: 72 | EN18: 27 | EO18: 3 | EP18: 3.72 | EQ18: 1.31 | ER18: 9.91 | ES18: 0 | ET18: 0 | EU18: 65 | EV18: 7 | EW18: =VLOOKUP($A18,'Import (Projections)'!$O$2:$X$8997,COLUMN(B16),FALSE) ->  | EX18: =VLOOKUP($A18,'Import (Projections)'!$O$2:$X$8997,COLUMN(C16),FALSE) ->  | EY18: =VLOOKUP($A18,'Import (Projections)'!$O$2:$X$8997,COLUMN(D16),FALSE) ->  | EZ18: =VLOOKUP($A18,'Import (Projections)'!$O$2:$X$8997,COLUMN(E16),FALSE) ->  | FA18: =VLOOKUP($A18,'Import (Projections)'!$O$2:$X$8997,COLUMN(F16),FALSE) ->  | FB18: =VLOOKUP($A18,'Import (Projections)'!$O$2:$X$8997,COLUMN(G16),FALSE) ->  | FC18: =VLOOKUP($A18,'Import (Projections)'!$O$2:$X$8997,COLUMN(H16),FALSE) ->  | FD18: =VLOOKUP($A18,'Import (Projections)'!$O$2:$X$8997,COLUMN(I16),FALSE) ->  | FI18: =VLOOKUP($A18,'Import (Projections)'!$O$2:$X$8997,COLUMN(J16),FALSE) ->  | FL18: =IFERROR(IFERROR(AVERAGE(FP18,FT18),IFERROR(FT18,IFERROR(FP18,0)))*CHOOSE('Guts-2'!$D$28,O18,AD18,AS18,BH18,BW18,CL18,DA18,DP18,EE18,ET18,FI18,),0) -> 0 | FM18: =IFERROR(IFERROR(AVERAGE(FQ18,FS18),IFERROR(FS18,IFERROR(FQ18,0)))*CHOOSE('Guts-2'!$D$28,O18,AD18,AS18,BH18,BW18,CL18,DA18,DP18,EE18,ET18,FI18,),0) -> 0 | FN18: 17 | FS18: 0 | FT18: 0 | FU18: 0 | FV18: 19 | FW18: 15
A19: Matt Barnes | B19: barnema01 | R19: 2 | S19: 2 | T19: 45 | U19: 41 | V19: 19 | W19: 47 | X19: 20 | Y19: 0 | Z19: 3.96 | AA19: 1.33 | AB19: 9.48 | AC19: 0 | AD19: 0 | AE19: 45 | AF19: 5 | AV19: 4 | AW19: 3 | AX19: 66 | AY19: 60 | AZ19: 29 | BA19: 73 | BB19: 28 | BC19: 0.25 | BD19: 3.82 | BE19: 1.35 | BF19: 9.95 | BG19: 0 | BH19: 0 | BI19: 68 | BJ19: 8 | BK19: 3 | BL19: 2 | BM19: 45 | BN19: 41 | BO19: 19 | BP19: 49 | BQ19: 19 | BR19: 0 | BS19: 3.89 | BT19: 1.34 | BU19: 9.72 | BV19: 0 | BW19: 0 | BX19: 45 | BY19: 5 | BZ19: 3 | CA19: 2 | CB19: 68.7 | CC19: 61 | CD19: 28 | CE19: 76 | CF19: 28 | CG19: 1 | CH19: 3.7 | CI19: 1.3 | CJ19: 9.956331878 | CK19: 0 | CL19: 0 | CM19: 67 | CN19: 9 | CO19: 3 | CP19: 3 | CQ19: 65 | CR19: 59 | CS19: 28 | CT19: 68 | CU19: 29 | CV19: 0 | CW19: 3.96 | CX19: 1.33 | CY19: 9.48 | CZ19: 0 | DA19: 0 | DB19: 65 | DC19: 8 | DD19: =(('Guts-2'!$I$7*0.01)*R19)+(('Guts-2'!$I$3*0.01)*AG19)+(('Guts-2'!$I$9*0.01)*AV19)+(('Guts-2'!$I$4*0.01)*BK19)+(('Guts-2'!$I$2*0.01)*BZ19)+(('Guts-2'!$I$8*0.01)*CO19) ->  | DE19: =(('Guts-2'!$I$7*0.01)*S19)+(('Guts-2'!$I$3*0.01)*AH19)+(('Guts-2'!$I$9*0.01)*AW19)+(('Guts-2'!$I$4*0.01)*BL19)+(('Guts-2'!$I$2*0.01)*CA19)+(('Guts-2'!$I$8*0.01)*CP19) ->  | DF19: =(('Guts-2'!$I$7*0.01)*T19)+(('Guts-2'!$I$3*0.01)*AI19)+(('Guts-2'!$I$9*0.01)*AX19)+(('Guts-2'!$I$4*0.01)*BM19)+(('Guts-2'!$I$2*0.01)*CB19)+(('Guts-2'!$I$8*0.01)*CQ19) ->  | DG19: =(('Guts-2'!$I$7*0.01)*U19)+(('Guts-2'!$I$3*0.01)*AJ19)+(('Guts-2'!$I$9*0.01)*AY19)+(('Guts-2'!$I$4*0.01)*BN19)+(('Guts-2'!$I$2*0.01)*CC19)+(('Guts-2'!$I$8*0.01)*CR19) ->  | DH19: =(('Guts-2'!$I$7*0.01)*V19)+(('Guts-2'!$I$3*0.01)*AK19)+(('Guts-2'!$I$9*0.01)*AZ19)+(('Guts-2'!$I$4*0.01)*BO19)+(('Guts-2'!$I$2*0.01)*CD19)+(('Guts-2'!$I$8*0.01)*CS19) ->  | DI19: =(('Guts-2'!$I$7*0.01)*W19)+(('Guts-2'!$I$3*0.01)*AL19)+(('Guts-2'!$I$9*0.01)*BA19)+(('Guts-2'!$I$4*0.01)*BP19)+(('Guts-2'!$I$2*0.01)*CE19)+(('Guts-2'!$I$8*0.01)*CT19) ->  | DJ19: =(('Guts-2'!$I$7*0.01)*X19)+(('Guts-2'!$I$3*0.01)*AM19)+(('Guts-2'!$I$9*0.01)*BB19)+(('Guts-2'!$I$4*0.01)*BQ19)+(('Guts-2'!$I$2*0.01)*CF19)+(('Guts-2'!$I$8*0.01)*CU19) ->  | DK19: =(('Guts-2'!$I$7*0.01)*Y19)+(('Guts-2'!$I$3*0.01)*AN19)+(('Guts-2'!$I$9*0.01)*BC19)+(('Guts-2'!$I$4*0.01)*BR19)+(('Guts-2'!$I$2*0.01)*CG19)+(('Guts-2'!$I$8*0.01)*CV19) ->  | DO19: =(('Guts-2'!$I$7*0.01)*AC19)+(('Guts-2'!$I$3*0.01)*AR19)+(('Guts-2'!$I$9*0.01)*BG19)+(('Guts-2'!$I$4*0.01)*BV19)+(('Guts-2'!$I$2*0.01)*CK19)+(('Guts-2'!$I$8*0.01)*CZ19) ->  | DP19: =(('Guts-2'!$I$7*0.01)*AD19)+(('Guts-2'!$I$3*0.01)*AS19)+(('Guts-2'!$I$9*0.01)*BH19)+(('Guts-2'!$I$4*0.01)*BW19)+(('Guts-2'!$I$2*0.01)*CL19)+(('Guts-2'!$I$8*0.01)*DA19) ->  | DQ19: =(('Guts-2'!$I$7*0.01)*AE19)+(('Guts-2'!$I$3*0.01)*AT19)+(('Guts-2'!$I$9*0.01)*BI19)+(('Guts-2'!$I$4*0.01)*BX19)+(('Guts-2'!$I$2*0.01)*CM19)+(('Guts-2'!$I$8*0.01)*DB19) ->  | DR19: =(('Guts-2'!$I$7*0.01)*AF19)+(('Guts-2'!$I$3*0.01)*AU19)+(('Guts-2'!$I$9*0.01)*BJ19)+(('Guts-2'!$I$4*0.01)*BY19)+(('Guts-2'!$I$2*0.01)*CN19)+(('Guts-2'!$I$8*0.01)*DC19) ->  | EH19: 2 | EI19: 2 | EJ19: 45 | EK19: 41 | EL19: 19 | EM19: 47 | EN19: 20 | EO19: 0 | EP19: 3.96 | EQ19: 1.33 | ER19: 9.48 | ES19: 0 | ET19: 0 | EU19: 45 | EV19: 5 | EW19: =VLOOKUP($A19,'Import (Projections)'!$O$2:$X$8997,COLUMN(B17),FALSE) ->  | EX19: =VLOOKUP($A19,'Import (Projections)'!$O$2:$X$8997,COLUMN(C17),FALSE) ->  | EY19: =VLOOKUP($A19,'Import (Projections)'!$O$2:$X$8997,COLUMN(D17),FALSE) ->  | EZ19: =VLOOKUP($A19,'Import (Projections)'!$O$2:$X$8997,COLUMN(E17),FALSE) ->  | FA19: =VLOOKUP($A19,'Import (Projections)'!$O$2:$X$8997,COLUMN(F17),FALSE) ->  | FB19: =VLOOKUP($A19,'Import (Projections)'!$O$2:$X$8997,COLUMN(G17),FALSE) ->  | FC19: =VLOOKUP($A19,'Import (Projections)'!$O$2:$X$8997,COLUMN(H17),FALSE) ->  | FD19: =VLOOKUP($A19,'Import (Projections)'!$O$2:$X$8997,COLUMN(I17),FALSE) ->  | FI19: =VLOOKUP($A19,'Import (Projections)'!$O$2:$X$8997,COLUMN(J17),FALSE) ->  | FL19: =IFERROR(IFERROR(AVERAGE(FP19,FT19),IFERROR(FT19,IFERROR(FP19,0)))*CHOOSE('Guts-2'!$D$28,O19,AD19,AS19,BH19,BW19,CL19,DA19,DP19,EE19,ET19,FI19,),0) -> 0 | FM19: =IFERROR(IFERROR(AVERAGE(FQ19,FS19),IFERROR(FS19,IFERROR(FQ19,0)))*CHOOSE('Guts-2'!$D$28,O19,AD19,AS19,BH19,BW19,CL19,DA19,DP19,EE19,ET19,FI19,),0) -> 0 | FN19: 13.5 | FS19: 0 | FT19: 0 | FU19: 0 | FV19: 16 | FW19: 11
A20: Kyle Barraclough | B20: barraky01 | R20: 3 | S20: 3 | T20: 65 | U20: 54 | V20: 36 | W20: 75 | X20: 27 | Y20: 11 | Z20: 3.67 | AA20: 1.38 | AB20: 10.36 | AC20: 0 | AD20: 0 | AE20: 65 | AF20: 6 | AV20: 5 | AW20: 3 | AX20: 67 | AY20: 50 | AZ20: 46 | BA20: 86 | BB20: 25 | BC20: 8.5 | BD20: 3.36 | BE20: 1.43 | BF20: 11.55 | BG20: 0 | BH20: 0 | BI20: 68 | BJ20: 4 | BK20: 4 | BL20: 3 | BM20: 65 | BN20: 51 | BO20: 40 | BP20: 79 | BQ20: 25 | BR20: 6 | BS20: 3.52 | BT20: 1.41 | BU20: 10.96 | BV20: 0 | BW20: 0 | BX20: 65 | BY20: 5 | BZ20: 3 | CA20: 3 | CB20: 68 | CC20: 56 | CD20: 34 | CE20: 75 | CF20: 28 | CG20: 6 | CH20: 3.74 | CI20: 1.33 | CJ20: 9.926470588 | CK20: 0 | CL20: 0 | CM20: 65 | CN20: 8 | CO20: 3 | CP20: 3 | CQ20: 65 | CR20: 54 | CS20: 36 | CT20: 75 | CU20: 27 | CV20: 11 | CW20: 3.67 | CX20: 1.38 | CY20: 10.36 | CZ20: 0 | DA20: 0 | DB20: 65 | DC20: 6 | DD20: =(('Guts-2'!$I$7*0.01)*R20)+(('Guts-2'!$I$3*0.01)*AG20)+(('Guts-2'!$I$9*0.01)*AV20)+(('Guts-2'!$I$4*0.01)*BK20)+(('Guts-2'!$I$2*0.01)*BZ20)+(('Guts-2'!$I$8*0.01)*CO20) ->  | DE20: =(('Guts-2'!$I$7*0.01)*S20)+(('Guts-2'!$I$3*0.01)*AH20)+(('Guts-2'!$I$9*0.01)*AW20)+(('Guts-2'!$I$4*0.01)*BL20)+(('Guts-2'!$I$2*0.01)*CA20)+(('Guts-2'!$I$8*0.01)*CP20) ->  | DF20: =(('Guts-2'!$I$7*0.01)*T20)+(('Guts-2'!$I$3*0.01)*AI20)+(('Guts-2'!$I$9*0.01)*AX20)+(('Guts-2'!$I$4*0.01)*BM20)+(('Guts-2'!$I$2*0.01)*CB20)+(('Guts-2'!$I$8*0.01)*CQ20) ->  | DG20: =(('Guts-2'!$I$7*0.01)*U20)+(('Guts-2'!$I$3*0.01)*AJ20)+(('Guts-2'!$I$9*0.01)*AY20)+(('Guts-2'!$I$4*0.01)*BN20)+(('Guts-2'!$I$2*0.01)*CC20)+(('Guts-2'!$I$8*0.01)*CR20) ->  | DH20: =(('Guts-2'!$I$7*0.01)*V20)+(('Guts-2'!$I$3*0.01)*AK20)+(('Guts-2'!$I$9*0.01)*AZ20)+(('Guts-2'!$I$4*0.01)*BO20)+(('Guts-2'!$I$2*0.01)*CD20)+(('Guts-2'!$I$8*0.01)*CS20) ->  | DI20: =(('Guts-2'!$I$7*0.01)*W20)+(('Guts-2'!$I$3*0.01)*AL20)+(('Guts-2'!$I$9*0.01)*BA20)+(('Guts-2'!$I$4*0.01)*BP20)+(('Guts-2'!$I$2*0.01)*CE20)+(('Guts-2'!$I$8*0.01)*CT20) ->  | DJ20: =(('Guts-2'!$I$7*0.01)*X20)+(('Guts-2'!$I$3*0.01)*AM20)+(('Guts-2'!$I$9*0.01)*BB20)+(('Guts-2'!$I$4*0.01)*BQ20)+(('Guts-2'!$I$2*0.01)*CF20)+(('Guts-2'!$I$8*0.01)*CU20) ->  | DK20: =(('Guts-2'!$I$7*0.01)*Y20)+(('Guts-2'!$I$3*0.01)*AN20)+(('Guts-2'!$I$9*0.01)*BC20)+(('Guts-2'!$I$4*0.01)*BR20)+(('Guts-2'!$I$2*0.01)*CG20)+(('Guts-2'!$I$8*0.01)*CV20) ->  | DO20: =(('Guts-2'!$I$7*0.01)*AC20)+(('Guts-2'!$I$3*0.01)*AR20)+(('Guts-2'!$I$9*0.01)*BG20)+(('Guts-2'!$I$4*0.01)*BV20)+(('Guts-2'!$I$2*0.01)*CK20)+(('Guts-2'!$I$8*0.01)*CZ20) ->  | DP20: =(('Guts-2'!$I$7*0.01)*AD20)+(('Guts-2'!$I$3*0.01)*AS20)+(('Guts-2'!$I$9*0.01)*BH20)+(('Guts-2'!$I$4*0.01)*BW20)+(('Guts-2'!$I$2*0.01)*CL20)+(('Guts-2'!$I$8*0.01)*DA20) ->  | DQ20: =(('Guts-2'!$I$7*0.01)*AE20)+(('Guts-2'!$I$3*0.01)*AT20)+(('Guts-2'!$I$9*0.01)*BI20)+(('Guts-2'!$I$4*0.01)*BX20)+(('Guts-2'!$I$2*0.01)*CM20)+(('Guts-2'!$I$8*0.01)*DB20) ->  | DR20: =(('Guts-2'!$I$7*0.01)*AF20)+(('Guts-2'!$I$3*0.01)*AU20)+(('Guts-2'!$I$9*0.01)*BJ20)+(('Guts-2'!$I$4*0.01)*BY20)+(('Guts-2'!$I$2*0.01)*CN20)+(('Guts-2'!$I$8*0.01)*DC20) ->  | EH20: 3 | EI20: 3 | EJ20: 65 | EK20: 54 | EL20: 36 | EM20: 75 | EN20: 27 | EO20: 11 | EP20: 3.67 | EQ20: 1.38 | ER20: 10.36 | ES20: 0 | ET20: 0 | EU20: 65 | EV20: 6 | EW20: =VLOOKUP($A20,'Import (Projections)'!$O$2:$X$8997,COLUMN(B18),FALSE) ->  | EX20: =VLOOKUP($A20,'Import (Projections)'!$O$2:$X$8997,COLUMN(C18),FALSE) ->  | EY20: =VLOOKUP($A20,'Import (Projections)'!$O$2:$X$8997,COLUMN(D18),FALSE) ->  | EZ20: =VLOOKUP($A20,'Import (Projections)'!$O$2:$X$8997,COLUMN(E18),FALSE) ->  | FA20: =VLOOKUP($A20,'Import (Projections)'!$O$2:$X$8997,COLUMN(F18),FALSE) ->  | FB20: =VLOOKUP($A20,'Import (Projections)'!$O$2:$X$8997,COLUMN(G18),FALSE) ->  | FC20: =VLOOKUP($A20,'Import (Projections)'!$O$2:$X$8997,COLUMN(H18),FALSE) ->  | FD20: =VLOOKUP($A20,'Import (Projections)'!$O$2:$X$8997,COLUMN(I18),FALSE) ->  | FI20: =VLOOKUP($A20,'Import (Projections)'!$O$2:$X$8997,COLUMN(J18),FALSE) ->  | FL20: =IFERROR(IFERROR(AVERAGE(FP20,FT20),IFERROR(FT20,IFERROR(FP20,0)))*CHOOSE('Guts-2'!$D$28,O20,AD20,AS20,BH20,BW20,CL20,DA20,DP20,EE20,ET20,FI20,),0) -> 0 | FM20: =IFERROR(IFERROR(AVERAGE(FQ20,FS20),IFERROR(FS20,IFERROR(FQ20,0)))*CHOOSE('Guts-2'!$D$28,O20,AD20,AS20,BH20,BW20,CL20,DA20,DP20,EE20,ET20,FI20,),0) -> 0 | FN20: 18 | FS20: 0 | FT20: 0 | FU20: 3 | FV20: 21 | FW20: 15
A21: Trevor Bauer | B21: bauertr01 | R21: 11 | S21: 9 | T21: 171 | U21: 162 | V21: 63 | W21: 169 | X21: 79 | Y21: 0 | Z21: 4.17 | AA21: 1.31 | AB21: 8.91 | AC21: 15 | AD21: 29 | AE21: 29 | AF21: 24 | AG21: 13 | AH21: 9 | AI21: 174 | AJ21: 157 | AK21: 62 | AL21: 180 | AM21: 78 | AN21: 0 | AO21: 4.05 | AP21: 1.26 | AQ21: 9.31 | AR21: 15 | AS21: 31 | AT21: 31 | AU21: 21 | AV21: 13 | AW21: 10 | AX21: 177.3 | AY21: 164 | AZ21: 64 | BA21: 185 | BB21: 77 | BC21: 0 | BD21: 3.91 | BE21: 1.29 | BF21: 9.39 | BG21: 16 | BH21: 30 | BI21: 32 | BJ21: 21 | BK21: 12 | BL21: 9 | BM21: 170 | BN21: 159 | BO21: 62 | BP21: 173 | BQ21: 76 | BR21: 0 | BS21: 4.04 | BT21: 1.3 | BU21: 9.15 | BV21: 15 | BW21: 29 | BX21: 29 | BY21: 22 | BZ21: 14 | CA21: 10 | CB21: 185 | CC21: 171 | CD21: 68 | CE21: 184 | CF21: 81 | CG21: 0 | CH21: 3.94 | CI21: 1.29 | CJ21: 8.951351351 | CK21: 17 | CL21: 31 | CM21: 31 | CN21: 24 | CO21: 13 | CP21: 11 | CQ21: 200 | CR21: 189 | CS21: 74 | CT21: 198 | CU21: 93 | CV21: 0 | CW21: 4.17 | CX21: 1.31 | CY21: 8.91 | CZ21: 18 | DA21: 32 | DB21: 32 | DC21: 28 | DD21: =(('Guts-2'!$I$7*0.01)*R21)+(('Guts-2'!$I$3*0.01)*AG21)+(('Guts-2'!$I$9*0.01)*AV21)+(('Guts-2'!$I$4*0.01)*BK21)+(('Guts-2'!$I$2*0.01)*BZ21)+(('Guts-2'!$I$8*0.01)*CO21) -> 12.2 | DE21: =(('Guts-2'!$I$7*0.01)*S21)+(('Guts-2'!$I$3*0.01)*AH21)+(('Guts-2'!$I$9*0.01)*AW21)+(('Guts-2'!$I$4*0.01)*BL21)+(('Guts-2'!$I$2*0.01)*CA21)+(('Guts-2'!$I$8*0.01)*CP21) -> 9.4 | DF21: =(('Guts-2'!$I$7*0.01)*T21)+(('Guts-2'!$I$3*0.01)*AI21)+(('Guts-2'!$I$9*0.01)*AX21)+(('Guts-2'!$I$4*0.01)*BM21)+(('Guts-2'!$I$2*0.01)*CB21)+(('Guts-2'!$I$8*0.01)*CQ21) -> 174.86 | DG21: =(('Guts-2'!$I$7*0.01)*U21)+(('Guts-2'!$I$3*0.01)*AJ21)+(('Guts-2'!$I$9*0.01)*AY21)+(('Guts-2'!$I$4*0.01)*BN21)+(('Guts-2'!$I$2*0.01)*CC21)+(('Guts-2'!$I$8*0.01)*CR21) -> 163.6 | DH21: =(('Guts-2'!$I$7*0.01)*V21)+(('Guts-2'!$I$3*0.01)*AK21)+(('Guts-2'!$I$9*0.01)*AZ21)+(('Guts-2'!$I$4*0.01)*BO21)+(('Guts-2'!$I$2*0.01)*CD21)+(('Guts-2'!$I$8*0.01)*CS21) -> 64 | DI21: =(('Guts-2'!$I$7*0.01)*W21)+(('Guts-2'!$I$3*0.01)*AL21)+(('Guts-2'!$I$9*0.01)*BA21)+(('Guts-2'!$I$4*0.01)*BP21)+(('Guts-2'!$I$2*0.01)*CE21)+(('Guts-2'!$I$8*0.01)*CT21) -> 176 | DJ21: =(('Guts-2'!$I$7*0.01)*X21)+(('Guts-2'!$I$3*0.01)*AM21)+(('Guts-2'!$I$9*0.01)*BB21)+(('Guts-2'!$I$4*0.01)*BQ21)+(('Guts-2'!$I$2*0.01)*CF21)+(('Guts-2'!$I$8*0.01)*CU21) -> 78.4 | DK21: =(('Guts-2'!$I$7*0.01)*Y21)+(('Guts-2'!$I$3*0.01)*AN21)+(('Guts-2'!$I$9*0.01)*BC21)+(('Guts-2'!$I$4*0.01)*BR21)+(('Guts-2'!$I$2*0.01)*CG21)+(('Guts-2'!$I$8*0.01)*CV21) -> 0 | DL21: 4.035228183 | DM21: 1.301612719 | DN21: 9.058675512 | DO21: =(('Guts-2'!$I$7*0.01)*AC21)+(('Guts-2'!$I$3*0.01)*AR21)+(('Guts-2'!$I$9*0.01)*BG21)+(('Guts-2'!$I$4*0.01)*BV21)+(('Guts-2'!$I$2*0.01)*CK21)+(('Guts-2'!$I$8*0.01)*CZ21) -> 15.6 | DP21: =(('Guts-2'!$I$7*0.01)*AD21)+(('Guts-2'!$I$3*0.01)*AS21)+(('Guts-2'!$I$9*0.01)*BH21)+(('Guts-2'!$I$4*0.01)*BW21)+(('Guts-2'!$I$2*0.01)*CL21)+(('Guts-2'!$I$8*0.01)*DA21) -> 29.6 | DQ21: =(('Guts-2'!$I$7*0.01)*AE21)+(('Guts-2'!$I$3*0.01)*AT21)+(('Guts-2'!$I$9*0.01)*BI21)+(('Guts-2'!$I$4*0.01)*BX21)+(('Guts-2'!$I$2*0.01)*CM21)+(('Guts-2'!$I$8*0.01)*DB21) -> 30 | DR21: =(('Guts-2'!$I$7*0.01)*AF21)+(('Guts-2'!$I$3*0.01)*AU21)+(('Guts-2'!$I$9*0.01)*BJ21)+(('Guts-2'!$I$4*0.01)*BY21)+(('Guts-2'!$I$2*0.01)*CN21)+(('Guts-2'!$I$8*0.01)*DC21) -> 23 | DS21: 11.70056204 | DT21: 9.098550116 | DU21: 175 | DV21: 164.0188563 | DW21: 62.76291313 | DX21: 178.0040079 | DY21: 79.88808227 | DZ21: 0 | EA21: 4.108529946 | EB21: 1.295895825 | EC21: 9.154491833 | ED21: 15 | EE21: 31 | EF21: 31 | EG21: 23.47022296 | EH21: 11.70056204 | EI21: 9.098550116 | EJ21: 175 | EK21: 164.0188563 | EL21: 62.76291313 | EM21: 178.0040079 | EN21: 79.88808227 | EO21: 0 | EP21: 4.108529946 | EQ21: 1.295895825 | ER21: 9.154491833 | ES21: 15 | ET21: 31 | EU21: 31 | EV21: 23.47022296 | EW21: =VLOOKUP($A21,'Import (Projections)'!$O$2:$X$8997,COLUMN(B19),FALSE) ->  | EX21: =VLOOKUP($A21,'Import (Projections)'!$O$2:$X$8997,COLUMN(C19),FALSE) ->  | EY21: =VLOOKUP($A21,'Import (Projections)'!$O$2:$X$8997,COLUMN(D19),FALSE) ->  | EZ21: =VLOOKUP($A21,'Import (Projections)'!$O$2:$X$8997,COLUMN(E19),FALSE) ->  | FA21: =VLOOKUP($A21,'Import (Projections)'!$O$2:$X$8997,COLUMN(F19),FALSE) ->  | FB21: =VLOOKUP($A21,'Import (Projections)'!$O$2:$X$8997,COLUMN(G19),FALSE) ->  | FC21: =VLOOKUP($A21,'Import (Projections)'!$O$2:$X$8997,COLUMN(H19),FALSE) ->  | FD21: =VLOOKUP($A21,'Import (Projections)'!$O$2:$X$8997,COLUMN(I19),FALSE) ->  | FI21: =VLOOKUP($A21,'Import (Projections)'!$O$2:$X$8997,COLUMN(J19),FALSE) ->  | FL21: =IFERROR(IFERROR(AVERAGE(FP21,FT21),IFERROR(FT21,IFERROR(FP21,0)))*CHOOSE('Guts-2'!$D$28,O21,AD21,AS21,BH21,BW21,CL21,DA21,DP21,EE21,ET21,FI21,),0) -> 0 | FM21: =IFERROR(IFERROR(AVERAGE(FQ21,FS21),IFERROR(FS21,IFERROR(FQ21,0)))*CHOOSE('Guts-2'!$D$28,O21,AD21,AS21,BH21,BW21,CL21,DA21,DP21,EE21,ET21,FI21,),0) -> 0 | FN21: 0 | FS21: 0 | FT21: 0 | FU21: 0 | FV21: 0 | FW21: 0
A22: Cam Bedrosian | B22: bedroca01 | R22: 3 | S22: 3 | T22: 65 | U22: 57 | V22: 27 | W22: 69 | X22: 27 | Y22: 25 | Z22: 3.72 | AA22: 1.29 | AB22: 9.57 | AC22: 0 | AD22: 0 | AE22: 65 | AF22: 8 | AV22: 6 | AW22: 5 | AX22: 51.3 | AY22: 46 | AZ22: 19 | BA22: 59 | BB22: 21 | BC22: 18.5 | BD22: 3.68 | BE22: 1.27 | BF22: 10.34 | BG22: 0 | BH22: 0 | BI22: 55 | BJ22: 6 | BK22: 6 | BL22: 5 | BM22: 65 | BN22: 58 | BO22: 25 | BP22: 72 | BQ22: 27 | BR22: 20 | BS22: 3.7 | BT22: 1.28 | BU22: 9.95 | BV22: 0 | BW22: 0 | BX22: 65 | BY22: 8 | BZ22: 3 | CA22: 2 | CB22: 61 | CC22: 55 | CD22: 24 | CE22: 66 | CF22: 24 | CG22: 4 | CH22: 3.55 | CI22: 1.28 | CJ22: 9.737704918 | CK22: 0 | CL22: 0 | CM22: 54 | CN22: 8 | CO22: 3 | CP22: 3 | CQ22: 65 | CR22: 57 | CS22: 27 | CT22: 69 | CU22: 27 | CV22: 25 | CW22: 3.72 | CX22: 1.29 | CY22: 9.57 | CZ22: 0 | DA22: 0 | DB22: 65 | DC22: 8 | DD22: =(('Guts-2'!$I$7*0.01)*R22)+(('Guts-2'!$I$3*0.01)*AG22)+(('Guts-2'!$I$9*0.01)*AV22)+(('Guts-2'!$I$4*0.01)*BK22)+(('Guts-2'!$I$2*0.01)*BZ22)+(('Guts-2'!$I$8*0.01)*CO22) ->  | DE22: =(('Guts-2'!$I$7*0.01)*S22)+(('Guts-2'!$I$3*0.01)*AH22)+(('Guts-2'!$I$9*0.01)*AW22)+(('Guts-2'!$I$4*0.01)*BL22)+(('Guts-2'!$I$2*0.01)*CA22)+(('Guts-2'!$I$8*0.01)*CP22) ->  | DF22: =(('Guts-2'!$I$7*0.01)*T22)+(('Guts-2'!$I$3*0.01)*AI22)+(('Guts-2'!$I$9*0.01)*AX22)+(('Guts-2'!$I$4*0.01)*BM22)+(('Guts-2'!$I$2*0.01)*CB22)+(('Guts-2'!$I$8*0.01)*CQ22) ->  | DG22: =(('Guts-2'!$I$7*0.01)*U22)+(('Guts-2'!$I$3*0.01)*AJ22)+(('Guts-2'!$I$9*0.01)*AY22)+(('Guts-2'!$I$4*0.01)*BN22)+(('Guts-2'!$I$2*0.01)*CC22)+(('Guts-2'!$I$8*0.01)*CR22) ->  | DH22: =(('Guts-2'!$I$7*0.01)*V22)+(('Guts-2'!$I$3*0.01)*AK22)+(('Guts-2'!$I$9*0.01)*AZ22)+(('Guts-2'!$I$4*0.01)*BO22)+(('Guts-2'!$I$2*0.01)*CD22)+(('Guts-2'!$I$8*0.01)*CS22) ->  | DI22: =(('Guts-2'!$I$7*0.01)*W22)+(('Guts-2'!$I$3*0.01)*AL22)+(('Guts-2'!$I$9*0.01)*BA22)+(('Guts-2'!$I$4*0.01)*BP22)+(('Guts-2'!$I$2*0.01)*CE22)+(('Guts-2'!$I$8*0.01)*CT22) ->  | DJ22: =(('Guts-2'!$I$7*0.01)*X22)+(('Guts-2'!$I$3*0.01)*AM22)+(('Guts-2'!$I$9*0.01)*BB22)+(('Guts-2'!$I$4*0.01)*BQ22)+(('Guts-2'!$I$2*0.01)*CF22)+(('Guts-2'!$I$8*0.01)*CU22) ->  | DK22: =(('Guts-2'!$I$7*0.01)*Y22)+(('Guts-2'!$I$3*0.01)*AN22)+(('Guts-2'!$I$9*0.01)*BC22)+(('Guts-2'!$I$4*0.01)*BR22)+(('Guts-2'!$I$2*0.01)*CG22)+(('Guts-2'!$I$8*0.01)*CV22) ->  | DO22: =(('Guts-2'!$I$7*0.01)*AC22)+(('Guts-2'!$I$3*0.01)*AR22)+(('Guts-2'!$I$9*0.01)*BG22)+(('Guts-2'!$I$4*0.01)*BV22)+(('Guts-2'!$I$2*0.01)*CK22)+(('Guts-2'!$I$8*0.01)*CZ22) ->  | DP22: =(('Guts-2'!$I$7*0.01)*AD22)+(('Guts-2'!$I$3*0.01)*AS22)+(('Guts-2'!$I$9*0.01)*BH22)+(('Guts-2'!$I$4*0.01)*BW22)+(('Guts-2'!$I$2*0.01)*CL22)+(('Guts-2'!$I$8*0.01)*DA22) ->  | DQ22: =(('Guts-2'!$I$7*0.01)*AE22)+(('Guts-2'!$I$3*0.01)*AT22)+(('Guts-2'!$I$9*0.01)*BI22)+(('Guts-2'!$I$4*0.01)*BX22)+(('Guts-2'!$I$2*0.01)*CM22)+(('Guts-2'!$I$8*0.01)*DB22) ->  | DR22: =(('Guts-2'!$I$7*0.01)*AF22)+(('Guts-2'!$I$3*0.01)*AU22)+(('Guts-2'!$I$9*0.01)*BJ22)+(('Guts-2'!$I$4*0.01)*BY22)+(('Guts-2'!$I$2*0.01)*CN22)+(('Guts-2'!$I$8*0.01)*DC22) ->  | EH22: 3 | EI22: 3 | EJ22: 65 | EK22: 57 | EL22: 27 | EM22: 69 | EN22: 27 | EO22: 25 | EP22: 3.72 | EQ22: 1.29 | ER22: 9.57 | ES22: 0 | ET22: 0 | EU22: 65 | EV22: 8 | EW22: =VLOOKUP($A22,'Import (Projections)'!$O$2:$X$8997,COLUMN(B20),FALSE) ->  | EX22: =VLOOKUP($A22,'Import (Projections)'!$O$2:$X$8997,COLUMN(C20),FALSE) ->  | EY22: =VLOOKUP($A22,'Import (Projections)'!$O$2:$X$8997,COLUMN(D20),FALSE) ->  | EZ22: =VLOOKUP($A22,'Import (Projections)'!$O$2:$X$8997,COLUMN(E20),FALSE) ->  | FA22: =VLOOKUP($A22,'Import (Projections)'!$O$2:$X$8997,COLUMN(F20),FALSE) ->  | FB22: =VLOOKUP($A22,'Import (Projections)'!$O$2:$X$8997,COLUMN(G20),FALSE) ->  | FC22: =VLOOKUP($A22,'Import (Projections)'!$O$2:$X$8997,COLUMN(H20),FALSE) ->  | FD22: =VLOOKUP($A22,'Import (Projections)'!$O$2:$X$8997,COLUMN(I20),FALSE) ->  | FI22: =VLOOKUP($A22,'Import (Projections)'!$O$2:$X$8997,COLUMN(J20),FALSE) ->  | FL22: =IFERROR(IFERROR(AVERAGE(FP22,FT22),IFERROR(FT22,IFERROR(FP22,0)))*CHOOSE('Guts-2'!$D$28,O22,AD22,AS22,BH22,BW22,CL22,DA22,DP22,EE22,ET22,FI22,),0) -> 0 | FM22: =IFERROR(IFERROR(AVERAGE(FQ22,FS22),IFERROR(FS22,IFERROR(FQ22,0)))*CHOOSE('Guts-2'!$D$28,O22,AD22,AS22,BH22,BW22,CL22,DA22,DP22,EE22,ET22,FI22,),0) -> 0 | FN22: 13.5 | FS22: 0 | FT22: 0 | FU22: 1 | FV22: 16 | FW22: 11
A23: Tyler Beede | B23: beedety01 | R23: 2 | S23: 2 | T23: 37 | U23: 38 | V23: 15 | W23: 28 | X23: 18 | Y23: 0 | Z23: 4.34 | AA23: 1.43 | AB23: 6.74 | AC23: 4 | AD23: 6 | AE23: 6 | AF23: 4 | AV23: 6 | AW23: 7 | AX23: 103.7 | AY23: 114 | AZ23: 41 | BA23: 73 | BB23: 54 | BC23: 0 | BD23: 4.69 | BE23: 1.5 | BF23: 6.34 | BG23: 8 | BH23: 19 | BI23: 19 | BJ23: 13 | BK23: 2 | BL23: 2 | BM23: 37 | BN23: 39 | BO23: 15 | BP23: 27 | BQ23: 19 | BR23: 0 | BS23: 4.51 | BT23: 1.46 | BU23: 6.54 | BV23: 4 | BW23: 6 | BX23: 6 | BY23: 4 | CO23: 12 | CP23: 12 | CQ23: 200 | CR23: 203 | CS23: 84 | CT23: 150 | CU23: 96 | CV23: 0 | CW23: 4.34 | CX23: 1.43 | CY23: 6.74 | CZ23: 18 | DA23: 32 | DB23: 32 | DC23: 23 | DD23: =(('Guts-2'!$I$7*0.01)*R23)+(('Guts-2'!$I$3*0.01)*AG23)+(('Guts-2'!$I$9*0.01)*AV23)+(('Guts-2'!$I$4*0.01)*BK23)+(('Guts-2'!$I$2*0.01)*BZ23)+(('Guts-2'!$I$8*0.01)*CO23) ->  | DE23: =(('Guts-2'!$I$7*0.01)*S23)+(('Guts-2'!$I$3*0.01)*AH23)+(('Guts-2'!$I$9*0.01)*AW23)+(('Guts-2'!$I$4*0.01)*BL23)+(('Guts-2'!$I$2*0.01)*CA23)+(('Guts-2'!$I$8*0.01)*CP23) ->  | DF23: =(('Guts-2'!$I$7*0.01)*T23)+(('Guts-2'!$I$3*0.01)*AI23)+(('Guts-2'!$I$9*0.01)*AX23)+(('Guts-2'!$I$4*0.01)*BM23)+(('Guts-2'!$I$2*0.01)*CB23)+(('Guts-2'!$I$8*0.01)*CQ23) ->  | DG23: =(('Guts-2'!$I$7*0.01)*U23)+(('Guts-2'!$I$3*0.01)*AJ23)+(('Guts-2'!$I$9*0.01)*AY23)+(('Guts-2'!$I$4*0.01)*BN23)+(('Guts-2'!$I$2*0.01)*CC23)+(('Guts-2'!$I$8*0.01)*CR23) ->  | DH23: =(('Guts-2'!$I$7*0.01)*V23)+(('Guts-2'!$I$3*0.01)*AK23)+(('Guts-2'!$I$9*0.01)*AZ23)+(('Guts-2'!$I$4*0.01)*BO23)+(('Guts-2'!$I$2*0.01)*CD23)+(('Guts-2'!$I$8*0.01)*CS23) ->  | DI23: =(('Guts-2'!$I$7*0.01)*W23)+(('Guts-2'!$I$3*0.01)*AL23)+(('Guts-2'!$I$9*0.01)*BA23)+(('Guts-2'!$I$4*0.01)*BP23)+(('Guts-2'!$I$2*0.01)*CE23)+(('Guts-2'!$I$8*0.01)*CT23) ->  | DJ23: =(('Guts-2'!$I$7*0.01)*X23)+(('Guts-2'!$I$3*0.01)*AM23)+(('Guts-2'!$I$9*0.01)*BB23)+(('Guts-2'!$I$4*0.01)*BQ23)+(('Guts-2'!$I$2*0.01)*CF23)+(('Guts-2'!$I$8*0.01)*CU23) ->  | DK23: =(('Guts-2'!$I$7*0.01)*Y23)+(('Guts-2'!$I$3*0.01)*AN23)+(('Guts-2'!$I$9*0.01)*BC23)+(('Guts-2'!$I$4*0.01)*BR23)+(('Guts-2'!$I$2*0.01)*CG23)+(('Guts-2'!$I$8*0.01)*CV23) ->  | DO23: =(('Guts-2'!$I$7*0.01)*AC23)+(('Guts-2'!$I$3*0.01)*AR23)+(('Guts-2'!$I$9*0.01)*BG23)+(('Guts-2'!$I$4*0.01)*BV23)+(('Guts-2'!$I$2*0.01)*CK23)+(('Guts-2'!$I$8*0.01)*CZ23) ->  | DP23: =(('Guts-2'!$I$7*0.01)*AD23)+(('Guts-2'!$I$3*0.01)*AS23)+(('Guts-2'!$I$9*0.01)*BH23)+(('Guts-2'!$I$4*0.01)*BW23)+(('Guts-2'!$I$2*0.01)*CL23)+(('Guts-2'!$I$8*0.01)*DA23) ->  | DQ23: =(('Guts-2'!$I$7*0.01)*AE23)+(('Guts-2'!$I$3*0.01)*AT23)+(('Guts-2'!$I$9*0.01)*BI23)+(('Guts-2'!$I$4*0.01)*BX23)+(('Guts-2'!$I$2*0.01)*CM23)+(('Guts-2'!$I$8*0.01)*DB23) ->  | DR23: =(('Guts-2'!$I$7*0.01)*AF23)+(('Guts-2'!$I$3*0.01)*AU23)+(('Guts-2'!$I$9*0.01)*BJ23)+(('Guts-2'!$I$4*0.01)*BY23)+(('Guts-2'!$I$2*0.01)*CN23)+(('Guts-2'!$I$8*0.01)*DC23) ->  | EH23: 2 | EI23: 2 | EJ23: 37 | EK23: 38 | EL23: 15 | EM23: 28 | EN23: 18 | EO23: 0 | EP23: 4.34 | EQ23: 1.43 | ER23: 6.74 | ES23: 4 | ET23: 6 | EU23: 6 | EV23: 4 | EW23: =VLOOKUP($A23,'Import (Projections)'!$O$2:$X$8997,COLUMN(B21),FALSE) ->  | EX23: =VLOOKUP($A23,'Import (Projections)'!$O$2:$X$8997,COLUMN(C21),FALSE) ->  | EY23: =VLOOKUP($A23,'Import (Projections)'!$O$2:$X$8997,COLUMN(D21),FALSE) ->  | EZ23: =VLOOKUP($A23,'Import (Projections)'!$O$2:$X$8997,COLUMN(E21),FALSE) ->  | FA23: =VLOOKUP($A23,'Import (Projections)'!$O$2:$X$8997,COLUMN(F21),FALSE) ->  | FB23: =VLOOKUP($A23,'Import (Projections)'!$O$2:$X$8997,COLUMN(G21),FALSE) ->  | FC23: =VLOOKUP($A23,'Import (Projections)'!$O$2:$X$8997,COLUMN(H21),FALSE) ->  | FD23: =VLOOKUP($A23,'Import (Projections)'!$O$2:$X$8997,COLUMN(I21),FALSE) ->  | FI23: =VLOOKUP($A23,'Import (Projections)'!$O$2:$X$8997,COLUMN(J21),FALSE) ->  | FL23: =IFERROR(IFERROR(AVERAGE(FP23,FT23),IFERROR(FT23,IFERROR(FP23,0)))*CHOOSE('Guts-2'!$D$28,O23,AD23,AS23,BH23,BW23,CL23,DA23,DP23,EE23,ET23,FI23,),0) -> 0 | FM23: =IFERROR(IFERROR(AVERAGE(FQ23,FS23),IFERROR(FS23,IFERROR(FQ23,0)))*CHOOSE('Guts-2'!$D$28,O23,AD23,AS23,BH23,BW23,CL23,DA23,DP23,EE23,ET23,FI23,),0) -> 0 | FN23: 0.5 | FS23: 0 | FT23: 0 | FU23: 0 | FV23: 1 | FW23: 0
A24: Matt Belisle | B24: belisma01 | R24: 3 | S24: 3 | T24: 55 | U24: 57 | V24: 20 | W24: 43 | X24: 28 | Y24: 0 | Z24: 4.53 | AA24: 1.4 | AB24: 7.06 | AC24: 0 | AD24: 0 | AE24: 55 | AF24: 8 | AV24: 2 | AW24: 1 | AX24: 48.7 | AY24: 47 | AZ24: 15 | BA24: 41 | BB24: 19 | BC24: 0 | BD24: 3.51 | BE24: 1.27 | BF24: 7.58 | BG24: 0 | BH24: 0 | BI24: 50 | BJ24: 4 | BK24: 2 | BL24: 2 | BM24: 55 | BN24: 55 | BO24: 18 | BP24: 45 | BQ24: 25 | BR24: 1 | BS24: 4.02 | BT24: 1.33 | BU24: 7.32 | BV24: 0 | BW24: 0 | BX24: 55 | BY24: 6 | CO24: 3 | CP24: 3 | CQ24: 65 | CR24: 67 | CS24: 23 | CT24: 51 | CU24: 33 | CV24: 0 | CW24: 4.53 | CX24: 1.4 | CY24: 7.06 | CZ24: 0 | DA24: 0 | DB24: 65 | DC24: 9 | DD24: =(('Guts-2'!$I$7*0.01)*R24)+(('Guts-2'!$I$3*0.01)*AG24)+(('Guts-2'!$I$9*0.01)*AV24)+(('Guts-2'!$I$4*0.01)*BK24)+(('Guts-2'!$I$2*0.01)*BZ24)+(('Guts-2'!$I$8*0.01)*CO24) ->  | DE24: =(('Guts-2'!$I$7*0.01)*S24)+(('Guts-2'!$I$3*0.01)*AH24)+(('Guts-2'!$I$9*0.01)*AW24)+(('Guts-2'!$I$4*0.01)*BL24)+(('Guts-2'!$I$2*0.01)*CA24)+(('Guts-2'!$I$8*0.01)*CP24) ->  | DF24: =(('Guts-2'!$I$7*0.01)*T24)+(('Guts-2'!$I$3*0.01)*AI24)+(('Guts-2'!$I$9*0.01)*AX24)+(('Guts-2'!$I$4*0.01)*BM24)+(('Guts-2'!$I$2*0.01)*CB24)+(('Guts-2'!$I$8*0.01)*CQ24) ->  | DG24: =(('Guts-2'!$I$7*0.01)*U24)+(('Guts-2'!$I$3*0.01)*AJ24)+(('Guts-2'!$I$9*0.01)*AY24)+(('Guts-2'!$I$4*0.01)*BN24)+(('Guts-2'!$I$2*0.01)*CC24)+(('Guts-2'!$I$8*0.01)*CR24) ->  | DH24: =(('Guts-2'!$I$7*0.01)*V24)+(('Guts-2'!$I$3*0.01)*AK24)+(('Guts-2'!$I$9*0.01)*AZ24)+(('Guts-2'!$I$4*0.01)*BO24)+(('Guts-2'!$I$2*0.01)*CD24)+(('Guts-2'!$I$8*0.01)*CS24) ->  | DI24: =(('Guts-2'!$I$7*0.01)*W24)+(('Guts-2'!$I$3*0.01)*AL24)+(('Guts-2'!$I$9*0.01)*BA24)+(('Guts-2'!$I$4*0.01)*BP24)+(('Guts-2'!$I$2*0.01)*CE24)+(('Guts-2'!$I$8*0.01)*CT24) ->  | DJ24: =(('Guts-2'!$I$7*0.01)*X24)+(('Guts-2'!$I$3*0.01)*AM24)+(('Guts-2'!$I$9*0.01)*BB24)+(('Guts-2'!$I$4*0.01)*BQ24)+(('Guts-2'!$I$2*0.01)*CF24)+(('Guts-2'!$I$8*0.01)*CU24) ->  | DK24: =(('Guts-2'!$I$7*0.01)*Y24)+(('Guts-2'!$I$3*0.01)*AN24)+(('Guts-2'!$I$9*0.01)*BC24)+(('Guts-2'!$I$4*0.01)*BR24)+(('Guts-2'!$I$2*0.01)*CG24)+(('Guts-2'!$I$8*0.01)*CV24) ->  | DO24: =(('Guts-2'!$I$7*0.01)*AC24)+(('Guts-2'!$I$3*0.01)*AR24)+(('Guts-2'!$I$9*0.01)*BG24)+(('Guts-2'!$I$4*0.01)*BV24)+(('Guts-2'!$I$2*0.01)*CK24)+(('Guts-2'!$I$8*0.01)*CZ24) ->  | DP24: =(('Guts-2'!$I$7*0.01)*AD24)+(('Guts-2'!$I$3*0.01)*AS24)+(('Guts-2'!$I$9*0.01)*BH24)+(('Guts-2'!$I$4*0.01)*BW24)+(('Guts-2'!$I$2*0.01)*CL24)+(('Guts-2'!$I$8*0.01)*DA24) ->  | DQ24: =(('Guts-2'!$I$7*0.01)*AE24)+(('Guts-2'!$I$3*0.01)*AT24)+(('Guts-2'!$I$9*0.01)*BI24)+(('Guts-2'!$I$4*0.01)*BX24)+(('Guts-2'!$I$2*0.01)*CM24)+(('Guts-2'!$I$8*0.01)*DB24) ->  | DR24: =(('Guts-2'!$I$7*0.01)*AF24)+(('Guts-2'!$I$3*0.01)*AU24)+(('Guts-2'!$I$9*0.01)*BJ24)+(('Guts-2'!$I$4*0.01)*BY24)+(('Guts-2'!$I$2*0.01)*CN24)+(('Guts-2'!$I$8*0.01)*DC24) ->  | EH24: 3 | EI24: 3 | EJ24: 55 | EK24: 57 | EL24: 20 | EM24: 43 | EN24: 28 | EO24: 0 | EP24: 4.53 | EQ24: 1.4 | ER24: 7.06 | ES24: 0 | ET24: 0 | EU24: 55 | EV24: 8 | EW24: =VLOOKUP($A24,'Import (Projections)'!$O$2:$X$8997,COLUMN(B22),FALSE) ->  | EX24: =VLOOKUP($A24,'Import (Projections)'!$O$2:$X$8997,COLUMN(C22),FALSE) ->  | EY24: =VLOOKUP($A24,'Import (Projections)'!$O$2:$X$8997,COLUMN(D22),FALSE) ->  | EZ24: =VLOOKUP($A24,'Import (Projections)'!$O$2:$X$8997,COLUMN(E22),FALSE) ->  | FA24: =VLOOKUP($A24,'Import (Projections)'!$O$2:$X$8997,COLUMN(F22),FALSE) ->  | FB24: =VLOOKUP($A24,'Import (Projections)'!$O$2:$X$8997,COLUMN(G22),FALSE) ->  | FC24: =VLOOKUP($A24,'Import (Projections)'!$O$2:$X$8997,COLUMN(H22),FALSE) ->  | FD24: =VLOOKUP($A24,'Import (Projections)'!$O$2:$X$8997,COLUMN(I22),FALSE) ->  | FI24: =VLOOKUP($A24,'Import (Projections)'!$O$2:$X$8997,COLUMN(J22),FALSE) ->  | FL24: =IFERROR(IFERROR(AVERAGE(FP24,FT24),IFERROR(FT24,IFERROR(FP24,0)))*CHOOSE('Guts-2'!$D$28,O24,AD24,AS24,BH24,BW24,CL24,DA24,DP24,EE24,ET24,FI24,),0) -> 0 | FM24: =IFERROR(IFERROR(AVERAGE(FQ24,FS24),IFERROR(FS24,IFERROR(FQ24,0)))*CHOOSE('Guts-2'!$D$28,O24,AD24,AS24,BH24,BW24,CL24,DA24,DP24,EE24,ET24,FI24,),0) -> 0 | FN24: 15 | FS24: 0 | FT24: 0 | FU24: 2 | FV24: 15
A25: Jose Berrios | B25: berrijo01 | R25: 10 | S25: 10 | T25: 169 | U25: 165 | V25: 60 | W25: 160 | X25: 86 | Y25: 0 | Z25: 4.56 | AA25: 1.34 | AB25: 8.51 | AC25: 13 | AD25: 29 | AE25: 29 | AF25: 26 | AG25: 14 | AH25: 8 | AI25: 185 | AJ25: 170 | AK25: 56 | AL25: 184 | AM25: 72 | AN25: 0 | AO25: 3.5 | AP25: 1.22 | AQ25: 8.95 | AR25: 19 | AS25: 31 | AT25: 31 | AU25: 20 | AV25: 14 | AW25: 11 | AX25: 176.7 | AY25: 165 | AZ25: 60 | BA25: 174 | BB25: 77 | BC25: 0 | BD25: 3.92 | BE25: 1.27 | BF25: 8.86 | BG25: 16 | BH25: 31 | BI25: 32 | BJ25: 20 | BK25: 12 | BL25: 10 | BM25: 169 | BN25: 162 | BO25: 59 | BP25: 163 | BQ25: 80 | BR25: 0 | BS25: 4.24 | BT25: 1.3 | BU25: 8.69 | BV25: 14 | BW25: 29 | BX25: 29 | BY25: 23 | BZ25: 13 | CA25: 12 | CB25: 177.3 | CC25: 174 | CD25: 58 | CE25: 170 | CF25: 88 | CG25: 0 | CH25: 4.48 | CI25: 1.31 | CJ25: 8.629441624 | CK25: 16 | CL25: 32 | CM25: 32 | CN25: 27 | CO25: 12 | CP25: 12 | CQ25: 200 | CR25: 196 | CS25: 71 | CT25: 189 | CU25: 101 | CV25: 0 | CW25: 4.56 | CX25: 1.34 | CY25: 8.51 | CZ25: 17 | DA25: 32 | DB25: 32 | DC25: 31 | DD25: =(('Guts-2'!$I$7*0.01)*R25)+(('Guts-2'!$I$3*0.01)*AG25)+(('Guts-2'!$I$9*0.01)*AV25)+(('Guts-2'!$I$4*0.01)*BK25)+(('Guts-2'!$I$2*0.01)*BZ25)+(('Guts-2'!$I$8*0.01)*CO25) -> 11.8 | DE25: =(('Guts-2'!$I$7*0.01)*S25)+(('Guts-2'!$I$3*0.01)*AH25)+(('Guts-2'!$I$9*0.01)*AW25)+(('Guts-2'!$I$4*0.01)*BL25)+(('Guts-2'!$I$2*0.01)*CA25)+(('Guts-2'!$I$8*0.01)*CP25) -> 10.6 | DF25: =(('Guts-2'!$I$7*0.01)*T25)+(('Guts-2'!$I$3*0.01)*AI25)+(('Guts-2'!$I$9*0.01)*AX25)+(('Guts-2'!$I$4*0.01)*BM25)+(('Guts-2'!$I$2*0.01)*CB25)+(('Guts-2'!$I$8*0.01)*CQ25) -> 172.2 | DG25: =(('Guts-2'!$I$7*0.01)*U25)+(('Guts-2'!$I$3*0.01)*AJ25)+(('Guts-2'!$I$9*0.01)*AY25)+(('Guts-2'!$I$4*0.01)*BN25)+(('Guts-2'!$I$2*0.01)*CC25)+(('Guts-2'!$I$8*0.01)*CR25) -> 166.2 | DH25: =(('Guts-2'!$I$7*0.01)*V25)+(('Guts-2'!$I$3*0.01)*AK25)+(('Guts-2'!$I$9*0.01)*AZ25)+(('Guts-2'!$I$4*0.01)*BO25)+(('Guts-2'!$I$2*0.01)*CD25)+(('Guts-2'!$I$8*0.01)*CS25) -> 59.4 | DI25: =(('Guts-2'!$I$7*0.01)*W25)+(('Guts-2'!$I$3*0.01)*AL25)+(('Guts-2'!$I$9*0.01)*BA25)+(('Guts-2'!$I$4*0.01)*BP25)+(('Guts-2'!$I$2*0.01)*CE25)+(('Guts-2'!$I$8*0.01)*CT25) -> 165.4 | DJ25: =(('Guts-2'!$I$7*0.01)*X25)+(('Guts-2'!$I$3*0.01)*AM25)+(('Guts-2'!$I$9*0.01)*BB25)+(('Guts-2'!$I$4*0.01)*BQ25)+(('Guts-2'!$I$2*0.01)*CF25)+(('Guts-2'!$I$8*0.01)*CU25) -> 83.4 | DK25: =(('Guts-2'!$I$7*0.01)*Y25)+(('Guts-2'!$I$3*0.01)*AN25)+(('Guts-2'!$I$9*0.01)*BC25)+(('Guts-2'!$I$4*0.01)*BR25)+(('Guts-2'!$I$2*0.01)*CG25)+(('Guts-2'!$I$8*0.01)*CV25) -> 0 | DL25: 4.358885017 | DM25: 1.31010453 | DN25: 8.644599303 | DO25: =(('Guts-2'!$I$7*0.01)*AC25)+(('Guts-2'!$I$3*0.01)*AR25)+(('Guts-2'!$I$9*0.01)*BG25)+(('Guts-2'!$I$4*0.01)*BV25)+(('Guts-2'!$I$2*0.01)*CK25)+(('Guts-2'!$I$8*0.01)*CZ25) -> 14.4 | DP25: =(('Guts-2'!$I$7*0.01)*AD25)+(('Guts-2'!$I$3*0.01)*AS25)+(('Guts-2'!$I$9*0.01)*BH25)+(('Guts-2'!$I$4*0.01)*BW25)+(('Guts-2'!$I$2*0.01)*CL25)+(('Guts-2'!$I$8*0.01)*DA25) -> 30 | DQ25: =(('Guts-2'!$I$7*0.01)*AE25)+(('Guts-2'!$I$3*0.01)*AT25)+(('Guts-2'!$I$9*0.01)*BI25)+(('Guts-2'!$I$4*0.01)*BX25)+(('Guts-2'!$I$2*0.01)*CM25)+(('Guts-2'!$I$8*0.01)*DB25) -> 30.2 | DR25: =(('Guts-2'!$I$7*0.01)*AF25)+(('Guts-2'!$I$3*0.01)*AU25)+(('Guts-2'!$I$9*0.01)*BJ25)+(('Guts-2'!$I$4*0.01)*BY25)+(('Guts-2'!$I$2*0.01)*CN25)+(('Guts-2'!$I$8*0.01)*DC25) -> 24.4 | DS25: 11.33117693 | DT25: 8.962152858 | DU25: 181 | DV25: 174.0021241 | DW25: 60.06031813 | DX25: 176.7738685 | DY25: 83.44120262 | DZ25: 0 | EA25: 4.149010075 | EB25: 1.293162664 | EC25: 8.789860867 | ED25: 16 | EE25: 31 | EF25: 31 | EG25: 25.50044792 | EH25: 11.33117693 | EI25: 8.962152858 | EJ25: 181 | EK25: 174.0021241 | EL25: 60.06031813 | EM25: 176.7738685 | EN25: 83.44120262 | EO25: 0 | EP25: 4.149010075 | EQ25: 1.293162664 | ER25: 8.789860867 | ES25: 16 | ET25: 31 | EU25: 31 | EV25: 25.50044792 | EW25: =VLOOKUP($A25,'Import (Projections)'!$O$2:$X$8997,COLUMN(B23),FALSE) ->  | EX25: =VLOOKUP($A25,'Import (Projections)'!$O$2:$X$8997,COLUMN(C23),FALSE) ->  | EY25: =VLOOKUP($A25,'Import (Projections)'!$O$2:$X$8997,COLUMN(D23),FALSE) ->  | EZ25: =VLOOKUP($A25,'Import (Projections)'!$O$2:$X$8997,COLUMN(E23),FALSE) ->  | FA25: =VLOOKUP($A25,'Import (Projections)'!$O$2:$X$8997,COLUMN(F23),FALSE) ->  | FB25: =VLOOKUP($A25,'Import (Projections)'!$O$2:$X$8997,COLUMN(G23),FALSE) ->  | FC25: =VLOOKUP($A25,'Import (Projections)'!$O$2:$X$8997,COLUMN(H23),FALSE) ->  | FD25: =VLOOKUP($A25,'Import (Projections)'!$O$2:$X$8997,COLUMN(I23),FALSE) ->  | FI25: =VLOOKUP($A25,'Import (Projections)'!$O$2:$X$8997,COLUMN(J23),FALSE) ->  | FL25: =IFERROR(IFERROR(AVERAGE(FP25,FT25),IFERROR(FT25,IFERROR(FP25,0)))*CHOOSE('Guts-2'!$D$28,O25,AD25,AS25,BH25,BW25,CL25,DA25,DP25,EE25,ET25,FI25,),0) -> 0 | FM25: =IFERROR(IFERROR(AVERAGE(FQ25,FS25),IFERROR(FS25,IFERROR(FQ25,0)))*CHOOSE('Guts-2'!$D$28,O25,AD25,AS25,BH25,BW25,CL25,DA25,DP25,EE25,ET25,FI25,),0) -> 0 | FN25: 0 | FS25: 0 | FT25: 0 | FU25: 0 | FV25: 0 | FW25: 0
A26: Dellin Betances | B26: betande01 | R26: 3 | S26: 2 | T26: 55 | U26: 37 | V26: 26 | W26: 82 | X26: 18 | Y26: 2 | Z26: 2.95 | AA26: 1.15 | AB26: 13.34 | AC26: 0 | AD26: 0 | AE26: 55 | AF26: 5 | AG26: 4 | AH26: 5 | AI26: 67 | AJ26: 44 | AK26: 31 | AL26: 100 | AM26: 20 | AN26: 0 | AO26: 2.65 | AP26: 1.12 | AQ26: 13.43 | AR26: 0 | AS26: 0 | AT26: 67 | AU26: 5 | AV26: 6 | AW26: 3 | AX26: 60.7 | AY26: 41 | AZ26: 36 | BA26: 92 | BB26: 20 | BC26: 1.4 | BD26: 2.97 | BE26: 1.27 | BF26: 13.65 | BG26: 0 | BH26: 0 | BI26: 65 | BJ26: 5 | BK26: 5 | BL26: 3 | BM26: 65 | BN26: 44 | BO26: 35 | BP26: 97 | BQ26: 21 | BR26: 1 | BS26: 2.96 | BT26: 1.21 | BU26: 13.49 | BV26: 0 | BW26: 0 | BX26: 65 | BY26: 6 | BZ26: 3 | CA26: 2 | CB26: 68.3 | CC26: 49 | CD26: 36 | CE26: 96 | CF26: 26 | CG26: 2 | CH26: 3.37 | CI26: 1.25 | CJ26: 12.65007321 | CK26: 0 | CL26: 0 | CM26: 62 | CN26: 9 | CO26: 4 | CP26: 2 | CQ26: 65 | CR26: 44 | CS26: 31 | CT26: 96 | CU26: 21 | CV26: 2 | CW26: 2.95 | CX26: 1.15 | CY26: 13.34 | CZ26: 0 | DA26: 0 | DB26: 65 | DC26: 6 | DD26: =(('Guts-2'!$I$7*0.01)*R26)+(('Guts-2'!$I$3*0.01)*AG26)+(('Guts-2'!$I$9*0.01)*AV26)+(('Guts-2'!$I$4*0.01)*BK26)+(('Guts-2'!$I$2*0.01)*BZ26)+(('Guts-2'!$I$8*0.01)*CO26) -> 4 | DE26: =(('Guts-2'!$I$7*0.01)*S26)+(('Guts-2'!$I$3*0.01)*AH26)+(('Guts-2'!$I$9*0.01)*AW26)+(('Guts-2'!$I$4*0.01)*BL26)+(('Guts-2'!$I$2*0.01)*CA26)+(('Guts-2'!$I$8*0.01)*CP26) -> 2.4 | DF26: =(('Guts-2'!$I$7*0.01)*T26)+(('Guts-2'!$I$3*0.01)*AI26)+(('Guts-2'!$I$9*0.01)*AX26)+(('Guts-2'!$I$4*0.01)*BM26)+(('Guts-2'!$I$2*0.01)*CB26)+(('Guts-2'!$I$8*0.01)*CQ26) -> 60.8 | DG26: =(('Guts-2'!$I$7*0.01)*U26)+(('Guts-2'!$I$3*0.01)*AJ26)+(('Guts-2'!$I$9*0.01)*AY26)+(('Guts-2'!$I$4*0.01)*BN26)+(('Guts-2'!$I$2*0.01)*CC26)+(('Guts-2'!$I$8*0.01)*CR26) -> 41.6 | DH26: =(('Guts-2'!$I$7*0.01)*V26)+(('Guts-2'!$I$3*0.01)*AK26)+(('Guts-2'!$I$9*0.01)*AZ26)+(('Guts-2'!$I$4*0.01)*BO26)+(('Guts-2'!$I$2*0.01)*CD26)+(('Guts-2'!$I$8*0.01)*CS26) -> 31.8 | DI26: =(('Guts-2'!$I$7*0.01)*W26)+(('Guts-2'!$I$3*0.01)*AL26)+(('Guts-2'!$I$9*0.01)*BA26)+(('Guts-2'!$I$4*0.01)*BP26)+(('Guts-2'!$I$2*0.01)*CE26)+(('Guts-2'!$I$8*0.01)*CT26) -> 89.8 | DJ26: =(('Guts-2'!$I$7*0.01)*X26)+(('Guts-2'!$I$3*0.01)*AM26)+(('Guts-2'!$I$9*0.01)*BB26)+(('Guts-2'!$I$4*0.01)*BQ26)+(('Guts-2'!$I$2*0.01)*CF26)+(('Guts-2'!$I$8*0.01)*CU26) -> 20.6 | DK26: =(('Guts-2'!$I$7*0.01)*Y26)+(('Guts-2'!$I$3*0.01)*AN26)+(('Guts-2'!$I$9*0.01)*BC26)+(('Guts-2'!$I$4*0.01)*BR26)+(('Guts-2'!$I$2*0.01)*CG26)+(('Guts-2'!$I$8*0.01)*CV26) -> 1.68 | DL26: 3.049342105 | DM26: 1.207236842 | DN26: 13.29276316 | DO26: =(('Guts-2'!$I$7*0.01)*AC26)+(('Guts-2'!$I$3*0.01)*AR26)+(('Guts-2'!$I$9*0.01)*BG26)+(('Guts-2'!$I$4*0.01)*BV26)+(('Guts-2'!$I$2*0.01)*CK26)+(('Guts-2'!$I$8*0.01)*CZ26) -> 0 | DP26: =(('Guts-2'!$I$7*0.01)*AD26)+(('Guts-2'!$I$3*0.01)*AS26)+(('Guts-2'!$I$9*0.01)*BH26)+(('Guts-2'!$I$4*0.01)*BW26)+(('Guts-2'!$I$2*0.01)*CL26)+(('Guts-2'!$I$8*0.01)*DA26) -> 0 | DQ26: =(('Guts-2'!$I$7*0.01)*AE26)+(('Guts-2'!$I$3*0.01)*AT26)+(('Guts-2'!$I$9*0.01)*BI26)+(('Guts-2'!$I$4*0.01)*BX26)+(('Guts-2'!$I$2*0.01)*CM26)+(('Guts-2'!$I$8*0.01)*DB26) -> 60.4 | DR26: =(('Guts-2'!$I$7*0.01)*AF26)+(('Guts-2'!$I$3*0.01)*AU26)+(('Guts-2'!$I$9*0.01)*BJ26)+(('Guts-2'!$I$4*0.01)*BY26)+(('Guts-2'!$I$2*0.01)*CN26)+(('Guts-2'!$I$8*0.01)*DC26) -> 6 | DS26: 3.415993532 | DT26: 3.924440483 | DU26: 66 | DV26: 44.26847771 | DW26: 34.53887051 | DX26: 98.46716418 | DY26: 20.84059701 | DZ26: 4 | EA26: 2.841899593 | EB26: 1.194050731 | EC26: 13.42734057 | ED26: 0 | EE26: 0 | EF26: 65 | EG26: 5.754291967 | EH26: 3.415993532 | EI26: 3.924440483 | EJ26: 66 | EK26: 44.26847771 | EL26: 34.53887051 | EM26: 98.46716418 | EN26: 20.84059701 | EO26: 4 | EP26: 2.841899593 | EQ26: 1.194050731 | ER26: 13.42734057 | ES26: 0 | ET26: 0 | EU26: 65 | EV26: 5.754291967 | EW26: =VLOOKUP($A26,'Import (Projections)'!$O$2:$X$8997,COLUMN(B24),FALSE) -> 3 | EX26: =VLOOKUP($A26,'Import (Projections)'!$O$2:$X$8997,COLUMN(C24),FALSE) -> 2 | EY26: =VLOOKUP($A26,'Import (Projections)'!$O$2:$X$8997,COLUMN(D24),FALSE) -> 55 | EZ26: =VLOOKUP($A26,'Import (Projections)'!$O$2:$X$8997,COLUMN(E24),FALSE) -> 37 | FA26: =VLOOKUP($A26,'Import (Projections)'!$O$2:$X$8997,COLUMN(F24),FALSE) -> 26 | FB26: =VLOOKUP($A26,'Import (Projections)'!$O$2:$X$8997,COLUMN(G24),FALSE) -> 82 | FC26: =VLOOKUP($A26,'Import (Projections)'!$O$2:$X$8997,COLUMN(H24),FALSE) -> 18 | FD26: =VLOOKUP($A26,'Import (Projections)'!$O$2:$X$8997,COLUMN(I24),FALSE) -> 2 | FE26: 2.945454545 | FF26: 1.145454545 | FG26: 13.41818182 | FH26: 0 | FI26: =VLOOKUP($A26,'Import (Projections)'!$O$2:$X$8997,COLUMN(J24),FALSE) -> 0 | FL26: =IFERROR(IFERROR(AVERAGE(FP26,FT26),IFERROR(FT26,IFERROR(FP26,0)))*CHOOSE('Guts-2'!$D$28,O26,AD26,AS26,BH26,BW26,CL26,DA26,DP26,EE26,ET26,FI26,),0) -> 0 | FM26: =IFERROR(IFERROR(AVERAGE(FQ26,FS26),IFERROR(FS26,IFERROR(FQ26,0)))*CHOOSE('Guts-2'!$D$28,O26,AD26,AS26,BH26,BW26,CL26,DA26,DP26,EE26,ET26,FI26,),0) -> 0 | FN26: 20 | FS26: 0 | FT26: 0 | FU26: 0 | FV26: 23 | FW26: 17
